Workbook

Sheet Information
A2: Trend Based Capex Forecast
A4: Purpose
A5: Calculate forecast of trend based driver categories.
A7: Context
A8: Historical project expenditure information for system security, security/compliance and other network drivers are listed in "Historic Capex (Project)" sheet. Conversion (to real 25/26) and calculations are performed on this sheet.
A9: For security / compliance and other network projects, specific projects are identified to be excluded from the trend calculation, based on either (a) project is non-repeatable; or (b) project cost exceeds 2x standard deviations above the mean.
A10: The "Category Significance Calc" sheet calculates the limit for each project category.
A12: Tool expenditure is a non-network capital expenditure and is an individual item reported. Hence, there is no project listing.
A14: Each category has its own worksheet. The output of each goes into the capex model.

Sheet Historic Capex (Project)
B2: Project Information
Z3: Expenditure, Real 25/26, $m
D4: Nominal $ | E4: Nominal $ | F4: Nominal $ | G4: Nominal $ | H4: Nominal $ | I4: Nominal $ | J4: Nominal $ | K4: Nominal $ | L4: Nominal $ | M4: Nominal $ | N4: Nominal $ | O4: Nominal $ | P4: Nominal $ | Q4: Nominal $ | R4: Nominal $ | S4: Nominal $ | T4: Nominal $ | U4: Nominal $ | V4: Nominal $ | W4: Nominal $ | Z4: 08 | AA4: 09 | AB4: 10 | AC4: 11 | AD4: 12 | AE4: 13 | AF4: 14 | AG4: 15 | AH4: 16 | AI4: 17 | AJ4: 18 | AK4: 19 | AL4: 20 | AM4: 21 | AN4: 22 | AO4: 23 | AP4: 24 | AQ4: 25 | AR4: 26 | AS4: 27 | AZ4: These projects appear as offsets on the subsequent worksheets.
A5: Project ID | B5: Project Description | C5: Category | D5: Actuals 07/08 | E5: Actuals 08/09 | F5: Actuals 09/10 | G5: Actuals 10/11 | H5: Actuals 11/12 | I5: Actuals 12/13 | J5: Actuals 13/14 | K5: Actuals 14/15 | L5: Actuals 15/16 | M5: Actuals 16/17 | N5: Actuals 17/18 | O5: Actuals 18/19 | P5: Actuals 19/20 | Q5: Actuals 20/21 | R5: Actuals 21/22 | S5: Actuals 22/23 | T5: Actuals 23/24 | U5: Actual 24/25 | V5: Forecast 25/26 | W5: Forecast 26/27 | X5: Sum > 0 | Y5: SomeExpenditure >= 2016 | Z5: Real 08 | AA5: Real 09 | AB5: Real 10 | AC5: Real 11 | AD5: Real 12 | AE5: Real 13 | AF5: Real 14 | AG5: Real 15 | AH5: Real 16 | AI5: Real 17 | AJ5: Real 18 | AK5: Real 19 | AL5: Real 20 | AM5: Real 21 | AN5: Real 22 | AO5: Real 23 | AP5: Real 24 | AQ5: Real 25 | AR5: Real 26 | AS5: Real 27 | AT5: Real Sum | AU5: (Project Total - Category Average)^2 | AV5: Category Limit | AW5: Significant Project? (Financial Basis) | AX5: Non repeatable | AY5: Abnormal? | AZ5: SomeExpenditure >= 2016 and Abnormal
A6: C55.1489 | B6: Digital Hubs | C6: Other | D6: 0 | E6: 0 | F6: 0 | G6: 0 | H6: 0 | I6: 0 | J6: 0 | K6: 0 | L6: 0 | M6: 0 | N6: 0 | O6: 0 | P6: 0 | Q6: 0 | R6: 0 | S6: 0 | T6: 0 | U6: 0 | V6: 0 | W6: 0 | X6: =ProjectData[[#This Row],[Real Sum]]>0.0001 -> FALSE | Y6: =OR(ProjectData[[#This Row],[Real 16]]>0,ProjectData[[#This Row],[Real 17]]>0,ProjectData[[#This Row],[Real 18]]>0,ProjectData[[#This Row],[Real 19]]>0,ProjectData[[#This Row],[Real 20]]>0) -> FALSE | Z6: =ProjectData[[#This Row],[Actuals 07/08]]*VLOOKUP("Mid Year Nominal - EOY Real (2026/27)",CPI[],MATCH(Z$4,CPI[#Headers],0),FALSE) -> 0 | AA6: =ProjectData[[#This Row],[Actuals 08/09]]*VLOOKUP("Mid Year Nominal - EOY Real (2026/27)",CPI[],MATCH(AA$4,CPI[#Headers],0),FALSE) -> 0 | AB6: =ProjectData[[#This Row],[Actuals 09/10]]*VLOOKUP("Mid Year Nominal - EOY Real (2026/27)",CPI[],MATCH(AB$4,CPI[#Headers],0),FALSE) -> 0 | AC6: =ProjectData[[#This Row],[Actuals 10/11]]*VLOOKUP("Mid Year Nominal - EOY Real (2026/27)",CPI[],MATCH(AC$4,CPI[#Headers],0),FALSE) -> 0 | AD6: =ProjectData[[#This Row],[Actuals 11/12]]*VLOOKUP("Mid Year Nominal - EOY Real (2026/27)",CPI[],MATCH(AD$4,CPI[#Headers],0),FALSE) -> 0 | AE6: =ProjectData[[#This Row],[Actuals 12/13]]*VLOOKUP("Mid Year Nominal - EOY Real (2026/27)",CPI[],MATCH(AE$4,CPI[#Headers],0),FALSE) -> 0 | AF6: =ProjectData[[#This Row],[Actuals 13/14]]*VLOOKUP("Mid Year Nominal - EOY Real (2026/27)",CPI[],MATCH(AF$4,CPI[#Headers],0),FALSE) -> 0 | AG6: =ProjectData[[#This Row],[Actuals 14/15]]*VLOOKUP("Mid Year Nominal - EOY Real (2026/27)",CPI[],MATCH(AG$4,CPI[#Headers],0),FALSE) -> 0 | AH6: =ProjectData[[#This Row],[Actuals 15/16]]*VLOOKUP("Mid Year Nominal - EOY Real (2026/27)",CPI[],MATCH(AH$4,CPI[#Headers],0),FALSE) -> 0 | AI6: =ProjectData[[#This Row],[Actuals 16/17]]*VLOOKUP("Mid Year Nominal - EOY Real (2026/27)",CPI[],MATCH(AI$4,CPI[#Headers],0),FALSE) -> 0 | AJ6: =ProjectData[[#This Row],[Actuals 17/18]]*VLOOKUP("Mid Year Nominal - EOY Real (2026/27)",CPI[],MATCH(AJ$4,CPI[#Headers],0),FALSE) -> 0 | AK6: =ProjectData[[#This Row],[Actuals 18/19]]*VLOOKUP("Mid Year Nominal - EOY Real (2026/27)",CPI[],MATCH(AK$4,CPI[#Headers],0),FALSE) -> 0 | AL6: =ProjectData[[#This Row],[Actuals 19/20]]*VLOOKUP("Mid Year Nominal - EOY Real (2026/27)",CPI[],MATCH(AL$4,CPI[#Headers],0),FALSE) -> 0 | AM6: =ProjectData[[#This Row],[Actuals 20/21]]*VLOOKUP("Mid Year Nominal - EOY Real (2026/27)",CPI[],MATCH(AM$4,CPI[#Headers],0),FALSE) -> 0 | AN6: =ProjectData[[#This Row],[Actuals 21/22]]*VLOOKUP("Mid Year Nominal - EOY Real (2026/27)",CPI[],MATCH(AN$4,CPI[#Headers],0),FALSE) -> 0 | AO6: =ProjectData[[#This Row],[Actuals 22/23]]*VLOOKUP("Mid Year Nominal - EOY Real (2026/27)",CPI[],MATCH(AO$4,CPI[#Headers],0),FALSE) -> 0 | AP6: =ProjectData[[#This Row],[Actuals 23/24]]*VLOOKUP("Mid Year Nominal - EOY Real (2026/27)",CPI[],MATCH(AP$4,CPI[#Headers],0),FALSE) -> 0 | AQ6: =ProjectData[[#This Row],[Actual 24/25]]*VLOOKUP("Mid Year Nominal - EOY Real (2026/27)",CPI[],MATCH(AQ$4,CPI[#Headers],0),FALSE) -> 0 | AR6: =ProjectData[[#This Row],[Forecast 25/26]]*VLOOKUP("Mid Year Nominal - EOY Real (2026/27)",CPI[],MATCH(AR$4,CPI[#Headers],0),FALSE) -> 0 | AS6: =ProjectData[[#This Row],[Forecast 26/27]]*VLOOKUP("Mid Year Nominal - EOY Real (2026/27)",CPI[],MATCH(AS$4,CPI[#Headers],0),FALSE) -> 0 | AT6: =SUM(ProjectData[[#This Row],[Real 08]:[Real 27]]) -> 0 | AU6: =(ProjectData[[#This Row],[Real Sum]]-VLOOKUP(ProjectData[[#This Row],[Category]],Category_AverageStdDevLimit[],MATCH("Average",Category_AverageStdDevLimit[#Headers],0),FALSE))^2 -> 4.482485466 | AV6: =VLOOKUP(ProjectData[[#This Row],[Category]],Category_AverageStdDevLimit[],MATCH("Limit",Category_AverageStdDevLimit[#Headers],0),FALSE) -> 10.66631335 | AW6: =ProjectData[[#This Row],[Real Sum]]>ProjectData[[#This Row],[Category Limit]] -> FALSE | AY6: =OR(ProjectData[[#This Row],[Significant Project? (Financial Basis)]],ProjectData[[#This Row],[Non repeatable]]) -> FALSE | AZ6: =AND(ProjectData[[#This Row],[SomeExpenditure >= 2016]],ProjectData[[#This Row],[Abnormal?]]) -> FALSE
A7: C55.1498 | B7: Digital network asset management programme 3 | C7: Other | D7: 0 | E7: 0 | F7: 0 | G7: 0 | H7: 0 | I7: 0 | J7: 0 | K7: 0 | L7: 0 | M7: 0 | N7: 0 | O7: 0 | P7: 0 | Q7: 0 | R7: 0 | S7: 0 | T7: 0 | U7: 0 | V7: 0 | W7: 0 | X7: =ProjectData[[#This Row],[Real Sum]]>0.0001 -> FALSE | Y7: =OR(ProjectData[[#This Row],[Real 16]]>0,ProjectData[[#This Row],[Real 17]]>0,ProjectData[[#This Row],[Real 18]]>0,ProjectData[[#This Row],[Real 19]]>0,ProjectData[[#This Row],[Real 20]]>0) -> FALSE | Z7: =ProjectData[[#This Row],[Actuals 07/08]]*VLOOKUP("Mid Year Nominal - EOY Real (2026/27)",CPI[],MATCH(Z$4,CPI[#Headers],0),FALSE) -> 0 | AA7: =ProjectData[[#This Row],[Actuals 08/09]]*VLOOKUP("Mid Year Nominal - EOY Real (2026/27)",CPI[],MATCH(AA$4,CPI[#Headers],0),FALSE) -> 0 | AB7: =ProjectData[[#This Row],[Actuals 09/10]]*VLOOKUP("Mid Year Nominal - EOY Real (2026/27)",CPI[],MATCH(AB$4,CPI[#Headers],0),FALSE) -> 0 | AC7: =ProjectData[[#This Row],[Actuals 10/11]]*VLOOKUP("Mid Year Nominal - EOY Real (2026/27)",CPI[],MATCH(AC$4,CPI[#Headers],0),FALSE) -> 0 | AD7: =ProjectData[[#This Row],[Actuals 11/12]]*VLOOKUP("Mid Year Nominal - EOY Real (2026/27)",CPI[],MATCH(AD$4,CPI[#Headers],0),FALSE) -> 0 | AE7: =ProjectData[[#This Row],[Actuals 12/13]]*VLOOKUP("Mid Year Nominal - EOY Real (2026/27)",CPI[],MATCH(AE$4,CPI[#Headers],0),FALSE) -> 0 | AF7: =ProjectData[[#This Row],[Actuals 13/14]]*VLOOKUP("Mid Year Nominal - EOY Real (2026/27)",CPI[],MATCH(AF$4,CPI[#Headers],0),FALSE) -> 0 | AG7: =ProjectData[[#This Row],[Actuals 14/15]]*VLOOKUP("Mid Year Nominal - EOY Real (2026/27)",CPI[],MATCH(AG$4,CPI[#Headers],0),FALSE) -> 0 | AH7: =ProjectData[[#This Row],[Actuals 15/16]]*VLOOKUP("Mid Year Nominal - EOY Real (2026/27)",CPI[],MATCH(AH$4,CPI[#Headers],0),FALSE) -> 0 | AI7: =ProjectData[[#This Row],[Actuals 16/17]]*VLOOKUP("Mid Year Nominal - EOY Real (2026/27)",CPI[],MATCH(AI$4,CPI[#Headers],0),FALSE) -> 0 | AJ7: =ProjectData[[#This Row],[Actuals 17/18]]*VLOOKUP("Mid Year Nominal - EOY Real (2026/27)",CPI[],MATCH(AJ$4,CPI[#Headers],0),FALSE) -> 0 | AK7: =ProjectData[[#This Row],[Actuals 18/19]]*VLOOKUP("Mid Year Nominal - EOY Real (2026/27)",CPI[],MATCH(AK$4,CPI[#Headers],0),FALSE) -> 0 | AL7: =ProjectData[[#This Row],[Actuals 19/20]]*VLOOKUP("Mid Year Nominal - EOY Real (2026/27)",CPI[],MATCH(AL$4,CPI[#Headers],0),FALSE) -> 0 | AM7: =ProjectData[[#This Row],[Actuals 20/21]]*VLOOKUP("Mid Year Nominal - EOY Real (2026/27)",CPI[],MATCH(AM$4,CPI[#Headers],0),FALSE) -> 0 | AN7: =ProjectData[[#This Row],[Actuals 21/22]]*VLOOKUP("Mid Year Nominal - EOY Real (2026/27)",CPI[],MATCH(AN$4,CPI[#Headers],0),FALSE) -> 0 | AO7: =ProjectData[[#This Row],[Actuals 22/23]]*VLOOKUP("Mid Year Nominal - EOY Real (2026/27)",CPI[],MATCH(AO$4,CPI[#Headers],0),FALSE) -> 0 | AP7: =ProjectData[[#This Row],[Actuals 23/24]]*VLOOKUP("Mid Year Nominal - EOY Real (2026/27)",CPI[],MATCH(AP$4,CPI[#Headers],0),FALSE) -> 0 | AQ7: =ProjectData[[#This Row],[Actual 24/25]]*VLOOKUP("Mid Year Nominal - EOY Real (2026/27)",CPI[],MATCH(AQ$4,CPI[#Headers],0),FALSE) -> 0 | AR7: =ProjectData[[#This Row],[Forecast 25/26]]*VLOOKUP("Mid Year Nominal - EOY Real (2026/27)",CPI[],MATCH(AR$4,CPI[#Headers],0),FALSE) -> 0 | AS7: =ProjectData[[#This Row],[Forecast 26/27]]*VLOOKUP("Mid Year Nominal - EOY Real (2026/27)",CPI[],MATCH(AS$4,CPI[#Headers],0),FALSE) -> 0 | AT7: =SUM(ProjectData[[#This Row],[Real 08]:[Real 27]]) -> 0 | AU7: =(ProjectData[[#This Row],[Real Sum]]-VLOOKUP(ProjectData[[#This Row],[Category]],Category_AverageStdDevLimit[],MATCH("Average",Category_AverageStdDevLimit[#Headers],0),FALSE))^2 -> 4.482485466 | AV7: =VLOOKUP(ProjectData[[#This Row],[Category]],Category_AverageStdDevLimit[],MATCH("Limit",Category_AverageStdDevLimit[#Headers],0),FALSE) -> 10.66631335 | AW7: =ProjectData[[#This Row],[Real Sum]]>ProjectData[[#This Row],[Category Limit]] -> FALSE | AY7: =OR(ProjectData[[#This Row],[Significant Project? (Financial Basis)]],ProjectData[[#This Row],[Non repeatable]]) -> FALSE | AZ7: =AND(ProjectData[[#This Row],[SomeExpenditure >= 2016]],ProjectData[[#This Row],[Abnormal?]]) -> FALSE
A8: C55.1509 | B8: Operating System Upgrade Project 2 | C8: Other | D8: 0 | E8: 0 | F8: 0 | G8: 0 | H8: 0 | I8: 0 | J8: 0 | K8: 0 | L8: 0 | M8: 0 | N8: 0 | O8: 0 | P8: 0 | Q8: 0 | R8: 0 | S8: 0 | T8: 0 | U8: 0 | V8: 0 | W8: 0 | X8: =ProjectData[[#This Row],[Real Sum]]>0.0001 -> FALSE | Y8: =OR(ProjectData[[#This Row],[Real 16]]>0,ProjectData[[#This Row],[Real 17]]>0,ProjectData[[#This Row],[Real 18]]>0,ProjectData[[#This Row],[Real 19]]>0,ProjectData[[#This Row],[Real 20]]>0) -> FALSE | Z8: =ProjectData[[#This Row],[Actuals 07/08]]*VLOOKUP("Mid Year Nominal - EOY Real (2026/27)",CPI[],MATCH(Z$4,CPI[#Headers],0),FALSE) -> 0 | AA8: =ProjectData[[#This Row],[Actuals 08/09]]*VLOOKUP("Mid Year Nominal - EOY Real (2026/27)",CPI[],MATCH(AA$4,CPI[#Headers],0),FALSE) -> 0 | AB8: =ProjectData[[#This Row],[Actuals 09/10]]*VLOOKUP("Mid Year Nominal - EOY Real (2026/27)",CPI[],MATCH(AB$4,CPI[#Headers],0),FALSE) -> 0 | AC8: =ProjectData[[#This Row],[Actuals 10/11]]*VLOOKUP("Mid Year Nominal - EOY Real (2026/27)",CPI[],MATCH(AC$4,CPI[#Headers],0),FALSE) -> 0 | AD8: =ProjectData[[#This Row],[Actuals 11/12]]*VLOOKUP("Mid Year Nominal - EOY Real (2026/27)",CPI[],MATCH(AD$4,CPI[#Headers],0),FALSE) -> 0 | AE8: =ProjectData[[#This Row],[Actuals 12/13]]*VLOOKUP("Mid Year Nominal - EOY Real (2026/27)",CPI[],MATCH(AE$4,CPI[#Headers],0),FALSE) -> 0 | AF8: =ProjectData[[#This Row],[Actuals 13/14]]*VLOOKUP("Mid Year Nominal - EOY Real (2026/27)",CPI[],MATCH(AF$4,CPI[#Headers],0),FALSE) -> 0 | AG8: =ProjectData[[#This Row],[Actuals 14/15]]*VLOOKUP("Mid Year Nominal - EOY Real (2026/27)",CPI[],MATCH(AG$4,CPI[#Headers],0),FALSE) -> 0 | AH8: =ProjectData[[#This Row],[Actuals 15/16]]*VLOOKUP("Mid Year Nominal - EOY Real (2026/27)",CPI[],MATCH(AH$4,CPI[#Headers],0),FALSE) -> 0 | AI8: =ProjectData[[#This Row],[Actuals 16/17]]*VLOOKUP("Mid Year Nominal - EOY Real (2026/27)",CPI[],MATCH(AI$4,CPI[#Headers],0),FALSE) -> 0 | AJ8: =ProjectData[[#This Row],[Actuals 17/18]]*VLOOKUP("Mid Year Nominal - EOY Real (2026/27)",CPI[],MATCH(AJ$4,CPI[#Headers],0),FALSE) -> 0 | AK8: =ProjectData[[#This Row],[Actuals 18/19]]*VLOOKUP("Mid Year Nominal - EOY Real (2026/27)",CPI[],MATCH(AK$4,CPI[#Headers],0),FALSE) -> 0 | AL8: =ProjectData[[#This Row],[Actuals 19/20]]*VLOOKUP("Mid Year Nominal - EOY Real (2026/27)",CPI[],MATCH(AL$4,CPI[#Headers],0),FALSE) -> 0 | AM8: =ProjectData[[#This Row],[Actuals 20/21]]*VLOOKUP("Mid Year Nominal - EOY Real (2026/27)",CPI[],MATCH(AM$4,CPI[#Headers],0),FALSE) -> 0 | AN8: =ProjectData[[#This Row],[Actuals 21/22]]*VLOOKUP("Mid Year Nominal - EOY Real (2026/27)",CPI[],MATCH(AN$4,CPI[#Headers],0),FALSE) -> 0 | AO8: =ProjectData[[#This Row],[Actuals 22/23]]*VLOOKUP("Mid Year Nominal - EOY Real (2026/27)",CPI[],MATCH(AO$4,CPI[#Headers],0),FALSE) -> 0 | AP8: =ProjectData[[#This Row],[Actuals 23/24]]*VLOOKUP("Mid Year Nominal - EOY Real (2026/27)",CPI[],MATCH(AP$4,CPI[#Headers],0),FALSE) -> 0 | AQ8: =ProjectData[[#This Row],[Actual 24/25]]*VLOOKUP("Mid Year Nominal - EOY Real (2026/27)",CPI[],MATCH(AQ$4,CPI[#Headers],0),FALSE) -> 0 | AR8: =ProjectData[[#This Row],[Forecast 25/26]]*VLOOKUP("Mid Year Nominal - EOY Real (2026/27)",CPI[],MATCH(AR$4,CPI[#Headers],0),FALSE) -> 0 | AS8: =ProjectData[[#This Row],[Forecast 26/27]]*VLOOKUP("Mid Year Nominal - EOY Real (2026/27)",CPI[],MATCH(AS$4,CPI[#Headers],0),FALSE) -> 0 | AT8: =SUM(ProjectData[[#This Row],[Real 08]:[Real 27]]) -> 0 | AU8: =(ProjectData[[#This Row],[Real Sum]]-VLOOKUP(ProjectData[[#This Row],[Category]],Category_AverageStdDevLimit[],MATCH("Average",Category_AverageStdDevLimit[#Headers],0),FALSE))^2 -> 4.482485466 | AV8: =VLOOKUP(ProjectData[[#This Row],[Category]],Category_AverageStdDevLimit[],MATCH("Limit",Category_AverageStdDevLimit[#Headers],0),FALSE) -> 10.66631335 | AW8: =ProjectData[[#This Row],[Real Sum]]>ProjectData[[#This Row],[Category Limit]] -> FALSE | AY8: =OR(ProjectData[[#This Row],[Significant Project? (Financial Basis)]],ProjectData[[#This Row],[Non repeatable]]) -> FALSE | AZ8: =AND(ProjectData[[#This Row],[SomeExpenditure >= 2016]],ProjectData[[#This Row],[Abnormal?]]) -> FALSE
A9: C55.1516 | B9: OT Information Management Programme | C9: Other | D9: 0 | E9: 0 | F9: 0 | G9: 0 | H9: 0 | I9: 0 | J9: 0 | K9: 0 | L9: 0 | M9: 0 | N9: 0 | O9: 0 | P9: 0 | Q9: 0 | R9: 0 | S9: 0 | T9: 0 | U9: 0 | V9: 0 | W9: 0 | X9: =ProjectData[[#This Row],[Real Sum]]>0.0001 -> FALSE | Y9: =OR(ProjectData[[#This Row],[Real 16]]>0,ProjectData[[#This Row],[Real 17]]>0,ProjectData[[#This Row],[Real 18]]>0,ProjectData[[#This Row],[Real 19]]>0,ProjectData[[#This Row],[Real 20]]>0) -> FALSE | Z9: =ProjectData[[#This Row],[Actuals 07/08]]*VLOOKUP("Mid Year Nominal - EOY Real (2026/27)",CPI[],MATCH(Z$4,CPI[#Headers],0),FALSE) -> 0 | AA9: =ProjectData[[#This Row],[Actuals 08/09]]*VLOOKUP("Mid Year Nominal - EOY Real (2026/27)",CPI[],MATCH(AA$4,CPI[#Headers],0),FALSE) -> 0 | AB9: =ProjectData[[#This Row],[Actuals 09/10]]*VLOOKUP("Mid Year Nominal - EOY Real (2026/27)",CPI[],MATCH(AB$4,CPI[#Headers],0),FALSE) -> 0 | AC9: =ProjectData[[#This Row],[Actuals 10/11]]*VLOOKUP("Mid Year Nominal - EOY Real (2026/27)",CPI[],MATCH(AC$4,CPI[#Headers],0),FALSE) -> 0 | AD9: =ProjectData[[#This Row],[Actuals 11/12]]*VLOOKUP("Mid Year Nominal - EOY Real (2026/27)",CPI[],MATCH(AD$4,CPI[#Headers],0),FALSE) -> 0 | AE9: =ProjectData[[#This Row],[Actuals 12/13]]*VLOOKUP("Mid Year Nominal - EOY Real (2026/27)",CPI[],MATCH(AE$4,CPI[#Headers],0),FALSE) -> 0 | AF9: =ProjectData[[#This Row],[Actuals 13/14]]*VLOOKUP("Mid Year Nominal - EOY Real (2026/27)",CPI[],MATCH(AF$4,CPI[#Headers],0),FALSE) -> 0 | AG9: =ProjectData[[#This Row],[Actuals 14/15]]*VLOOKUP("Mid Year Nominal - EOY Real (2026/27)",CPI[],MATCH(AG$4,CPI[#Headers],0),FALSE) -> 0 | AH9: =ProjectData[[#This Row],[Actuals 15/16]]*VLOOKUP("Mid Year Nominal - EOY Real (2026/27)",CPI[],MATCH(AH$4,CPI[#Headers],0),FALSE) -> 0 | AI9: =ProjectData[[#This Row],[Actuals 16/17]]*VLOOKUP("Mid Year Nominal - EOY Real (2026/27)",CPI[],MATCH(AI$4,CPI[#Headers],0),FALSE) -> 0 | AJ9: =ProjectData[[#This Row],[Actuals 17/18]]*VLOOKUP("Mid Year Nominal - EOY Real (2026/27)",CPI[],MATCH(AJ$4,CPI[#Headers],0),FALSE) -> 0 | AK9: =ProjectData[[#This Row],[Actuals 18/19]]*VLOOKUP("Mid Year Nominal - EOY Real (2026/27)",CPI[],MATCH(AK$4,CPI[#Headers],0),FALSE) -> 0 | AL9: =ProjectData[[#This Row],[Actuals 19/20]]*VLOOKUP("Mid Year Nominal - EOY Real (2026/27)",CPI[],MATCH(AL$4,CPI[#Headers],0),FALSE) -> 0 | AM9: =ProjectData[[#This Row],[Actuals 20/21]]*VLOOKUP("Mid Year Nominal - EOY Real (2026/27)",CPI[],MATCH(AM$4,CPI[#Headers],0),FALSE) -> 0 | AN9: =ProjectData[[#This Row],[Actuals 21/22]]*VLOOKUP("Mid Year Nominal - EOY Real (2026/27)",CPI[],MATCH(AN$4,CPI[#Headers],0),FALSE) -> 0 | AO9: =ProjectData[[#This Row],[Actuals 22/23]]*VLOOKUP("Mid Year Nominal - EOY Real (2026/27)",CPI[],MATCH(AO$4,CPI[#Headers],0),FALSE) -> 0 | AP9: =ProjectData[[#This Row],[Actuals 23/24]]*VLOOKUP("Mid Year Nominal - EOY Real (2026/27)",CPI[],MATCH(AP$4,CPI[#Headers],0),FALSE) -> 0 | AQ9: =ProjectData[[#This Row],[Actual 24/25]]*VLOOKUP("Mid Year Nominal - EOY Real (2026/27)",CPI[],MATCH(AQ$4,CPI[#Headers],0),FALSE) -> 0 | AR9: =ProjectData[[#This Row],[Forecast 25/26]]*VLOOKUP("Mid Year Nominal - EOY Real (2026/27)",CPI[],MATCH(AR$4,CPI[#Headers],0),FALSE) -> 0 | AS9: =ProjectData[[#This Row],[Forecast 26/27]]*VLOOKUP("Mid Year Nominal - EOY Real (2026/27)",CPI[],MATCH(AS$4,CPI[#Headers],0),FALSE) -> 0 | AT9: =SUM(ProjectData[[#This Row],[Real 08]:[Real 27]]) -> 0 | AU9: =(ProjectData[[#This Row],[Real Sum]]-VLOOKUP(ProjectData[[#This Row],[Category]],Category_AverageStdDevLimit[],MATCH("Average",Category_AverageStdDevLimit[#Headers],0),FALSE))^2 -> 4.482485466 | AV9: =VLOOKUP(ProjectData[[#This Row],[Category]],Category_AverageStdDevLimit[],MATCH("Limit",Category_AverageStdDevLimit[#Headers],0),FALSE) -> 10.66631335 | AW9: =ProjectData[[#This Row],[Real Sum]]>ProjectData[[#This Row],[Category Limit]] -> FALSE | AY9: =OR(ProjectData[[#This Row],[Significant Project? (Financial Basis)]],ProjectData[[#This Row],[Non repeatable]]) -> FALSE | AZ9: =AND(ProjectData[[#This Row],[SomeExpenditure >= 2016]],ProjectData[[#This Row],[Abnormal?]]) -> FALSE
A10: C55.1517 | B10: Network Operations Analytics 1 | C10: Other | D10: 0 | E10: 0 | F10: 0 | G10: 0 | H10: 0 | I10: 0 | J10: 0 | K10: 0 | L10: 0 | M10: 0 | N10: 0 | O10: 0 | P10: 0 | Q10: 0 | R10: 0 | S10: 0 | T10: 0 | U10: 0 | V10: 0 | W10: 0 | X10: =ProjectData[[#This Row],[Real Sum]]>0.0001 -> FALSE | Y10: =OR(ProjectData[[#This Row],[Real 16]]>0,ProjectData[[#This Row],[Real 17]]>0,ProjectData[[#This Row],[Real 18]]>0,ProjectData[[#This Row],[Real 19]]>0,ProjectData[[#This Row],[Real 20]]>0) -> FALSE | Z10: =ProjectData[[#This Row],[Actuals 07/08]]*VLOOKUP("Mid Year Nominal - EOY Real (2026/27)",CPI[],MATCH(Z$4,CPI[#Headers],0),FALSE) -> 0 | AA10: =ProjectData[[#This Row],[Actuals 08/09]]*VLOOKUP("Mid Year Nominal - EOY Real (2026/27)",CPI[],MATCH(AA$4,CPI[#Headers],0),FALSE) -> 0 | AB10: =ProjectData[[#This Row],[Actuals 09/10]]*VLOOKUP("Mid Year Nominal - EOY Real (2026/27)",CPI[],MATCH(AB$4,CPI[#Headers],0),FALSE) -> 0 | AC10: =ProjectData[[#This Row],[Actuals 10/11]]*VLOOKUP("Mid Year Nominal - EOY Real (2026/27)",CPI[],MATCH(AC$4,CPI[#Headers],0),FALSE) -> 0 | AD10: =ProjectData[[#This Row],[Actuals 11/12]]*VLOOKUP("Mid Year Nominal - EOY Real (2026/27)",CPI[],MATCH(AD$4,CPI[#Headers],0),FALSE) -> 0 | AE10: =ProjectData[[#This Row],[Actuals 12/13]]*VLOOKUP("Mid Year Nominal - EOY Real (2026/27)",CPI[],MATCH(AE$4,CPI[#Headers],0),FALSE) -> 0 | AF10: =ProjectData[[#This Row],[Actuals 13/14]]*VLOOKUP("Mid Year Nominal - EOY Real (2026/27)",CPI[],MATCH(AF$4,CPI[#Headers],0),FALSE) -> 0 | AG10: =ProjectData[[#This Row],[Actuals 14/15]]*VLOOKUP("Mid Year Nominal - EOY Real (2026/27)",CPI[],MATCH(AG$4,CPI[#Headers],0),FALSE) -> 0 | AH10: =ProjectData[[#This Row],[Actuals 15/16]]*VLOOKUP("Mid Year Nominal - EOY Real (2026/27)",CPI[],MATCH(AH$4,CPI[#Headers],0),FALSE) -> 0 | AI10: =ProjectData[[#This Row],[Actuals 16/17]]*VLOOKUP("Mid Year Nominal - EOY Real (2026/27)",CPI[],MATCH(AI$4,CPI[#Headers],0),FALSE) -> 0 | AJ10: =ProjectData[[#This Row],[Actuals 17/18]]*VLOOKUP("Mid Year Nominal - EOY Real (2026/27)",CPI[],MATCH(AJ$4,CPI[#Headers],0),FALSE) -> 0 | AK10: =ProjectData[[#This Row],[Actuals 18/19]]*VLOOKUP("Mid Year Nominal - EOY Real (2026/27)",CPI[],MATCH(AK$4,CPI[#Headers],0),FALSE) -> 0 | AL10: =ProjectData[[#This Row],[Actuals 19/20]]*VLOOKUP("Mid Year Nominal - EOY Real (2026/27)",CPI[],MATCH(AL$4,CPI[#Headers],0),FALSE) -> 0 | AM10: =ProjectData[[#This Row],[Actuals 20/21]]*VLOOKUP("Mid Year Nominal - EOY Real (2026/27)",CPI[],MATCH(AM$4,CPI[#Headers],0),FALSE) -> 0 | AN10: =ProjectData[[#This Row],[Actuals 21/22]]*VLOOKUP("Mid Year Nominal - EOY Real (2026/27)",CPI[],MATCH(AN$4,CPI[#Headers],0),FALSE) -> 0 | AO10: =ProjectData[[#This Row],[Actuals 22/23]]*VLOOKUP("Mid Year Nominal - EOY Real (2026/27)",CPI[],MATCH(AO$4,CPI[#Headers],0),FALSE) -> 0 | AP10: =ProjectData[[#This Row],[Actuals 23/24]]*VLOOKUP("Mid Year Nominal - EOY Real (2026/27)",CPI[],MATCH(AP$4,CPI[#Headers],0),FALSE) -> 0 | AQ10: =ProjectData[[#This Row],[Actual 24/25]]*VLOOKUP("Mid Year Nominal - EOY Real (2026/27)",CPI[],MATCH(AQ$4,CPI[#Headers],0),FALSE) -> 0 | AR10: =ProjectData[[#This Row],[Forecast 25/26]]*VLOOKUP("Mid Year Nominal - EOY Real (2026/27)",CPI[],MATCH(AR$4,CPI[#Headers],0),FALSE) -> 0 | AS10: =ProjectData[[#This Row],[Forecast 26/27]]*VLOOKUP("Mid Year Nominal - EOY Real (2026/27)",CPI[],MATCH(AS$4,CPI[#Headers],0),FALSE) -> 0 | AT10: =SUM(ProjectData[[#This Row],[Real 08]:[Real 27]]) -> 0 | AU10: =(ProjectData[[#This Row],[Real Sum]]-VLOOKUP(ProjectData[[#This Row],[Category]],Category_AverageStdDevLimit[],MATCH("Average",Category_AverageStdDevLimit[#Headers],0),FALSE))^2 -> 4.482485466 | AV10: =VLOOKUP(ProjectData[[#This Row],[Category]],Category_AverageStdDevLimit[],MATCH("Limit",Category_AverageStdDevLimit[#Headers],0),FALSE) -> 10.66631335 | AW10: =ProjectData[[#This Row],[Real Sum]]>ProjectData[[#This Row],[Category Limit]] -> FALSE | AY10: =OR(ProjectData[[#This Row],[Significant Project? (Financial Basis)]],ProjectData[[#This Row],[Non repeatable]]) -> FALSE | AZ10: =AND(ProjectData[[#This Row],[SomeExpenditure >= 2016]],ProjectData[[#This Row],[Abnormal?]]) -> FALSE
A11: C55.1518 | B11: Network Operations Analytics 2 | C11: Other | D11: 0 | E11: 0 | F11: 0 | G11: 0 | H11: 0 | I11: 0 | J11: 0 | K11: 0 | L11: 0 | M11: 0 | N11: 0 | O11: 0 | P11: 0 | Q11: 0 | R11: 0 | S11: 0 | T11: 0 | U11: 0 | V11: 0 | W11: 0 | X11: =ProjectData[[#This Row],[Real Sum]]>0.0001 -> FALSE | Y11: =OR(ProjectData[[#This Row],[Real 16]]>0,ProjectData[[#This Row],[Real 17]]>0,ProjectData[[#This Row],[Real 18]]>0,ProjectData[[#This Row],[Real 19]]>0,ProjectData[[#This Row],[Real 20]]>0) -> FALSE | Z11: =ProjectData[[#This Row],[Actuals 07/08]]*VLOOKUP("Mid Year Nominal - EOY Real (2026/27)",CPI[],MATCH(Z$4,CPI[#Headers],0),FALSE) -> 0 | AA11: =ProjectData[[#This Row],[Actuals 08/09]]*VLOOKUP("Mid Year Nominal - EOY Real (2026/27)",CPI[],MATCH(AA$4,CPI[#Headers],0),FALSE) -> 0 | AB11: =ProjectData[[#This Row],[Actuals 09/10]]*VLOOKUP("Mid Year Nominal - EOY Real (2026/27)",CPI[],MATCH(AB$4,CPI[#Headers],0),FALSE) -> 0 | AC11: =ProjectData[[#This Row],[Actuals 10/11]]*VLOOKUP("Mid Year Nominal - EOY Real (2026/27)",CPI[],MATCH(AC$4,CPI[#Headers],0),FALSE) -> 0 | AD11: =ProjectData[[#This Row],[Actuals 11/12]]*VLOOKUP("Mid Year Nominal - EOY Real (2026/27)",CPI[],MATCH(AD$4,CPI[#Headers],0),FALSE) -> 0 | AE11: =ProjectData[[#This Row],[Actuals 12/13]]*VLOOKUP("Mid Year Nominal - EOY Real (2026/27)",CPI[],MATCH(AE$4,CPI[#Headers],0),FALSE) -> 0 | AF11: =ProjectData[[#This Row],[Actuals 13/14]]*VLOOKUP("Mid Year Nominal - EOY Real (2026/27)",CPI[],MATCH(AF$4,CPI[#Headers],0),FALSE) -> 0 | AG11: =ProjectData[[#This Row],[Actuals 14/15]]*VLOOKUP("Mid Year Nominal - EOY Real (2026/27)",CPI[],MATCH(AG$4,CPI[#Headers],0),FALSE) -> 0 | AH11: =ProjectData[[#This Row],[Actuals 15/16]]*VLOOKUP("Mid Year Nominal - EOY Real (2026/27)",CPI[],MATCH(AH$4,CPI[#Headers],0),FALSE) -> 0 | AI11: =ProjectData[[#This Row],[Actuals 16/17]]*VLOOKUP("Mid Year Nominal - EOY Real (2026/27)",CPI[],MATCH(AI$4,CPI[#Headers],0),FALSE) -> 0 | AJ11: =ProjectData[[#This Row],[Actuals 17/18]]*VLOOKUP("Mid Year Nominal - EOY Real (2026/27)",CPI[],MATCH(AJ$4,CPI[#Headers],0),FALSE) -> 0 | AK11: =ProjectData[[#This Row],[Actuals 18/19]]*VLOOKUP("Mid Year Nominal - EOY Real (2026/27)",CPI[],MATCH(AK$4,CPI[#Headers],0),FALSE) -> 0 | AL11: =ProjectData[[#This Row],[Actuals 19/20]]*VLOOKUP("Mid Year Nominal - EOY Real (2026/27)",CPI[],MATCH(AL$4,CPI[#Headers],0),FALSE) -> 0 | AM11: =ProjectData[[#This Row],[Actuals 20/21]]*VLOOKUP("Mid Year Nominal - EOY Real (2026/27)",CPI[],MATCH(AM$4,CPI[#Headers],0),FALSE) -> 0 | AN11: =ProjectData[[#This Row],[Actuals 21/22]]*VLOOKUP("Mid Year Nominal - EOY Real (2026/27)",CPI[],MATCH(AN$4,CPI[#Headers],0),FALSE) -> 0 | AO11: =ProjectData[[#This Row],[Actuals 22/23]]*VLOOKUP("Mid Year Nominal - EOY Real (2026/27)",CPI[],MATCH(AO$4,CPI[#Headers],0),FALSE) -> 0 | AP11: =ProjectData[[#This Row],[Actuals 23/24]]*VLOOKUP("Mid Year Nominal - EOY Real (2026/27)",CPI[],MATCH(AP$4,CPI[#Headers],0),FALSE) -> 0 | AQ11: =ProjectData[[#This Row],[Actual 24/25]]*VLOOKUP("Mid Year Nominal - EOY Real (2026/27)",CPI[],MATCH(AQ$4,CPI[#Headers],0),FALSE) -> 0 | AR11: =ProjectData[[#This Row],[Forecast 25/26]]*VLOOKUP("Mid Year Nominal - EOY Real (2026/27)",CPI[],MATCH(AR$4,CPI[#Headers],0),FALSE) -> 0 | AS11: =ProjectData[[#This Row],[Forecast 26/27]]*VLOOKUP("Mid Year Nominal - EOY Real (2026/27)",CPI[],MATCH(AS$4,CPI[#Headers],0),FALSE) -> 0 | AT11: =SUM(ProjectData[[#This Row],[Real 08]:[Real 27]]) -> 0 | AU11: =(ProjectData[[#This Row],[Real Sum]]-VLOOKUP(ProjectData[[#This Row],[Category]],Category_AverageStdDevLimit[],MATCH("Average",Category_AverageStdDevLimit[#Headers],0),FALSE))^2 -> 4.482485466 | AV11: =VLOOKUP(ProjectData[[#This Row],[Category]],Category_AverageStdDevLimit[],MATCH("Limit",Category_AverageStdDevLimit[#Headers],0),FALSE) -> 10.66631335 | AW11: =ProjectData[[#This Row],[Real Sum]]>ProjectData[[#This Row],[Category Limit]] -> FALSE | AY11: =OR(ProjectData[[#This Row],[Significant Project? (Financial Basis)]],ProjectData[[#This Row],[Non repeatable]]) -> FALSE | AZ11: =AND(ProjectData[[#This Row],[SomeExpenditure >= 2016]],ProjectData[[#This Row],[Abnormal?]]) -> FALSE
A12: C55.1519 | B12: Condition Monitoring | C12: Other | D12: 0 | E12: 0 | F12: 0 | G12: 0 | H12: 0 | I12: 0 | J12: 0 | K12: 0 | L12: 0 | M12: 0 | N12: 0 | O12: 0 | P12: 0 | Q12: 0 | R12: 0 | S12: 0 | T12: 0 | U12: 0 | V12: 0 | W12: 0 | X12: =ProjectData[[#This Row],[Real Sum]]>0.0001 -> FALSE | Y12: =OR(ProjectData[[#This Row],[Real 16]]>0,ProjectData[[#This Row],[Real 17]]>0,ProjectData[[#This Row],[Real 18]]>0,ProjectData[[#This Row],[Real 19]]>0,ProjectData[[#This Row],[Real 20]]>0) -> FALSE | Z12: =ProjectData[[#This Row],[Actuals 07/08]]*VLOOKUP("Mid Year Nominal - EOY Real (2026/27)",CPI[],MATCH(Z$4,CPI[#Headers],0),FALSE) -> 0 | AA12: =ProjectData[[#This Row],[Actuals 08/09]]*VLOOKUP("Mid Year Nominal - EOY Real (2026/27)",CPI[],MATCH(AA$4,CPI[#Headers],0),FALSE) -> 0 | AB12: =ProjectData[[#This Row],[Actuals 09/10]]*VLOOKUP("Mid Year Nominal - EOY Real (2026/27)",CPI[],MATCH(AB$4,CPI[#Headers],0),FALSE) -> 0 | AC12: =ProjectData[[#This Row],[Actuals 10/11]]*VLOOKUP("Mid Year Nominal - EOY Real (2026/27)",CPI[],MATCH(AC$4,CPI[#Headers],0),FALSE) -> 0 | AD12: =ProjectData[[#This Row],[Actuals 11/12]]*VLOOKUP("Mid Year Nominal - EOY Real (2026/27)",CPI[],MATCH(AD$4,CPI[#Headers],0),FALSE) -> 0 | AE12: =ProjectData[[#This Row],[Actuals 12/13]]*VLOOKUP("Mid Year Nominal - EOY Real (2026/27)",CPI[],MATCH(AE$4,CPI[#Headers],0),FALSE) -> 0 | AF12: =ProjectData[[#This Row],[Actuals 13/14]]*VLOOKUP("Mid Year Nominal - EOY Real (2026/27)",CPI[],MATCH(AF$4,CPI[#Headers],0),FALSE) -> 0 | AG12: =ProjectData[[#This Row],[Actuals 14/15]]*VLOOKUP("Mid Year Nominal - EOY Real (2026/27)",CPI[],MATCH(AG$4,CPI[#Headers],0),FALSE) -> 0 | AH12: =ProjectData[[#This Row],[Actuals 15/16]]*VLOOKUP("Mid Year Nominal - EOY Real (2026/27)",CPI[],MATCH(AH$4,CPI[#Headers],0),FALSE) -> 0 | AI12: =ProjectData[[#This Row],[Actuals 16/17]]*VLOOKUP("Mid Year Nominal - EOY Real (2026/27)",CPI[],MATCH(AI$4,CPI[#Headers],0),FALSE) -> 0 | AJ12: =ProjectData[[#This Row],[Actuals 17/18]]*VLOOKUP("Mid Year Nominal - EOY Real (2026/27)",CPI[],MATCH(AJ$4,CPI[#Headers],0),FALSE) -> 0 | AK12: =ProjectData[[#This Row],[Actuals 18/19]]*VLOOKUP("Mid Year Nominal - EOY Real (2026/27)",CPI[],MATCH(AK$4,CPI[#Headers],0),FALSE) -> 0 | AL12: =ProjectData[[#This Row],[Actuals 19/20]]*VLOOKUP("Mid Year Nominal - EOY Real (2026/27)",CPI[],MATCH(AL$4,CPI[#Headers],0),FALSE) -> 0 | AM12: =ProjectData[[#This Row],[Actuals 20/21]]*VLOOKUP("Mid Year Nominal - EOY Real (2026/27)",CPI[],MATCH(AM$4,CPI[#Headers],0),FALSE) -> 0 | AN12: =ProjectData[[#This Row],[Actuals 21/22]]*VLOOKUP("Mid Year Nominal - EOY Real (2026/27)",CPI[],MATCH(AN$4,CPI[#Headers],0),FALSE) -> 0 | AO12: =ProjectData[[#This Row],[Actuals 22/23]]*VLOOKUP("Mid Year Nominal - EOY Real (2026/27)",CPI[],MATCH(AO$4,CPI[#Headers],0),FALSE) -> 0 | AP12: =ProjectData[[#This Row],[Actuals 23/24]]*VLOOKUP("Mid Year Nominal - EOY Real (2026/27)",CPI[],MATCH(AP$4,CPI[#Headers],0),FALSE) -> 0 | AQ12: =ProjectData[[#This Row],[Actual 24/25]]*VLOOKUP("Mid Year Nominal - EOY Real (2026/27)",CPI[],MATCH(AQ$4,CPI[#Headers],0),FALSE) -> 0 | AR12: =ProjectData[[#This Row],[Forecast 25/26]]*VLOOKUP("Mid Year Nominal - EOY Real (2026/27)",CPI[],MATCH(AR$4,CPI[#Headers],0),FALSE) -> 0 | AS12: =ProjectData[[#This Row],[Forecast 26/27]]*VLOOKUP("Mid Year Nominal - EOY Real (2026/27)",CPI[],MATCH(AS$4,CPI[#Headers],0),FALSE) -> 0 | AT12: =SUM(ProjectData[[#This Row],[Real 08]:[Real 27]]) -> 0 | AU12: =(ProjectData[[#This Row],[Real Sum]]-VLOOKUP(ProjectData[[#This Row],[Category]],Category_AverageStdDevLimit[],MATCH("Average",Category_AverageStdDevLimit[#Headers],0),FALSE))^2 -> 4.482485466 | AV12: =VLOOKUP(ProjectData[[#This Row],[Category]],Category_AverageStdDevLimit[],MATCH("Limit",Category_AverageStdDevLimit[#Headers],0),FALSE) -> 10.66631335 | AW12: =ProjectData[[#This Row],[Real Sum]]>ProjectData[[#This Row],[Category Limit]] -> FALSE | AY12: =OR(ProjectData[[#This Row],[Significant Project? (Financial Basis)]],ProjectData[[#This Row],[Non repeatable]]) -> FALSE | AZ12: =AND(ProjectData[[#This Row],[SomeExpenditure >= 2016]],ProjectData[[#This Row],[Abnormal?]]) -> FALSE
A13: C55.1521 | B13: Virtual Control Room | C13: Other | D13: 0 | E13: 0 | F13: 0 | G13: 0 | H13: 0 | I13: 0 | J13: 0 | K13: 0 | L13: 0 | M13: 0 | N13: 0 | O13: 0 | P13: 0 | Q13: 0 | R13: 0 | S13: 0 | T13: 0 | U13: 0 | V13: 0 | W13: 0 | X13: =ProjectData[[#This Row],[Real Sum]]>0.0001 -> FALSE | Y13: =OR(ProjectData[[#This Row],[Real 16]]>0,ProjectData[[#This Row],[Real 17]]>0,ProjectData[[#This Row],[Real 18]]>0,ProjectData[[#This Row],[Real 19]]>0,ProjectData[[#This Row],[Real 20]]>0) -> FALSE | Z13: =ProjectData[[#This Row],[Actuals 07/08]]*VLOOKUP("Mid Year Nominal - EOY Real (2026/27)",CPI[],MATCH(Z$4,CPI[#Headers],0),FALSE) -> 0 | AA13: =ProjectData[[#This Row],[Actuals 08/09]]*VLOOKUP("Mid Year Nominal - EOY Real (2026/27)",CPI[],MATCH(AA$4,CPI[#Headers],0),FALSE) -> 0 | AB13: =ProjectData[[#This Row],[Actuals 09/10]]*VLOOKUP("Mid Year Nominal - EOY Real (2026/27)",CPI[],MATCH(AB$4,CPI[#Headers],0),FALSE) -> 0 | AC13: =ProjectData[[#This Row],[Actuals 10/11]]*VLOOKUP("Mid Year Nominal - EOY Real (2026/27)",CPI[],MATCH(AC$4,CPI[#Headers],0),FALSE) -> 0 | AD13: =ProjectData[[#This Row],[Actuals 11/12]]*VLOOKUP("Mid Year Nominal - EOY Real (2026/27)",CPI[],MATCH(AD$4,CPI[#Headers],0),FALSE) -> 0 | AE13: =ProjectData[[#This Row],[Actuals 12/13]]*VLOOKUP("Mid Year Nominal - EOY Real (2026/27)",CPI[],MATCH(AE$4,CPI[#Headers],0),FALSE) -> 0 | AF13: =ProjectData[[#This Row],[Actuals 13/14]]*VLOOKUP("Mid Year Nominal - EOY Real (2026/27)",CPI[],MATCH(AF$4,CPI[#Headers],0),FALSE) -> 0 | AG13: =ProjectData[[#This Row],[Actuals 14/15]]*VLOOKUP("Mid Year Nominal - EOY Real (2026/27)",CPI[],MATCH(AG$4,CPI[#Headers],0),FALSE) -> 0 | AH13: =ProjectData[[#This Row],[Actuals 15/16]]*VLOOKUP("Mid Year Nominal - EOY Real (2026/27)",CPI[],MATCH(AH$4,CPI[#Headers],0),FALSE) -> 0 | AI13: =ProjectData[[#This Row],[Actuals 16/17]]*VLOOKUP("Mid Year Nominal - EOY Real (2026/27)",CPI[],MATCH(AI$4,CPI[#Headers],0),FALSE) -> 0 | AJ13: =ProjectData[[#This Row],[Actuals 17/18]]*VLOOKUP("Mid Year Nominal - EOY Real (2026/27)",CPI[],MATCH(AJ$4,CPI[#Headers],0),FALSE) -> 0 | AK13: =ProjectData[[#This Row],[Actuals 18/19]]*VLOOKUP("Mid Year Nominal - EOY Real (2026/27)",CPI[],MATCH(AK$4,CPI[#Headers],0),FALSE) -> 0 | AL13: =ProjectData[[#This Row],[Actuals 19/20]]*VLOOKUP("Mid Year Nominal - EOY Real (2026/27)",CPI[],MATCH(AL$4,CPI[#Headers],0),FALSE) -> 0 | AM13: =ProjectData[[#This Row],[Actuals 20/21]]*VLOOKUP("Mid Year Nominal - EOY Real (2026/27)",CPI[],MATCH(AM$4,CPI[#Headers],0),FALSE) -> 0 | AN13: =ProjectData[[#This Row],[Actuals 21/22]]*VLOOKUP("Mid Year Nominal - EOY Real (2026/27)",CPI[],MATCH(AN$4,CPI[#Headers],0),FALSE) -> 0 | AO13: =ProjectData[[#This Row],[Actuals 22/23]]*VLOOKUP("Mid Year Nominal - EOY Real (2026/27)",CPI[],MATCH(AO$4,CPI[#Headers],0),FALSE) -> 0 | AP13: =ProjectData[[#This Row],[Actuals 23/24]]*VLOOKUP("Mid Year Nominal - EOY Real (2026/27)",CPI[],MATCH(AP$4,CPI[#Headers],0),FALSE) -> 0 | AQ13: =ProjectData[[#This Row],[Actual 24/25]]*VLOOKUP("Mid Year Nominal - EOY Real (2026/27)",CPI[],MATCH(AQ$4,CPI[#Headers],0),FALSE) -> 0 | AR13: =ProjectData[[#This Row],[Forecast 25/26]]*VLOOKUP("Mid Year Nominal - EOY Real (2026/27)",CPI[],MATCH(AR$4,CPI[#Headers],0),FALSE) -> 0 | AS13: =ProjectData[[#This Row],[Forecast 26/27]]*VLOOKUP("Mid Year Nominal - EOY Real (2026/27)",CPI[],MATCH(AS$4,CPI[#Headers],0),FALSE) -> 0 | AT13: =SUM(ProjectData[[#This Row],[Real 08]:[Real 27]]) -> 0 | AU13: =(ProjectData[[#This Row],[Real Sum]]-VLOOKUP(ProjectData[[#This Row],[Category]],Category_AverageStdDevLimit[],MATCH("Average",Category_AverageStdDevLimit[#Headers],0),FALSE))^2 -> 4.482485466 | AV13: =VLOOKUP(ProjectData[[#This Row],[Category]],Category_AverageStdDevLimit[],MATCH("Limit",Category_AverageStdDevLimit[#Headers],0),FALSE) -> 10.66631335 | AW13: =ProjectData[[#This Row],[Real Sum]]>ProjectData[[#This Row],[Category Limit]] -> FALSE | AY13: =OR(ProjectData[[#This Row],[Significant Project? (Financial Basis)]],ProjectData[[#This Row],[Non repeatable]]) -> FALSE | AZ13: =AND(ProjectData[[#This Row],[SomeExpenditure >= 2016]],ProjectData[[#This Row],[Abnormal?]]) -> FALSE
A14: C55.1522 | B14: Intelligent Support | C14: Other | D14: 0 | E14: 0 | F14: 0 | G14: 0 | H14: 0 | I14: 0 | J14: 0 | K14: 0 | L14: 0 | M14: 0 | N14: 0 | O14: 0 | P14: 0 | Q14: 0 | R14: 0 | S14: 0 | T14: 0 | U14: 0 | V14: 0 | W14: 0 | X14: =ProjectData[[#This Row],[Real Sum]]>0.0001 -> FALSE | Y14: =OR(ProjectData[[#This Row],[Real 16]]>0,ProjectData[[#This Row],[Real 17]]>0,ProjectData[[#This Row],[Real 18]]>0,ProjectData[[#This Row],[Real 19]]>0,ProjectData[[#This Row],[Real 20]]>0) -> FALSE | Z14: =ProjectData[[#This Row],[Actuals 07/08]]*VLOOKUP("Mid Year Nominal - EOY Real (2026/27)",CPI[],MATCH(Z$4,CPI[#Headers],0),FALSE) -> 0 | AA14: =ProjectData[[#This Row],[Actuals 08/09]]*VLOOKUP("Mid Year Nominal - EOY Real (2026/27)",CPI[],MATCH(AA$4,CPI[#Headers],0),FALSE) -> 0 | AB14: =ProjectData[[#This Row],[Actuals 09/10]]*VLOOKUP("Mid Year Nominal - EOY Real (2026/27)",CPI[],MATCH(AB$4,CPI[#Headers],0),FALSE) -> 0 | AC14: =ProjectData[[#This Row],[Actuals 10/11]]*VLOOKUP("Mid Year Nominal - EOY Real (2026/27)",CPI[],MATCH(AC$4,CPI[#Headers],0),FALSE) -> 0 | AD14: =ProjectData[[#This Row],[Actuals 11/12]]*VLOOKUP("Mid Year Nominal - EOY Real (2026/27)",CPI[],MATCH(AD$4,CPI[#Headers],0),FALSE) -> 0 | AE14: =ProjectData[[#This Row],[Actuals 12/13]]*VLOOKUP("Mid Year Nominal - EOY Real (2026/27)",CPI[],MATCH(AE$4,CPI[#Headers],0),FALSE) -> 0 | AF14: =ProjectData[[#This Row],[Actuals 13/14]]*VLOOKUP("Mid Year Nominal - EOY Real (2026/27)",CPI[],MATCH(AF$4,CPI[#Headers],0),FALSE) -> 0 | AG14: =ProjectData[[#This Row],[Actuals 14/15]]*VLOOKUP("Mid Year Nominal - EOY Real (2026/27)",CPI[],MATCH(AG$4,CPI[#Headers],0),FALSE) -> 0 | AH14: =ProjectData[[#This Row],[Actuals 15/16]]*VLOOKUP("Mid Year Nominal - EOY Real (2026/27)",CPI[],MATCH(AH$4,CPI[#Headers],0),FALSE) -> 0 | AI14: =ProjectData[[#This Row],[Actuals 16/17]]*VLOOKUP("Mid Year Nominal - EOY Real (2026/27)",CPI[],MATCH(AI$4,CPI[#Headers],0),FALSE) -> 0 | AJ14: =ProjectData[[#This Row],[Actuals 17/18]]*VLOOKUP("Mid Year Nominal - EOY Real (2026/27)",CPI[],MATCH(AJ$4,CPI[#Headers],0),FALSE) -> 0 | AK14: =ProjectData[[#This Row],[Actuals 18/19]]*VLOOKUP("Mid Year Nominal - EOY Real (2026/27)",CPI[],MATCH(AK$4,CPI[#Headers],0),FALSE) -> 0 | AL14: =ProjectData[[#This Row],[Actuals 19/20]]*VLOOKUP("Mid Year Nominal - EOY Real (2026/27)",CPI[],MATCH(AL$4,CPI[#Headers],0),FALSE) -> 0 | AM14: =ProjectData[[#This Row],[Actuals 20/21]]*VLOOKUP("Mid Year Nominal - EOY Real (2026/27)",CPI[],MATCH(AM$4,CPI[#Headers],0),FALSE) -> 0 | AN14: =ProjectData[[#This Row],[Actuals 21/22]]*VLOOKUP("Mid Year Nominal - EOY Real (2026/27)",CPI[],MATCH(AN$4,CPI[#Headers],0),FALSE) -> 0 | AO14: =ProjectData[[#This Row],[Actuals 22/23]]*VLOOKUP("Mid Year Nominal - EOY Real (2026/27)",CPI[],MATCH(AO$4,CPI[#Headers],0),FALSE) -> 0 | AP14: =ProjectData[[#This Row],[Actuals 23/24]]*VLOOKUP("Mid Year Nominal - EOY Real (2026/27)",CPI[],MATCH(AP$4,CPI[#Headers],0),FALSE) -> 0 | AQ14: =ProjectData[[#This Row],[Actual 24/25]]*VLOOKUP("Mid Year Nominal - EOY Real (2026/27)",CPI[],MATCH(AQ$4,CPI[#Headers],0),FALSE) -> 0 | AR14: =ProjectData[[#This Row],[Forecast 25/26]]*VLOOKUP("Mid Year Nominal - EOY Real (2026/27)",CPI[],MATCH(AR$4,CPI[#Headers],0),FALSE) -> 0 | AS14: =ProjectData[[#This Row],[Forecast 26/27]]*VLOOKUP("Mid Year Nominal - EOY Real (2026/27)",CPI[],MATCH(AS$4,CPI[#Headers],0),FALSE) -> 0 | AT14: =SUM(ProjectData[[#This Row],[Real 08]:[Real 27]]) -> 0 | AU14: =(ProjectData[[#This Row],[Real Sum]]-VLOOKUP(ProjectData[[#This Row],[Category]],Category_AverageStdDevLimit[],MATCH("Average",Category_AverageStdDevLimit[#Headers],0),FALSE))^2 -> 4.482485466 | AV14: =VLOOKUP(ProjectData[[#This Row],[Category]],Category_AverageStdDevLimit[],MATCH("Limit",Category_AverageStdDevLimit[#Headers],0),FALSE) -> 10.66631335 | AW14: =ProjectData[[#This Row],[Real Sum]]>ProjectData[[#This Row],[Category Limit]] -> FALSE | AY14: =OR(ProjectData[[#This Row],[Significant Project? (Financial Basis)]],ProjectData[[#This Row],[Non repeatable]]) -> FALSE | AZ14: =AND(ProjectData[[#This Row],[SomeExpenditure >= 2016]],ProjectData[[#This Row],[Abnormal?]]) -> FALSE
A15: C55.1523 | B15: AI Planning | C15: Other | D15: 0 | E15: 0 | F15: 0 | G15: 0 | H15: 0 | I15: 0 | J15: 0 | K15: 0 | L15: 0 | M15: 0 | N15: 0 | O15: 0 | P15: 0 | Q15: 0 | R15: 0 | S15: 0 | T15: 0 | U15: 0 | V15: 0 | W15: 0 | X15: =ProjectData[[#This Row],[Real Sum]]>0.0001 -> FALSE | Y15: =OR(ProjectData[[#This Row],[Real 16]]>0,ProjectData[[#This Row],[Real 17]]>0,ProjectData[[#This Row],[Real 18]]>0,ProjectData[[#This Row],[Real 19]]>0,ProjectData[[#This Row],[Real 20]]>0) -> FALSE | Z15: =ProjectData[[#This Row],[Actuals 07/08]]*VLOOKUP("Mid Year Nominal - EOY Real (2026/27)",CPI[],MATCH(Z$4,CPI[#Headers],0),FALSE) -> 0 | AA15: =ProjectData[[#This Row],[Actuals 08/09]]*VLOOKUP("Mid Year Nominal - EOY Real (2026/27)",CPI[],MATCH(AA$4,CPI[#Headers],0),FALSE) -> 0 | AB15: =ProjectData[[#This Row],[Actuals 09/10]]*VLOOKUP("Mid Year Nominal - EOY Real (2026/27)",CPI[],MATCH(AB$4,CPI[#Headers],0),FALSE) -> 0 | AC15: =ProjectData[[#This Row],[Actuals 10/11]]*VLOOKUP("Mid Year Nominal - EOY Real (2026/27)",CPI[],MATCH(AC$4,CPI[#Headers],0),FALSE) -> 0 | AD15: =ProjectData[[#This Row],[Actuals 11/12]]*VLOOKUP("Mid Year Nominal - EOY Real (2026/27)",CPI[],MATCH(AD$4,CPI[#Headers],0),FALSE) -> 0 | AE15: =ProjectData[[#This Row],[Actuals 12/13]]*VLOOKUP("Mid Year Nominal - EOY Real (2026/27)",CPI[],MATCH(AE$4,CPI[#Headers],0),FALSE) -> 0 | AF15: =ProjectData[[#This Row],[Actuals 13/14]]*VLOOKUP("Mid Year Nominal - EOY Real (2026/27)",CPI[],MATCH(AF$4,CPI[#Headers],0),FALSE) -> 0 | AG15: =ProjectData[[#This Row],[Actuals 14/15]]*VLOOKUP("Mid Year Nominal - EOY Real (2026/27)",CPI[],MATCH(AG$4,CPI[#Headers],0),FALSE) -> 0 | AH15: =ProjectData[[#This Row],[Actuals 15/16]]*VLOOKUP("Mid Year Nominal - EOY Real (2026/27)",CPI[],MATCH(AH$4,CPI[#Headers],0),FALSE) -> 0 | AI15: =ProjectData[[#This Row],[Actuals 16/17]]*VLOOKUP("Mid Year Nominal - EOY Real (2026/27)",CPI[],MATCH(AI$4,CPI[#Headers],0),FALSE) -> 0 | AJ15: =ProjectData[[#This Row],[Actuals 17/18]]*VLOOKUP("Mid Year Nominal - EOY Real (2026/27)",CPI[],MATCH(AJ$4,CPI[#Headers],0),FALSE) -> 0 | AK15: =ProjectData[[#This Row],[Actuals 18/19]]*VLOOKUP("Mid Year Nominal - EOY Real (2026/27)",CPI[],MATCH(AK$4,CPI[#Headers],0),FALSE) -> 0 | AL15: =ProjectData[[#This Row],[Actuals 19/20]]*VLOOKUP("Mid Year Nominal - EOY Real (2026/27)",CPI[],MATCH(AL$4,CPI[#Headers],0),FALSE) -> 0 | AM15: =ProjectData[[#This Row],[Actuals 20/21]]*VLOOKUP("Mid Year Nominal - EOY Real (2026/27)",CPI[],MATCH(AM$4,CPI[#Headers],0),FALSE) -> 0 | AN15: =ProjectData[[#This Row],[Actuals 21/22]]*VLOOKUP("Mid Year Nominal - EOY Real (2026/27)",CPI[],MATCH(AN$4,CPI[#Headers],0),FALSE) -> 0 | AO15: =ProjectData[[#This Row],[Actuals 22/23]]*VLOOKUP("Mid Year Nominal - EOY Real (2026/27)",CPI[],MATCH(AO$4,CPI[#Headers],0),FALSE) -> 0 | AP15: =ProjectData[[#This Row],[Actuals 23/24]]*VLOOKUP("Mid Year Nominal - EOY Real (2026/27)",CPI[],MATCH(AP$4,CPI[#Headers],0),FALSE) -> 0 | AQ15: =ProjectData[[#This Row],[Actual 24/25]]*VLOOKUP("Mid Year Nominal - EOY Real (2026/27)",CPI[],MATCH(AQ$4,CPI[#Headers],0),FALSE) -> 0 | AR15: =ProjectData[[#This Row],[Forecast 25/26]]*VLOOKUP("Mid Year Nominal - EOY Real (2026/27)",CPI[],MATCH(AR$4,CPI[#Headers],0),FALSE) -> 0 | AS15: =ProjectData[[#This Row],[Forecast 26/27]]*VLOOKUP("Mid Year Nominal - EOY Real (2026/27)",CPI[],MATCH(AS$4,CPI[#Headers],0),FALSE) -> 0 | AT15: =SUM(ProjectData[[#This Row],[Real 08]:[Real 27]]) -> 0 | AU15: =(ProjectData[[#This Row],[Real Sum]]-VLOOKUP(ProjectData[[#This Row],[Category]],Category_AverageStdDevLimit[],MATCH("Average",Category_AverageStdDevLimit[#Headers],0),FALSE))^2 -> 4.482485466 | AV15: =VLOOKUP(ProjectData[[#This Row],[Category]],Category_AverageStdDevLimit[],MATCH("Limit",Category_AverageStdDevLimit[#Headers],0),FALSE) -> 10.66631335 | AW15: =ProjectData[[#This Row],[Real Sum]]>ProjectData[[#This Row],[Category Limit]] -> FALSE | AY15: =OR(ProjectData[[#This Row],[Significant Project? (Financial Basis)]],ProjectData[[#This Row],[Non repeatable]]) -> FALSE | AZ15: =AND(ProjectData[[#This Row],[SomeExpenditure >= 2016]],ProjectData[[#This Row],[Abnormal?]]) -> FALSE
A16: C55.1524 | B16: Turnkey Solutuion (iPASS SYNC CONs SVC SIEMENS HMIs) Firmware / OSS / Cyber Upgrades | C16: Other | D16: 0 | E16: 0 | F16: 0 | G16: 0 | H16: 0 | I16: 0 | J16: 0 | K16: 0 | L16: 0 | M16: 0 | N16: 0 | O16: 0 | P16: 0 | Q16: 0 | R16: 0 | S16: 0 | T16: 0 | U16: 0 | V16: 0 | W16: 0 | X16: =ProjectData[[#This Row],[Real Sum]]>0.0001 -> FALSE | Y16: =OR(ProjectData[[#This Row],[Real 16]]>0,ProjectData[[#This Row],[Real 17]]>0,ProjectData[[#This Row],[Real 18]]>0,ProjectData[[#This Row],[Real 19]]>0,ProjectData[[#This Row],[Real 20]]>0) -> FALSE | Z16: =ProjectData[[#This Row],[Actuals 07/08]]*VLOOKUP("Mid Year Nominal - EOY Real (2026/27)",CPI[],MATCH(Z$4,CPI[#Headers],0),FALSE) -> 0 | AA16: =ProjectData[[#This Row],[Actuals 08/09]]*VLOOKUP("Mid Year Nominal - EOY Real (2026/27)",CPI[],MATCH(AA$4,CPI[#Headers],0),FALSE) -> 0 | AB16: =ProjectData[[#This Row],[Actuals 09/10]]*VLOOKUP("Mid Year Nominal - EOY Real (2026/27)",CPI[],MATCH(AB$4,CPI[#Headers],0),FALSE) -> 0 | AC16: =ProjectData[[#This Row],[Actuals 10/11]]*VLOOKUP("Mid Year Nominal - EOY Real (2026/27)",CPI[],MATCH(AC$4,CPI[#Headers],0),FALSE) -> 0 | AD16: =ProjectData[[#This Row],[Actuals 11/12]]*VLOOKUP("Mid Year Nominal - EOY Real (2026/27)",CPI[],MATCH(AD$4,CPI[#Headers],0),FALSE) -> 0 | AE16: =ProjectData[[#This Row],[Actuals 12/13]]*VLOOKUP("Mid Year Nominal - EOY Real (2026/27)",CPI[],MATCH(AE$4,CPI[#Headers],0),FALSE) -> 0 | AF16: =ProjectData[[#This Row],[Actuals 13/14]]*VLOOKUP("Mid Year Nominal - EOY Real (2026/27)",CPI[],MATCH(AF$4,CPI[#Headers],0),FALSE) -> 0 | AG16: =ProjectData[[#This Row],[Actuals 14/15]]*VLOOKUP("Mid Year Nominal - EOY Real (2026/27)",CPI[],MATCH(AG$4,CPI[#Headers],0),FALSE) -> 0 | AH16: =ProjectData[[#This Row],[Actuals 15/16]]*VLOOKUP("Mid Year Nominal - EOY Real (2026/27)",CPI[],MATCH(AH$4,CPI[#Headers],0),FALSE) -> 0 | AI16: =ProjectData[[#This Row],[Actuals 16/17]]*VLOOKUP("Mid Year Nominal - EOY Real (2026/27)",CPI[],MATCH(AI$4,CPI[#Headers],0),FALSE) -> 0 | AJ16: =ProjectData[[#This Row],[Actuals 17/18]]*VLOOKUP("Mid Year Nominal - EOY Real (2026/27)",CPI[],MATCH(AJ$4,CPI[#Headers],0),FALSE) -> 0 | AK16: =ProjectData[[#This Row],[Actuals 18/19]]*VLOOKUP("Mid Year Nominal - EOY Real (2026/27)",CPI[],MATCH(AK$4,CPI[#Headers],0),FALSE) -> 0 | AL16: =ProjectData[[#This Row],[Actuals 19/20]]*VLOOKUP("Mid Year Nominal - EOY Real (2026/27)",CPI[],MATCH(AL$4,CPI[#Headers],0),FALSE) -> 0 | AM16: =ProjectData[[#This Row],[Actuals 20/21]]*VLOOKUP("Mid Year Nominal - EOY Real (2026/27)",CPI[],MATCH(AM$4,CPI[#Headers],0),FALSE) -> 0 | AN16: =ProjectData[[#This Row],[Actuals 21/22]]*VLOOKUP("Mid Year Nominal - EOY Real (2026/27)",CPI[],MATCH(AN$4,CPI[#Headers],0),FALSE) -> 0 | AO16: =ProjectData[[#This Row],[Actuals 22/23]]*VLOOKUP("Mid Year Nominal - EOY Real (2026/27)",CPI[],MATCH(AO$4,CPI[#Headers],0),FALSE) -> 0 | AP16: =ProjectData[[#This Row],[Actuals 23/24]]*VLOOKUP("Mid Year Nominal - EOY Real (2026/27)",CPI[],MATCH(AP$4,CPI[#Headers],0),FALSE) -> 0 | AQ16: =ProjectData[[#This Row],[Actual 24/25]]*VLOOKUP("Mid Year Nominal - EOY Real (2026/27)",CPI[],MATCH(AQ$4,CPI[#Headers],0),FALSE) -> 0 | AR16: =ProjectData[[#This Row],[Forecast 25/26]]*VLOOKUP("Mid Year Nominal - EOY Real (2026/27)",CPI[],MATCH(AR$4,CPI[#Headers],0),FALSE) -> 0 | AS16: =ProjectData[[#This Row],[Forecast 26/27]]*VLOOKUP("Mid Year Nominal - EOY Real (2026/27)",CPI[],MATCH(AS$4,CPI[#Headers],0),FALSE) -> 0 | AT16: =SUM(ProjectData[[#This Row],[Real 08]:[Real 27]]) -> 0 | AU16: =(ProjectData[[#This Row],[Real Sum]]-VLOOKUP(ProjectData[[#This Row],[Category]],Category_AverageStdDevLimit[],MATCH("Average",Category_AverageStdDevLimit[#Headers],0),FALSE))^2 -> 4.482485466 | AV16: =VLOOKUP(ProjectData[[#This Row],[Category]],Category_AverageStdDevLimit[],MATCH("Limit",Category_AverageStdDevLimit[#Headers],0),FALSE) -> 10.66631335 | AW16: =ProjectData[[#This Row],[Real Sum]]>ProjectData[[#This Row],[Category Limit]] -> FALSE | AY16: =OR(ProjectData[[#This Row],[Significant Project? (Financial Basis)]],ProjectData[[#This Row],[Non repeatable]]) -> FALSE | AZ16: =AND(ProjectData[[#This Row],[SomeExpenditure >= 2016]],ProjectData[[#This Row],[Abnormal?]]) -> FALSE
A17: C55.1526 | B17: PMU Field Equipment firmware upgrade | C17: Other | D17: 0 | E17: 0 | F17: 0 | G17: 0 | H17: 0 | I17: 0 | J17: 0 | K17: 0 | L17: 0 | M17: 0 | N17: 0 | O17: 0 | P17: 0 | Q17: 0 | R17: 0 | S17: 0 | T17: 0 | U17: 0 | V17: 0 | W17: 0 | X17: =ProjectData[[#This Row],[Real Sum]]>0.0001 -> FALSE | Y17: =OR(ProjectData[[#This Row],[Real 16]]>0,ProjectData[[#This Row],[Real 17]]>0,ProjectData[[#This Row],[Real 18]]>0,ProjectData[[#This Row],[Real 19]]>0,ProjectData[[#This Row],[Real 20]]>0) -> FALSE | Z17: =ProjectData[[#This Row],[Actuals 07/08]]*VLOOKUP("Mid Year Nominal - EOY Real (2026/27)",CPI[],MATCH(Z$4,CPI[#Headers],0),FALSE) -> 0 | AA17: =ProjectData[[#This Row],[Actuals 08/09]]*VLOOKUP("Mid Year Nominal - EOY Real (2026/27)",CPI[],MATCH(AA$4,CPI[#Headers],0),FALSE) -> 0 | AB17: =ProjectData[[#This Row],[Actuals 09/10]]*VLOOKUP("Mid Year Nominal - EOY Real (2026/27)",CPI[],MATCH(AB$4,CPI[#Headers],0),FALSE) -> 0 | AC17: =ProjectData[[#This Row],[Actuals 10/11]]*VLOOKUP("Mid Year Nominal - EOY Real (2026/27)",CPI[],MATCH(AC$4,CPI[#Headers],0),FALSE) -> 0 | AD17: =ProjectData[[#This Row],[Actuals 11/12]]*VLOOKUP("Mid Year Nominal - EOY Real (2026/27)",CPI[],MATCH(AD$4,CPI[#Headers],0),FALSE) -> 0 | AE17: =ProjectData[[#This Row],[Actuals 12/13]]*VLOOKUP("Mid Year Nominal - EOY Real (2026/27)",CPI[],MATCH(AE$4,CPI[#Headers],0),FALSE) -> 0 | AF17: =ProjectData[[#This Row],[Actuals 13/14]]*VLOOKUP("Mid Year Nominal - EOY Real (2026/27)",CPI[],MATCH(AF$4,CPI[#Headers],0),FALSE) -> 0 | AG17: =ProjectData[[#This Row],[Actuals 14/15]]*VLOOKUP("Mid Year Nominal - EOY Real (2026/27)",CPI[],MATCH(AG$4,CPI[#Headers],0),FALSE) -> 0 | AH17: =ProjectData[[#This Row],[Actuals 15/16]]*VLOOKUP("Mid Year Nominal - EOY Real (2026/27)",CPI[],MATCH(AH$4,CPI[#Headers],0),FALSE) -> 0 | AI17: =ProjectData[[#This Row],[Actuals 16/17]]*VLOOKUP("Mid Year Nominal - EOY Real (2026/27)",CPI[],MATCH(AI$4,CPI[#Headers],0),FALSE) -> 0 | AJ17: =ProjectData[[#This Row],[Actuals 17/18]]*VLOOKUP("Mid Year Nominal - EOY Real (2026/27)",CPI[],MATCH(AJ$4,CPI[#Headers],0),FALSE) -> 0 | AK17: =ProjectData[[#This Row],[Actuals 18/19]]*VLOOKUP("Mid Year Nominal - EOY Real (2026/27)",CPI[],MATCH(AK$4,CPI[#Headers],0),FALSE) -> 0 | AL17: =ProjectData[[#This Row],[Actuals 19/20]]*VLOOKUP("Mid Year Nominal - EOY Real (2026/27)",CPI[],MATCH(AL$4,CPI[#Headers],0),FALSE) -> 0 | AM17: =ProjectData[[#This Row],[Actuals 20/21]]*VLOOKUP("Mid Year Nominal - EOY Real (2026/27)",CPI[],MATCH(AM$4,CPI[#Headers],0),FALSE) -> 0 | AN17: =ProjectData[[#This Row],[Actuals 21/22]]*VLOOKUP("Mid Year Nominal - EOY Real (2026/27)",CPI[],MATCH(AN$4,CPI[#Headers],0),FALSE) -> 0 | AO17: =ProjectData[[#This Row],[Actuals 22/23]]*VLOOKUP("Mid Year Nominal - EOY Real (2026/27)",CPI[],MATCH(AO$4,CPI[#Headers],0),FALSE) -> 0 | AP17: =ProjectData[[#This Row],[Actuals 23/24]]*VLOOKUP("Mid Year Nominal - EOY Real (2026/27)",CPI[],MATCH(AP$4,CPI[#Headers],0),FALSE) -> 0 | AQ17: =ProjectData[[#This Row],[Actual 24/25]]*VLOOKUP("Mid Year Nominal - EOY Real (2026/27)",CPI[],MATCH(AQ$4,CPI[#Headers],0),FALSE) -> 0 | AR17: =ProjectData[[#This Row],[Forecast 25/26]]*VLOOKUP("Mid Year Nominal - EOY Real (2026/27)",CPI[],MATCH(AR$4,CPI[#Headers],0),FALSE) -> 0 | AS17: =ProjectData[[#This Row],[Forecast 26/27]]*VLOOKUP("Mid Year Nominal - EOY Real (2026/27)",CPI[],MATCH(AS$4,CPI[#Headers],0),FALSE) -> 0 | AT17: =SUM(ProjectData[[#This Row],[Real 08]:[Real 27]]) -> 0 | AU17: =(ProjectData[[#This Row],[Real Sum]]-VLOOKUP(ProjectData[[#This Row],[Category]],Category_AverageStdDevLimit[],MATCH("Average",Category_AverageStdDevLimit[#Headers],0),FALSE))^2 -> 4.482485466 | AV17: =VLOOKUP(ProjectData[[#This Row],[Category]],Category_AverageStdDevLimit[],MATCH("Limit",Category_AverageStdDevLimit[#Headers],0),FALSE) -> 10.66631335 | AW17: =ProjectData[[#This Row],[Real Sum]]>ProjectData[[#This Row],[Category Limit]] -> FALSE | AY17: =OR(ProjectData[[#This Row],[Significant Project? (Financial Basis)]],ProjectData[[#This Row],[Non repeatable]]) -> FALSE | AZ17: =AND(ProjectData[[#This Row],[SomeExpenditure >= 2016]],ProjectData[[#This Row],[Abnormal?]]) -> FALSE
A18: C55.1530 | B18: SAS equivalent of OSS - manager of mangers | C18: Other | D18: 0 | E18: 0 | F18: 0 | G18: 0 | H18: 0 | I18: 0 | J18: 0 | K18: 0 | L18: 0 | M18: 0 | N18: 0 | O18: 0 | P18: 0 | Q18: 0 | R18: 0 | S18: 0 | T18: 0 | U18: 0 | V18: 0 | W18: 0 | X18: =ProjectData[[#This Row],[Real Sum]]>0.0001 -> FALSE | Y18: =OR(ProjectData[[#This Row],[Real 16]]>0,ProjectData[[#This Row],[Real 17]]>0,ProjectData[[#This Row],[Real 18]]>0,ProjectData[[#This Row],[Real 19]]>0,ProjectData[[#This Row],[Real 20]]>0) -> FALSE | Z18: =ProjectData[[#This Row],[Actuals 07/08]]*VLOOKUP("Mid Year Nominal - EOY Real (2026/27)",CPI[],MATCH(Z$4,CPI[#Headers],0),FALSE) -> 0 | AA18: =ProjectData[[#This Row],[Actuals 08/09]]*VLOOKUP("Mid Year Nominal - EOY Real (2026/27)",CPI[],MATCH(AA$4,CPI[#Headers],0),FALSE) -> 0 | AB18: =ProjectData[[#This Row],[Actuals 09/10]]*VLOOKUP("Mid Year Nominal - EOY Real (2026/27)",CPI[],MATCH(AB$4,CPI[#Headers],0),FALSE) -> 0 | AC18: =ProjectData[[#This Row],[Actuals 10/11]]*VLOOKUP("Mid Year Nominal - EOY Real (2026/27)",CPI[],MATCH(AC$4,CPI[#Headers],0),FALSE) -> 0 | AD18: =ProjectData[[#This Row],[Actuals 11/12]]*VLOOKUP("Mid Year Nominal - EOY Real (2026/27)",CPI[],MATCH(AD$4,CPI[#Headers],0),FALSE) -> 0 | AE18: =ProjectData[[#This Row],[Actuals 12/13]]*VLOOKUP("Mid Year Nominal - EOY Real (2026/27)",CPI[],MATCH(AE$4,CPI[#Headers],0),FALSE) -> 0 | AF18: =ProjectData[[#This Row],[Actuals 13/14]]*VLOOKUP("Mid Year Nominal - EOY Real (2026/27)",CPI[],MATCH(AF$4,CPI[#Headers],0),FALSE) -> 0 | AG18: =ProjectData[[#This Row],[Actuals 14/15]]*VLOOKUP("Mid Year Nominal - EOY Real (2026/27)",CPI[],MATCH(AG$4,CPI[#Headers],0),FALSE) -> 0 | AH18: =ProjectData[[#This Row],[Actuals 15/16]]*VLOOKUP("Mid Year Nominal - EOY Real (2026/27)",CPI[],MATCH(AH$4,CPI[#Headers],0),FALSE) -> 0 | AI18: =ProjectData[[#This Row],[Actuals 16/17]]*VLOOKUP("Mid Year Nominal - EOY Real (2026/27)",CPI[],MATCH(AI$4,CPI[#Headers],0),FALSE) -> 0 | AJ18: =ProjectData[[#This Row],[Actuals 17/18]]*VLOOKUP("Mid Year Nominal - EOY Real (2026/27)",CPI[],MATCH(AJ$4,CPI[#Headers],0),FALSE) -> 0 | AK18: =ProjectData[[#This Row],[Actuals 18/19]]*VLOOKUP("Mid Year Nominal - EOY Real (2026/27)",CPI[],MATCH(AK$4,CPI[#Headers],0),FALSE) -> 0 | AL18: =ProjectData[[#This Row],[Actuals 19/20]]*VLOOKUP("Mid Year Nominal - EOY Real (2026/27)",CPI[],MATCH(AL$4,CPI[#Headers],0),FALSE) -> 0 | AM18: =ProjectData[[#This Row],[Actuals 20/21]]*VLOOKUP("Mid Year Nominal - EOY Real (2026/27)",CPI[],MATCH(AM$4,CPI[#Headers],0),FALSE) -> 0 | AN18: =ProjectData[[#This Row],[Actuals 21/22]]*VLOOKUP("Mid Year Nominal - EOY Real (2026/27)",CPI[],MATCH(AN$4,CPI[#Headers],0),FALSE) -> 0 | AO18: =ProjectData[[#This Row],[Actuals 22/23]]*VLOOKUP("Mid Year Nominal - EOY Real (2026/27)",CPI[],MATCH(AO$4,CPI[#Headers],0),FALSE) -> 0 | AP18: =ProjectData[[#This Row],[Actuals 23/24]]*VLOOKUP("Mid Year Nominal - EOY Real (2026/27)",CPI[],MATCH(AP$4,CPI[#Headers],0),FALSE) -> 0 | AQ18: =ProjectData[[#This Row],[Actual 24/25]]*VLOOKUP("Mid Year Nominal - EOY Real (2026/27)",CPI[],MATCH(AQ$4,CPI[#Headers],0),FALSE) -> 0 | AR18: =ProjectData[[#This Row],[Forecast 25/26]]*VLOOKUP("Mid Year Nominal - EOY Real (2026/27)",CPI[],MATCH(AR$4,CPI[#Headers],0),FALSE) -> 0 | AS18: =ProjectData[[#This Row],[Forecast 26/27]]*VLOOKUP("Mid Year Nominal - EOY Real (2026/27)",CPI[],MATCH(AS$4,CPI[#Headers],0),FALSE) -> 0 | AT18: =SUM(ProjectData[[#This Row],[Real 08]:[Real 27]]) -> 0 | AU18: =(ProjectData[[#This Row],[Real Sum]]-VLOOKUP(ProjectData[[#This Row],[Category]],Category_AverageStdDevLimit[],MATCH("Average",Category_AverageStdDevLimit[#Headers],0),FALSE))^2 -> 4.482485466 | AV18: =VLOOKUP(ProjectData[[#This Row],[Category]],Category_AverageStdDevLimit[],MATCH("Limit",Category_AverageStdDevLimit[#Headers],0),FALSE) -> 10.66631335 | AW18: =ProjectData[[#This Row],[Real Sum]]>ProjectData[[#This Row],[Category Limit]] -> FALSE | AY18: =OR(ProjectData[[#This Row],[Significant Project? (Financial Basis)]],ProjectData[[#This Row],[Non repeatable]]) -> FALSE | AZ18: =AND(ProjectData[[#This Row],[SomeExpenditure >= 2016]],ProjectData[[#This Row],[Abnormal?]]) -> FALSE
A19: C55.1533 | B19: Metering over IP Firmware / security updgrade | C19: Other | D19: 0 | E19: 0 | F19: 0 | G19: 0 | H19: 0 | I19: 0 | J19: 0 | K19: 0 | L19: 0 | M19: 0 | N19: 0 | O19: 0 | P19: 0 | Q19: 0 | R19: 0 | S19: 0 | T19: 0 | U19: 0 | V19: 0 | W19: 0 | X19: =ProjectData[[#This Row],[Real Sum]]>0.0001 -> FALSE | Y19: =OR(ProjectData[[#This Row],[Real 16]]>0,ProjectData[[#This Row],[Real 17]]>0,ProjectData[[#This Row],[Real 18]]>0,ProjectData[[#This Row],[Real 19]]>0,ProjectData[[#This Row],[Real 20]]>0) -> FALSE | Z19: =ProjectData[[#This Row],[Actuals 07/08]]*VLOOKUP("Mid Year Nominal - EOY Real (2026/27)",CPI[],MATCH(Z$4,CPI[#Headers],0),FALSE) -> 0 | AA19: =ProjectData[[#This Row],[Actuals 08/09]]*VLOOKUP("Mid Year Nominal - EOY Real (2026/27)",CPI[],MATCH(AA$4,CPI[#Headers],0),FALSE) -> 0 | AB19: =ProjectData[[#This Row],[Actuals 09/10]]*VLOOKUP("Mid Year Nominal - EOY Real (2026/27)",CPI[],MATCH(AB$4,CPI[#Headers],0),FALSE) -> 0 | AC19: =ProjectData[[#This Row],[Actuals 10/11]]*VLOOKUP("Mid Year Nominal - EOY Real (2026/27)",CPI[],MATCH(AC$4,CPI[#Headers],0),FALSE) -> 0 | AD19: =ProjectData[[#This Row],[Actuals 11/12]]*VLOOKUP("Mid Year Nominal - EOY Real (2026/27)",CPI[],MATCH(AD$4,CPI[#Headers],0),FALSE) -> 0 | AE19: =ProjectData[[#This Row],[Actuals 12/13]]*VLOOKUP("Mid Year Nominal - EOY Real (2026/27)",CPI[],MATCH(AE$4,CPI[#Headers],0),FALSE) -> 0 | AF19: =ProjectData[[#This Row],[Actuals 13/14]]*VLOOKUP("Mid Year Nominal - EOY Real (2026/27)",CPI[],MATCH(AF$4,CPI[#Headers],0),FALSE) -> 0 | AG19: =ProjectData[[#This Row],[Actuals 14/15]]*VLOOKUP("Mid Year Nominal - EOY Real (2026/27)",CPI[],MATCH(AG$4,CPI[#Headers],0),FALSE) -> 0 | AH19: =ProjectData[[#This Row],[Actuals 15/16]]*VLOOKUP("Mid Year Nominal - EOY Real (2026/27)",CPI[],MATCH(AH$4,CPI[#Headers],0),FALSE) -> 0 | AI19: =ProjectData[[#This Row],[Actuals 16/17]]*VLOOKUP("Mid Year Nominal - EOY Real (2026/27)",CPI[],MATCH(AI$4,CPI[#Headers],0),FALSE) -> 0 | AJ19: =ProjectData[[#This Row],[Actuals 17/18]]*VLOOKUP("Mid Year Nominal - EOY Real (2026/27)",CPI[],MATCH(AJ$4,CPI[#Headers],0),FALSE) -> 0 | AK19: =ProjectData[[#This Row],[Actuals 18/19]]*VLOOKUP("Mid Year Nominal - EOY Real (2026/27)",CPI[],MATCH(AK$4,CPI[#Headers],0),FALSE) -> 0 | AL19: =ProjectData[[#This Row],[Actuals 19/20]]*VLOOKUP("Mid Year Nominal - EOY Real (2026/27)",CPI[],MATCH(AL$4,CPI[#Headers],0),FALSE) -> 0 | AM19: =ProjectData[[#This Row],[Actuals 20/21]]*VLOOKUP("Mid Year Nominal - EOY Real (2026/27)",CPI[],MATCH(AM$4,CPI[#Headers],0),FALSE) -> 0 | AN19: =ProjectData[[#This Row],[Actuals 21/22]]*VLOOKUP("Mid Year Nominal - EOY Real (2026/27)",CPI[],MATCH(AN$4,CPI[#Headers],0),FALSE) -> 0 | AO19: =ProjectData[[#This Row],[Actuals 22/23]]*VLOOKUP("Mid Year Nominal - EOY Real (2026/27)",CPI[],MATCH(AO$4,CPI[#Headers],0),FALSE) -> 0 | AP19: =ProjectData[[#This Row],[Actuals 23/24]]*VLOOKUP("Mid Year Nominal - EOY Real (2026/27)",CPI[],MATCH(AP$4,CPI[#Headers],0),FALSE) -> 0 | AQ19: =ProjectData[[#This Row],[Actual 24/25]]*VLOOKUP("Mid Year Nominal - EOY Real (2026/27)",CPI[],MATCH(AQ$4,CPI[#Headers],0),FALSE) -> 0 | AR19: =ProjectData[[#This Row],[Forecast 25/26]]*VLOOKUP("Mid Year Nominal - EOY Real (2026/27)",CPI[],MATCH(AR$4,CPI[#Headers],0),FALSE) -> 0 | AS19: =ProjectData[[#This Row],[Forecast 26/27]]*VLOOKUP("Mid Year Nominal - EOY Real (2026/27)",CPI[],MATCH(AS$4,CPI[#Headers],0),FALSE) -> 0 | AT19: =SUM(ProjectData[[#This Row],[Real 08]:[Real 27]]) -> 0 | AU19: =(ProjectData[[#This Row],[Real Sum]]-VLOOKUP(ProjectData[[#This Row],[Category]],Category_AverageStdDevLimit[],MATCH("Average",Category_AverageStdDevLimit[#Headers],0),FALSE))^2 -> 4.482485466 | AV19: =VLOOKUP(ProjectData[[#This Row],[Category]],Category_AverageStdDevLimit[],MATCH("Limit",Category_AverageStdDevLimit[#Headers],0),FALSE) -> 10.66631335 | AW19: =ProjectData[[#This Row],[Real Sum]]>ProjectData[[#This Row],[Category Limit]] -> FALSE | AY19: =OR(ProjectData[[#This Row],[Significant Project? (Financial Basis)]],ProjectData[[#This Row],[Non repeatable]]) -> FALSE | AZ19: =AND(ProjectData[[#This Row],[SomeExpenditure >= 2016]],ProjectData[[#This Row],[Abnormal?]]) -> FALSE
A20: C55.xx20 | B20: WAMPAC Head End Architecture Upgrade | C20: Other | D20: 0 | E20: 0 | F20: 0 | G20: 0 | H20: 0 | I20: 0 | J20: 0 | K20: 0 | L20: 0 | M20: 0 | N20: 0 | O20: 0 | P20: 0 | Q20: 0 | R20: 0 | S20: 0 | T20: 0 | U20: 0 | V20: 0 | W20: 0 | X20: =ProjectData[[#This Row],[Real Sum]]>0.0001 -> FALSE | Y20: =OR(ProjectData[[#This Row],[Real 16]]>0,ProjectData[[#This Row],[Real 17]]>0,ProjectData[[#This Row],[Real 18]]>0,ProjectData[[#This Row],[Real 19]]>0,ProjectData[[#This Row],[Real 20]]>0) -> FALSE | Z20: =ProjectData[[#This Row],[Actuals 07/08]]*VLOOKUP("Mid Year Nominal - EOY Real (2026/27)",CPI[],MATCH(Z$4,CPI[#Headers],0),FALSE) -> 0 | AA20: =ProjectData[[#This Row],[Actuals 08/09]]*VLOOKUP("Mid Year Nominal - EOY Real (2026/27)",CPI[],MATCH(AA$4,CPI[#Headers],0),FALSE) -> 0 | AB20: =ProjectData[[#This Row],[Actuals 09/10]]*VLOOKUP("Mid Year Nominal - EOY Real (2026/27)",CPI[],MATCH(AB$4,CPI[#Headers],0),FALSE) -> 0 | AC20: =ProjectData[[#This Row],[Actuals 10/11]]*VLOOKUP("Mid Year Nominal - EOY Real (2026/27)",CPI[],MATCH(AC$4,CPI[#Headers],0),FALSE) -> 0 | AD20: =ProjectData[[#This Row],[Actuals 11/12]]*VLOOKUP("Mid Year Nominal - EOY Real (2026/27)",CPI[],MATCH(AD$4,CPI[#Headers],0),FALSE) -> 0 | AE20: =ProjectData[[#This Row],[Actuals 12/13]]*VLOOKUP("Mid Year Nominal - EOY Real (2026/27)",CPI[],MATCH(AE$4,CPI[#Headers],0),FALSE) -> 0 | AF20: =ProjectData[[#This Row],[Actuals 13/14]]*VLOOKUP("Mid Year Nominal - EOY Real (2026/27)",CPI[],MATCH(AF$4,CPI[#Headers],0),FALSE) -> 0 | AG20: =ProjectData[[#This Row],[Actuals 14/15]]*VLOOKUP("Mid Year Nominal - EOY Real (2026/27)",CPI[],MATCH(AG$4,CPI[#Headers],0),FALSE) -> 0 | AH20: =ProjectData[[#This Row],[Actuals 15/16]]*VLOOKUP("Mid Year Nominal - EOY Real (2026/27)",CPI[],MATCH(AH$4,CPI[#Headers],0),FALSE) -> 0 | AI20: =ProjectData[[#This Row],[Actuals 16/17]]*VLOOKUP("Mid Year Nominal - EOY Real (2026/27)",CPI[],MATCH(AI$4,CPI[#Headers],0),FALSE) -> 0 | AJ20: =ProjectData[[#This Row],[Actuals 17/18]]*VLOOKUP("Mid Year Nominal - EOY Real (2026/27)",CPI[],MATCH(AJ$4,CPI[#Headers],0),FALSE) -> 0 | AK20: =ProjectData[[#This Row],[Actuals 18/19]]*VLOOKUP("Mid Year Nominal - EOY Real (2026/27)",CPI[],MATCH(AK$4,CPI[#Headers],0),FALSE) -> 0 | AL20: =ProjectData[[#This Row],[Actuals 19/20]]*VLOOKUP("Mid Year Nominal - EOY Real (2026/27)",CPI[],MATCH(AL$4,CPI[#Headers],0),FALSE) -> 0 | AM20: =ProjectData[[#This Row],[Actuals 20/21]]*VLOOKUP("Mid Year Nominal - EOY Real (2026/27)",CPI[],MATCH(AM$4,CPI[#Headers],0),FALSE) -> 0 | AN20: =ProjectData[[#This Row],[Actuals 21/22]]*VLOOKUP("Mid Year Nominal - EOY Real (2026/27)",CPI[],MATCH(AN$4,CPI[#Headers],0),FALSE) -> 0 | AO20: =ProjectData[[#This Row],[Actuals 22/23]]*VLOOKUP("Mid Year Nominal - EOY Real (2026/27)",CPI[],MATCH(AO$4,CPI[#Headers],0),FALSE) -> 0 | AP20: =ProjectData[[#This Row],[Actuals 23/24]]*VLOOKUP("Mid Year Nominal - EOY Real (2026/27)",CPI[],MATCH(AP$4,CPI[#Headers],0),FALSE) -> 0 | AQ20: =ProjectData[[#This Row],[Actual 24/25]]*VLOOKUP("Mid Year Nominal - EOY Real (2026/27)",CPI[],MATCH(AQ$4,CPI[#Headers],0),FALSE) -> 0 | AR20: =ProjectData[[#This Row],[Forecast 25/26]]*VLOOKUP("Mid Year Nominal - EOY Real (2026/27)",CPI[],MATCH(AR$4,CPI[#Headers],0),FALSE) -> 0 | AS20: =ProjectData[[#This Row],[Forecast 26/27]]*VLOOKUP("Mid Year Nominal - EOY Real (2026/27)",CPI[],MATCH(AS$4,CPI[#Headers],0),FALSE) -> 0 | AT20: =SUM(ProjectData[[#This Row],[Real 08]:[Real 27]]) -> 0 | AU20: =(ProjectData[[#This Row],[Real Sum]]-VLOOKUP(ProjectData[[#This Row],[Category]],Category_AverageStdDevLimit[],MATCH("Average",Category_AverageStdDevLimit[#Headers],0),FALSE))^2 -> 4.482485466 | AV20: =VLOOKUP(ProjectData[[#This Row],[Category]],Category_AverageStdDevLimit[],MATCH("Limit",Category_AverageStdDevLimit[#Headers],0),FALSE) -> 10.66631335 | AW20: =ProjectData[[#This Row],[Real Sum]]>ProjectData[[#This Row],[Category Limit]] -> FALSE | AY20: =OR(ProjectData[[#This Row],[Significant Project? (Financial Basis)]],ProjectData[[#This Row],[Non repeatable]]) -> FALSE | AZ20: =AND(ProjectData[[#This Row],[SomeExpenditure >= 2016]],ProjectData[[#This Row],[Abnormal?]]) -> FALSE
A21: C55.XXX3 | B21: NGNO Phase 2 | C21: Other | D21: 0 | E21: 0 | F21: 0 | G21: 0 | H21: 0 | I21: 0 | J21: 0 | K21: 0 | L21: 0 | M21: 0 | N21: 0 | O21: 0 | P21: 0 | Q21: 0 | R21: 0 | S21: 0 | T21: 0 | U21: 0 | V21: 0 | W21: 0 | X21: =ProjectData[[#This Row],[Real Sum]]>0.0001 -> FALSE | Y21: =OR(ProjectData[[#This Row],[Real 16]]>0,ProjectData[[#This Row],[Real 17]]>0,ProjectData[[#This Row],[Real 18]]>0,ProjectData[[#This Row],[Real 19]]>0,ProjectData[[#This Row],[Real 20]]>0) -> FALSE | Z21: =ProjectData[[#This Row],[Actuals 07/08]]*VLOOKUP("Mid Year Nominal - EOY Real (2026/27)",CPI[],MATCH(Z$4,CPI[#Headers],0),FALSE) -> 0 | AA21: =ProjectData[[#This Row],[Actuals 08/09]]*VLOOKUP("Mid Year Nominal - EOY Real (2026/27)",CPI[],MATCH(AA$4,CPI[#Headers],0),FALSE) -> 0 | AB21: =ProjectData[[#This Row],[Actuals 09/10]]*VLOOKUP("Mid Year Nominal - EOY Real (2026/27)",CPI[],MATCH(AB$4,CPI[#Headers],0),FALSE) -> 0 | AC21: =ProjectData[[#This Row],[Actuals 10/11]]*VLOOKUP("Mid Year Nominal - EOY Real (2026/27)",CPI[],MATCH(AC$4,CPI[#Headers],0),FALSE) -> 0 | AD21: =ProjectData[[#This Row],[Actuals 11/12]]*VLOOKUP("Mid Year Nominal - EOY Real (2026/27)",CPI[],MATCH(AD$4,CPI[#Headers],0),FALSE) -> 0 | AE21: =ProjectData[[#This Row],[Actuals 12/13]]*VLOOKUP("Mid Year Nominal - EOY Real (2026/27)",CPI[],MATCH(AE$4,CPI[#Headers],0),FALSE) -> 0 | AF21: =ProjectData[[#This Row],[Actuals 13/14]]*VLOOKUP("Mid Year Nominal - EOY Real (2026/27)",CPI[],MATCH(AF$4,CPI[#Headers],0),FALSE) -> 0 | AG21: =ProjectData[[#This Row],[Actuals 14/15]]*VLOOKUP("Mid Year Nominal - EOY Real (2026/27)",CPI[],MATCH(AG$4,CPI[#Headers],0),FALSE) -> 0 | AH21: =ProjectData[[#This Row],[Actuals 15/16]]*VLOOKUP("Mid Year Nominal - EOY Real (2026/27)",CPI[],MATCH(AH$4,CPI[#Headers],0),FALSE) -> 0 | AI21: =ProjectData[[#This Row],[Actuals 16/17]]*VLOOKUP("Mid Year Nominal - EOY Real (2026/27)",CPI[],MATCH(AI$4,CPI[#Headers],0),FALSE) -> 0 | AJ21: =ProjectData[[#This Row],[Actuals 17/18]]*VLOOKUP("Mid Year Nominal - EOY Real (2026/27)",CPI[],MATCH(AJ$4,CPI[#Headers],0),FALSE) -> 0 | AK21: =ProjectData[[#This Row],[Actuals 18/19]]*VLOOKUP("Mid Year Nominal - EOY Real (2026/27)",CPI[],MATCH(AK$4,CPI[#Headers],0),FALSE) -> 0 | AL21: =ProjectData[[#This Row],[Actuals 19/20]]*VLOOKUP("Mid Year Nominal - EOY Real (2026/27)",CPI[],MATCH(AL$4,CPI[#Headers],0),FALSE) -> 0 | AM21: =ProjectData[[#This Row],[Actuals 20/21]]*VLOOKUP("Mid Year Nominal - EOY Real (2026/27)",CPI[],MATCH(AM$4,CPI[#Headers],0),FALSE) -> 0 | AN21: =ProjectData[[#This Row],[Actuals 21/22]]*VLOOKUP("Mid Year Nominal - EOY Real (2026/27)",CPI[],MATCH(AN$4,CPI[#Headers],0),FALSE) -> 0 | AO21: =ProjectData[[#This Row],[Actuals 22/23]]*VLOOKUP("Mid Year Nominal - EOY Real (2026/27)",CPI[],MATCH(AO$4,CPI[#Headers],0),FALSE) -> 0 | AP21: =ProjectData[[#This Row],[Actuals 23/24]]*VLOOKUP("Mid Year Nominal - EOY Real (2026/27)",CPI[],MATCH(AP$4,CPI[#Headers],0),FALSE) -> 0 | AQ21: =ProjectData[[#This Row],[Actual 24/25]]*VLOOKUP("Mid Year Nominal - EOY Real (2026/27)",CPI[],MATCH(AQ$4,CPI[#Headers],0),FALSE) -> 0 | AR21: =ProjectData[[#This Row],[Forecast 25/26]]*VLOOKUP("Mid Year Nominal - EOY Real (2026/27)",CPI[],MATCH(AR$4,CPI[#Headers],0),FALSE) -> 0 | AS21: =ProjectData[[#This Row],[Forecast 26/27]]*VLOOKUP("Mid Year Nominal - EOY Real (2026/27)",CPI[],MATCH(AS$4,CPI[#Headers],0),FALSE) -> 0 | AT21: =SUM(ProjectData[[#This Row],[Real 08]:[Real 27]]) -> 0 | AU21: =(ProjectData[[#This Row],[Real Sum]]-VLOOKUP(ProjectData[[#This Row],[Category]],Category_AverageStdDevLimit[],MATCH("Average",Category_AverageStdDevLimit[#Headers],0),FALSE))^2 -> 4.482485466 | AV21: =VLOOKUP(ProjectData[[#This Row],[Category]],Category_AverageStdDevLimit[],MATCH("Limit",Category_AverageStdDevLimit[#Headers],0),FALSE) -> 10.66631335 | AW21: =ProjectData[[#This Row],[Real Sum]]>ProjectData[[#This Row],[Category Limit]] -> FALSE | AY21: =OR(ProjectData[[#This Row],[Significant Project? (Financial Basis)]],ProjectData[[#This Row],[Non repeatable]]) -> FALSE | AZ21: =AND(ProjectData[[#This Row],[SomeExpenditure >= 2016]],ProjectData[[#This Row],[Abnormal?]]) -> FALSE
A22: CP.00001 | B22: MINOR CAPITAL WORKS | C22: Other | D22: 0 | E22: 0 | F22: 0 | G22: 0 | H22: 0 | I22: 0 | J22: 0 | K22: 0 | L22: 0 | M22: 0 | N22: 0 | O22: 0 | P22: 0 | Q22: 0 | R22: 0 | S22: 0 | T22: 0 | U22: 0 | V22: 0 | W22: 0 | X22: =ProjectData[[#This Row],[Real Sum]]>0.0001 -> FALSE | Y22: =OR(ProjectData[[#This Row],[Real 16]]>0,ProjectData[[#This Row],[Real 17]]>0,ProjectData[[#This Row],[Real 18]]>0,ProjectData[[#This Row],[Real 19]]>0,ProjectData[[#This Row],[Real 20]]>0) -> FALSE | Z22: =ProjectData[[#This Row],[Actuals 07/08]]*VLOOKUP("Mid Year Nominal - EOY Real (2026/27)",CPI[],MATCH(Z$4,CPI[#Headers],0),FALSE) -> 0 | AA22: =ProjectData[[#This Row],[Actuals 08/09]]*VLOOKUP("Mid Year Nominal - EOY Real (2026/27)",CPI[],MATCH(AA$4,CPI[#Headers],0),FALSE) -> 0 | AB22: =ProjectData[[#This Row],[Actuals 09/10]]*VLOOKUP("Mid Year Nominal - EOY Real (2026/27)",CPI[],MATCH(AB$4,CPI[#Headers],0),FALSE) -> 0 | AC22: =ProjectData[[#This Row],[Actuals 10/11]]*VLOOKUP("Mid Year Nominal - EOY Real (2026/27)",CPI[],MATCH(AC$4,CPI[#Headers],0),FALSE) -> 0 | AD22: =ProjectData[[#This Row],[Actuals 11/12]]*VLOOKUP("Mid Year Nominal - EOY Real (2026/27)",CPI[],MATCH(AD$4,CPI[#Headers],0),FALSE) -> 0 | AE22: =ProjectData[[#This Row],[Actuals 12/13]]*VLOOKUP("Mid Year Nominal - EOY Real (2026/27)",CPI[],MATCH(AE$4,CPI[#Headers],0),FALSE) -> 0 | AF22: =ProjectData[[#This Row],[Actuals 13/14]]*VLOOKUP("Mid Year Nominal - EOY Real (2026/27)",CPI[],MATCH(AF$4,CPI[#Headers],0),FALSE) -> 0 | AG22: =ProjectData[[#This Row],[Actuals 14/15]]*VLOOKUP("Mid Year Nominal - EOY Real (2026/27)",CPI[],MATCH(AG$4,CPI[#Headers],0),FALSE) -> 0 | AH22: =ProjectData[[#This Row],[Actuals 15/16]]*VLOOKUP("Mid Year Nominal - EOY Real (2026/27)",CPI[],MATCH(AH$4,CPI[#Headers],0),FALSE) -> 0 | AI22: =ProjectData[[#This Row],[Actuals 16/17]]*VLOOKUP("Mid Year Nominal - EOY Real (2026/27)",CPI[],MATCH(AI$4,CPI[#Headers],0),FALSE) -> 0 | AJ22: =ProjectData[[#This Row],[Actuals 17/18]]*VLOOKUP("Mid Year Nominal - EOY Real (2026/27)",CPI[],MATCH(AJ$4,CPI[#Headers],0),FALSE) -> 0 | AK22: =ProjectData[[#This Row],[Actuals 18/19]]*VLOOKUP("Mid Year Nominal - EOY Real (2026/27)",CPI[],MATCH(AK$4,CPI[#Headers],0),FALSE) -> 0 | AL22: =ProjectData[[#This Row],[Actuals 19/20]]*VLOOKUP("Mid Year Nominal - EOY Real (2026/27)",CPI[],MATCH(AL$4,CPI[#Headers],0),FALSE) -> 0 | AM22: =ProjectData[[#This Row],[Actuals 20/21]]*VLOOKUP("Mid Year Nominal - EOY Real (2026/27)",CPI[],MATCH(AM$4,CPI[#Headers],0),FALSE) -> 0 | AN22: =ProjectData[[#This Row],[Actuals 21/22]]*VLOOKUP("Mid Year Nominal - EOY Real (2026/27)",CPI[],MATCH(AN$4,CPI[#Headers],0),FALSE) -> 0 | AO22: =ProjectData[[#This Row],[Actuals 22/23]]*VLOOKUP("Mid Year Nominal - EOY Real (2026/27)",CPI[],MATCH(AO$4,CPI[#Headers],0),FALSE) -> 0 | AP22: =ProjectData[[#This Row],[Actuals 23/24]]*VLOOKUP("Mid Year Nominal - EOY Real (2026/27)",CPI[],MATCH(AP$4,CPI[#Headers],0),FALSE) -> 0 | AQ22: =ProjectData[[#This Row],[Actual 24/25]]*VLOOKUP("Mid Year Nominal - EOY Real (2026/27)",CPI[],MATCH(AQ$4,CPI[#Headers],0),FALSE) -> 0 | AR22: =ProjectData[[#This Row],[Forecast 25/26]]*VLOOKUP("Mid Year Nominal - EOY Real (2026/27)",CPI[],MATCH(AR$4,CPI[#Headers],0),FALSE) -> 0 | AS22: =ProjectData[[#This Row],[Forecast 26/27]]*VLOOKUP("Mid Year Nominal - EOY Real (2026/27)",CPI[],MATCH(AS$4,CPI[#Headers],0),FALSE) -> 0 | AT22: =SUM(ProjectData[[#This Row],[Real 08]:[Real 27]]) -> 0 | AU22: =(ProjectData[[#This Row],[Real Sum]]-VLOOKUP(ProjectData[[#This Row],[Category]],Category_AverageStdDevLimit[],MATCH("Average",Category_AverageStdDevLimit[#Headers],0),FALSE))^2 -> 4.482485466 | AV22: =VLOOKUP(ProjectData[[#This Row],[Category]],Category_AverageStdDevLimit[],MATCH("Limit",Category_AverageStdDevLimit[#Headers],0),FALSE) -> 10.66631335 | AW22: =ProjectData[[#This Row],[Real Sum]]>ProjectData[[#This Row],[Category Limit]] -> FALSE | AY22: =OR(ProjectData[[#This Row],[Significant Project? (Financial Basis)]],ProjectData[[#This Row],[Non repeatable]]) -> FALSE | AZ22: =AND(ProjectData[[#This Row],[SomeExpenditure >= 2016]],ProjectData[[#This Row],[Abnormal?]]) -> FALSE
A23: CP.00177 | B23: REPLACED BY CX - Gladstone South Substation Rebuil | C23: Other | D23: 0 | E23: 0 | F23: 0 | G23: 0 | H23: 0 | I23: 0 | J23: 0 | K23: 0 | L23: 0 | M23: 0 | N23: 0 | O23: 0 | P23: 0 | Q23: 0 | R23: 0 | S23: 0 | T23: 0 | U23: 0 | V23: 0 | W23: 0 | X23: =ProjectData[[#This Row],[Real Sum]]>0.0001 -> FALSE | Y23: =OR(ProjectData[[#This Row],[Real 16]]>0,ProjectData[[#This Row],[Real 17]]>0,ProjectData[[#This Row],[Real 18]]>0,ProjectData[[#This Row],[Real 19]]>0,ProjectData[[#This Row],[Real 20]]>0) -> FALSE | Z23: =ProjectData[[#This Row],[Actuals 07/08]]*VLOOKUP("Mid Year Nominal - EOY Real (2026/27)",CPI[],MATCH(Z$4,CPI[#Headers],0),FALSE) -> 0 | AA23: =ProjectData[[#This Row],[Actuals 08/09]]*VLOOKUP("Mid Year Nominal - EOY Real (2026/27)",CPI[],MATCH(AA$4,CPI[#Headers],0),FALSE) -> 0 | AB23: =ProjectData[[#This Row],[Actuals 09/10]]*VLOOKUP("Mid Year Nominal - EOY Real (2026/27)",CPI[],MATCH(AB$4,CPI[#Headers],0),FALSE) -> 0 | AC23: =ProjectData[[#This Row],[Actuals 10/11]]*VLOOKUP("Mid Year Nominal - EOY Real (2026/27)",CPI[],MATCH(AC$4,CPI[#Headers],0),FALSE) -> 0 | AD23: =ProjectData[[#This Row],[Actuals 11/12]]*VLOOKUP("Mid Year Nominal - EOY Real (2026/27)",CPI[],MATCH(AD$4,CPI[#Headers],0),FALSE) -> 0 | AE23: =ProjectData[[#This Row],[Actuals 12/13]]*VLOOKUP("Mid Year Nominal - EOY Real (2026/27)",CPI[],MATCH(AE$4,CPI[#Headers],0),FALSE) -> 0 | AF23: =ProjectData[[#This Row],[Actuals 13/14]]*VLOOKUP("Mid Year Nominal - EOY Real (2026/27)",CPI[],MATCH(AF$4,CPI[#Headers],0),FALSE) -> 0 | AG23: =ProjectData[[#This Row],[Actuals 14/15]]*VLOOKUP("Mid Year Nominal - EOY Real (2026/27)",CPI[],MATCH(AG$4,CPI[#Headers],0),FALSE) -> 0 | AH23: =ProjectData[[#This Row],[Actuals 15/16]]*VLOOKUP("Mid Year Nominal - EOY Real (2026/27)",CPI[],MATCH(AH$4,CPI[#Headers],0),FALSE) -> 0 | AI23: =ProjectData[[#This Row],[Actuals 16/17]]*VLOOKUP("Mid Year Nominal - EOY Real (2026/27)",CPI[],MATCH(AI$4,CPI[#Headers],0),FALSE) -> 0 | AJ23: =ProjectData[[#This Row],[Actuals 17/18]]*VLOOKUP("Mid Year Nominal - EOY Real (2026/27)",CPI[],MATCH(AJ$4,CPI[#Headers],0),FALSE) -> 0 | AK23: =ProjectData[[#This Row],[Actuals 18/19]]*VLOOKUP("Mid Year Nominal - EOY Real (2026/27)",CPI[],MATCH(AK$4,CPI[#Headers],0),FALSE) -> 0 | AL23: =ProjectData[[#This Row],[Actuals 19/20]]*VLOOKUP("Mid Year Nominal - EOY Real (2026/27)",CPI[],MATCH(AL$4,CPI[#Headers],0),FALSE) -> 0 | AM23: =ProjectData[[#This Row],[Actuals 20/21]]*VLOOKUP("Mid Year Nominal - EOY Real (2026/27)",CPI[],MATCH(AM$4,CPI[#Headers],0),FALSE) -> 0 | AN23: =ProjectData[[#This Row],[Actuals 21/22]]*VLOOKUP("Mid Year Nominal - EOY Real (2026/27)",CPI[],MATCH(AN$4,CPI[#Headers],0),FALSE) -> 0 | AO23: =ProjectData[[#This Row],[Actuals 22/23]]*VLOOKUP("Mid Year Nominal - EOY Real (2026/27)",CPI[],MATCH(AO$4,CPI[#Headers],0),FALSE) -> 0 | AP23: =ProjectData[[#This Row],[Actuals 23/24]]*VLOOKUP("Mid Year Nominal - EOY Real (2026/27)",CPI[],MATCH(AP$4,CPI[#Headers],0),FALSE) -> 0 | AQ23: =ProjectData[[#This Row],[Actual 24/25]]*VLOOKUP("Mid Year Nominal - EOY Real (2026/27)",CPI[],MATCH(AQ$4,CPI[#Headers],0),FALSE) -> 0 | AR23: =ProjectData[[#This Row],[Forecast 25/26]]*VLOOKUP("Mid Year Nominal - EOY Real (2026/27)",CPI[],MATCH(AR$4,CPI[#Headers],0),FALSE) -> 0 | AS23: =ProjectData[[#This Row],[Forecast 26/27]]*VLOOKUP("Mid Year Nominal - EOY Real (2026/27)",CPI[],MATCH(AS$4,CPI[#Headers],0),FALSE) -> 0 | AT23: =SUM(ProjectData[[#This Row],[Real 08]:[Real 27]]) -> 0 | AU23: =(ProjectData[[#This Row],[Real Sum]]-VLOOKUP(ProjectData[[#This Row],[Category]],Category_AverageStdDevLimit[],MATCH("Average",Category_AverageStdDevLimit[#Headers],0),FALSE))^2 -> 4.482485466 | AV23: =VLOOKUP(ProjectData[[#This Row],[Category]],Category_AverageStdDevLimit[],MATCH("Limit",Category_AverageStdDevLimit[#Headers],0),FALSE) -> 10.66631335 | AW23: =ProjectData[[#This Row],[Real Sum]]>ProjectData[[#This Row],[Category Limit]] -> FALSE | AY23: =OR(ProjectData[[#This Row],[Significant Project? (Financial Basis)]],ProjectData[[#This Row],[Non repeatable]]) -> FALSE | AZ23: =AND(ProjectData[[#This Row],[SomeExpenditure >= 2016]],ProjectData[[#This Row],[Abnormal?]]) -> FALSE
A24: CP.00184 | B24: REPLACED BY CX - Calvale - Baralaba Fibre Optic | C24: Other | D24: 0 | E24: 0 | F24: 0 | G24: 0 | H24: 0 | I24: 0 | J24: 0 | K24: 0 | L24: 0 | M24: 0 | N24: 0 | O24: 0 | P24: 0 | Q24: 0 | R24: 0 | S24: 0 | T24: 0 | U24: 0 | V24: 0 | W24: 0 | X24: =ProjectData[[#This Row],[Real Sum]]>0.0001 -> FALSE | Y24: =OR(ProjectData[[#This Row],[Real 16]]>0,ProjectData[[#This Row],[Real 17]]>0,ProjectData[[#This Row],[Real 18]]>0,ProjectData[[#This Row],[Real 19]]>0,ProjectData[[#This Row],[Real 20]]>0) -> FALSE | Z24: =ProjectData[[#This Row],[Actuals 07/08]]*VLOOKUP("Mid Year Nominal - EOY Real (2026/27)",CPI[],MATCH(Z$4,CPI[#Headers],0),FALSE) -> 0 | AA24: =ProjectData[[#This Row],[Actuals 08/09]]*VLOOKUP("Mid Year Nominal - EOY Real (2026/27)",CPI[],MATCH(AA$4,CPI[#Headers],0),FALSE) -> 0 | AB24: =ProjectData[[#This Row],[Actuals 09/10]]*VLOOKUP("Mid Year Nominal - EOY Real (2026/27)",CPI[],MATCH(AB$4,CPI[#Headers],0),FALSE) -> 0 | AC24: =ProjectData[[#This Row],[Actuals 10/11]]*VLOOKUP("Mid Year Nominal - EOY Real (2026/27)",CPI[],MATCH(AC$4,CPI[#Headers],0),FALSE) -> 0 | AD24: =ProjectData[[#This Row],[Actuals 11/12]]*VLOOKUP("Mid Year Nominal - EOY Real (2026/27)",CPI[],MATCH(AD$4,CPI[#Headers],0),FALSE) -> 0 | AE24: =ProjectData[[#This Row],[Actuals 12/13]]*VLOOKUP("Mid Year Nominal - EOY Real (2026/27)",CPI[],MATCH(AE$4,CPI[#Headers],0),FALSE) -> 0 | AF24: =ProjectData[[#This Row],[Actuals 13/14]]*VLOOKUP("Mid Year Nominal - EOY Real (2026/27)",CPI[],MATCH(AF$4,CPI[#Headers],0),FALSE) -> 0 | AG24: =ProjectData[[#This Row],[Actuals 14/15]]*VLOOKUP("Mid Year Nominal - EOY Real (2026/27)",CPI[],MATCH(AG$4,CPI[#Headers],0),FALSE) -> 0 | AH24: =ProjectData[[#This Row],[Actuals 15/16]]*VLOOKUP("Mid Year Nominal - EOY Real (2026/27)",CPI[],MATCH(AH$4,CPI[#Headers],0),FALSE) -> 0 | AI24: =ProjectData[[#This Row],[Actuals 16/17]]*VLOOKUP("Mid Year Nominal - EOY Real (2026/27)",CPI[],MATCH(AI$4,CPI[#Headers],0),FALSE) -> 0 | AJ24: =ProjectData[[#This Row],[Actuals 17/18]]*VLOOKUP("Mid Year Nominal - EOY Real (2026/27)",CPI[],MATCH(AJ$4,CPI[#Headers],0),FALSE) -> 0 | AK24: =ProjectData[[#This Row],[Actuals 18/19]]*VLOOKUP("Mid Year Nominal - EOY Real (2026/27)",CPI[],MATCH(AK$4,CPI[#Headers],0),FALSE) -> 0 | AL24: =ProjectData[[#This Row],[Actuals 19/20]]*VLOOKUP("Mid Year Nominal - EOY Real (2026/27)",CPI[],MATCH(AL$4,CPI[#Headers],0),FALSE) -> 0 | AM24: =ProjectData[[#This Row],[Actuals 20/21]]*VLOOKUP("Mid Year Nominal - EOY Real (2026/27)",CPI[],MATCH(AM$4,CPI[#Headers],0),FALSE) -> 0 | AN24: =ProjectData[[#This Row],[Actuals 21/22]]*VLOOKUP("Mid Year Nominal - EOY Real (2026/27)",CPI[],MATCH(AN$4,CPI[#Headers],0),FALSE) -> 0 | AO24: =ProjectData[[#This Row],[Actuals 22/23]]*VLOOKUP("Mid Year Nominal - EOY Real (2026/27)",CPI[],MATCH(AO$4,CPI[#Headers],0),FALSE) -> 0 | AP24: =ProjectData[[#This Row],[Actuals 23/24]]*VLOOKUP("Mid Year Nominal - EOY Real (2026/27)",CPI[],MATCH(AP$4,CPI[#Headers],0),FALSE) -> 0 | AQ24: =ProjectData[[#This Row],[Actual 24/25]]*VLOOKUP("Mid Year Nominal - EOY Real (2026/27)",CPI[],MATCH(AQ$4,CPI[#Headers],0),FALSE) -> 0 | AR24: =ProjectData[[#This Row],[Forecast 25/26]]*VLOOKUP("Mid Year Nominal - EOY Real (2026/27)",CPI[],MATCH(AR$4,CPI[#Headers],0),FALSE) -> 0 | AS24: =ProjectData[[#This Row],[Forecast 26/27]]*VLOOKUP("Mid Year Nominal - EOY Real (2026/27)",CPI[],MATCH(AS$4,CPI[#Headers],0),FALSE) -> 0 | AT24: =SUM(ProjectData[[#This Row],[Real 08]:[Real 27]]) -> 0 | AU24: =(ProjectData[[#This Row],[Real Sum]]-VLOOKUP(ProjectData[[#This Row],[Category]],Category_AverageStdDevLimit[],MATCH("Average",Category_AverageStdDevLimit[#Headers],0),FALSE))^2 -> 4.482485466 | AV24: =VLOOKUP(ProjectData[[#This Row],[Category]],Category_AverageStdDevLimit[],MATCH("Limit",Category_AverageStdDevLimit[#Headers],0),FALSE) -> 10.66631335 | AW24: =ProjectData[[#This Row],[Real Sum]]>ProjectData[[#This Row],[Category Limit]] -> FALSE | AY24: =OR(ProjectData[[#This Row],[Significant Project? (Financial Basis)]],ProjectData[[#This Row],[Non repeatable]]) -> FALSE | AZ24: =AND(ProjectData[[#This Row],[SomeExpenditure >= 2016]],ProjectData[[#This Row],[Abnormal?]]) -> FALSE
A25: CP.00331 | B25: REPLACED BY CX - Clare - Townsville South Fibre Op | C25: Other | D25: 0 | E25: 0 | F25: 0 | G25: 0 | H25: 0 | I25: 0 | J25: 0 | K25: 0 | L25: 0 | M25: 0 | N25: 0 | O25: 0 | P25: 0 | Q25: 0 | R25: 0 | S25: 0 | T25: 0 | U25: 0 | V25: 0 | W25: 0 | X25: =ProjectData[[#This Row],[Real Sum]]>0.0001 -> FALSE | Y25: =OR(ProjectData[[#This Row],[Real 16]]>0,ProjectData[[#This Row],[Real 17]]>0,ProjectData[[#This Row],[Real 18]]>0,ProjectData[[#This Row],[Real 19]]>0,ProjectData[[#This Row],[Real 20]]>0) -> FALSE | Z25: =ProjectData[[#This Row],[Actuals 07/08]]*VLOOKUP("Mid Year Nominal - EOY Real (2026/27)",CPI[],MATCH(Z$4,CPI[#Headers],0),FALSE) -> 0 | AA25: =ProjectData[[#This Row],[Actuals 08/09]]*VLOOKUP("Mid Year Nominal - EOY Real (2026/27)",CPI[],MATCH(AA$4,CPI[#Headers],0),FALSE) -> 0 | AB25: =ProjectData[[#This Row],[Actuals 09/10]]*VLOOKUP("Mid Year Nominal - EOY Real (2026/27)",CPI[],MATCH(AB$4,CPI[#Headers],0),FALSE) -> 0 | AC25: =ProjectData[[#This Row],[Actuals 10/11]]*VLOOKUP("Mid Year Nominal - EOY Real (2026/27)",CPI[],MATCH(AC$4,CPI[#Headers],0),FALSE) -> 0 | AD25: =ProjectData[[#This Row],[Actuals 11/12]]*VLOOKUP("Mid Year Nominal - EOY Real (2026/27)",CPI[],MATCH(AD$4,CPI[#Headers],0),FALSE) -> 0 | AE25: =ProjectData[[#This Row],[Actuals 12/13]]*VLOOKUP("Mid Year Nominal - EOY Real (2026/27)",CPI[],MATCH(AE$4,CPI[#Headers],0),FALSE) -> 0 | AF25: =ProjectData[[#This Row],[Actuals 13/14]]*VLOOKUP("Mid Year Nominal - EOY Real (2026/27)",CPI[],MATCH(AF$4,CPI[#Headers],0),FALSE) -> 0 | AG25: =ProjectData[[#This Row],[Actuals 14/15]]*VLOOKUP("Mid Year Nominal - EOY Real (2026/27)",CPI[],MATCH(AG$4,CPI[#Headers],0),FALSE) -> 0 | AH25: =ProjectData[[#This Row],[Actuals 15/16]]*VLOOKUP("Mid Year Nominal - EOY Real (2026/27)",CPI[],MATCH(AH$4,CPI[#Headers],0),FALSE) -> 0 | AI25: =ProjectData[[#This Row],[Actuals 16/17]]*VLOOKUP("Mid Year Nominal - EOY Real (2026/27)",CPI[],MATCH(AI$4,CPI[#Headers],0),FALSE) -> 0 | AJ25: =ProjectData[[#This Row],[Actuals 17/18]]*VLOOKUP("Mid Year Nominal - EOY Real (2026/27)",CPI[],MATCH(AJ$4,CPI[#Headers],0),FALSE) -> 0 | AK25: =ProjectData[[#This Row],[Actuals 18/19]]*VLOOKUP("Mid Year Nominal - EOY Real (2026/27)",CPI[],MATCH(AK$4,CPI[#Headers],0),FALSE) -> 0 | AL25: =ProjectData[[#This Row],[Actuals 19/20]]*VLOOKUP("Mid Year Nominal - EOY Real (2026/27)",CPI[],MATCH(AL$4,CPI[#Headers],0),FALSE) -> 0 | AM25: =ProjectData[[#This Row],[Actuals 20/21]]*VLOOKUP("Mid Year Nominal - EOY Real (2026/27)",CPI[],MATCH(AM$4,CPI[#Headers],0),FALSE) -> 0 | AN25: =ProjectData[[#This Row],[Actuals 21/22]]*VLOOKUP("Mid Year Nominal - EOY Real (2026/27)",CPI[],MATCH(AN$4,CPI[#Headers],0),FALSE) -> 0 | AO25: =ProjectData[[#This Row],[Actuals 22/23]]*VLOOKUP("Mid Year Nominal - EOY Real (2026/27)",CPI[],MATCH(AO$4,CPI[#Headers],0),FALSE) -> 0 | AP25: =ProjectData[[#This Row],[Actuals 23/24]]*VLOOKUP("Mid Year Nominal - EOY Real (2026/27)",CPI[],MATCH(AP$4,CPI[#Headers],0),FALSE) -> 0 | AQ25: =ProjectData[[#This Row],[Actual 24/25]]*VLOOKUP("Mid Year Nominal - EOY Real (2026/27)",CPI[],MATCH(AQ$4,CPI[#Headers],0),FALSE) -> 0 | AR25: =ProjectData[[#This Row],[Forecast 25/26]]*VLOOKUP("Mid Year Nominal - EOY Real (2026/27)",CPI[],MATCH(AR$4,CPI[#Headers],0),FALSE) -> 0 | AS25: =ProjectData[[#This Row],[Forecast 26/27]]*VLOOKUP("Mid Year Nominal - EOY Real (2026/27)",CPI[],MATCH(AS$4,CPI[#Headers],0),FALSE) -> 0 | AT25: =SUM(ProjectData[[#This Row],[Real 08]:[Real 27]]) -> 0 | AU25: =(ProjectData[[#This Row],[Real Sum]]-VLOOKUP(ProjectData[[#This Row],[Category]],Category_AverageStdDevLimit[],MATCH("Average",Category_AverageStdDevLimit[#Headers],0),FALSE))^2 -> 4.482485466 | AV25: =VLOOKUP(ProjectData[[#This Row],[Category]],Category_AverageStdDevLimit[],MATCH("Limit",Category_AverageStdDevLimit[#Headers],0),FALSE) -> 10.66631335 | AW25: =ProjectData[[#This Row],[Real Sum]]>ProjectData[[#This Row],[Category Limit]] -> FALSE | AY25: =OR(ProjectData[[#This Row],[Significant Project? (Financial Basis)]],ProjectData[[#This Row],[Non repeatable]]) -> FALSE | AZ25: =AND(ProjectData[[#This Row],[SomeExpenditure >= 2016]],ProjectData[[#This Row],[Abnormal?]]) -> FALSE
A26: CP.00382 | B26: REPLACED BY CX - STRATHMORE 275KV ESTABLISHMENT | C26: Other | D26: 0 | E26: 0 | F26: 0 | G26: 0 | H26: 0 | I26: 0 | J26: 0 | K26: 0 | L26: 0 | M26: 0 | N26: 0 | O26: 0 | P26: 0 | Q26: 0 | R26: 0 | S26: 0 | T26: 0 | U26: 0 | V26: 0 | W26: 0 | X26: =ProjectData[[#This Row],[Real Sum]]>0.0001 -> FALSE | Y26: =OR(ProjectData[[#This Row],[Real 16]]>0,ProjectData[[#This Row],[Real 17]]>0,ProjectData[[#This Row],[Real 18]]>0,ProjectData[[#This Row],[Real 19]]>0,ProjectData[[#This Row],[Real 20]]>0) -> FALSE | Z26: =ProjectData[[#This Row],[Actuals 07/08]]*VLOOKUP("Mid Year Nominal - EOY Real (2026/27)",CPI[],MATCH(Z$4,CPI[#Headers],0),FALSE) -> 0 | AA26: =ProjectData[[#This Row],[Actuals 08/09]]*VLOOKUP("Mid Year Nominal - EOY Real (2026/27)",CPI[],MATCH(AA$4,CPI[#Headers],0),FALSE) -> 0 | AB26: =ProjectData[[#This Row],[Actuals 09/10]]*VLOOKUP("Mid Year Nominal - EOY Real (2026/27)",CPI[],MATCH(AB$4,CPI[#Headers],0),FALSE) -> 0 | AC26: =ProjectData[[#This Row],[Actuals 10/11]]*VLOOKUP("Mid Year Nominal - EOY Real (2026/27)",CPI[],MATCH(AC$4,CPI[#Headers],0),FALSE) -> 0 | AD26: =ProjectData[[#This Row],[Actuals 11/12]]*VLOOKUP("Mid Year Nominal - EOY Real (2026/27)",CPI[],MATCH(AD$4,CPI[#Headers],0),FALSE) -> 0 | AE26: =ProjectData[[#This Row],[Actuals 12/13]]*VLOOKUP("Mid Year Nominal - EOY Real (2026/27)",CPI[],MATCH(AE$4,CPI[#Headers],0),FALSE) -> 0 | AF26: =ProjectData[[#This Row],[Actuals 13/14]]*VLOOKUP("Mid Year Nominal - EOY Real (2026/27)",CPI[],MATCH(AF$4,CPI[#Headers],0),FALSE) -> 0 | AG26: =ProjectData[[#This Row],[Actuals 14/15]]*VLOOKUP("Mid Year Nominal - EOY Real (2026/27)",CPI[],MATCH(AG$4,CPI[#Headers],0),FALSE) -> 0 | AH26: =ProjectData[[#This Row],[Actuals 15/16]]*VLOOKUP("Mid Year Nominal - EOY Real (2026/27)",CPI[],MATCH(AH$4,CPI[#Headers],0),FALSE) -> 0 | AI26: =ProjectData[[#This Row],[Actuals 16/17]]*VLOOKUP("Mid Year Nominal - EOY Real (2026/27)",CPI[],MATCH(AI$4,CPI[#Headers],0),FALSE) -> 0 | AJ26: =ProjectData[[#This Row],[Actuals 17/18]]*VLOOKUP("Mid Year Nominal - EOY Real (2026/27)",CPI[],MATCH(AJ$4,CPI[#Headers],0),FALSE) -> 0 | AK26: =ProjectData[[#This Row],[Actuals 18/19]]*VLOOKUP("Mid Year Nominal - EOY Real (2026/27)",CPI[],MATCH(AK$4,CPI[#Headers],0),FALSE) -> 0 | AL26: =ProjectData[[#This Row],[Actuals 19/20]]*VLOOKUP("Mid Year Nominal - EOY Real (2026/27)",CPI[],MATCH(AL$4,CPI[#Headers],0),FALSE) -> 0 | AM26: =ProjectData[[#This Row],[Actuals 20/21]]*VLOOKUP("Mid Year Nominal - EOY Real (2026/27)",CPI[],MATCH(AM$4,CPI[#Headers],0),FALSE) -> 0 | AN26: =ProjectData[[#This Row],[Actuals 21/22]]*VLOOKUP("Mid Year Nominal - EOY Real (2026/27)",CPI[],MATCH(AN$4,CPI[#Headers],0),FALSE) -> 0 | AO26: =ProjectData[[#This Row],[Actuals 22/23]]*VLOOKUP("Mid Year Nominal - EOY Real (2026/27)",CPI[],MATCH(AO$4,CPI[#Headers],0),FALSE) -> 0 | AP26: =ProjectData[[#This Row],[Actuals 23/24]]*VLOOKUP("Mid Year Nominal - EOY Real (2026/27)",CPI[],MATCH(AP$4,CPI[#Headers],0),FALSE) -> 0 | AQ26: =ProjectData[[#This Row],[Actual 24/25]]*VLOOKUP("Mid Year Nominal - EOY Real (2026/27)",CPI[],MATCH(AQ$4,CPI[#Headers],0),FALSE) -> 0 | AR26: =ProjectData[[#This Row],[Forecast 25/26]]*VLOOKUP("Mid Year Nominal - EOY Real (2026/27)",CPI[],MATCH(AR$4,CPI[#Headers],0),FALSE) -> 0 | AS26: =ProjectData[[#This Row],[Forecast 26/27]]*VLOOKUP("Mid Year Nominal - EOY Real (2026/27)",CPI[],MATCH(AS$4,CPI[#Headers],0),FALSE) -> 0 | AT26: =SUM(ProjectData[[#This Row],[Real 08]:[Real 27]]) -> 0 | AU26: =(ProjectData[[#This Row],[Real Sum]]-VLOOKUP(ProjectData[[#This Row],[Category]],Category_AverageStdDevLimit[],MATCH("Average",Category_AverageStdDevLimit[#Headers],0),FALSE))^2 -> 4.482485466 | AV26: =VLOOKUP(ProjectData[[#This Row],[Category]],Category_AverageStdDevLimit[],MATCH("Limit",Category_AverageStdDevLimit[#Headers],0),FALSE) -> 10.66631335 | AW26: =ProjectData[[#This Row],[Real Sum]]>ProjectData[[#This Row],[Category Limit]] -> FALSE | AY26: =OR(ProjectData[[#This Row],[Significant Project? (Financial Basis)]],ProjectData[[#This Row],[Non repeatable]]) -> FALSE | AZ26: =AND(ProjectData[[#This Row],[SomeExpenditure >= 2016]],ProjectData[[#This Row],[Abnormal?]]) -> FALSE
A27: CP.00409 | B27: Psymetrix Dynamics Monitor Upgrade | C27: Other | D27: 0 | E27: 0 | F27: 0 | G27: 0 | H27: 0 | I27: 0 | J27: 0 | K27: 0 | L27: 0 | M27: 0 | N27: 0 | O27: 0 | P27: 0 | Q27: 0 | R27: 0 | S27: 0 | T27: 0 | U27: 0 | V27: 0 | W27: 0 | X27: =ProjectData[[#This Row],[Real Sum]]>0.0001 -> FALSE | Y27: =OR(ProjectData[[#This Row],[Real 16]]>0,ProjectData[[#This Row],[Real 17]]>0,ProjectData[[#This Row],[Real 18]]>0,ProjectData[[#This Row],[Real 19]]>0,ProjectData[[#This Row],[Real 20]]>0) -> FALSE | Z27: =ProjectData[[#This Row],[Actuals 07/08]]*VLOOKUP("Mid Year Nominal - EOY Real (2026/27)",CPI[],MATCH(Z$4,CPI[#Headers],0),FALSE) -> 0 | AA27: =ProjectData[[#This Row],[Actuals 08/09]]*VLOOKUP("Mid Year Nominal - EOY Real (2026/27)",CPI[],MATCH(AA$4,CPI[#Headers],0),FALSE) -> 0 | AB27: =ProjectData[[#This Row],[Actuals 09/10]]*VLOOKUP("Mid Year Nominal - EOY Real (2026/27)",CPI[],MATCH(AB$4,CPI[#Headers],0),FALSE) -> 0 | AC27: =ProjectData[[#This Row],[Actuals 10/11]]*VLOOKUP("Mid Year Nominal - EOY Real (2026/27)",CPI[],MATCH(AC$4,CPI[#Headers],0),FALSE) -> 0 | AD27: =ProjectData[[#This Row],[Actuals 11/12]]*VLOOKUP("Mid Year Nominal - EOY Real (2026/27)",CPI[],MATCH(AD$4,CPI[#Headers],0),FALSE) -> 0 | AE27: =ProjectData[[#This Row],[Actuals 12/13]]*VLOOKUP("Mid Year Nominal - EOY Real (2026/27)",CPI[],MATCH(AE$4,CPI[#Headers],0),FALSE) -> 0 | AF27: =ProjectData[[#This Row],[Actuals 13/14]]*VLOOKUP("Mid Year Nominal - EOY Real (2026/27)",CPI[],MATCH(AF$4,CPI[#Headers],0),FALSE) -> 0 | AG27: =ProjectData[[#This Row],[Actuals 14/15]]*VLOOKUP("Mid Year Nominal - EOY Real (2026/27)",CPI[],MATCH(AG$4,CPI[#Headers],0),FALSE) -> 0 | AH27: =ProjectData[[#This Row],[Actuals 15/16]]*VLOOKUP("Mid Year Nominal - EOY Real (2026/27)",CPI[],MATCH(AH$4,CPI[#Headers],0),FALSE) -> 0 | AI27: =ProjectData[[#This Row],[Actuals 16/17]]*VLOOKUP("Mid Year Nominal - EOY Real (2026/27)",CPI[],MATCH(AI$4,CPI[#Headers],0),FALSE) -> 0 | AJ27: =ProjectData[[#This Row],[Actuals 17/18]]*VLOOKUP("Mid Year Nominal - EOY Real (2026/27)",CPI[],MATCH(AJ$4,CPI[#Headers],0),FALSE) -> 0 | AK27: =ProjectData[[#This Row],[Actuals 18/19]]*VLOOKUP("Mid Year Nominal - EOY Real (2026/27)",CPI[],MATCH(AK$4,CPI[#Headers],0),FALSE) -> 0 | AL27: =ProjectData[[#This Row],[Actuals 19/20]]*VLOOKUP("Mid Year Nominal - EOY Real (2026/27)",CPI[],MATCH(AL$4,CPI[#Headers],0),FALSE) -> 0 | AM27: =ProjectData[[#This Row],[Actuals 20/21]]*VLOOKUP("Mid Year Nominal - EOY Real (2026/27)",CPI[],MATCH(AM$4,CPI[#Headers],0),FALSE) -> 0 | AN27: =ProjectData[[#This Row],[Actuals 21/22]]*VLOOKUP("Mid Year Nominal - EOY Real (2026/27)",CPI[],MATCH(AN$4,CPI[#Headers],0),FALSE) -> 0 | AO27: =ProjectData[[#This Row],[Actuals 22/23]]*VLOOKUP("Mid Year Nominal - EOY Real (2026/27)",CPI[],MATCH(AO$4,CPI[#Headers],0),FALSE) -> 0 | AP27: =ProjectData[[#This Row],[Actuals 23/24]]*VLOOKUP("Mid Year Nominal - EOY Real (2026/27)",CPI[],MATCH(AP$4,CPI[#Headers],0),FALSE) -> 0 | AQ27: =ProjectData[[#This Row],[Actual 24/25]]*VLOOKUP("Mid Year Nominal - EOY Real (2026/27)",CPI[],MATCH(AQ$4,CPI[#Headers],0),FALSE) -> 0 | AR27: =ProjectData[[#This Row],[Forecast 25/26]]*VLOOKUP("Mid Year Nominal - EOY Real (2026/27)",CPI[],MATCH(AR$4,CPI[#Headers],0),FALSE) -> 0 | AS27: =ProjectData[[#This Row],[Forecast 26/27]]*VLOOKUP("Mid Year Nominal - EOY Real (2026/27)",CPI[],MATCH(AS$4,CPI[#Headers],0),FALSE) -> 0 | AT27: =SUM(ProjectData[[#This Row],[Real 08]:[Real 27]]) -> 0 | AU27: =(ProjectData[[#This Row],[Real Sum]]-VLOOKUP(ProjectData[[#This Row],[Category]],Category_AverageStdDevLimit[],MATCH("Average",Category_AverageStdDevLimit[#Headers],0),FALSE))^2 -> 4.482485466 | AV27: =VLOOKUP(ProjectData[[#This Row],[Category]],Category_AverageStdDevLimit[],MATCH("Limit",Category_AverageStdDevLimit[#Headers],0),FALSE) -> 10.66631335 | AW27: =ProjectData[[#This Row],[Real Sum]]>ProjectData[[#This Row],[Category Limit]] -> FALSE | AY27: =OR(ProjectData[[#This Row],[Significant Project? (Financial Basis)]],ProjectData[[#This Row],[Non repeatable]]) -> FALSE | AZ27: =AND(ProjectData[[#This Row],[SomeExpenditure >= 2016]],ProjectData[[#This Row],[Abnormal?]]) -> FALSE
A28: CP.00510 | B28: Alan Sherriff 132/11kV Substation Establishment | C28: Other | D28: 0 | E28: 0 | F28: 0 | G28: 0 | H28: 0 | I28: 0 | J28: 0 | K28: 0 | L28: 0 | M28: 0 | N28: 0 | O28: 0 | P28: 0 | Q28: 0 | R28: 0 | S28: 0 | T28: 0 | U28: 0 | V28: 0 | W28: 0 | X28: =ProjectData[[#This Row],[Real Sum]]>0.0001 -> FALSE | Y28: =OR(ProjectData[[#This Row],[Real 16]]>0,ProjectData[[#This Row],[Real 17]]>0,ProjectData[[#This Row],[Real 18]]>0,ProjectData[[#This Row],[Real 19]]>0,ProjectData[[#This Row],[Real 20]]>0) -> FALSE | Z28: =ProjectData[[#This Row],[Actuals 07/08]]*VLOOKUP("Mid Year Nominal - EOY Real (2026/27)",CPI[],MATCH(Z$4,CPI[#Headers],0),FALSE) -> 0 | AA28: =ProjectData[[#This Row],[Actuals 08/09]]*VLOOKUP("Mid Year Nominal - EOY Real (2026/27)",CPI[],MATCH(AA$4,CPI[#Headers],0),FALSE) -> 0 | AB28: =ProjectData[[#This Row],[Actuals 09/10]]*VLOOKUP("Mid Year Nominal - EOY Real (2026/27)",CPI[],MATCH(AB$4,CPI[#Headers],0),FALSE) -> 0 | AC28: =ProjectData[[#This Row],[Actuals 10/11]]*VLOOKUP("Mid Year Nominal - EOY Real (2026/27)",CPI[],MATCH(AC$4,CPI[#Headers],0),FALSE) -> 0 | AD28: =ProjectData[[#This Row],[Actuals 11/12]]*VLOOKUP("Mid Year Nominal - EOY Real (2026/27)",CPI[],MATCH(AD$4,CPI[#Headers],0),FALSE) -> 0 | AE28: =ProjectData[[#This Row],[Actuals 12/13]]*VLOOKUP("Mid Year Nominal - EOY Real (2026/27)",CPI[],MATCH(AE$4,CPI[#Headers],0),FALSE) -> 0 | AF28: =ProjectData[[#This Row],[Actuals 13/14]]*VLOOKUP("Mid Year Nominal - EOY Real (2026/27)",CPI[],MATCH(AF$4,CPI[#Headers],0),FALSE) -> 0 | AG28: =ProjectData[[#This Row],[Actuals 14/15]]*VLOOKUP("Mid Year Nominal - EOY Real (2026/27)",CPI[],MATCH(AG$4,CPI[#Headers],0),FALSE) -> 0 | AH28: =ProjectData[[#This Row],[Actuals 15/16]]*VLOOKUP("Mid Year Nominal - EOY Real (2026/27)",CPI[],MATCH(AH$4,CPI[#Headers],0),FALSE) -> 0 | AI28: =ProjectData[[#This Row],[Actuals 16/17]]*VLOOKUP("Mid Year Nominal - EOY Real (2026/27)",CPI[],MATCH(AI$4,CPI[#Headers],0),FALSE) -> 0 | AJ28: =ProjectData[[#This Row],[Actuals 17/18]]*VLOOKUP("Mid Year Nominal - EOY Real (2026/27)",CPI[],MATCH(AJ$4,CPI[#Headers],0),FALSE) -> 0 | AK28: =ProjectData[[#This Row],[Actuals 18/19]]*VLOOKUP("Mid Year Nominal - EOY Real (2026/27)",CPI[],MATCH(AK$4,CPI[#Headers],0),FALSE) -> 0 | AL28: =ProjectData[[#This Row],[Actuals 19/20]]*VLOOKUP("Mid Year Nominal - EOY Real (2026/27)",CPI[],MATCH(AL$4,CPI[#Headers],0),FALSE) -> 0 | AM28: =ProjectData[[#This Row],[Actuals 20/21]]*VLOOKUP("Mid Year Nominal - EOY Real (2026/27)",CPI[],MATCH(AM$4,CPI[#Headers],0),FALSE) -> 0 | AN28: =ProjectData[[#This Row],[Actuals 21/22]]*VLOOKUP("Mid Year Nominal - EOY Real (2026/27)",CPI[],MATCH(AN$4,CPI[#Headers],0),FALSE) -> 0 | AO28: =ProjectData[[#This Row],[Actuals 22/23]]*VLOOKUP("Mid Year Nominal - EOY Real (2026/27)",CPI[],MATCH(AO$4,CPI[#Headers],0),FALSE) -> 0 | AP28: =ProjectData[[#This Row],[Actuals 23/24]]*VLOOKUP("Mid Year Nominal - EOY Real (2026/27)",CPI[],MATCH(AP$4,CPI[#Headers],0),FALSE) -> 0 | AQ28: =ProjectData[[#This Row],[Actual 24/25]]*VLOOKUP("Mid Year Nominal - EOY Real (2026/27)",CPI[],MATCH(AQ$4,CPI[#Headers],0),FALSE) -> 0 | AR28: =ProjectData[[#This Row],[Forecast 25/26]]*VLOOKUP("Mid Year Nominal - EOY Real (2026/27)",CPI[],MATCH(AR$4,CPI[#Headers],0),FALSE) -> 0 | AS28: =ProjectData[[#This Row],[Forecast 26/27]]*VLOOKUP("Mid Year Nominal - EOY Real (2026/27)",CPI[],MATCH(AS$4,CPI[#Headers],0),FALSE) -> 0 | AT28: =SUM(ProjectData[[#This Row],[Real 08]:[Real 27]]) -> 0 | AU28: =(ProjectData[[#This Row],[Real Sum]]-VLOOKUP(ProjectData[[#This Row],[Category]],Category_AverageStdDevLimit[],MATCH("Average",Category_AverageStdDevLimit[#Headers],0),FALSE))^2 -> 4.482485466 | AV28: =VLOOKUP(ProjectData[[#This Row],[Category]],Category_AverageStdDevLimit[],MATCH("Limit",Category_AverageStdDevLimit[#Headers],0),FALSE) -> 10.66631335 | AW28: =ProjectData[[#This Row],[Real Sum]]>ProjectData[[#This Row],[Category Limit]] -> FALSE | AX28: TRUE | AY28: =OR(ProjectData[[#This Row],[Significant Project? (Financial Basis)]],ProjectData[[#This Row],[Non repeatable]]) -> TRUE | AZ28: =AND(ProjectData[[#This Row],[SomeExpenditure >= 2016]],ProjectData[[#This Row],[Abnormal?]]) -> FALSE
A29: CP.00577 | B29: REPLACED BY CX - CHALUMBIN 132KV CAP BANK NO2 | C29: Other | D29: 0 | E29: 0 | F29: 0 | G29: 0 | H29: 0 | I29: 0 | J29: 0 | K29: 0 | L29: 0 | M29: 0 | N29: 0 | O29: 0 | P29: 0 | Q29: 0 | R29: 0 | S29: 0 | T29: 0 | U29: 0 | V29: 0 | W29: 0 | X29: =ProjectData[[#This Row],[Real Sum]]>0.0001 -> FALSE | Y29: =OR(ProjectData[[#This Row],[Real 16]]>0,ProjectData[[#This Row],[Real 17]]>0,ProjectData[[#This Row],[Real 18]]>0,ProjectData[[#This Row],[Real 19]]>0,ProjectData[[#This Row],[Real 20]]>0) -> FALSE | Z29: =ProjectData[[#This Row],[Actuals 07/08]]*VLOOKUP("Mid Year Nominal - EOY Real (2026/27)",CPI[],MATCH(Z$4,CPI[#Headers],0),FALSE) -> 0 | AA29: =ProjectData[[#This Row],[Actuals 08/09]]*VLOOKUP("Mid Year Nominal - EOY Real (2026/27)",CPI[],MATCH(AA$4,CPI[#Headers],0),FALSE) -> 0 | AB29: =ProjectData[[#This Row],[Actuals 09/10]]*VLOOKUP("Mid Year Nominal - EOY Real (2026/27)",CPI[],MATCH(AB$4,CPI[#Headers],0),FALSE) -> 0 | AC29: =ProjectData[[#This Row],[Actuals 10/11]]*VLOOKUP("Mid Year Nominal - EOY Real (2026/27)",CPI[],MATCH(AC$4,CPI[#Headers],0),FALSE) -> 0 | AD29: =ProjectData[[#This Row],[Actuals 11/12]]*VLOOKUP("Mid Year Nominal - EOY Real (2026/27)",CPI[],MATCH(AD$4,CPI[#Headers],0),FALSE) -> 0 | AE29: =ProjectData[[#This Row],[Actuals 12/13]]*VLOOKUP("Mid Year Nominal - EOY Real (2026/27)",CPI[],MATCH(AE$4,CPI[#Headers],0),FALSE) -> 0 | AF29: =ProjectData[[#This Row],[Actuals 13/14]]*VLOOKUP("Mid Year Nominal - EOY Real (2026/27)",CPI[],MATCH(AF$4,CPI[#Headers],0),FALSE) -> 0 | AG29: =ProjectData[[#This Row],[Actuals 14/15]]*VLOOKUP("Mid Year Nominal - EOY Real (2026/27)",CPI[],MATCH(AG$4,CPI[#Headers],0),FALSE) -> 0 | AH29: =ProjectData[[#This Row],[Actuals 15/16]]*VLOOKUP("Mid Year Nominal - EOY Real (2026/27)",CPI[],MATCH(AH$4,CPI[#Headers],0),FALSE) -> 0 | AI29: =ProjectData[[#This Row],[Actuals 16/17]]*VLOOKUP("Mid Year Nominal - EOY Real (2026/27)",CPI[],MATCH(AI$4,CPI[#Headers],0),FALSE) -> 0 | AJ29: =ProjectData[[#This Row],[Actuals 17/18]]*VLOOKUP("Mid Year Nominal - EOY Real (2026/27)",CPI[],MATCH(AJ$4,CPI[#Headers],0),FALSE) -> 0 | AK29: =ProjectData[[#This Row],[Actuals 18/19]]*VLOOKUP("Mid Year Nominal - EOY Real (2026/27)",CPI[],MATCH(AK$4,CPI[#Headers],0),FALSE) -> 0 | AL29: =ProjectData[[#This Row],[Actuals 19/20]]*VLOOKUP("Mid Year Nominal - EOY Real (2026/27)",CPI[],MATCH(AL$4,CPI[#Headers],0),FALSE) -> 0 | AM29: =ProjectData[[#This Row],[Actuals 20/21]]*VLOOKUP("Mid Year Nominal - EOY Real (2026/27)",CPI[],MATCH(AM$4,CPI[#Headers],0),FALSE) -> 0 | AN29: =ProjectData[[#This Row],[Actuals 21/22]]*VLOOKUP("Mid Year Nominal - EOY Real (2026/27)",CPI[],MATCH(AN$4,CPI[#Headers],0),FALSE) -> 0 | AO29: =ProjectData[[#This Row],[Actuals 22/23]]*VLOOKUP("Mid Year Nominal - EOY Real (2026/27)",CPI[],MATCH(AO$4,CPI[#Headers],0),FALSE) -> 0 | AP29: =ProjectData[[#This Row],[Actuals 23/24]]*VLOOKUP("Mid Year Nominal - EOY Real (2026/27)",CPI[],MATCH(AP$4,CPI[#Headers],0),FALSE) -> 0 | AQ29: =ProjectData[[#This Row],[Actual 24/25]]*VLOOKUP("Mid Year Nominal - EOY Real (2026/27)",CPI[],MATCH(AQ$4,CPI[#Headers],0),FALSE) -> 0 | AR29: =ProjectData[[#This Row],[Forecast 25/26]]*VLOOKUP("Mid Year Nominal - EOY Real (2026/27)",CPI[],MATCH(AR$4,CPI[#Headers],0),FALSE) -> 0 | AS29: =ProjectData[[#This Row],[Forecast 26/27]]*VLOOKUP("Mid Year Nominal - EOY Real (2026/27)",CPI[],MATCH(AS$4,CPI[#Headers],0),FALSE) -> 0 | AT29: =SUM(ProjectData[[#This Row],[Real 08]:[Real 27]]) -> 0 | AU29: =(ProjectData[[#This Row],[Real Sum]]-VLOOKUP(ProjectData[[#This Row],[Category]],Category_AverageStdDevLimit[],MATCH("Average",Category_AverageStdDevLimit[#Headers],0),FALSE))^2 -> 4.482485466 | AV29: =VLOOKUP(ProjectData[[#This Row],[Category]],Category_AverageStdDevLimit[],MATCH("Limit",Category_AverageStdDevLimit[#Headers],0),FALSE) -> 10.66631335 | AW29: =ProjectData[[#This Row],[Real Sum]]>ProjectData[[#This Row],[Category Limit]] -> FALSE | AY29: =OR(ProjectData[[#This Row],[Significant Project? (Financial Basis)]],ProjectData[[#This Row],[Non repeatable]]) -> FALSE | AZ29: =AND(ProjectData[[#This Row],[SomeExpenditure >= 2016]],ProjectData[[#This Row],[Abnormal?]]) -> FALSE
A30: CP.00667 | B30: REPLACED BY CX - MOLENDINAR 275KV ESTABLISHMENT | C30: Other | D30: 0 | E30: 0 | F30: 0 | G30: 0 | H30: 0 | I30: 0 | J30: 0 | K30: 0 | L30: 0 | M30: 0 | N30: 0 | O30: 0 | P30: 0 | Q30: 0 | R30: 0 | S30: 0 | T30: 0 | U30: 0 | V30: 0 | W30: 0 | X30: =ProjectData[[#This Row],[Real Sum]]>0.0001 -> FALSE | Y30: =OR(ProjectData[[#This Row],[Real 16]]>0,ProjectData[[#This Row],[Real 17]]>0,ProjectData[[#This Row],[Real 18]]>0,ProjectData[[#This Row],[Real 19]]>0,ProjectData[[#This Row],[Real 20]]>0) -> FALSE | Z30: =ProjectData[[#This Row],[Actuals 07/08]]*VLOOKUP("Mid Year Nominal - EOY Real (2026/27)",CPI[],MATCH(Z$4,CPI[#Headers],0),FALSE) -> 0 | AA30: =ProjectData[[#This Row],[Actuals 08/09]]*VLOOKUP("Mid Year Nominal - EOY Real (2026/27)",CPI[],MATCH(AA$4,CPI[#Headers],0),FALSE) -> 0 | AB30: =ProjectData[[#This Row],[Actuals 09/10]]*VLOOKUP("Mid Year Nominal - EOY Real (2026/27)",CPI[],MATCH(AB$4,CPI[#Headers],0),FALSE) -> 0 | AC30: =ProjectData[[#This Row],[Actuals 10/11]]*VLOOKUP("Mid Year Nominal - EOY Real (2026/27)",CPI[],MATCH(AC$4,CPI[#Headers],0),FALSE) -> 0 | AD30: =ProjectData[[#This Row],[Actuals 11/12]]*VLOOKUP("Mid Year Nominal - EOY Real (2026/27)",CPI[],MATCH(AD$4,CPI[#Headers],0),FALSE) -> 0 | AE30: =ProjectData[[#This Row],[Actuals 12/13]]*VLOOKUP("Mid Year Nominal - EOY Real (2026/27)",CPI[],MATCH(AE$4,CPI[#Headers],0),FALSE) -> 0 | AF30: =ProjectData[[#This Row],[Actuals 13/14]]*VLOOKUP("Mid Year Nominal - EOY Real (2026/27)",CPI[],MATCH(AF$4,CPI[#Headers],0),FALSE) -> 0 | AG30: =ProjectData[[#This Row],[Actuals 14/15]]*VLOOKUP("Mid Year Nominal - EOY Real (2026/27)",CPI[],MATCH(AG$4,CPI[#Headers],0),FALSE) -> 0 | AH30: =ProjectData[[#This Row],[Actuals 15/16]]*VLOOKUP("Mid Year Nominal - EOY Real (2026/27)",CPI[],MATCH(AH$4,CPI[#Headers],0),FALSE) -> 0 | AI30: =ProjectData[[#This Row],[Actuals 16/17]]*VLOOKUP("Mid Year Nominal - EOY Real (2026/27)",CPI[],MATCH(AI$4,CPI[#Headers],0),FALSE) -> 0 | AJ30: =ProjectData[[#This Row],[Actuals 17/18]]*VLOOKUP("Mid Year Nominal - EOY Real (2026/27)",CPI[],MATCH(AJ$4,CPI[#Headers],0),FALSE) -> 0 | AK30: =ProjectData[[#This Row],[Actuals 18/19]]*VLOOKUP("Mid Year Nominal - EOY Real (2026/27)",CPI[],MATCH(AK$4,CPI[#Headers],0),FALSE) -> 0 | AL30: =ProjectData[[#This Row],[Actuals 19/20]]*VLOOKUP("Mid Year Nominal - EOY Real (2026/27)",CPI[],MATCH(AL$4,CPI[#Headers],0),FALSE) -> 0 | AM30: =ProjectData[[#This Row],[Actuals 20/21]]*VLOOKUP("Mid Year Nominal - EOY Real (2026/27)",CPI[],MATCH(AM$4,CPI[#Headers],0),FALSE) -> 0 | AN30: =ProjectData[[#This Row],[Actuals 21/22]]*VLOOKUP("Mid Year Nominal - EOY Real (2026/27)",CPI[],MATCH(AN$4,CPI[#Headers],0),FALSE) -> 0 | AO30: =ProjectData[[#This Row],[Actuals 22/23]]*VLOOKUP("Mid Year Nominal - EOY Real (2026/27)",CPI[],MATCH(AO$4,CPI[#Headers],0),FALSE) -> 0 | AP30: =ProjectData[[#This Row],[Actuals 23/24]]*VLOOKUP("Mid Year Nominal - EOY Real (2026/27)",CPI[],MATCH(AP$4,CPI[#Headers],0),FALSE) -> 0 | AQ30: =ProjectData[[#This Row],[Actual 24/25]]*VLOOKUP("Mid Year Nominal - EOY Real (2026/27)",CPI[],MATCH(AQ$4,CPI[#Headers],0),FALSE) -> 0 | AR30: =ProjectData[[#This Row],[Forecast 25/26]]*VLOOKUP("Mid Year Nominal - EOY Real (2026/27)",CPI[],MATCH(AR$4,CPI[#Headers],0),FALSE) -> 0 | AS30: =ProjectData[[#This Row],[Forecast 26/27]]*VLOOKUP("Mid Year Nominal - EOY Real (2026/27)",CPI[],MATCH(AS$4,CPI[#Headers],0),FALSE) -> 0 | AT30: =SUM(ProjectData[[#This Row],[Real 08]:[Real 27]]) -> 0 | AU30: =(ProjectData[[#This Row],[Real Sum]]-VLOOKUP(ProjectData[[#This Row],[Category]],Category_AverageStdDevLimit[],MATCH("Average",Category_AverageStdDevLimit[#Headers],0),FALSE))^2 -> 4.482485466 | AV30: =VLOOKUP(ProjectData[[#This Row],[Category]],Category_AverageStdDevLimit[],MATCH("Limit",Category_AverageStdDevLimit[#Headers],0),FALSE) -> 10.66631335 | AW30: =ProjectData[[#This Row],[Real Sum]]>ProjectData[[#This Row],[Category Limit]] -> FALSE | AY30: =OR(ProjectData[[#This Row],[Significant Project? (Financial Basis)]],ProjectData[[#This Row],[Non repeatable]]) -> FALSE | AZ30: =AND(ProjectData[[#This Row],[SomeExpenditure >= 2016]],ProjectData[[#This Row],[Abnormal?]]) -> FALSE
A31: CP.00668 | B31: WOREE STATIC VAR COMPENSATOR | C31: Other | D31: 0 | E31: 0 | F31: 0 | G31: 0 | H31: 0 | I31: 0 | J31: 0 | K31: 0 | L31: 0 | M31: 0 | N31: 0 | O31: 0 | P31: 0 | Q31: 0 | R31: 0 | S31: 0 | T31: 0 | U31: 0 | V31: 0 | W31: 0 | X31: =ProjectData[[#This Row],[Real Sum]]>0.0001 -> FALSE | Y31: =OR(ProjectData[[#This Row],[Real 16]]>0,ProjectData[[#This Row],[Real 17]]>0,ProjectData[[#This Row],[Real 18]]>0,ProjectData[[#This Row],[Real 19]]>0,ProjectData[[#This Row],[Real 20]]>0) -> FALSE | Z31: =ProjectData[[#This Row],[Actuals 07/08]]*VLOOKUP("Mid Year Nominal - EOY Real (2026/27)",CPI[],MATCH(Z$4,CPI[#Headers],0),FALSE) -> 0 | AA31: =ProjectData[[#This Row],[Actuals 08/09]]*VLOOKUP("Mid Year Nominal - EOY Real (2026/27)",CPI[],MATCH(AA$4,CPI[#Headers],0),FALSE) -> 0 | AB31: =ProjectData[[#This Row],[Actuals 09/10]]*VLOOKUP("Mid Year Nominal - EOY Real (2026/27)",CPI[],MATCH(AB$4,CPI[#Headers],0),FALSE) -> 0 | AC31: =ProjectData[[#This Row],[Actuals 10/11]]*VLOOKUP("Mid Year Nominal - EOY Real (2026/27)",CPI[],MATCH(AC$4,CPI[#Headers],0),FALSE) -> 0 | AD31: =ProjectData[[#This Row],[Actuals 11/12]]*VLOOKUP("Mid Year Nominal - EOY Real (2026/27)",CPI[],MATCH(AD$4,CPI[#Headers],0),FALSE) -> 0 | AE31: =ProjectData[[#This Row],[Actuals 12/13]]*VLOOKUP("Mid Year Nominal - EOY Real (2026/27)",CPI[],MATCH(AE$4,CPI[#Headers],0),FALSE) -> 0 | AF31: =ProjectData[[#This Row],[Actuals 13/14]]*VLOOKUP("Mid Year Nominal - EOY Real (2026/27)",CPI[],MATCH(AF$4,CPI[#Headers],0),FALSE) -> 0 | AG31: =ProjectData[[#This Row],[Actuals 14/15]]*VLOOKUP("Mid Year Nominal - EOY Real (2026/27)",CPI[],MATCH(AG$4,CPI[#Headers],0),FALSE) -> 0 | AH31: =ProjectData[[#This Row],[Actuals 15/16]]*VLOOKUP("Mid Year Nominal - EOY Real (2026/27)",CPI[],MATCH(AH$4,CPI[#Headers],0),FALSE) -> 0 | AI31: =ProjectData[[#This Row],[Actuals 16/17]]*VLOOKUP("Mid Year Nominal - EOY Real (2026/27)",CPI[],MATCH(AI$4,CPI[#Headers],0),FALSE) -> 0 | AJ31: =ProjectData[[#This Row],[Actuals 17/18]]*VLOOKUP("Mid Year Nominal - EOY Real (2026/27)",CPI[],MATCH(AJ$4,CPI[#Headers],0),FALSE) -> 0 | AK31: =ProjectData[[#This Row],[Actuals 18/19]]*VLOOKUP("Mid Year Nominal - EOY Real (2026/27)",CPI[],MATCH(AK$4,CPI[#Headers],0),FALSE) -> 0 | AL31: =ProjectData[[#This Row],[Actuals 19/20]]*VLOOKUP("Mid Year Nominal - EOY Real (2026/27)",CPI[],MATCH(AL$4,CPI[#Headers],0),FALSE) -> 0 | AM31: =ProjectData[[#This Row],[Actuals 20/21]]*VLOOKUP("Mid Year Nominal - EOY Real (2026/27)",CPI[],MATCH(AM$4,CPI[#Headers],0),FALSE) -> 0 | AN31: =ProjectData[[#This Row],[Actuals 21/22]]*VLOOKUP("Mid Year Nominal - EOY Real (2026/27)",CPI[],MATCH(AN$4,CPI[#Headers],0),FALSE) -> 0 | AO31: =ProjectData[[#This Row],[Actuals 22/23]]*VLOOKUP("Mid Year Nominal - EOY Real (2026/27)",CPI[],MATCH(AO$4,CPI[#Headers],0),FALSE) -> 0 | AP31: =ProjectData[[#This Row],[Actuals 23/24]]*VLOOKUP("Mid Year Nominal - EOY Real (2026/27)",CPI[],MATCH(AP$4,CPI[#Headers],0),FALSE) -> 0 | AQ31: =ProjectData[[#This Row],[Actual 24/25]]*VLOOKUP("Mid Year Nominal - EOY Real (2026/27)",CPI[],MATCH(AQ$4,CPI[#Headers],0),FALSE) -> 0 | AR31: =ProjectData[[#This Row],[Forecast 25/26]]*VLOOKUP("Mid Year Nominal - EOY Real (2026/27)",CPI[],MATCH(AR$4,CPI[#Headers],0),FALSE) -> 0 | AS31: =ProjectData[[#This Row],[Forecast 26/27]]*VLOOKUP("Mid Year Nominal - EOY Real (2026/27)",CPI[],MATCH(AS$4,CPI[#Headers],0),FALSE) -> 0 | AT31: =SUM(ProjectData[[#This Row],[Real 08]:[Real 27]]) -> 0 | AU31: =(ProjectData[[#This Row],[Real Sum]]-VLOOKUP(ProjectData[[#This Row],[Category]],Category_AverageStdDevLimit[],MATCH("Average",Category_AverageStdDevLimit[#Headers],0),FALSE))^2 -> 4.482485466 | AV31: =VLOOKUP(ProjectData[[#This Row],[Category]],Category_AverageStdDevLimit[],MATCH("Limit",Category_AverageStdDevLimit[#Headers],0),FALSE) -> 10.66631335 | AW31: =ProjectData[[#This Row],[Real Sum]]>ProjectData[[#This Row],[Category Limit]] -> FALSE | AY31: =OR(ProjectData[[#This Row],[Significant Project? (Financial Basis)]],ProjectData[[#This Row],[Non repeatable]]) -> FALSE | AZ31: =AND(ProjectData[[#This Row],[SomeExpenditure >= 2016]],ProjectData[[#This Row],[Abnormal?]]) -> FALSE
A32: CP.00675 | B32: MT STUART GAS TURBINE TRANSM | C32: Other | D32: 0 | E32: 0 | F32: 0 | G32: 0 | H32: 0 | I32: 0 | J32: 0 | K32: 0 | L32: 0 | M32: 0 | N32: 0 | O32: 0 | P32: 0 | Q32: 0 | R32: 0 | S32: 0 | T32: 0 | U32: 0 | V32: 0 | W32: 0 | X32: =ProjectData[[#This Row],[Real Sum]]>0.0001 -> FALSE | Y32: =OR(ProjectData[[#This Row],[Real 16]]>0,ProjectData[[#This Row],[Real 17]]>0,ProjectData[[#This Row],[Real 18]]>0,ProjectData[[#This Row],[Real 19]]>0,ProjectData[[#This Row],[Real 20]]>0) -> FALSE | Z32: =ProjectData[[#This Row],[Actuals 07/08]]*VLOOKUP("Mid Year Nominal - EOY Real (2026/27)",CPI[],MATCH(Z$4,CPI[#Headers],0),FALSE) -> 0 | AA32: =ProjectData[[#This Row],[Actuals 08/09]]*VLOOKUP("Mid Year Nominal - EOY Real (2026/27)",CPI[],MATCH(AA$4,CPI[#Headers],0),FALSE) -> 0 | AB32: =ProjectData[[#This Row],[Actuals 09/10]]*VLOOKUP("Mid Year Nominal - EOY Real (2026/27)",CPI[],MATCH(AB$4,CPI[#Headers],0),FALSE) -> 0 | AC32: =ProjectData[[#This Row],[Actuals 10/11]]*VLOOKUP("Mid Year Nominal - EOY Real (2026/27)",CPI[],MATCH(AC$4,CPI[#Headers],0),FALSE) -> 0 | AD32: =ProjectData[[#This Row],[Actuals 11/12]]*VLOOKUP("Mid Year Nominal - EOY Real (2026/27)",CPI[],MATCH(AD$4,CPI[#Headers],0),FALSE) -> 0 | AE32: =ProjectData[[#This Row],[Actuals 12/13]]*VLOOKUP("Mid Year Nominal - EOY Real (2026/27)",CPI[],MATCH(AE$4,CPI[#Headers],0),FALSE) -> 0 | AF32: =ProjectData[[#This Row],[Actuals 13/14]]*VLOOKUP("Mid Year Nominal - EOY Real (2026/27)",CPI[],MATCH(AF$4,CPI[#Headers],0),FALSE) -> 0 | AG32: =ProjectData[[#This Row],[Actuals 14/15]]*VLOOKUP("Mid Year Nominal - EOY Real (2026/27)",CPI[],MATCH(AG$4,CPI[#Headers],0),FALSE) -> 0 | AH32: =ProjectData[[#This Row],[Actuals 15/16]]*VLOOKUP("Mid Year Nominal - EOY Real (2026/27)",CPI[],MATCH(AH$4,CPI[#Headers],0),FALSE) -> 0 | AI32: =ProjectData[[#This Row],[Actuals 16/17]]*VLOOKUP("Mid Year Nominal - EOY Real (2026/27)",CPI[],MATCH(AI$4,CPI[#Headers],0),FALSE) -> 0 | AJ32: =ProjectData[[#This Row],[Actuals 17/18]]*VLOOKUP("Mid Year Nominal - EOY Real (2026/27)",CPI[],MATCH(AJ$4,CPI[#Headers],0),FALSE) -> 0 | AK32: =ProjectData[[#This Row],[Actuals 18/19]]*VLOOKUP("Mid Year Nominal - EOY Real (2026/27)",CPI[],MATCH(AK$4,CPI[#Headers],0),FALSE) -> 0 | AL32: =ProjectData[[#This Row],[Actuals 19/20]]*VLOOKUP("Mid Year Nominal - EOY Real (2026/27)",CPI[],MATCH(AL$4,CPI[#Headers],0),FALSE) -> 0 | AM32: =ProjectData[[#This Row],[Actuals 20/21]]*VLOOKUP("Mid Year Nominal - EOY Real (2026/27)",CPI[],MATCH(AM$4,CPI[#Headers],0),FALSE) -> 0 | AN32: =ProjectData[[#This Row],[Actuals 21/22]]*VLOOKUP("Mid Year Nominal - EOY Real (2026/27)",CPI[],MATCH(AN$4,CPI[#Headers],0),FALSE) -> 0 | AO32: =ProjectData[[#This Row],[Actuals 22/23]]*VLOOKUP("Mid Year Nominal - EOY Real (2026/27)",CPI[],MATCH(AO$4,CPI[#Headers],0),FALSE) -> 0 | AP32: =ProjectData[[#This Row],[Actuals 23/24]]*VLOOKUP("Mid Year Nominal - EOY Real (2026/27)",CPI[],MATCH(AP$4,CPI[#Headers],0),FALSE) -> 0 | AQ32: =ProjectData[[#This Row],[Actual 24/25]]*VLOOKUP("Mid Year Nominal - EOY Real (2026/27)",CPI[],MATCH(AQ$4,CPI[#Headers],0),FALSE) -> 0 | AR32: =ProjectData[[#This Row],[Forecast 25/26]]*VLOOKUP("Mid Year Nominal - EOY Real (2026/27)",CPI[],MATCH(AR$4,CPI[#Headers],0),FALSE) -> 0 | AS32: =ProjectData[[#This Row],[Forecast 26/27]]*VLOOKUP("Mid Year Nominal - EOY Real (2026/27)",CPI[],MATCH(AS$4,CPI[#Headers],0),FALSE) -> 0 | AT32: =SUM(ProjectData[[#This Row],[Real 08]:[Real 27]]) -> 0 | AU32: =(ProjectData[[#This Row],[Real Sum]]-VLOOKUP(ProjectData[[#This Row],[Category]],Category_AverageStdDevLimit[],MATCH("Average",Category_AverageStdDevLimit[#Headers],0),FALSE))^2 -> 4.482485466 | AV32: =VLOOKUP(ProjectData[[#This Row],[Category]],Category_AverageStdDevLimit[],MATCH("Limit",Category_AverageStdDevLimit[#Headers],0),FALSE) -> 10.66631335 | AW32: =ProjectData[[#This Row],[Real Sum]]>ProjectData[[#This Row],[Category Limit]] -> FALSE | AY32: =OR(ProjectData[[#This Row],[Significant Project? (Financial Basis)]],ProjectData[[#This Row],[Non repeatable]]) -> FALSE | AZ32: =AND(ProjectData[[#This Row],[SomeExpenditure >= 2016]],ProjectData[[#This Row],[Abnormal?]]) -> FALSE
A33: CP.00744 | B33: COLLINSVILLE/MKY PROT UPGRADE | C33: Other | D33: 0 | E33: 0 | F33: 0 | G33: 0 | H33: 0 | I33: 0 | J33: 0 | K33: 0 | L33: 0 | M33: 0 | N33: 0 | O33: 0 | P33: 0 | Q33: 0 | R33: 0 | S33: 0 | T33: 0 | U33: 0 | V33: 0 | W33: 0 | X33: =ProjectData[[#This Row],[Real Sum]]>0.0001 -> FALSE | Y33: =OR(ProjectData[[#This Row],[Real 16]]>0,ProjectData[[#This Row],[Real 17]]>0,ProjectData[[#This Row],[Real 18]]>0,ProjectData[[#This Row],[Real 19]]>0,ProjectData[[#This Row],[Real 20]]>0) -> FALSE | Z33: =ProjectData[[#This Row],[Actuals 07/08]]*VLOOKUP("Mid Year Nominal - EOY Real (2026/27)",CPI[],MATCH(Z$4,CPI[#Headers],0),FALSE) -> 0 | AA33: =ProjectData[[#This Row],[Actuals 08/09]]*VLOOKUP("Mid Year Nominal - EOY Real (2026/27)",CPI[],MATCH(AA$4,CPI[#Headers],0),FALSE) -> 0 | AB33: =ProjectData[[#This Row],[Actuals 09/10]]*VLOOKUP("Mid Year Nominal - EOY Real (2026/27)",CPI[],MATCH(AB$4,CPI[#Headers],0),FALSE) -> 0 | AC33: =ProjectData[[#This Row],[Actuals 10/11]]*VLOOKUP("Mid Year Nominal - EOY Real (2026/27)",CPI[],MATCH(AC$4,CPI[#Headers],0),FALSE) -> 0 | AD33: =ProjectData[[#This Row],[Actuals 11/12]]*VLOOKUP("Mid Year Nominal - EOY Real (2026/27)",CPI[],MATCH(AD$4,CPI[#Headers],0),FALSE) -> 0 | AE33: =ProjectData[[#This Row],[Actuals 12/13]]*VLOOKUP("Mid Year Nominal - EOY Real (2026/27)",CPI[],MATCH(AE$4,CPI[#Headers],0),FALSE) -> 0 | AF33: =ProjectData[[#This Row],[Actuals 13/14]]*VLOOKUP("Mid Year Nominal - EOY Real (2026/27)",CPI[],MATCH(AF$4,CPI[#Headers],0),FALSE) -> 0 | AG33: =ProjectData[[#This Row],[Actuals 14/15]]*VLOOKUP("Mid Year Nominal - EOY Real (2026/27)",CPI[],MATCH(AG$4,CPI[#Headers],0),FALSE) -> 0 | AH33: =ProjectData[[#This Row],[Actuals 15/16]]*VLOOKUP("Mid Year Nominal - EOY Real (2026/27)",CPI[],MATCH(AH$4,CPI[#Headers],0),FALSE) -> 0 | AI33: =ProjectData[[#This Row],[Actuals 16/17]]*VLOOKUP("Mid Year Nominal - EOY Real (2026/27)",CPI[],MATCH(AI$4,CPI[#Headers],0),FALSE) -> 0 | AJ33: =ProjectData[[#This Row],[Actuals 17/18]]*VLOOKUP("Mid Year Nominal - EOY Real (2026/27)",CPI[],MATCH(AJ$4,CPI[#Headers],0),FALSE) -> 0 | AK33: =ProjectData[[#This Row],[Actuals 18/19]]*VLOOKUP("Mid Year Nominal - EOY Real (2026/27)",CPI[],MATCH(AK$4,CPI[#Headers],0),FALSE) -> 0 | AL33: =ProjectData[[#This Row],[Actuals 19/20]]*VLOOKUP("Mid Year Nominal - EOY Real (2026/27)",CPI[],MATCH(AL$4,CPI[#Headers],0),FALSE) -> 0 | AM33: =ProjectData[[#This Row],[Actuals 20/21]]*VLOOKUP("Mid Year Nominal - EOY Real (2026/27)",CPI[],MATCH(AM$4,CPI[#Headers],0),FALSE) -> 0 | AN33: =ProjectData[[#This Row],[Actuals 21/22]]*VLOOKUP("Mid Year Nominal - EOY Real (2026/27)",CPI[],MATCH(AN$4,CPI[#Headers],0),FALSE) -> 0 | AO33: =ProjectData[[#This Row],[Actuals 22/23]]*VLOOKUP("Mid Year Nominal - EOY Real (2026/27)",CPI[],MATCH(AO$4,CPI[#Headers],0),FALSE) -> 0 | AP33: =ProjectData[[#This Row],[Actuals 23/24]]*VLOOKUP("Mid Year Nominal - EOY Real (2026/27)",CPI[],MATCH(AP$4,CPI[#Headers],0),FALSE) -> 0 | AQ33: =ProjectData[[#This Row],[Actual 24/25]]*VLOOKUP("Mid Year Nominal - EOY Real (2026/27)",CPI[],MATCH(AQ$4,CPI[#Headers],0),FALSE) -> 0 | AR33: =ProjectData[[#This Row],[Forecast 25/26]]*VLOOKUP("Mid Year Nominal - EOY Real (2026/27)",CPI[],MATCH(AR$4,CPI[#Headers],0),FALSE) -> 0 | AS33: =ProjectData[[#This Row],[Forecast 26/27]]*VLOOKUP("Mid Year Nominal - EOY Real (2026/27)",CPI[],MATCH(AS$4,CPI[#Headers],0),FALSE) -> 0 | AT33: =SUM(ProjectData[[#This Row],[Real 08]:[Real 27]]) -> 0 | AU33: =(ProjectData[[#This Row],[Real Sum]]-VLOOKUP(ProjectData[[#This Row],[Category]],Category_AverageStdDevLimit[],MATCH("Average",Category_AverageStdDevLimit[#Headers],0),FALSE))^2 -> 4.482485466 | AV33: =VLOOKUP(ProjectData[[#This Row],[Category]],Category_AverageStdDevLimit[],MATCH("Limit",Category_AverageStdDevLimit[#Headers],0),FALSE) -> 10.66631335 | AW33: =ProjectData[[#This Row],[Real Sum]]>ProjectData[[#This Row],[Category Limit]] -> FALSE | AY33: =OR(ProjectData[[#This Row],[Significant Project? (Financial Basis)]],ProjectData[[#This Row],[Non repeatable]]) -> FALSE | AZ33: =AND(ProjectData[[#This Row],[SomeExpenditure >= 2016]],ProjectData[[#This Row],[Abnormal?]]) -> FALSE
A34: CP.00756 | B34: REPLACED BY CX - Murarrie 110kV Capacitor Bank Nos | C34: Other | D34: 0 | E34: 0 | F34: 0 | G34: 0 | H34: 0 | I34: 0 | J34: 0 | K34: 0 | L34: 0 | M34: 0 | N34: 0 | O34: 0 | P34: 0 | Q34: 0 | R34: 0 | S34: 0 | T34: 0 | U34: 0 | V34: 0 | W34: 0 | X34: =ProjectData[[#This Row],[Real Sum]]>0.0001 -> FALSE | Y34: =OR(ProjectData[[#This Row],[Real 16]]>0,ProjectData[[#This Row],[Real 17]]>0,ProjectData[[#This Row],[Real 18]]>0,ProjectData[[#This Row],[Real 19]]>0,ProjectData[[#This Row],[Real 20]]>0) -> FALSE | Z34: =ProjectData[[#This Row],[Actuals 07/08]]*VLOOKUP("Mid Year Nominal - EOY Real (2026/27)",CPI[],MATCH(Z$4,CPI[#Headers],0),FALSE) -> 0 | AA34: =ProjectData[[#This Row],[Actuals 08/09]]*VLOOKUP("Mid Year Nominal - EOY Real (2026/27)",CPI[],MATCH(AA$4,CPI[#Headers],0),FALSE) -> 0 | AB34: =ProjectData[[#This Row],[Actuals 09/10]]*VLOOKUP("Mid Year Nominal - EOY Real (2026/27)",CPI[],MATCH(AB$4,CPI[#Headers],0),FALSE) -> 0 | AC34: =ProjectData[[#This Row],[Actuals 10/11]]*VLOOKUP("Mid Year Nominal - EOY Real (2026/27)",CPI[],MATCH(AC$4,CPI[#Headers],0),FALSE) -> 0 | AD34: =ProjectData[[#This Row],[Actuals 11/12]]*VLOOKUP("Mid Year Nominal - EOY Real (2026/27)",CPI[],MATCH(AD$4,CPI[#Headers],0),FALSE) -> 0 | AE34: =ProjectData[[#This Row],[Actuals 12/13]]*VLOOKUP("Mid Year Nominal - EOY Real (2026/27)",CPI[],MATCH(AE$4,CPI[#Headers],0),FALSE) -> 0 | AF34: =ProjectData[[#This Row],[Actuals 13/14]]*VLOOKUP("Mid Year Nominal - EOY Real (2026/27)",CPI[],MATCH(AF$4,CPI[#Headers],0),FALSE) -> 0 | AG34: =ProjectData[[#This Row],[Actuals 14/15]]*VLOOKUP("Mid Year Nominal - EOY Real (2026/27)",CPI[],MATCH(AG$4,CPI[#Headers],0),FALSE) -> 0 | AH34: =ProjectData[[#This Row],[Actuals 15/16]]*VLOOKUP("Mid Year Nominal - EOY Real (2026/27)",CPI[],MATCH(AH$4,CPI[#Headers],0),FALSE) -> 0 | AI34: =ProjectData[[#This Row],[Actuals 16/17]]*VLOOKUP("Mid Year Nominal - EOY Real (2026/27)",CPI[],MATCH(AI$4,CPI[#Headers],0),FALSE) -> 0 | AJ34: =ProjectData[[#This Row],[Actuals 17/18]]*VLOOKUP("Mid Year Nominal - EOY Real (2026/27)",CPI[],MATCH(AJ$4,CPI[#Headers],0),FALSE) -> 0 | AK34: =ProjectData[[#This Row],[Actuals 18/19]]*VLOOKUP("Mid Year Nominal - EOY Real (2026/27)",CPI[],MATCH(AK$4,CPI[#Headers],0),FALSE) -> 0 | AL34: =ProjectData[[#This Row],[Actuals 19/20]]*VLOOKUP("Mid Year Nominal - EOY Real (2026/27)",CPI[],MATCH(AL$4,CPI[#Headers],0),FALSE) -> 0 | AM34: =ProjectData[[#This Row],[Actuals 20/21]]*VLOOKUP("Mid Year Nominal - EOY Real (2026/27)",CPI[],MATCH(AM$4,CPI[#Headers],0),FALSE) -> 0 | AN34: =ProjectData[[#This Row],[Actuals 21/22]]*VLOOKUP("Mid Year Nominal - EOY Real (2026/27)",CPI[],MATCH(AN$4,CPI[#Headers],0),FALSE) -> 0 | AO34: =ProjectData[[#This Row],[Actuals 22/23]]*VLOOKUP("Mid Year Nominal - EOY Real (2026/27)",CPI[],MATCH(AO$4,CPI[#Headers],0),FALSE) -> 0 | AP34: =ProjectData[[#This Row],[Actuals 23/24]]*VLOOKUP("Mid Year Nominal - EOY Real (2026/27)",CPI[],MATCH(AP$4,CPI[#Headers],0),FALSE) -> 0 | AQ34: =ProjectData[[#This Row],[Actual 24/25]]*VLOOKUP("Mid Year Nominal - EOY Real (2026/27)",CPI[],MATCH(AQ$4,CPI[#Headers],0),FALSE) -> 0 | AR34: =ProjectData[[#This Row],[Forecast 25/26]]*VLOOKUP("Mid Year Nominal - EOY Real (2026/27)",CPI[],MATCH(AR$4,CPI[#Headers],0),FALSE) -> 0 | AS34: =ProjectData[[#This Row],[Forecast 26/27]]*VLOOKUP("Mid Year Nominal - EOY Real (2026/27)",CPI[],MATCH(AS$4,CPI[#Headers],0),FALSE) -> 0 | AT34: =SUM(ProjectData[[#This Row],[Real 08]:[Real 27]]) -> 0 | AU34: =(ProjectData[[#This Row],[Real Sum]]-VLOOKUP(ProjectData[[#This Row],[Category]],Category_AverageStdDevLimit[],MATCH("Average",Category_AverageStdDevLimit[#Headers],0),FALSE))^2 -> 4.482485466 | AV34: =VLOOKUP(ProjectData[[#This Row],[Category]],Category_AverageStdDevLimit[],MATCH("Limit",Category_AverageStdDevLimit[#Headers],0),FALSE) -> 10.66631335 | AW34: =ProjectData[[#This Row],[Real Sum]]>ProjectData[[#This Row],[Category Limit]] -> FALSE | AY34: =OR(ProjectData[[#This Row],[Significant Project? (Financial Basis)]],ProjectData[[#This Row],[Non repeatable]]) -> FALSE | AZ34: =AND(ProjectData[[#This Row],[SomeExpenditure >= 2016]],ProjectData[[#This Row],[Abnormal?]]) -> FALSE
A35: CP.00762 | B35: REPLACED BY CX - Darling Downs Transmission Reinfo | C35: Other | D35: 0 | E35: 0 | F35: 0 | G35: 0 | H35: 0 | I35: 0 | J35: 0 | K35: 0 | L35: 0 | M35: 0 | N35: 0 | O35: 0 | P35: 0 | Q35: 0 | R35: 0 | S35: 0 | T35: 0 | U35: 0 | V35: 0 | W35: 0 | X35: =ProjectData[[#This Row],[Real Sum]]>0.0001 -> FALSE | Y35: =OR(ProjectData[[#This Row],[Real 16]]>0,ProjectData[[#This Row],[Real 17]]>0,ProjectData[[#This Row],[Real 18]]>0,ProjectData[[#This Row],[Real 19]]>0,ProjectData[[#This Row],[Real 20]]>0) -> FALSE | Z35: =ProjectData[[#This Row],[Actuals 07/08]]*VLOOKUP("Mid Year Nominal - EOY Real (2026/27)",CPI[],MATCH(Z$4,CPI[#Headers],0),FALSE) -> 0 | AA35: =ProjectData[[#This Row],[Actuals 08/09]]*VLOOKUP("Mid Year Nominal - EOY Real (2026/27)",CPI[],MATCH(AA$4,CPI[#Headers],0),FALSE) -> 0 | AB35: =ProjectData[[#This Row],[Actuals 09/10]]*VLOOKUP("Mid Year Nominal - EOY Real (2026/27)",CPI[],MATCH(AB$4,CPI[#Headers],0),FALSE) -> 0 | AC35: =ProjectData[[#This Row],[Actuals 10/11]]*VLOOKUP("Mid Year Nominal - EOY Real (2026/27)",CPI[],MATCH(AC$4,CPI[#Headers],0),FALSE) -> 0 | AD35: =ProjectData[[#This Row],[Actuals 11/12]]*VLOOKUP("Mid Year Nominal - EOY Real (2026/27)",CPI[],MATCH(AD$4,CPI[#Headers],0),FALSE) -> 0 | AE35: =ProjectData[[#This Row],[Actuals 12/13]]*VLOOKUP("Mid Year Nominal - EOY Real (2026/27)",CPI[],MATCH(AE$4,CPI[#Headers],0),FALSE) -> 0 | AF35: =ProjectData[[#This Row],[Actuals 13/14]]*VLOOKUP("Mid Year Nominal - EOY Real (2026/27)",CPI[],MATCH(AF$4,CPI[#Headers],0),FALSE) -> 0 | AG35: =ProjectData[[#This Row],[Actuals 14/15]]*VLOOKUP("Mid Year Nominal - EOY Real (2026/27)",CPI[],MATCH(AG$4,CPI[#Headers],0),FALSE) -> 0 | AH35: =ProjectData[[#This Row],[Actuals 15/16]]*VLOOKUP("Mid Year Nominal - EOY Real (2026/27)",CPI[],MATCH(AH$4,CPI[#Headers],0),FALSE) -> 0 | AI35: =ProjectData[[#This Row],[Actuals 16/17]]*VLOOKUP("Mid Year Nominal - EOY Real (2026/27)",CPI[],MATCH(AI$4,CPI[#Headers],0),FALSE) -> 0 | AJ35: =ProjectData[[#This Row],[Actuals 17/18]]*VLOOKUP("Mid Year Nominal - EOY Real (2026/27)",CPI[],MATCH(AJ$4,CPI[#Headers],0),FALSE) -> 0 | AK35: =ProjectData[[#This Row],[Actuals 18/19]]*VLOOKUP("Mid Year Nominal - EOY Real (2026/27)",CPI[],MATCH(AK$4,CPI[#Headers],0),FALSE) -> 0 | AL35: =ProjectData[[#This Row],[Actuals 19/20]]*VLOOKUP("Mid Year Nominal - EOY Real (2026/27)",CPI[],MATCH(AL$4,CPI[#Headers],0),FALSE) -> 0 | AM35: =ProjectData[[#This Row],[Actuals 20/21]]*VLOOKUP("Mid Year Nominal - EOY Real (2026/27)",CPI[],MATCH(AM$4,CPI[#Headers],0),FALSE) -> 0 | AN35: =ProjectData[[#This Row],[Actuals 21/22]]*VLOOKUP("Mid Year Nominal - EOY Real (2026/27)",CPI[],MATCH(AN$4,CPI[#Headers],0),FALSE) -> 0 | AO35: =ProjectData[[#This Row],[Actuals 22/23]]*VLOOKUP("Mid Year Nominal - EOY Real (2026/27)",CPI[],MATCH(AO$4,CPI[#Headers],0),FALSE) -> 0 | AP35: =ProjectData[[#This Row],[Actuals 23/24]]*VLOOKUP("Mid Year Nominal - EOY Real (2026/27)",CPI[],MATCH(AP$4,CPI[#Headers],0),FALSE) -> 0 | AQ35: =ProjectData[[#This Row],[Actual 24/25]]*VLOOKUP("Mid Year Nominal - EOY Real (2026/27)",CPI[],MATCH(AQ$4,CPI[#Headers],0),FALSE) -> 0 | AR35: =ProjectData[[#This Row],[Forecast 25/26]]*VLOOKUP("Mid Year Nominal - EOY Real (2026/27)",CPI[],MATCH(AR$4,CPI[#Headers],0),FALSE) -> 0 | AS35: =ProjectData[[#This Row],[Forecast 26/27]]*VLOOKUP("Mid Year Nominal - EOY Real (2026/27)",CPI[],MATCH(AS$4,CPI[#Headers],0),FALSE) -> 0 | AT35: =SUM(ProjectData[[#This Row],[Real 08]:[Real 27]]) -> 0 | AU35: =(ProjectData[[#This Row],[Real Sum]]-VLOOKUP(ProjectData[[#This Row],[Category]],Category_AverageStdDevLimit[],MATCH("Average",Category_AverageStdDevLimit[#Headers],0),FALSE))^2 -> 4.482485466 | AV35: =VLOOKUP(ProjectData[[#This Row],[Category]],Category_AverageStdDevLimit[],MATCH("Limit",Category_AverageStdDevLimit[#Headers],0),FALSE) -> 10.66631335 | AW35: =ProjectData[[#This Row],[Real Sum]]>ProjectData[[#This Row],[Category Limit]] -> FALSE | AY35: =OR(ProjectData[[#This Row],[Significant Project? (Financial Basis)]],ProjectData[[#This Row],[Non repeatable]]) -> FALSE | AZ35: =AND(ProjectData[[#This Row],[SomeExpenditure >= 2016]],ProjectData[[#This Row],[Abnormal?]]) -> FALSE
A36: CP.00771 | B36: REPLACED BY CX - Belmont 275kV Line Reinforcement | C36: Other | D36: 0 | E36: 0 | F36: 0 | G36: 0 | H36: 0 | I36: 0 | J36: 0 | K36: 0 | L36: 0 | M36: 0 | N36: 0 | O36: 0 | P36: 0 | Q36: 0 | R36: 0 | S36: 0 | T36: 0 | U36: 0 | V36: 0 | W36: 0 | X36: =ProjectData[[#This Row],[Real Sum]]>0.0001 -> FALSE | Y36: =OR(ProjectData[[#This Row],[Real 16]]>0,ProjectData[[#This Row],[Real 17]]>0,ProjectData[[#This Row],[Real 18]]>0,ProjectData[[#This Row],[Real 19]]>0,ProjectData[[#This Row],[Real 20]]>0) -> FALSE | Z36: =ProjectData[[#This Row],[Actuals 07/08]]*VLOOKUP("Mid Year Nominal - EOY Real (2026/27)",CPI[],MATCH(Z$4,CPI[#Headers],0),FALSE) -> 0 | AA36: =ProjectData[[#This Row],[Actuals 08/09]]*VLOOKUP("Mid Year Nominal - EOY Real (2026/27)",CPI[],MATCH(AA$4,CPI[#Headers],0),FALSE) -> 0 | AB36: =ProjectData[[#This Row],[Actuals 09/10]]*VLOOKUP("Mid Year Nominal - EOY Real (2026/27)",CPI[],MATCH(AB$4,CPI[#Headers],0),FALSE) -> 0 | AC36: =ProjectData[[#This Row],[Actuals 10/11]]*VLOOKUP("Mid Year Nominal - EOY Real (2026/27)",CPI[],MATCH(AC$4,CPI[#Headers],0),FALSE) -> 0 | AD36: =ProjectData[[#This Row],[Actuals 11/12]]*VLOOKUP("Mid Year Nominal - EOY Real (2026/27)",CPI[],MATCH(AD$4,CPI[#Headers],0),FALSE) -> 0 | AE36: =ProjectData[[#This Row],[Actuals 12/13]]*VLOOKUP("Mid Year Nominal - EOY Real (2026/27)",CPI[],MATCH(AE$4,CPI[#Headers],0),FALSE) -> 0 | AF36: =ProjectData[[#This Row],[Actuals 13/14]]*VLOOKUP("Mid Year Nominal - EOY Real (2026/27)",CPI[],MATCH(AF$4,CPI[#Headers],0),FALSE) -> 0 | AG36: =ProjectData[[#This Row],[Actuals 14/15]]*VLOOKUP("Mid Year Nominal - EOY Real (2026/27)",CPI[],MATCH(AG$4,CPI[#Headers],0),FALSE) -> 0 | AH36: =ProjectData[[#This Row],[Actuals 15/16]]*VLOOKUP("Mid Year Nominal - EOY Real (2026/27)",CPI[],MATCH(AH$4,CPI[#Headers],0),FALSE) -> 0 | AI36: =ProjectData[[#This Row],[Actuals 16/17]]*VLOOKUP("Mid Year Nominal - EOY Real (2026/27)",CPI[],MATCH(AI$4,CPI[#Headers],0),FALSE) -> 0 | AJ36: =ProjectData[[#This Row],[Actuals 17/18]]*VLOOKUP("Mid Year Nominal - EOY Real (2026/27)",CPI[],MATCH(AJ$4,CPI[#Headers],0),FALSE) -> 0 | AK36: =ProjectData[[#This Row],[Actuals 18/19]]*VLOOKUP("Mid Year Nominal - EOY Real (2026/27)",CPI[],MATCH(AK$4,CPI[#Headers],0),FALSE) -> 0 | AL36: =ProjectData[[#This Row],[Actuals 19/20]]*VLOOKUP("Mid Year Nominal - EOY Real (2026/27)",CPI[],MATCH(AL$4,CPI[#Headers],0),FALSE) -> 0 | AM36: =ProjectData[[#This Row],[Actuals 20/21]]*VLOOKUP("Mid Year Nominal - EOY Real (2026/27)",CPI[],MATCH(AM$4,CPI[#Headers],0),FALSE) -> 0 | AN36: =ProjectData[[#This Row],[Actuals 21/22]]*VLOOKUP("Mid Year Nominal - EOY Real (2026/27)",CPI[],MATCH(AN$4,CPI[#Headers],0),FALSE) -> 0 | AO36: =ProjectData[[#This Row],[Actuals 22/23]]*VLOOKUP("Mid Year Nominal - EOY Real (2026/27)",CPI[],MATCH(AO$4,CPI[#Headers],0),FALSE) -> 0 | AP36: =ProjectData[[#This Row],[Actuals 23/24]]*VLOOKUP("Mid Year Nominal - EOY Real (2026/27)",CPI[],MATCH(AP$4,CPI[#Headers],0),FALSE) -> 0 | AQ36: =ProjectData[[#This Row],[Actual 24/25]]*VLOOKUP("Mid Year Nominal - EOY Real (2026/27)",CPI[],MATCH(AQ$4,CPI[#Headers],0),FALSE) -> 0 | AR36: =ProjectData[[#This Row],[Forecast 25/26]]*VLOOKUP("Mid Year Nominal - EOY Real (2026/27)",CPI[],MATCH(AR$4,CPI[#Headers],0),FALSE) -> 0 | AS36: =ProjectData[[#This Row],[Forecast 26/27]]*VLOOKUP("Mid Year Nominal - EOY Real (2026/27)",CPI[],MATCH(AS$4,CPI[#Headers],0),FALSE) -> 0 | AT36: =SUM(ProjectData[[#This Row],[Real 08]:[Real 27]]) -> 0 | AU36: =(ProjectData[[#This Row],[Real Sum]]-VLOOKUP(ProjectData[[#This Row],[Category]],Category_AverageStdDevLimit[],MATCH("Average",Category_AverageStdDevLimit[#Headers],0),FALSE))^2 -> 4.482485466 | AV36: =VLOOKUP(ProjectData[[#This Row],[Category]],Category_AverageStdDevLimit[],MATCH("Limit",Category_AverageStdDevLimit[#Headers],0),FALSE) -> 10.66631335 | AW36: =ProjectData[[#This Row],[Real Sum]]>ProjectData[[#This Row],[Category Limit]] -> FALSE | AY36: =OR(ProjectData[[#This Row],[Significant Project? (Financial Basis)]],ProjectData[[#This Row],[Non repeatable]]) -> FALSE | AZ36: =AND(ProjectData[[#This Row],[SomeExpenditure >= 2016]],ProjectData[[#This Row],[Abnormal?]]) -> FALSE
A37: CP.00790 | B37: PIONEER VALLEY TRANSF REINF | C37: Other | D37: 0 | E37: 0 | F37: 0 | G37: 0 | H37: 0 | I37: 0 | J37: 0 | K37: 0 | L37: 0 | M37: 0 | N37: 0 | O37: 0 | P37: 0 | Q37: 0 | R37: 0 | S37: 0 | T37: 0 | U37: 0 | V37: 0 | W37: 0 | X37: =ProjectData[[#This Row],[Real Sum]]>0.0001 -> FALSE | Y37: =OR(ProjectData[[#This Row],[Real 16]]>0,ProjectData[[#This Row],[Real 17]]>0,ProjectData[[#This Row],[Real 18]]>0,ProjectData[[#This Row],[Real 19]]>0,ProjectData[[#This Row],[Real 20]]>0) -> FALSE | Z37: =ProjectData[[#This Row],[Actuals 07/08]]*VLOOKUP("Mid Year Nominal - EOY Real (2026/27)",CPI[],MATCH(Z$4,CPI[#Headers],0),FALSE) -> 0 | AA37: =ProjectData[[#This Row],[Actuals 08/09]]*VLOOKUP("Mid Year Nominal - EOY Real (2026/27)",CPI[],MATCH(AA$4,CPI[#Headers],0),FALSE) -> 0 | AB37: =ProjectData[[#This Row],[Actuals 09/10]]*VLOOKUP("Mid Year Nominal - EOY Real (2026/27)",CPI[],MATCH(AB$4,CPI[#Headers],0),FALSE) -> 0 | AC37: =ProjectData[[#This Row],[Actuals 10/11]]*VLOOKUP("Mid Year Nominal - EOY Real (2026/27)",CPI[],MATCH(AC$4,CPI[#Headers],0),FALSE) -> 0 | AD37: =ProjectData[[#This Row],[Actuals 11/12]]*VLOOKUP("Mid Year Nominal - EOY Real (2026/27)",CPI[],MATCH(AD$4,CPI[#Headers],0),FALSE) -> 0 | AE37: =ProjectData[[#This Row],[Actuals 12/13]]*VLOOKUP("Mid Year Nominal - EOY Real (2026/27)",CPI[],MATCH(AE$4,CPI[#Headers],0),FALSE) -> 0 | AF37: =ProjectData[[#This Row],[Actuals 13/14]]*VLOOKUP("Mid Year Nominal - EOY Real (2026/27)",CPI[],MATCH(AF$4,CPI[#Headers],0),FALSE) -> 0 | AG37: =ProjectData[[#This Row],[Actuals 14/15]]*VLOOKUP("Mid Year Nominal - EOY Real (2026/27)",CPI[],MATCH(AG$4,CPI[#Headers],0),FALSE) -> 0 | AH37: =ProjectData[[#This Row],[Actuals 15/16]]*VLOOKUP("Mid Year Nominal - EOY Real (2026/27)",CPI[],MATCH(AH$4,CPI[#Headers],0),FALSE) -> 0 | AI37: =ProjectData[[#This Row],[Actuals 16/17]]*VLOOKUP("Mid Year Nominal - EOY Real (2026/27)",CPI[],MATCH(AI$4,CPI[#Headers],0),FALSE) -> 0 | AJ37: =ProjectData[[#This Row],[Actuals 17/18]]*VLOOKUP("Mid Year Nominal - EOY Real (2026/27)",CPI[],MATCH(AJ$4,CPI[#Headers],0),FALSE) -> 0 | AK37: =ProjectData[[#This Row],[Actuals 18/19]]*VLOOKUP("Mid Year Nominal - EOY Real (2026/27)",CPI[],MATCH(AK$4,CPI[#Headers],0),FALSE) -> 0 | AL37: =ProjectData[[#This Row],[Actuals 19/20]]*VLOOKUP("Mid Year Nominal - EOY Real (2026/27)",CPI[],MATCH(AL$4,CPI[#Headers],0),FALSE) -> 0 | AM37: =ProjectData[[#This Row],[Actuals 20/21]]*VLOOKUP("Mid Year Nominal - EOY Real (2026/27)",CPI[],MATCH(AM$4,CPI[#Headers],0),FALSE) -> 0 | AN37: =ProjectData[[#This Row],[Actuals 21/22]]*VLOOKUP("Mid Year Nominal - EOY Real (2026/27)",CPI[],MATCH(AN$4,CPI[#Headers],0),FALSE) -> 0 | AO37: =ProjectData[[#This Row],[Actuals 22/23]]*VLOOKUP("Mid Year Nominal - EOY Real (2026/27)",CPI[],MATCH(AO$4,CPI[#Headers],0),FALSE) -> 0 | AP37: =ProjectData[[#This Row],[Actuals 23/24]]*VLOOKUP("Mid Year Nominal - EOY Real (2026/27)",CPI[],MATCH(AP$4,CPI[#Headers],0),FALSE) -> 0 | AQ37: =ProjectData[[#This Row],[Actual 24/25]]*VLOOKUP("Mid Year Nominal - EOY Real (2026/27)",CPI[],MATCH(AQ$4,CPI[#Headers],0),FALSE) -> 0 | AR37: =ProjectData[[#This Row],[Forecast 25/26]]*VLOOKUP("Mid Year Nominal - EOY Real (2026/27)",CPI[],MATCH(AR$4,CPI[#Headers],0),FALSE) -> 0 | AS37: =ProjectData[[#This Row],[Forecast 26/27]]*VLOOKUP("Mid Year Nominal - EOY Real (2026/27)",CPI[],MATCH(AS$4,CPI[#Headers],0),FALSE) -> 0 | AT37: =SUM(ProjectData[[#This Row],[Real 08]:[Real 27]]) -> 0 | AU37: =(ProjectData[[#This Row],[Real Sum]]-VLOOKUP(ProjectData[[#This Row],[Category]],Category_AverageStdDevLimit[],MATCH("Average",Category_AverageStdDevLimit[#Headers],0),FALSE))^2 -> 4.482485466 | AV37: =VLOOKUP(ProjectData[[#This Row],[Category]],Category_AverageStdDevLimit[],MATCH("Limit",Category_AverageStdDevLimit[#Headers],0),FALSE) -> 10.66631335 | AW37: =ProjectData[[#This Row],[Real Sum]]>ProjectData[[#This Row],[Category Limit]] -> FALSE | AY37: =OR(ProjectData[[#This Row],[Significant Project? (Financial Basis)]],ProjectData[[#This Row],[Non repeatable]]) -> FALSE | AZ37: =AND(ProjectData[[#This Row],[SomeExpenditure >= 2016]],ProjectData[[#This Row],[Abnormal?]]) -> FALSE
A38: CP.00791 | B38: REPLACED BY CX - MACKAY TRANSFORMER REINFORCE | C38: Other | D38: 0 | E38: 0 | F38: 0 | G38: 0 | H38: 0 | I38: 0 | J38: 0 | K38: 0 | L38: -1e-08 | M38: 0 | N38: 0 | O38: 0 | P38: 0 | Q38: 0 | R38: 0 | S38: 0 | T38: 0 | U38: 0 | V38: 0 | W38: 0 | X38: =ProjectData[[#This Row],[Real Sum]]>0.0001 -> FALSE | Y38: =OR(ProjectData[[#This Row],[Real 16]]>0,ProjectData[[#This Row],[Real 17]]>0,ProjectData[[#This Row],[Real 18]]>0,ProjectData[[#This Row],[Real 19]]>0,ProjectData[[#This Row],[Real 20]]>0) -> FALSE | Z38: =ProjectData[[#This Row],[Actuals 07/08]]*VLOOKUP("Mid Year Nominal - EOY Real (2026/27)",CPI[],MATCH(Z$4,CPI[#Headers],0),FALSE) -> 0 | AA38: =ProjectData[[#This Row],[Actuals 08/09]]*VLOOKUP("Mid Year Nominal - EOY Real (2026/27)",CPI[],MATCH(AA$4,CPI[#Headers],0),FALSE) -> 0 | AB38: =ProjectData[[#This Row],[Actuals 09/10]]*VLOOKUP("Mid Year Nominal - EOY Real (2026/27)",CPI[],MATCH(AB$4,CPI[#Headers],0),FALSE) -> 0 | AC38: =ProjectData[[#This Row],[Actuals 10/11]]*VLOOKUP("Mid Year Nominal - EOY Real (2026/27)",CPI[],MATCH(AC$4,CPI[#Headers],0),FALSE) -> 0 | AD38: =ProjectData[[#This Row],[Actuals 11/12]]*VLOOKUP("Mid Year Nominal - EOY Real (2026/27)",CPI[],MATCH(AD$4,CPI[#Headers],0),FALSE) -> 0 | AE38: =ProjectData[[#This Row],[Actuals 12/13]]*VLOOKUP("Mid Year Nominal - EOY Real (2026/27)",CPI[],MATCH(AE$4,CPI[#Headers],0),FALSE) -> 0 | AF38: =ProjectData[[#This Row],[Actuals 13/14]]*VLOOKUP("Mid Year Nominal - EOY Real (2026/27)",CPI[],MATCH(AF$4,CPI[#Headers],0),FALSE) -> 0 | AG38: =ProjectData[[#This Row],[Actuals 14/15]]*VLOOKUP("Mid Year Nominal - EOY Real (2026/27)",CPI[],MATCH(AG$4,CPI[#Headers],0),FALSE) -> 0 | AH38: =ProjectData[[#This Row],[Actuals 15/16]]*VLOOKUP("Mid Year Nominal - EOY Real (2026/27)",CPI[],MATCH(AH$4,CPI[#Headers],0),FALSE) -> -1.366898017e-08 | AI38: =ProjectData[[#This Row],[Actuals 16/17]]*VLOOKUP("Mid Year Nominal - EOY Real (2026/27)",CPI[],MATCH(AI$4,CPI[#Headers],0),FALSE) -> 0 | AJ38: =ProjectData[[#This Row],[Actuals 17/18]]*VLOOKUP("Mid Year Nominal - EOY Real (2026/27)",CPI[],MATCH(AJ$4,CPI[#Headers],0),FALSE) -> 0 | AK38: =ProjectData[[#This Row],[Actuals 18/19]]*VLOOKUP("Mid Year Nominal - EOY Real (2026/27)",CPI[],MATCH(AK$4,CPI[#Headers],0),FALSE) -> 0 | AL38: =ProjectData[[#This Row],[Actuals 19/20]]*VLOOKUP("Mid Year Nominal - EOY Real (2026/27)",CPI[],MATCH(AL$4,CPI[#Headers],0),FALSE) -> 0 | AM38: =ProjectData[[#This Row],[Actuals 20/21]]*VLOOKUP("Mid Year Nominal - EOY Real (2026/27)",CPI[],MATCH(AM$4,CPI[#Headers],0),FALSE) -> 0 | AN38: =ProjectData[[#This Row],[Actuals 21/22]]*VLOOKUP("Mid Year Nominal - EOY Real (2026/27)",CPI[],MATCH(AN$4,CPI[#Headers],0),FALSE) -> 0 | AO38: =ProjectData[[#This Row],[Actuals 22/23]]*VLOOKUP("Mid Year Nominal - EOY Real (2026/27)",CPI[],MATCH(AO$4,CPI[#Headers],0),FALSE) -> 0 | AP38: =ProjectData[[#This Row],[Actuals 23/24]]*VLOOKUP("Mid Year Nominal - EOY Real (2026/27)",CPI[],MATCH(AP$4,CPI[#Headers],0),FALSE) -> 0 | AQ38: =ProjectData[[#This Row],[Actual 24/25]]*VLOOKUP("Mid Year Nominal - EOY Real (2026/27)",CPI[],MATCH(AQ$4,CPI[#Headers],0),FALSE) -> 0 | AR38: =ProjectData[[#This Row],[Forecast 25/26]]*VLOOKUP("Mid Year Nominal - EOY Real (2026/27)",CPI[],MATCH(AR$4,CPI[#Headers],0),FALSE) -> 0 | AS38: =ProjectData[[#This Row],[Forecast 26/27]]*VLOOKUP("Mid Year Nominal - EOY Real (2026/27)",CPI[],MATCH(AS$4,CPI[#Headers],0),FALSE) -> 0 | AT38: =SUM(ProjectData[[#This Row],[Real 08]:[Real 27]]) -> -1.366898017e-08 | AU38: =(ProjectData[[#This Row],[Real Sum]]-VLOOKUP(ProjectData[[#This Row],[Category]],Category_AverageStdDevLimit[],MATCH("Average",Category_AverageStdDevLimit[#Headers],0),FALSE))^2 -> 4.482485524 | AV38: =VLOOKUP(ProjectData[[#This Row],[Category]],Category_AverageStdDevLimit[],MATCH("Limit",Category_AverageStdDevLimit[#Headers],0),FALSE) -> 10.66631335 | AW38: =ProjectData[[#This Row],[Real Sum]]>ProjectData[[#This Row],[Category Limit]] -> FALSE | AY38: =OR(ProjectData[[#This Row],[Significant Project? (Financial Basis)]],ProjectData[[#This Row],[Non repeatable]]) -> FALSE | AZ38: =AND(ProjectData[[#This Row],[SomeExpenditure >= 2016]],ProjectData[[#This Row],[Abnormal?]]) -> FALSE
A39: CP.00799 | B39: REPLACED BY CX - UPPER KEDRON ESTABLISHMENT | C39: Other | D39: 0 | E39: 0 | F39: 0 | G39: 0 | H39: 0 | I39: 0 | J39: 0 | K39: 0 | L39: 0 | M39: 0 | N39: 0 | O39: 0 | P39: 0 | Q39: 0 | R39: 0 | S39: 0 | T39: 0 | U39: 0 | V39: 0 | W39: 0 | X39: =ProjectData[[#This Row],[Real Sum]]>0.0001 -> FALSE | Y39: =OR(ProjectData[[#This Row],[Real 16]]>0,ProjectData[[#This Row],[Real 17]]>0,ProjectData[[#This Row],[Real 18]]>0,ProjectData[[#This Row],[Real 19]]>0,ProjectData[[#This Row],[Real 20]]>0) -> FALSE | Z39: =ProjectData[[#This Row],[Actuals 07/08]]*VLOOKUP("Mid Year Nominal - EOY Real (2026/27)",CPI[],MATCH(Z$4,CPI[#Headers],0),FALSE) -> 0 | AA39: =ProjectData[[#This Row],[Actuals 08/09]]*VLOOKUP("Mid Year Nominal - EOY Real (2026/27)",CPI[],MATCH(AA$4,CPI[#Headers],0),FALSE) -> 0 | AB39: =ProjectData[[#This Row],[Actuals 09/10]]*VLOOKUP("Mid Year Nominal - EOY Real (2026/27)",CPI[],MATCH(AB$4,CPI[#Headers],0),FALSE) -> 0 | AC39: =ProjectData[[#This Row],[Actuals 10/11]]*VLOOKUP("Mid Year Nominal - EOY Real (2026/27)",CPI[],MATCH(AC$4,CPI[#Headers],0),FALSE) -> 0 | AD39: =ProjectData[[#This Row],[Actuals 11/12]]*VLOOKUP("Mid Year Nominal - EOY Real (2026/27)",CPI[],MATCH(AD$4,CPI[#Headers],0),FALSE) -> 0 | AE39: =ProjectData[[#This Row],[Actuals 12/13]]*VLOOKUP("Mid Year Nominal - EOY Real (2026/27)",CPI[],MATCH(AE$4,CPI[#Headers],0),FALSE) -> 0 | AF39: =ProjectData[[#This Row],[Actuals 13/14]]*VLOOKUP("Mid Year Nominal - EOY Real (2026/27)",CPI[],MATCH(AF$4,CPI[#Headers],0),FALSE) -> 0 | AG39: =ProjectData[[#This Row],[Actuals 14/15]]*VLOOKUP("Mid Year Nominal - EOY Real (2026/27)",CPI[],MATCH(AG$4,CPI[#Headers],0),FALSE) -> 0 | AH39: =ProjectData[[#This Row],[Actuals 15/16]]*VLOOKUP("Mid Year Nominal - EOY Real (2026/27)",CPI[],MATCH(AH$4,CPI[#Headers],0),FALSE) -> 0 | AI39: =ProjectData[[#This Row],[Actuals 16/17]]*VLOOKUP("Mid Year Nominal - EOY Real (2026/27)",CPI[],MATCH(AI$4,CPI[#Headers],0),FALSE) -> 0 | AJ39: =ProjectData[[#This Row],[Actuals 17/18]]*VLOOKUP("Mid Year Nominal - EOY Real (2026/27)",CPI[],MATCH(AJ$4,CPI[#Headers],0),FALSE) -> 0 | AK39: =ProjectData[[#This Row],[Actuals 18/19]]*VLOOKUP("Mid Year Nominal - EOY Real (2026/27)",CPI[],MATCH(AK$4,CPI[#Headers],0),FALSE) -> 0 | AL39: =ProjectData[[#This Row],[Actuals 19/20]]*VLOOKUP("Mid Year Nominal - EOY Real (2026/27)",CPI[],MATCH(AL$4,CPI[#Headers],0),FALSE) -> 0 | AM39: =ProjectData[[#This Row],[Actuals 20/21]]*VLOOKUP("Mid Year Nominal - EOY Real (2026/27)",CPI[],MATCH(AM$4,CPI[#Headers],0),FALSE) -> 0 | AN39: =ProjectData[[#This Row],[Actuals 21/22]]*VLOOKUP("Mid Year Nominal - EOY Real (2026/27)",CPI[],MATCH(AN$4,CPI[#Headers],0),FALSE) -> 0 | AO39: =ProjectData[[#This Row],[Actuals 22/23]]*VLOOKUP("Mid Year Nominal - EOY Real (2026/27)",CPI[],MATCH(AO$4,CPI[#Headers],0),FALSE) -> 0 | AP39: =ProjectData[[#This Row],[Actuals 23/24]]*VLOOKUP("Mid Year Nominal - EOY Real (2026/27)",CPI[],MATCH(AP$4,CPI[#Headers],0),FALSE) -> 0 | AQ39: =ProjectData[[#This Row],[Actual 24/25]]*VLOOKUP("Mid Year Nominal - EOY Real (2026/27)",CPI[],MATCH(AQ$4,CPI[#Headers],0),FALSE) -> 0 | AR39: =ProjectData[[#This Row],[Forecast 25/26]]*VLOOKUP("Mid Year Nominal - EOY Real (2026/27)",CPI[],MATCH(AR$4,CPI[#Headers],0),FALSE) -> 0 | AS39: =ProjectData[[#This Row],[Forecast 26/27]]*VLOOKUP("Mid Year Nominal - EOY Real (2026/27)",CPI[],MATCH(AS$4,CPI[#Headers],0),FALSE) -> 0 | AT39: =SUM(ProjectData[[#This Row],[Real 08]:[Real 27]]) -> 0 | AU39: =(ProjectData[[#This Row],[Real Sum]]-VLOOKUP(ProjectData[[#This Row],[Category]],Category_AverageStdDevLimit[],MATCH("Average",Category_AverageStdDevLimit[#Headers],0),FALSE))^2 -> 4.482485466 | AV39: =VLOOKUP(ProjectData[[#This Row],[Category]],Category_AverageStdDevLimit[],MATCH("Limit",Category_AverageStdDevLimit[#Headers],0),FALSE) -> 10.66631335 | AW39: =ProjectData[[#This Row],[Real Sum]]>ProjectData[[#This Row],[Category Limit]] -> FALSE | AY39: =OR(ProjectData[[#This Row],[Significant Project? (Financial Basis)]],ProjectData[[#This Row],[Non repeatable]]) -> FALSE | AZ39: =AND(ProjectData[[#This Row],[SomeExpenditure >= 2016]],ProjectData[[#This Row],[Abnormal?]]) -> FALSE
A40: CP.00828 | B40: REPLACED BY CX - Broadsound - Table Mtn Comms Rein | C40: Other | D40: 0 | E40: 0 | F40: 0 | G40: 0 | H40: 0 | I40: 0 | J40: 0 | K40: 0 | L40: 0 | M40: 0 | N40: 0 | O40: 0 | P40: 0 | Q40: 0 | R40: 0 | S40: 0 | T40: 0 | U40: 0 | V40: 0 | W40: 0 | X40: =ProjectData[[#This Row],[Real Sum]]>0.0001 -> FALSE | Y40: =OR(ProjectData[[#This Row],[Real 16]]>0,ProjectData[[#This Row],[Real 17]]>0,ProjectData[[#This Row],[Real 18]]>0,ProjectData[[#This Row],[Real 19]]>0,ProjectData[[#This Row],[Real 20]]>0) -> FALSE | Z40: =ProjectData[[#This Row],[Actuals 07/08]]*VLOOKUP("Mid Year Nominal - EOY Real (2026/27)",CPI[],MATCH(Z$4,CPI[#Headers],0),FALSE) -> 0 | AA40: =ProjectData[[#This Row],[Actuals 08/09]]*VLOOKUP("Mid Year Nominal - EOY Real (2026/27)",CPI[],MATCH(AA$4,CPI[#Headers],0),FALSE) -> 0 | AB40: =ProjectData[[#This Row],[Actuals 09/10]]*VLOOKUP("Mid Year Nominal - EOY Real (2026/27)",CPI[],MATCH(AB$4,CPI[#Headers],0),FALSE) -> 0 | AC40: =ProjectData[[#This Row],[Actuals 10/11]]*VLOOKUP("Mid Year Nominal - EOY Real (2026/27)",CPI[],MATCH(AC$4,CPI[#Headers],0),FALSE) -> 0 | AD40: =ProjectData[[#This Row],[Actuals 11/12]]*VLOOKUP("Mid Year Nominal - EOY Real (2026/27)",CPI[],MATCH(AD$4,CPI[#Headers],0),FALSE) -> 0 | AE40: =ProjectData[[#This Row],[Actuals 12/13]]*VLOOKUP("Mid Year Nominal - EOY Real (2026/27)",CPI[],MATCH(AE$4,CPI[#Headers],0),FALSE) -> 0 | AF40: =ProjectData[[#This Row],[Actuals 13/14]]*VLOOKUP("Mid Year Nominal - EOY Real (2026/27)",CPI[],MATCH(AF$4,CPI[#Headers],0),FALSE) -> 0 | AG40: =ProjectData[[#This Row],[Actuals 14/15]]*VLOOKUP("Mid Year Nominal - EOY Real (2026/27)",CPI[],MATCH(AG$4,CPI[#Headers],0),FALSE) -> 0 | AH40: =ProjectData[[#This Row],[Actuals 15/16]]*VLOOKUP("Mid Year Nominal - EOY Real (2026/27)",CPI[],MATCH(AH$4,CPI[#Headers],0),FALSE) -> 0 | AI40: =ProjectData[[#This Row],[Actuals 16/17]]*VLOOKUP("Mid Year Nominal - EOY Real (2026/27)",CPI[],MATCH(AI$4,CPI[#Headers],0),FALSE) -> 0 | AJ40: =ProjectData[[#This Row],[Actuals 17/18]]*VLOOKUP("Mid Year Nominal - EOY Real (2026/27)",CPI[],MATCH(AJ$4,CPI[#Headers],0),FALSE) -> 0 | AK40: =ProjectData[[#This Row],[Actuals 18/19]]*VLOOKUP("Mid Year Nominal - EOY Real (2026/27)",CPI[],MATCH(AK$4,CPI[#Headers],0),FALSE) -> 0 | AL40: =ProjectData[[#This Row],[Actuals 19/20]]*VLOOKUP("Mid Year Nominal - EOY Real (2026/27)",CPI[],MATCH(AL$4,CPI[#Headers],0),FALSE) -> 0 | AM40: =ProjectData[[#This Row],[Actuals 20/21]]*VLOOKUP("Mid Year Nominal - EOY Real (2026/27)",CPI[],MATCH(AM$4,CPI[#Headers],0),FALSE) -> 0 | AN40: =ProjectData[[#This Row],[Actuals 21/22]]*VLOOKUP("Mid Year Nominal - EOY Real (2026/27)",CPI[],MATCH(AN$4,CPI[#Headers],0),FALSE) -> 0 | AO40: =ProjectData[[#This Row],[Actuals 22/23]]*VLOOKUP("Mid Year Nominal - EOY Real (2026/27)",CPI[],MATCH(AO$4,CPI[#Headers],0),FALSE) -> 0 | AP40: =ProjectData[[#This Row],[Actuals 23/24]]*VLOOKUP("Mid Year Nominal - EOY Real (2026/27)",CPI[],MATCH(AP$4,CPI[#Headers],0),FALSE) -> 0 | AQ40: =ProjectData[[#This Row],[Actual 24/25]]*VLOOKUP("Mid Year Nominal - EOY Real (2026/27)",CPI[],MATCH(AQ$4,CPI[#Headers],0),FALSE) -> 0 | AR40: =ProjectData[[#This Row],[Forecast 25/26]]*VLOOKUP("Mid Year Nominal - EOY Real (2026/27)",CPI[],MATCH(AR$4,CPI[#Headers],0),FALSE) -> 0 | AS40: =ProjectData[[#This Row],[Forecast 26/27]]*VLOOKUP("Mid Year Nominal - EOY Real (2026/27)",CPI[],MATCH(AS$4,CPI[#Headers],0),FALSE) -> 0 | AT40: =SUM(ProjectData[[#This Row],[Real 08]:[Real 27]]) -> 0 | AU40: =(ProjectData[[#This Row],[Real Sum]]-VLOOKUP(ProjectData[[#This Row],[Category]],Category_AverageStdDevLimit[],MATCH("Average",Category_AverageStdDevLimit[#Headers],0),FALSE))^2 -> 4.482485466 | AV40: =VLOOKUP(ProjectData[[#This Row],[Category]],Category_AverageStdDevLimit[],MATCH("Limit",Category_AverageStdDevLimit[#Headers],0),FALSE) -> 10.66631335 | AW40: =ProjectData[[#This Row],[Real Sum]]>ProjectData[[#This Row],[Category Limit]] -> FALSE | AY40: =OR(ProjectData[[#This Row],[Significant Project? (Financial Basis)]],ProjectData[[#This Row],[Non repeatable]]) -> FALSE | AZ40: =AND(ProjectData[[#This Row],[SomeExpenditure >= 2016]],ProjectData[[#This Row],[Abnormal?]]) -> FALSE
A41: CP.00837 | B41: REPLACED BY CX - Ingham 132kV Substation Rebuild | C41: Other | D41: 0 | E41: 0 | F41: 0 | G41: 0 | H41: 0 | I41: 0 | J41: 0 | K41: 0 | L41: 0 | M41: 0 | N41: 0 | O41: 0 | P41: 0 | Q41: 0 | R41: 0 | S41: 0 | T41: 0 | U41: 0 | V41: 0 | W41: 0 | X41: =ProjectData[[#This Row],[Real Sum]]>0.0001 -> FALSE | Y41: =OR(ProjectData[[#This Row],[Real 16]]>0,ProjectData[[#This Row],[Real 17]]>0,ProjectData[[#This Row],[Real 18]]>0,ProjectData[[#This Row],[Real 19]]>0,ProjectData[[#This Row],[Real 20]]>0) -> FALSE | Z41: =ProjectData[[#This Row],[Actuals 07/08]]*VLOOKUP("Mid Year Nominal - EOY Real (2026/27)",CPI[],MATCH(Z$4,CPI[#Headers],0),FALSE) -> 0 | AA41: =ProjectData[[#This Row],[Actuals 08/09]]*VLOOKUP("Mid Year Nominal - EOY Real (2026/27)",CPI[],MATCH(AA$4,CPI[#Headers],0),FALSE) -> 0 | AB41: =ProjectData[[#This Row],[Actuals 09/10]]*VLOOKUP("Mid Year Nominal - EOY Real (2026/27)",CPI[],MATCH(AB$4,CPI[#Headers],0),FALSE) -> 0 | AC41: =ProjectData[[#This Row],[Actuals 10/11]]*VLOOKUP("Mid Year Nominal - EOY Real (2026/27)",CPI[],MATCH(AC$4,CPI[#Headers],0),FALSE) -> 0 | AD41: =ProjectData[[#This Row],[Actuals 11/12]]*VLOOKUP("Mid Year Nominal - EOY Real (2026/27)",CPI[],MATCH(AD$4,CPI[#Headers],0),FALSE) -> 0 | AE41: =ProjectData[[#This Row],[Actuals 12/13]]*VLOOKUP("Mid Year Nominal - EOY Real (2026/27)",CPI[],MATCH(AE$4,CPI[#Headers],0),FALSE) -> 0 | AF41: =ProjectData[[#This Row],[Actuals 13/14]]*VLOOKUP("Mid Year Nominal - EOY Real (2026/27)",CPI[],MATCH(AF$4,CPI[#Headers],0),FALSE) -> 0 | AG41: =ProjectData[[#This Row],[Actuals 14/15]]*VLOOKUP("Mid Year Nominal - EOY Real (2026/27)",CPI[],MATCH(AG$4,CPI[#Headers],0),FALSE) -> 0 | AH41: =ProjectData[[#This Row],[Actuals 15/16]]*VLOOKUP("Mid Year Nominal - EOY Real (2026/27)",CPI[],MATCH(AH$4,CPI[#Headers],0),FALSE) -> 0 | AI41: =ProjectData[[#This Row],[Actuals 16/17]]*VLOOKUP("Mid Year Nominal - EOY Real (2026/27)",CPI[],MATCH(AI$4,CPI[#Headers],0),FALSE) -> 0 | AJ41: =ProjectData[[#This Row],[Actuals 17/18]]*VLOOKUP("Mid Year Nominal - EOY Real (2026/27)",CPI[],MATCH(AJ$4,CPI[#Headers],0),FALSE) -> 0 | AK41: =ProjectData[[#This Row],[Actuals 18/19]]*VLOOKUP("Mid Year Nominal - EOY Real (2026/27)",CPI[],MATCH(AK$4,CPI[#Headers],0),FALSE) -> 0 | AL41: =ProjectData[[#This Row],[Actuals 19/20]]*VLOOKUP("Mid Year Nominal - EOY Real (2026/27)",CPI[],MATCH(AL$4,CPI[#Headers],0),FALSE) -> 0 | AM41: =ProjectData[[#This Row],[Actuals 20/21]]*VLOOKUP("Mid Year Nominal - EOY Real (2026/27)",CPI[],MATCH(AM$4,CPI[#Headers],0),FALSE) -> 0 | AN41: =ProjectData[[#This Row],[Actuals 21/22]]*VLOOKUP("Mid Year Nominal - EOY Real (2026/27)",CPI[],MATCH(AN$4,CPI[#Headers],0),FALSE) -> 0 | AO41: =ProjectData[[#This Row],[Actuals 22/23]]*VLOOKUP("Mid Year Nominal - EOY Real (2026/27)",CPI[],MATCH(AO$4,CPI[#Headers],0),FALSE) -> 0 | AP41: =ProjectData[[#This Row],[Actuals 23/24]]*VLOOKUP("Mid Year Nominal - EOY Real (2026/27)",CPI[],MATCH(AP$4,CPI[#Headers],0),FALSE) -> 0 | AQ41: =ProjectData[[#This Row],[Actual 24/25]]*VLOOKUP("Mid Year Nominal - EOY Real (2026/27)",CPI[],MATCH(AQ$4,CPI[#Headers],0),FALSE) -> 0 | AR41: =ProjectData[[#This Row],[Forecast 25/26]]*VLOOKUP("Mid Year Nominal - EOY Real (2026/27)",CPI[],MATCH(AR$4,CPI[#Headers],0),FALSE) -> 0 | AS41: =ProjectData[[#This Row],[Forecast 26/27]]*VLOOKUP("Mid Year Nominal - EOY Real (2026/27)",CPI[],MATCH(AS$4,CPI[#Headers],0),FALSE) -> 0 | AT41: =SUM(ProjectData[[#This Row],[Real 08]:[Real 27]]) -> 0 | AU41: =(ProjectData[[#This Row],[Real Sum]]-VLOOKUP(ProjectData[[#This Row],[Category]],Category_AverageStdDevLimit[],MATCH("Average",Category_AverageStdDevLimit[#Headers],0),FALSE))^2 -> 4.482485466 | AV41: =VLOOKUP(ProjectData[[#This Row],[Category]],Category_AverageStdDevLimit[],MATCH("Limit",Category_AverageStdDevLimit[#Headers],0),FALSE) -> 10.66631335 | AW41: =ProjectData[[#This Row],[Real Sum]]>ProjectData[[#This Row],[Category Limit]] -> FALSE | AY41: =OR(ProjectData[[#This Row],[Significant Project? (Financial Basis)]],ProjectData[[#This Row],[Non repeatable]]) -> FALSE | AZ41: =AND(ProjectData[[#This Row],[SomeExpenditure >= 2016]],ProjectData[[#This Row],[Abnormal?]]) -> FALSE
A42: CP.00851 | B42: Substation Load Monitoring | C42: Other | D42: 0 | E42: 0 | F42: 0 | G42: 0 | H42: 0 | I42: 0 | J42: 0 | K42: 0 | L42: 0 | M42: 0 | N42: 0 | O42: 0 | P42: 0 | Q42: 0 | R42: 0 | S42: 0 | T42: 0 | U42: 0 | V42: 0 | W42: 0 | X42: =ProjectData[[#This Row],[Real Sum]]>0.0001 -> FALSE | Y42: =OR(ProjectData[[#This Row],[Real 16]]>0,ProjectData[[#This Row],[Real 17]]>0,ProjectData[[#This Row],[Real 18]]>0,ProjectData[[#This Row],[Real 19]]>0,ProjectData[[#This Row],[Real 20]]>0) -> FALSE | Z42: =ProjectData[[#This Row],[Actuals 07/08]]*VLOOKUP("Mid Year Nominal - EOY Real (2026/27)",CPI[],MATCH(Z$4,CPI[#Headers],0),FALSE) -> 0 | AA42: =ProjectData[[#This Row],[Actuals 08/09]]*VLOOKUP("Mid Year Nominal - EOY Real (2026/27)",CPI[],MATCH(AA$4,CPI[#Headers],0),FALSE) -> 0 | AB42: =ProjectData[[#This Row],[Actuals 09/10]]*VLOOKUP("Mid Year Nominal - EOY Real (2026/27)",CPI[],MATCH(AB$4,CPI[#Headers],0),FALSE) -> 0 | AC42: =ProjectData[[#This Row],[Actuals 10/11]]*VLOOKUP("Mid Year Nominal - EOY Real (2026/27)",CPI[],MATCH(AC$4,CPI[#Headers],0),FALSE) -> 0 | AD42: =ProjectData[[#This Row],[Actuals 11/12]]*VLOOKUP("Mid Year Nominal - EOY Real (2026/27)",CPI[],MATCH(AD$4,CPI[#Headers],0),FALSE) -> 0 | AE42: =ProjectData[[#This Row],[Actuals 12/13]]*VLOOKUP("Mid Year Nominal - EOY Real (2026/27)",CPI[],MATCH(AE$4,CPI[#Headers],0),FALSE) -> 0 | AF42: =ProjectData[[#This Row],[Actuals 13/14]]*VLOOKUP("Mid Year Nominal - EOY Real (2026/27)",CPI[],MATCH(AF$4,CPI[#Headers],0),FALSE) -> 0 | AG42: =ProjectData[[#This Row],[Actuals 14/15]]*VLOOKUP("Mid Year Nominal - EOY Real (2026/27)",CPI[],MATCH(AG$4,CPI[#Headers],0),FALSE) -> 0 | AH42: =ProjectData[[#This Row],[Actuals 15/16]]*VLOOKUP("Mid Year Nominal - EOY Real (2026/27)",CPI[],MATCH(AH$4,CPI[#Headers],0),FALSE) -> 0 | AI42: =ProjectData[[#This Row],[Actuals 16/17]]*VLOOKUP("Mid Year Nominal - EOY Real (2026/27)",CPI[],MATCH(AI$4,CPI[#Headers],0),FALSE) -> 0 | AJ42: =ProjectData[[#This Row],[Actuals 17/18]]*VLOOKUP("Mid Year Nominal - EOY Real (2026/27)",CPI[],MATCH(AJ$4,CPI[#Headers],0),FALSE) -> 0 | AK42: =ProjectData[[#This Row],[Actuals 18/19]]*VLOOKUP("Mid Year Nominal - EOY Real (2026/27)",CPI[],MATCH(AK$4,CPI[#Headers],0),FALSE) -> 0 | AL42: =ProjectData[[#This Row],[Actuals 19/20]]*VLOOKUP("Mid Year Nominal - EOY Real (2026/27)",CPI[],MATCH(AL$4,CPI[#Headers],0),FALSE) -> 0 | AM42: =ProjectData[[#This Row],[Actuals 20/21]]*VLOOKUP("Mid Year Nominal - EOY Real (2026/27)",CPI[],MATCH(AM$4,CPI[#Headers],0),FALSE) -> 0 | AN42: =ProjectData[[#This Row],[Actuals 21/22]]*VLOOKUP("Mid Year Nominal - EOY Real (2026/27)",CPI[],MATCH(AN$4,CPI[#Headers],0),FALSE) -> 0 | AO42: =ProjectData[[#This Row],[Actuals 22/23]]*VLOOKUP("Mid Year Nominal - EOY Real (2026/27)",CPI[],MATCH(AO$4,CPI[#Headers],0),FALSE) -> 0 | AP42: =ProjectData[[#This Row],[Actuals 23/24]]*VLOOKUP("Mid Year Nominal - EOY Real (2026/27)",CPI[],MATCH(AP$4,CPI[#Headers],0),FALSE) -> 0 | AQ42: =ProjectData[[#This Row],[Actual 24/25]]*VLOOKUP("Mid Year Nominal - EOY Real (2026/27)",CPI[],MATCH(AQ$4,CPI[#Headers],0),FALSE) -> 0 | AR42: =ProjectData[[#This Row],[Forecast 25/26]]*VLOOKUP("Mid Year Nominal - EOY Real (2026/27)",CPI[],MATCH(AR$4,CPI[#Headers],0),FALSE) -> 0 | AS42: =ProjectData[[#This Row],[Forecast 26/27]]*VLOOKUP("Mid Year Nominal - EOY Real (2026/27)",CPI[],MATCH(AS$4,CPI[#Headers],0),FALSE) -> 0 | AT42: =SUM(ProjectData[[#This Row],[Real 08]:[Real 27]]) -> 0 | AU42: =(ProjectData[[#This Row],[Real Sum]]-VLOOKUP(ProjectData[[#This Row],[Category]],Category_AverageStdDevLimit[],MATCH("Average",Category_AverageStdDevLimit[#Headers],0),FALSE))^2 -> 4.482485466 | AV42: =VLOOKUP(ProjectData[[#This Row],[Category]],Category_AverageStdDevLimit[],MATCH("Limit",Category_AverageStdDevLimit[#Headers],0),FALSE) -> 10.66631335 | AW42: =ProjectData[[#This Row],[Real Sum]]>ProjectData[[#This Row],[Category Limit]] -> FALSE | AX42: TRUE | AY42: =OR(ProjectData[[#This Row],[Significant Project? (Financial Basis)]],ProjectData[[#This Row],[Non repeatable]]) -> TRUE | AZ42: =AND(ProjectData[[#This Row],[SomeExpenditure >= 2016]],ProjectData[[#This Row],[Abnormal?]]) -> FALSE
A43: CP.00869 | B43: REPLACED BY CX - Laser Scanning of Line Routes | C43: Other | D43: -0.6263139 | E43: 0.055643 | F43: -0.06486757 | G43: -0.14687577 | H43: 0 | I43: 0 | J43: 0 | K43: 0 | L43: 0 | M43: 0 | N43: 0 | O43: 0 | P43: 0 | Q43: 0 | R43: 0 | S43: 0 | T43: 0 | U43: 0 | V43: 0 | W43: 0 | X43: =ProjectData[[#This Row],[Real Sum]]>0.0001 -> FALSE | Y43: =OR(ProjectData[[#This Row],[Real 16]]>0,ProjectData[[#This Row],[Real 17]]>0,ProjectData[[#This Row],[Real 18]]>0,ProjectData[[#This Row],[Real 19]]>0,ProjectData[[#This Row],[Real 20]]>0) -> FALSE | Z43: =ProjectData[[#This Row],[Actuals 07/08]]*VLOOKUP("Mid Year Nominal - EOY Real (2026/27)",CPI[],MATCH(Z$4,CPI[#Headers],0),FALSE) -> -1.041549085 | AA43: =ProjectData[[#This Row],[Actuals 08/09]]*VLOOKUP("Mid Year Nominal - EOY Real (2026/27)",CPI[],MATCH(AA$4,CPI[#Headers],0),FALSE) -> 0.08922857583 | AB43: =ProjectData[[#This Row],[Actuals 09/10]]*VLOOKUP("Mid Year Nominal - EOY Real (2026/27)",CPI[],MATCH(AB$4,CPI[#Headers],0),FALSE) -> -0.1019251436 | AC43: =ProjectData[[#This Row],[Actuals 10/11]]*VLOOKUP("Mid Year Nominal - EOY Real (2026/27)",CPI[],MATCH(AC$4,CPI[#Headers],0),FALSE) -> -0.2245907032 | AD43: =ProjectData[[#This Row],[Actuals 11/12]]*VLOOKUP("Mid Year Nominal - EOY Real (2026/27)",CPI[],MATCH(AD$4,CPI[#Headers],0),FALSE) -> 0 | AE43: =ProjectData[[#This Row],[Actuals 12/13]]*VLOOKUP("Mid Year Nominal - EOY Real (2026/27)",CPI[],MATCH(AE$4,CPI[#Headers],0),FALSE) -> 0 | AF43: =ProjectData[[#This Row],[Actuals 13/14]]*VLOOKUP("Mid Year Nominal - EOY Real (2026/27)",CPI[],MATCH(AF$4,CPI[#Headers],0),FALSE) -> 0 | AG43: =ProjectData[[#This Row],[Actuals 14/15]]*VLOOKUP("Mid Year Nominal - EOY Real (2026/27)",CPI[],MATCH(AG$4,CPI[#Headers],0),FALSE) -> 0 | AH43: =ProjectData[[#This Row],[Actuals 15/16]]*VLOOKUP("Mid Year Nominal - EOY Real (2026/27)",CPI[],MATCH(AH$4,CPI[#Headers],0),FALSE) -> 0 | AI43: =ProjectData[[#This Row],[Actuals 16/17]]*VLOOKUP("Mid Year Nominal - EOY Real (2026/27)",CPI[],MATCH(AI$4,CPI[#Headers],0),FALSE) -> 0 | AJ43: =ProjectData[[#This Row],[Actuals 17/18]]*VLOOKUP("Mid Year Nominal - EOY Real (2026/27)",CPI[],MATCH(AJ$4,CPI[#Headers],0),FALSE) -> 0 | AK43: =ProjectData[[#This Row],[Actuals 18/19]]*VLOOKUP("Mid Year Nominal - EOY Real (2026/27)",CPI[],MATCH(AK$4,CPI[#Headers],0),FALSE) -> 0 | AL43: =ProjectData[[#This Row],[Actuals 19/20]]*VLOOKUP("Mid Year Nominal - EOY Real (2026/27)",CPI[],MATCH(AL$4,CPI[#Headers],0),FALSE) -> 0 | AM43: =ProjectData[[#This Row],[Actuals 20/21]]*VLOOKUP("Mid Year Nominal - EOY Real (2026/27)",CPI[],MATCH(AM$4,CPI[#Headers],0),FALSE) -> 0 | AN43: =ProjectData[[#This Row],[Actuals 21/22]]*VLOOKUP("Mid Year Nominal - EOY Real (2026/27)",CPI[],MATCH(AN$4,CPI[#Headers],0),FALSE) -> 0 | AO43: =ProjectData[[#This Row],[Actuals 22/23]]*VLOOKUP("Mid Year Nominal - EOY Real (2026/27)",CPI[],MATCH(AO$4,CPI[#Headers],0),FALSE) -> 0 | AP43: =ProjectData[[#This Row],[Actuals 23/24]]*VLOOKUP("Mid Year Nominal - EOY Real (2026/27)",CPI[],MATCH(AP$4,CPI[#Headers],0),FALSE) -> 0 | AQ43: =ProjectData[[#This Row],[Actual 24/25]]*VLOOKUP("Mid Year Nominal - EOY Real (2026/27)",CPI[],MATCH(AQ$4,CPI[#Headers],0),FALSE) -> 0 | AR43: =ProjectData[[#This Row],[Forecast 25/26]]*VLOOKUP("Mid Year Nominal - EOY Real (2026/27)",CPI[],MATCH(AR$4,CPI[#Headers],0),FALSE) -> 0 | AS43: =ProjectData[[#This Row],[Forecast 26/27]]*VLOOKUP("Mid Year Nominal - EOY Real (2026/27)",CPI[],MATCH(AS$4,CPI[#Headers],0),FALSE) -> 0 | AT43: =SUM(ProjectData[[#This Row],[Real 08]:[Real 27]]) -> -1.278836356 | AU43: =(ProjectData[[#This Row],[Real Sum]]-VLOOKUP(ProjectData[[#This Row],[Category]],Category_AverageStdDevLimit[],MATCH("Average",Category_AverageStdDevLimit[#Headers],0),FALSE))^2 -> 11.53298213 | AV43: =VLOOKUP(ProjectData[[#This Row],[Category]],Category_AverageStdDevLimit[],MATCH("Limit",Category_AverageStdDevLimit[#Headers],0),FALSE) -> 10.66631335 | AW43: =ProjectData[[#This Row],[Real Sum]]>ProjectData[[#This Row],[Category Limit]] -> FALSE | AY43: =OR(ProjectData[[#This Row],[Significant Project? (Financial Basis)]],ProjectData[[#This Row],[Non repeatable]]) -> FALSE | AZ43: =AND(ProjectData[[#This Row],[SomeExpenditure >= 2016]],ProjectData[[#This Row],[Abnormal?]]) -> FALSE
A44: CP.00876 | B44: REPLACED BY CX - Loganlea 110kV Ext(B Plains & Bee | C44: Other | D44: 0 | E44: 0 | F44: 0 | G44: 0 | H44: 0 | I44: 0 | J44: 0 | K44: 0 | L44: 0 | M44: 0 | N44: 0 | O44: 0 | P44: 0 | Q44: 0 | R44: 0 | S44: 0 | T44: 0 | U44: 0 | V44: 0 | W44: 0 | X44: =ProjectData[[#This Row],[Real Sum]]>0.0001 -> FALSE | Y44: =OR(ProjectData[[#This Row],[Real 16]]>0,ProjectData[[#This Row],[Real 17]]>0,ProjectData[[#This Row],[Real 18]]>0,ProjectData[[#This Row],[Real 19]]>0,ProjectData[[#This Row],[Real 20]]>0) -> FALSE | Z44: =ProjectData[[#This Row],[Actuals 07/08]]*VLOOKUP("Mid Year Nominal - EOY Real (2026/27)",CPI[],MATCH(Z$4,CPI[#Headers],0),FALSE) -> 0 | AA44: =ProjectData[[#This Row],[Actuals 08/09]]*VLOOKUP("Mid Year Nominal - EOY Real (2026/27)",CPI[],MATCH(AA$4,CPI[#Headers],0),FALSE) -> 0 | AB44: =ProjectData[[#This Row],[Actuals 09/10]]*VLOOKUP("Mid Year Nominal - EOY Real (2026/27)",CPI[],MATCH(AB$4,CPI[#Headers],0),FALSE) -> 0 | AC44: =ProjectData[[#This Row],[Actuals 10/11]]*VLOOKUP("Mid Year Nominal - EOY Real (2026/27)",CPI[],MATCH(AC$4,CPI[#Headers],0),FALSE) -> 0 | AD44: =ProjectData[[#This Row],[Actuals 11/12]]*VLOOKUP("Mid Year Nominal - EOY Real (2026/27)",CPI[],MATCH(AD$4,CPI[#Headers],0),FALSE) -> 0 | AE44: =ProjectData[[#This Row],[Actuals 12/13]]*VLOOKUP("Mid Year Nominal - EOY Real (2026/27)",CPI[],MATCH(AE$4,CPI[#Headers],0),FALSE) -> 0 | AF44: =ProjectData[[#This Row],[Actuals 13/14]]*VLOOKUP("Mid Year Nominal - EOY Real (2026/27)",CPI[],MATCH(AF$4,CPI[#Headers],0),FALSE) -> 0 | AG44: =ProjectData[[#This Row],[Actuals 14/15]]*VLOOKUP("Mid Year Nominal - EOY Real (2026/27)",CPI[],MATCH(AG$4,CPI[#Headers],0),FALSE) -> 0 | AH44: =ProjectData[[#This Row],[Actuals 15/16]]*VLOOKUP("Mid Year Nominal - EOY Real (2026/27)",CPI[],MATCH(AH$4,CPI[#Headers],0),FALSE) -> 0 | AI44: =ProjectData[[#This Row],[Actuals 16/17]]*VLOOKUP("Mid Year Nominal - EOY Real (2026/27)",CPI[],MATCH(AI$4,CPI[#Headers],0),FALSE) -> 0 | AJ44: =ProjectData[[#This Row],[Actuals 17/18]]*VLOOKUP("Mid Year Nominal - EOY Real (2026/27)",CPI[],MATCH(AJ$4,CPI[#Headers],0),FALSE) -> 0 | AK44: =ProjectData[[#This Row],[Actuals 18/19]]*VLOOKUP("Mid Year Nominal - EOY Real (2026/27)",CPI[],MATCH(AK$4,CPI[#Headers],0),FALSE) -> 0 | AL44: =ProjectData[[#This Row],[Actuals 19/20]]*VLOOKUP("Mid Year Nominal - EOY Real (2026/27)",CPI[],MATCH(AL$4,CPI[#Headers],0),FALSE) -> 0 | AM44: =ProjectData[[#This Row],[Actuals 20/21]]*VLOOKUP("Mid Year Nominal - EOY Real (2026/27)",CPI[],MATCH(AM$4,CPI[#Headers],0),FALSE) -> 0 | AN44: =ProjectData[[#This Row],[Actuals 21/22]]*VLOOKUP("Mid Year Nominal - EOY Real (2026/27)",CPI[],MATCH(AN$4,CPI[#Headers],0),FALSE) -> 0 | AO44: =ProjectData[[#This Row],[Actuals 22/23]]*VLOOKUP("Mid Year Nominal - EOY Real (2026/27)",CPI[],MATCH(AO$4,CPI[#Headers],0),FALSE) -> 0 | AP44: =ProjectData[[#This Row],[Actuals 23/24]]*VLOOKUP("Mid Year Nominal - EOY Real (2026/27)",CPI[],MATCH(AP$4,CPI[#Headers],0),FALSE) -> 0 | AQ44: =ProjectData[[#This Row],[Actual 24/25]]*VLOOKUP("Mid Year Nominal - EOY Real (2026/27)",CPI[],MATCH(AQ$4,CPI[#Headers],0),FALSE) -> 0 | AR44: =ProjectData[[#This Row],[Forecast 25/26]]*VLOOKUP("Mid Year Nominal - EOY Real (2026/27)",CPI[],MATCH(AR$4,CPI[#Headers],0),FALSE) -> 0 | AS44: =ProjectData[[#This Row],[Forecast 26/27]]*VLOOKUP("Mid Year Nominal - EOY Real (2026/27)",CPI[],MATCH(AS$4,CPI[#Headers],0),FALSE) -> 0 | AT44: =SUM(ProjectData[[#This Row],[Real 08]:[Real 27]]) -> 0 | AU44: =(ProjectData[[#This Row],[Real Sum]]-VLOOKUP(ProjectData[[#This Row],[Category]],Category_AverageStdDevLimit[],MATCH("Average",Category_AverageStdDevLimit[#Headers],0),FALSE))^2 -> 4.482485466 | AV44: =VLOOKUP(ProjectData[[#This Row],[Category]],Category_AverageStdDevLimit[],MATCH("Limit",Category_AverageStdDevLimit[#Headers],0),FALSE) -> 10.66631335 | AW44: =ProjectData[[#This Row],[Real Sum]]>ProjectData[[#This Row],[Category Limit]] -> FALSE | AY44: =OR(ProjectData[[#This Row],[Significant Project? (Financial Basis)]],ProjectData[[#This Row],[Non repeatable]]) -> FALSE | AZ44: =AND(ProjectData[[#This Row],[SomeExpenditure >= 2016]],ProjectData[[#This Row],[Abnormal?]]) -> FALSE
A45: CP.01004 | B45: Mudgeeraba 110kV Extension (Varsity Lakes) | C45: Other | D45: 0 | E45: 0 | F45: 0 | G45: 0 | H45: 0 | I45: 0 | J45: 0 | K45: 0 | L45: 0 | M45: 0 | N45: 0 | O45: 0 | P45: 0 | Q45: 0 | R45: 0 | S45: 0 | T45: 0 | U45: 0 | V45: 0 | W45: 0 | X45: =ProjectData[[#This Row],[Real Sum]]>0.0001 -> FALSE | Y45: =OR(ProjectData[[#This Row],[Real 16]]>0,ProjectData[[#This Row],[Real 17]]>0,ProjectData[[#This Row],[Real 18]]>0,ProjectData[[#This Row],[Real 19]]>0,ProjectData[[#This Row],[Real 20]]>0) -> FALSE | Z45: =ProjectData[[#This Row],[Actuals 07/08]]*VLOOKUP("Mid Year Nominal - EOY Real (2026/27)",CPI[],MATCH(Z$4,CPI[#Headers],0),FALSE) -> 0 | AA45: =ProjectData[[#This Row],[Actuals 08/09]]*VLOOKUP("Mid Year Nominal - EOY Real (2026/27)",CPI[],MATCH(AA$4,CPI[#Headers],0),FALSE) -> 0 | AB45: =ProjectData[[#This Row],[Actuals 09/10]]*VLOOKUP("Mid Year Nominal - EOY Real (2026/27)",CPI[],MATCH(AB$4,CPI[#Headers],0),FALSE) -> 0 | AC45: =ProjectData[[#This Row],[Actuals 10/11]]*VLOOKUP("Mid Year Nominal - EOY Real (2026/27)",CPI[],MATCH(AC$4,CPI[#Headers],0),FALSE) -> 0 | AD45: =ProjectData[[#This Row],[Actuals 11/12]]*VLOOKUP("Mid Year Nominal - EOY Real (2026/27)",CPI[],MATCH(AD$4,CPI[#Headers],0),FALSE) -> 0 | AE45: =ProjectData[[#This Row],[Actuals 12/13]]*VLOOKUP("Mid Year Nominal - EOY Real (2026/27)",CPI[],MATCH(AE$4,CPI[#Headers],0),FALSE) -> 0 | AF45: =ProjectData[[#This Row],[Actuals 13/14]]*VLOOKUP("Mid Year Nominal - EOY Real (2026/27)",CPI[],MATCH(AF$4,CPI[#Headers],0),FALSE) -> 0 | AG45: =ProjectData[[#This Row],[Actuals 14/15]]*VLOOKUP("Mid Year Nominal - EOY Real (2026/27)",CPI[],MATCH(AG$4,CPI[#Headers],0),FALSE) -> 0 | AH45: =ProjectData[[#This Row],[Actuals 15/16]]*VLOOKUP("Mid Year Nominal - EOY Real (2026/27)",CPI[],MATCH(AH$4,CPI[#Headers],0),FALSE) -> 0 | AI45: =ProjectData[[#This Row],[Actuals 16/17]]*VLOOKUP("Mid Year Nominal - EOY Real (2026/27)",CPI[],MATCH(AI$4,CPI[#Headers],0),FALSE) -> 0 | AJ45: =ProjectData[[#This Row],[Actuals 17/18]]*VLOOKUP("Mid Year Nominal - EOY Real (2026/27)",CPI[],MATCH(AJ$4,CPI[#Headers],0),FALSE) -> 0 | AK45: =ProjectData[[#This Row],[Actuals 18/19]]*VLOOKUP("Mid Year Nominal - EOY Real (2026/27)",CPI[],MATCH(AK$4,CPI[#Headers],0),FALSE) -> 0 | AL45: =ProjectData[[#This Row],[Actuals 19/20]]*VLOOKUP("Mid Year Nominal - EOY Real (2026/27)",CPI[],MATCH(AL$4,CPI[#Headers],0),FALSE) -> 0 | AM45: =ProjectData[[#This Row],[Actuals 20/21]]*VLOOKUP("Mid Year Nominal - EOY Real (2026/27)",CPI[],MATCH(AM$4,CPI[#Headers],0),FALSE) -> 0 | AN45: =ProjectData[[#This Row],[Actuals 21/22]]*VLOOKUP("Mid Year Nominal - EOY Real (2026/27)",CPI[],MATCH(AN$4,CPI[#Headers],0),FALSE) -> 0 | AO45: =ProjectData[[#This Row],[Actuals 22/23]]*VLOOKUP("Mid Year Nominal - EOY Real (2026/27)",CPI[],MATCH(AO$4,CPI[#Headers],0),FALSE) -> 0 | AP45: =ProjectData[[#This Row],[Actuals 23/24]]*VLOOKUP("Mid Year Nominal - EOY Real (2026/27)",CPI[],MATCH(AP$4,CPI[#Headers],0),FALSE) -> 0 | AQ45: =ProjectData[[#This Row],[Actual 24/25]]*VLOOKUP("Mid Year Nominal - EOY Real (2026/27)",CPI[],MATCH(AQ$4,CPI[#Headers],0),FALSE) -> 0 | AR45: =ProjectData[[#This Row],[Forecast 25/26]]*VLOOKUP("Mid Year Nominal - EOY Real (2026/27)",CPI[],MATCH(AR$4,CPI[#Headers],0),FALSE) -> 0 | AS45: =ProjectData[[#This Row],[Forecast 26/27]]*VLOOKUP("Mid Year Nominal - EOY Real (2026/27)",CPI[],MATCH(AS$4,CPI[#Headers],0),FALSE) -> 0 | AT45: =SUM(ProjectData[[#This Row],[Real 08]:[Real 27]]) -> 0 | AU45: =(ProjectData[[#This Row],[Real Sum]]-VLOOKUP(ProjectData[[#This Row],[Category]],Category_AverageStdDevLimit[],MATCH("Average",Category_AverageStdDevLimit[#Headers],0),FALSE))^2 -> 4.482485466 | AV45: =VLOOKUP(ProjectData[[#This Row],[Category]],Category_AverageStdDevLimit[],MATCH("Limit",Category_AverageStdDevLimit[#Headers],0),FALSE) -> 10.66631335 | AW45: =ProjectData[[#This Row],[Real Sum]]>ProjectData[[#This Row],[Category Limit]] -> FALSE | AY45: =OR(ProjectData[[#This Row],[Significant Project? (Financial Basis)]],ProjectData[[#This Row],[Non repeatable]]) -> FALSE | AZ45: =AND(ProjectData[[#This Row],[SomeExpenditure >= 2016]],ProjectData[[#This Row],[Abnormal?]]) -> FALSE
A46: CP.01009 | B46: Rocklea 110kV Extension (Archerfield No. 2) | C46: Other | D46: 0 | E46: 0 | F46: 0 | G46: 0 | H46: 0 | I46: 0 | J46: 0 | K46: 0 | L46: 0 | M46: 0 | N46: 0 | O46: 0 | P46: 0 | Q46: 0 | R46: 0 | S46: 0 | T46: 0 | U46: 0 | V46: 0 | W46: 0 | X46: =ProjectData[[#This Row],[Real Sum]]>0.0001 -> FALSE | Y46: =OR(ProjectData[[#This Row],[Real 16]]>0,ProjectData[[#This Row],[Real 17]]>0,ProjectData[[#This Row],[Real 18]]>0,ProjectData[[#This Row],[Real 19]]>0,ProjectData[[#This Row],[Real 20]]>0) -> FALSE | Z46: =ProjectData[[#This Row],[Actuals 07/08]]*VLOOKUP("Mid Year Nominal - EOY Real (2026/27)",CPI[],MATCH(Z$4,CPI[#Headers],0),FALSE) -> 0 | AA46: =ProjectData[[#This Row],[Actuals 08/09]]*VLOOKUP("Mid Year Nominal - EOY Real (2026/27)",CPI[],MATCH(AA$4,CPI[#Headers],0),FALSE) -> 0 | AB46: =ProjectData[[#This Row],[Actuals 09/10]]*VLOOKUP("Mid Year Nominal - EOY Real (2026/27)",CPI[],MATCH(AB$4,CPI[#Headers],0),FALSE) -> 0 | AC46: =ProjectData[[#This Row],[Actuals 10/11]]*VLOOKUP("Mid Year Nominal - EOY Real (2026/27)",CPI[],MATCH(AC$4,CPI[#Headers],0),FALSE) -> 0 | AD46: =ProjectData[[#This Row],[Actuals 11/12]]*VLOOKUP("Mid Year Nominal - EOY Real (2026/27)",CPI[],MATCH(AD$4,CPI[#Headers],0),FALSE) -> 0 | AE46: =ProjectData[[#This Row],[Actuals 12/13]]*VLOOKUP("Mid Year Nominal - EOY Real (2026/27)",CPI[],MATCH(AE$4,CPI[#Headers],0),FALSE) -> 0 | AF46: =ProjectData[[#This Row],[Actuals 13/14]]*VLOOKUP("Mid Year Nominal - EOY Real (2026/27)",CPI[],MATCH(AF$4,CPI[#Headers],0),FALSE) -> 0 | AG46: =ProjectData[[#This Row],[Actuals 14/15]]*VLOOKUP("Mid Year Nominal - EOY Real (2026/27)",CPI[],MATCH(AG$4,CPI[#Headers],0),FALSE) -> 0 | AH46: =ProjectData[[#This Row],[Actuals 15/16]]*VLOOKUP("Mid Year Nominal - EOY Real (2026/27)",CPI[],MATCH(AH$4,CPI[#Headers],0),FALSE) -> 0 | AI46: =ProjectData[[#This Row],[Actuals 16/17]]*VLOOKUP("Mid Year Nominal - EOY Real (2026/27)",CPI[],MATCH(AI$4,CPI[#Headers],0),FALSE) -> 0 | AJ46: =ProjectData[[#This Row],[Actuals 17/18]]*VLOOKUP("Mid Year Nominal - EOY Real (2026/27)",CPI[],MATCH(AJ$4,CPI[#Headers],0),FALSE) -> 0 | AK46: =ProjectData[[#This Row],[Actuals 18/19]]*VLOOKUP("Mid Year Nominal - EOY Real (2026/27)",CPI[],MATCH(AK$4,CPI[#Headers],0),FALSE) -> 0 | AL46: =ProjectData[[#This Row],[Actuals 19/20]]*VLOOKUP("Mid Year Nominal - EOY Real (2026/27)",CPI[],MATCH(AL$4,CPI[#Headers],0),FALSE) -> 0 | AM46: =ProjectData[[#This Row],[Actuals 20/21]]*VLOOKUP("Mid Year Nominal - EOY Real (2026/27)",CPI[],MATCH(AM$4,CPI[#Headers],0),FALSE) -> 0 | AN46: =ProjectData[[#This Row],[Actuals 21/22]]*VLOOKUP("Mid Year Nominal - EOY Real (2026/27)",CPI[],MATCH(AN$4,CPI[#Headers],0),FALSE) -> 0 | AO46: =ProjectData[[#This Row],[Actuals 22/23]]*VLOOKUP("Mid Year Nominal - EOY Real (2026/27)",CPI[],MATCH(AO$4,CPI[#Headers],0),FALSE) -> 0 | AP46: =ProjectData[[#This Row],[Actuals 23/24]]*VLOOKUP("Mid Year Nominal - EOY Real (2026/27)",CPI[],MATCH(AP$4,CPI[#Headers],0),FALSE) -> 0 | AQ46: =ProjectData[[#This Row],[Actual 24/25]]*VLOOKUP("Mid Year Nominal - EOY Real (2026/27)",CPI[],MATCH(AQ$4,CPI[#Headers],0),FALSE) -> 0 | AR46: =ProjectData[[#This Row],[Forecast 25/26]]*VLOOKUP("Mid Year Nominal - EOY Real (2026/27)",CPI[],MATCH(AR$4,CPI[#Headers],0),FALSE) -> 0 | AS46: =ProjectData[[#This Row],[Forecast 26/27]]*VLOOKUP("Mid Year Nominal - EOY Real (2026/27)",CPI[],MATCH(AS$4,CPI[#Headers],0),FALSE) -> 0 | AT46: =SUM(ProjectData[[#This Row],[Real 08]:[Real 27]]) -> 0 | AU46: =(ProjectData[[#This Row],[Real Sum]]-VLOOKUP(ProjectData[[#This Row],[Category]],Category_AverageStdDevLimit[],MATCH("Average",Category_AverageStdDevLimit[#Headers],0),FALSE))^2 -> 4.482485466 | AV46: =VLOOKUP(ProjectData[[#This Row],[Category]],Category_AverageStdDevLimit[],MATCH("Limit",Category_AverageStdDevLimit[#Headers],0),FALSE) -> 10.66631335 | AW46: =ProjectData[[#This Row],[Real Sum]]>ProjectData[[#This Row],[Category Limit]] -> FALSE | AY46: =OR(ProjectData[[#This Row],[Significant Project? (Financial Basis)]],ProjectData[[#This Row],[Non repeatable]]) -> FALSE | AZ46: =AND(ProjectData[[#This Row],[SomeExpenditure >= 2016]],ProjectData[[#This Row],[Abnormal?]]) -> FALSE
A47: CP.01011 | B47: Operational WAN Stage 4 | C47: Other | D47: 0 | E47: 0 | F47: 0 | G47: 0 | H47: 0 | I47: 0 | J47: 0 | K47: 0 | L47: 0 | M47: 0 | N47: 0 | O47: 0 | P47: 0 | Q47: 0 | R47: 0 | S47: 0 | T47: 0 | U47: 0 | V47: 0 | W47: 0 | X47: =ProjectData[[#This Row],[Real Sum]]>0.0001 -> FALSE | Y47: =OR(ProjectData[[#This Row],[Real 16]]>0,ProjectData[[#This Row],[Real 17]]>0,ProjectData[[#This Row],[Real 18]]>0,ProjectData[[#This Row],[Real 19]]>0,ProjectData[[#This Row],[Real 20]]>0) -> FALSE | Z47: =ProjectData[[#This Row],[Actuals 07/08]]*VLOOKUP("Mid Year Nominal - EOY Real (2026/27)",CPI[],MATCH(Z$4,CPI[#Headers],0),FALSE) -> 0 | AA47: =ProjectData[[#This Row],[Actuals 08/09]]*VLOOKUP("Mid Year Nominal - EOY Real (2026/27)",CPI[],MATCH(AA$4,CPI[#Headers],0),FALSE) -> 0 | AB47: =ProjectData[[#This Row],[Actuals 09/10]]*VLOOKUP("Mid Year Nominal - EOY Real (2026/27)",CPI[],MATCH(AB$4,CPI[#Headers],0),FALSE) -> 0 | AC47: =ProjectData[[#This Row],[Actuals 10/11]]*VLOOKUP("Mid Year Nominal - EOY Real (2026/27)",CPI[],MATCH(AC$4,CPI[#Headers],0),FALSE) -> 0 | AD47: =ProjectData[[#This Row],[Actuals 11/12]]*VLOOKUP("Mid Year Nominal - EOY Real (2026/27)",CPI[],MATCH(AD$4,CPI[#Headers],0),FALSE) -> 0 | AE47: =ProjectData[[#This Row],[Actuals 12/13]]*VLOOKUP("Mid Year Nominal - EOY Real (2026/27)",CPI[],MATCH(AE$4,CPI[#Headers],0),FALSE) -> 0 | AF47: =ProjectData[[#This Row],[Actuals 13/14]]*VLOOKUP("Mid Year Nominal - EOY Real (2026/27)",CPI[],MATCH(AF$4,CPI[#Headers],0),FALSE) -> 0 | AG47: =ProjectData[[#This Row],[Actuals 14/15]]*VLOOKUP("Mid Year Nominal - EOY Real (2026/27)",CPI[],MATCH(AG$4,CPI[#Headers],0),FALSE) -> 0 | AH47: =ProjectData[[#This Row],[Actuals 15/16]]*VLOOKUP("Mid Year Nominal - EOY Real (2026/27)",CPI[],MATCH(AH$4,CPI[#Headers],0),FALSE) -> 0 | AI47: =ProjectData[[#This Row],[Actuals 16/17]]*VLOOKUP("Mid Year Nominal - EOY Real (2026/27)",CPI[],MATCH(AI$4,CPI[#Headers],0),FALSE) -> 0 | AJ47: =ProjectData[[#This Row],[Actuals 17/18]]*VLOOKUP("Mid Year Nominal - EOY Real (2026/27)",CPI[],MATCH(AJ$4,CPI[#Headers],0),FALSE) -> 0 | AK47: =ProjectData[[#This Row],[Actuals 18/19]]*VLOOKUP("Mid Year Nominal - EOY Real (2026/27)",CPI[],MATCH(AK$4,CPI[#Headers],0),FALSE) -> 0 | AL47: =ProjectData[[#This Row],[Actuals 19/20]]*VLOOKUP("Mid Year Nominal - EOY Real (2026/27)",CPI[],MATCH(AL$4,CPI[#Headers],0),FALSE) -> 0 | AM47: =ProjectData[[#This Row],[Actuals 20/21]]*VLOOKUP("Mid Year Nominal - EOY Real (2026/27)",CPI[],MATCH(AM$4,CPI[#Headers],0),FALSE) -> 0 | AN47: =ProjectData[[#This Row],[Actuals 21/22]]*VLOOKUP("Mid Year Nominal - EOY Real (2026/27)",CPI[],MATCH(AN$4,CPI[#Headers],0),FALSE) -> 0 | AO47: =ProjectData[[#This Row],[Actuals 22/23]]*VLOOKUP("Mid Year Nominal - EOY Real (2026/27)",CPI[],MATCH(AO$4,CPI[#Headers],0),FALSE) -> 0 | AP47: =ProjectData[[#This Row],[Actuals 23/24]]*VLOOKUP("Mid Year Nominal - EOY Real (2026/27)",CPI[],MATCH(AP$4,CPI[#Headers],0),FALSE) -> 0 | AQ47: =ProjectData[[#This Row],[Actual 24/25]]*VLOOKUP("Mid Year Nominal - EOY Real (2026/27)",CPI[],MATCH(AQ$4,CPI[#Headers],0),FALSE) -> 0 | AR47: =ProjectData[[#This Row],[Forecast 25/26]]*VLOOKUP("Mid Year Nominal - EOY Real (2026/27)",CPI[],MATCH(AR$4,CPI[#Headers],0),FALSE) -> 0 | AS47: =ProjectData[[#This Row],[Forecast 26/27]]*VLOOKUP("Mid Year Nominal - EOY Real (2026/27)",CPI[],MATCH(AS$4,CPI[#Headers],0),FALSE) -> 0 | AT47: =SUM(ProjectData[[#This Row],[Real 08]:[Real 27]]) -> 0 | AU47: =(ProjectData[[#This Row],[Real Sum]]-VLOOKUP(ProjectData[[#This Row],[Category]],Category_AverageStdDevLimit[],MATCH("Average",Category_AverageStdDevLimit[#Headers],0),FALSE))^2 -> 4.482485466 | AV47: =VLOOKUP(ProjectData[[#This Row],[Category]],Category_AverageStdDevLimit[],MATCH("Limit",Category_AverageStdDevLimit[#Headers],0),FALSE) -> 10.66631335 | AW47: =ProjectData[[#This Row],[Real Sum]]>ProjectData[[#This Row],[Category Limit]] -> FALSE | AY47: =OR(ProjectData[[#This Row],[Significant Project? (Financial Basis)]],ProjectData[[#This Row],[Non repeatable]]) -> FALSE | AZ47: =AND(ProjectData[[#This Row],[SomeExpenditure >= 2016]],ProjectData[[#This Row],[Abnormal?]]) -> FALSE
A48: CP.01012 | B48: Gladstone Secondary Systems Replacement (SUPD by C | C48: Other | D48: 0 | E48: 0 | F48: -0.17429535 | G48: 0 | H48: 0 | I48: 0 | J48: 0 | K48: 0 | L48: 0 | M48: 0 | N48: 0 | O48: 0 | P48: 0 | Q48: 0 | R48: 0 | S48: 0 | T48: 0 | U48: 0 | V48: 0 | W48: 0 | X48: =ProjectData[[#This Row],[Real Sum]]>0.0001 -> FALSE | Y48: =OR(ProjectData[[#This Row],[Real 16]]>0,ProjectData[[#This Row],[Real 17]]>0,ProjectData[[#This Row],[Real 18]]>0,ProjectData[[#This Row],[Real 19]]>0,ProjectData[[#This Row],[Real 20]]>0) -> FALSE | Z48: =ProjectData[[#This Row],[Actuals 07/08]]*VLOOKUP("Mid Year Nominal - EOY Real (2026/27)",CPI[],MATCH(Z$4,CPI[#Headers],0),FALSE) -> 0 | AA48: =ProjectData[[#This Row],[Actuals 08/09]]*VLOOKUP("Mid Year Nominal - EOY Real (2026/27)",CPI[],MATCH(AA$4,CPI[#Headers],0),FALSE) -> 0 | AB48: =ProjectData[[#This Row],[Actuals 09/10]]*VLOOKUP("Mid Year Nominal - EOY Real (2026/27)",CPI[],MATCH(AB$4,CPI[#Headers],0),FALSE) -> -0.2738668733 | AC48: =ProjectData[[#This Row],[Actuals 10/11]]*VLOOKUP("Mid Year Nominal - EOY Real (2026/27)",CPI[],MATCH(AC$4,CPI[#Headers],0),FALSE) -> 0 | AD48: =ProjectData[[#This Row],[Actuals 11/12]]*VLOOKUP("Mid Year Nominal - EOY Real (2026/27)",CPI[],MATCH(AD$4,CPI[#Headers],0),FALSE) -> 0 | AE48: =ProjectData[[#This Row],[Actuals 12/13]]*VLOOKUP("Mid Year Nominal - EOY Real (2026/27)",CPI[],MATCH(AE$4,CPI[#Headers],0),FALSE) -> 0 | AF48: =ProjectData[[#This Row],[Actuals 13/14]]*VLOOKUP("Mid Year Nominal - EOY Real (2026/27)",CPI[],MATCH(AF$4,CPI[#Headers],0),FALSE) -> 0 | AG48: =ProjectData[[#This Row],[Actuals 14/15]]*VLOOKUP("Mid Year Nominal - EOY Real (2026/27)",CPI[],MATCH(AG$4,CPI[#Headers],0),FALSE) -> 0 | AH48: =ProjectData[[#This Row],[Actuals 15/16]]*VLOOKUP("Mid Year Nominal - EOY Real (2026/27)",CPI[],MATCH(AH$4,CPI[#Headers],0),FALSE) -> 0 | AI48: =ProjectData[[#This Row],[Actuals 16/17]]*VLOOKUP("Mid Year Nominal - EOY Real (2026/27)",CPI[],MATCH(AI$4,CPI[#Headers],0),FALSE) -> 0 | AJ48: =ProjectData[[#This Row],[Actuals 17/18]]*VLOOKUP("Mid Year Nominal - EOY Real (2026/27)",CPI[],MATCH(AJ$4,CPI[#Headers],0),FALSE) -> 0 | AK48: =ProjectData[[#This Row],[Actuals 18/19]]*VLOOKUP("Mid Year Nominal - EOY Real (2026/27)",CPI[],MATCH(AK$4,CPI[#Headers],0),FALSE) -> 0 | AL48: =ProjectData[[#This Row],[Actuals 19/20]]*VLOOKUP("Mid Year Nominal - EOY Real (2026/27)",CPI[],MATCH(AL$4,CPI[#Headers],0),FALSE) -> 0 | AM48: =ProjectData[[#This Row],[Actuals 20/21]]*VLOOKUP("Mid Year Nominal - EOY Real (2026/27)",CPI[],MATCH(AM$4,CPI[#Headers],0),FALSE) -> 0 | AN48: =ProjectData[[#This Row],[Actuals 21/22]]*VLOOKUP("Mid Year Nominal - EOY Real (2026/27)",CPI[],MATCH(AN$4,CPI[#Headers],0),FALSE) -> 0 | AO48: =ProjectData[[#This Row],[Actuals 22/23]]*VLOOKUP("Mid Year Nominal - EOY Real (2026/27)",CPI[],MATCH(AO$4,CPI[#Headers],0),FALSE) -> 0 | AP48: =ProjectData[[#This Row],[Actuals 23/24]]*VLOOKUP("Mid Year Nominal - EOY Real (2026/27)",CPI[],MATCH(AP$4,CPI[#Headers],0),FALSE) -> 0 | AQ48: =ProjectData[[#This Row],[Actual 24/25]]*VLOOKUP("Mid Year Nominal - EOY Real (2026/27)",CPI[],MATCH(AQ$4,CPI[#Headers],0),FALSE) -> 0 | AR48: =ProjectData[[#This Row],[Forecast 25/26]]*VLOOKUP("Mid Year Nominal - EOY Real (2026/27)",CPI[],MATCH(AR$4,CPI[#Headers],0),FALSE) -> 0 | AS48: =ProjectData[[#This Row],[Forecast 26/27]]*VLOOKUP("Mid Year Nominal - EOY Real (2026/27)",CPI[],MATCH(AS$4,CPI[#Headers],0),FALSE) -> 0 | AT48: =SUM(ProjectData[[#This Row],[Real 08]:[Real 27]]) -> -0.2738668733 | AU48: =(ProjectData[[#This Row],[Real Sum]]-VLOOKUP(ProjectData[[#This Row],[Category]],Category_AverageStdDevLimit[],MATCH("Average",Category_AverageStdDevLimit[#Headers],0),FALSE))^2 -> 5.717143902 | AV48: =VLOOKUP(ProjectData[[#This Row],[Category]],Category_AverageStdDevLimit[],MATCH("Limit",Category_AverageStdDevLimit[#Headers],0),FALSE) -> 10.66631335 | AW48: =ProjectData[[#This Row],[Real Sum]]>ProjectData[[#This Row],[Category Limit]] -> FALSE | AY48: =OR(ProjectData[[#This Row],[Significant Project? (Financial Basis)]],ProjectData[[#This Row],[Non repeatable]]) -> FALSE | AZ48: =AND(ProjectData[[#This Row],[SomeExpenditure >= 2016]],ProjectData[[#This Row],[Abnormal?]]) -> FALSE
A49: CP.01028 | B49: Proserpine 66kV Metering (Cannonvale No.2) | C49: Other | D49: 0 | E49: 0 | F49: 0 | G49: 0 | H49: 0 | I49: 0 | J49: 0 | K49: 0 | L49: 0 | M49: 0 | N49: 0 | O49: 0 | P49: 0 | Q49: 0 | R49: 0 | S49: 0 | T49: 0 | U49: 0 | V49: 0 | W49: 0 | X49: =ProjectData[[#This Row],[Real Sum]]>0.0001 -> FALSE | Y49: =OR(ProjectData[[#This Row],[Real 16]]>0,ProjectData[[#This Row],[Real 17]]>0,ProjectData[[#This Row],[Real 18]]>0,ProjectData[[#This Row],[Real 19]]>0,ProjectData[[#This Row],[Real 20]]>0) -> FALSE | Z49: =ProjectData[[#This Row],[Actuals 07/08]]*VLOOKUP("Mid Year Nominal - EOY Real (2026/27)",CPI[],MATCH(Z$4,CPI[#Headers],0),FALSE) -> 0 | AA49: =ProjectData[[#This Row],[Actuals 08/09]]*VLOOKUP("Mid Year Nominal - EOY Real (2026/27)",CPI[],MATCH(AA$4,CPI[#Headers],0),FALSE) -> 0 | AB49: =ProjectData[[#This Row],[Actuals 09/10]]*VLOOKUP("Mid Year Nominal - EOY Real (2026/27)",CPI[],MATCH(AB$4,CPI[#Headers],0),FALSE) -> 0 | AC49: =ProjectData[[#This Row],[Actuals 10/11]]*VLOOKUP("Mid Year Nominal - EOY Real (2026/27)",CPI[],MATCH(AC$4,CPI[#Headers],0),FALSE) -> 0 | AD49: =ProjectData[[#This Row],[Actuals 11/12]]*VLOOKUP("Mid Year Nominal - EOY Real (2026/27)",CPI[],MATCH(AD$4,CPI[#Headers],0),FALSE) -> 0 | AE49: =ProjectData[[#This Row],[Actuals 12/13]]*VLOOKUP("Mid Year Nominal - EOY Real (2026/27)",CPI[],MATCH(AE$4,CPI[#Headers],0),FALSE) -> 0 | AF49: =ProjectData[[#This Row],[Actuals 13/14]]*VLOOKUP("Mid Year Nominal - EOY Real (2026/27)",CPI[],MATCH(AF$4,CPI[#Headers],0),FALSE) -> 0 | AG49: =ProjectData[[#This Row],[Actuals 14/15]]*VLOOKUP("Mid Year Nominal - EOY Real (2026/27)",CPI[],MATCH(AG$4,CPI[#Headers],0),FALSE) -> 0 | AH49: =ProjectData[[#This Row],[Actuals 15/16]]*VLOOKUP("Mid Year Nominal - EOY Real (2026/27)",CPI[],MATCH(AH$4,CPI[#Headers],0),FALSE) -> 0 | AI49: =ProjectData[[#This Row],[Actuals 16/17]]*VLOOKUP("Mid Year Nominal - EOY Real (2026/27)",CPI[],MATCH(AI$4,CPI[#Headers],0),FALSE) -> 0 | AJ49: =ProjectData[[#This Row],[Actuals 17/18]]*VLOOKUP("Mid Year Nominal - EOY Real (2026/27)",CPI[],MATCH(AJ$4,CPI[#Headers],0),FALSE) -> 0 | AK49: =ProjectData[[#This Row],[Actuals 18/19]]*VLOOKUP("Mid Year Nominal - EOY Real (2026/27)",CPI[],MATCH(AK$4,CPI[#Headers],0),FALSE) -> 0 | AL49: =ProjectData[[#This Row],[Actuals 19/20]]*VLOOKUP("Mid Year Nominal - EOY Real (2026/27)",CPI[],MATCH(AL$4,CPI[#Headers],0),FALSE) -> 0 | AM49: =ProjectData[[#This Row],[Actuals 20/21]]*VLOOKUP("Mid Year Nominal - EOY Real (2026/27)",CPI[],MATCH(AM$4,CPI[#Headers],0),FALSE) -> 0 | AN49: =ProjectData[[#This Row],[Actuals 21/22]]*VLOOKUP("Mid Year Nominal - EOY Real (2026/27)",CPI[],MATCH(AN$4,CPI[#Headers],0),FALSE) -> 0 | AO49: =ProjectData[[#This Row],[Actuals 22/23]]*VLOOKUP("Mid Year Nominal - EOY Real (2026/27)",CPI[],MATCH(AO$4,CPI[#Headers],0),FALSE) -> 0 | AP49: =ProjectData[[#This Row],[Actuals 23/24]]*VLOOKUP("Mid Year Nominal - EOY Real (2026/27)",CPI[],MATCH(AP$4,CPI[#Headers],0),FALSE) -> 0 | AQ49: =ProjectData[[#This Row],[Actual 24/25]]*VLOOKUP("Mid Year Nominal - EOY Real (2026/27)",CPI[],MATCH(AQ$4,CPI[#Headers],0),FALSE) -> 0 | AR49: =ProjectData[[#This Row],[Forecast 25/26]]*VLOOKUP("Mid Year Nominal - EOY Real (2026/27)",CPI[],MATCH(AR$4,CPI[#Headers],0),FALSE) -> 0 | AS49: =ProjectData[[#This Row],[Forecast 26/27]]*VLOOKUP("Mid Year Nominal - EOY Real (2026/27)",CPI[],MATCH(AS$4,CPI[#Headers],0),FALSE) -> 0 | AT49: =SUM(ProjectData[[#This Row],[Real 08]:[Real 27]]) -> 0 | AU49: =(ProjectData[[#This Row],[Real Sum]]-VLOOKUP(ProjectData[[#This Row],[Category]],Category_AverageStdDevLimit[],MATCH("Average",Category_AverageStdDevLimit[#Headers],0),FALSE))^2 -> 4.482485466 | AV49: =VLOOKUP(ProjectData[[#This Row],[Category]],Category_AverageStdDevLimit[],MATCH("Limit",Category_AverageStdDevLimit[#Headers],0),FALSE) -> 10.66631335 | AW49: =ProjectData[[#This Row],[Real Sum]]>ProjectData[[#This Row],[Category Limit]] -> FALSE | AY49: =OR(ProjectData[[#This Row],[Significant Project? (Financial Basis)]],ProjectData[[#This Row],[Non repeatable]]) -> FALSE | AZ49: =AND(ProjectData[[#This Row],[SomeExpenditure >= 2016]],ProjectData[[#This Row],[Abnormal?]]) -> FALSE
A50: CP.01032 | B50: Palmwoods 275kV Capacitor Bank | C50: Other | D50: 0 | E50: 0 | F50: 0 | G50: 0 | H50: 0 | I50: 0 | J50: 0 | K50: 0 | L50: 0 | M50: 0 | N50: 0 | O50: 0 | P50: 0 | Q50: 0 | R50: 0 | S50: 0 | T50: 0 | U50: 0 | V50: 0 | W50: 0 | X50: =ProjectData[[#This Row],[Real Sum]]>0.0001 -> FALSE | Y50: =OR(ProjectData[[#This Row],[Real 16]]>0,ProjectData[[#This Row],[Real 17]]>0,ProjectData[[#This Row],[Real 18]]>0,ProjectData[[#This Row],[Real 19]]>0,ProjectData[[#This Row],[Real 20]]>0) -> FALSE | Z50: =ProjectData[[#This Row],[Actuals 07/08]]*VLOOKUP("Mid Year Nominal - EOY Real (2026/27)",CPI[],MATCH(Z$4,CPI[#Headers],0),FALSE) -> 0 | AA50: =ProjectData[[#This Row],[Actuals 08/09]]*VLOOKUP("Mid Year Nominal - EOY Real (2026/27)",CPI[],MATCH(AA$4,CPI[#Headers],0),FALSE) -> 0 | AB50: =ProjectData[[#This Row],[Actuals 09/10]]*VLOOKUP("Mid Year Nominal - EOY Real (2026/27)",CPI[],MATCH(AB$4,CPI[#Headers],0),FALSE) -> 0 | AC50: =ProjectData[[#This Row],[Actuals 10/11]]*VLOOKUP("Mid Year Nominal - EOY Real (2026/27)",CPI[],MATCH(AC$4,CPI[#Headers],0),FALSE) -> 0 | AD50: =ProjectData[[#This Row],[Actuals 11/12]]*VLOOKUP("Mid Year Nominal - EOY Real (2026/27)",CPI[],MATCH(AD$4,CPI[#Headers],0),FALSE) -> 0 | AE50: =ProjectData[[#This Row],[Actuals 12/13]]*VLOOKUP("Mid Year Nominal - EOY Real (2026/27)",CPI[],MATCH(AE$4,CPI[#Headers],0),FALSE) -> 0 | AF50: =ProjectData[[#This Row],[Actuals 13/14]]*VLOOKUP("Mid Year Nominal - EOY Real (2026/27)",CPI[],MATCH(AF$4,CPI[#Headers],0),FALSE) -> 0 | AG50: =ProjectData[[#This Row],[Actuals 14/15]]*VLOOKUP("Mid Year Nominal - EOY Real (2026/27)",CPI[],MATCH(AG$4,CPI[#Headers],0),FALSE) -> 0 | AH50: =ProjectData[[#This Row],[Actuals 15/16]]*VLOOKUP("Mid Year Nominal - EOY Real (2026/27)",CPI[],MATCH(AH$4,CPI[#Headers],0),FALSE) -> 0 | AI50: =ProjectData[[#This Row],[Actuals 16/17]]*VLOOKUP("Mid Year Nominal - EOY Real (2026/27)",CPI[],MATCH(AI$4,CPI[#Headers],0),FALSE) -> 0 | AJ50: =ProjectData[[#This Row],[Actuals 17/18]]*VLOOKUP("Mid Year Nominal - EOY Real (2026/27)",CPI[],MATCH(AJ$4,CPI[#Headers],0),FALSE) -> 0 | AK50: =ProjectData[[#This Row],[Actuals 18/19]]*VLOOKUP("Mid Year Nominal - EOY Real (2026/27)",CPI[],MATCH(AK$4,CPI[#Headers],0),FALSE) -> 0 | AL50: =ProjectData[[#This Row],[Actuals 19/20]]*VLOOKUP("Mid Year Nominal - EOY Real (2026/27)",CPI[],MATCH(AL$4,CPI[#Headers],0),FALSE) -> 0 | AM50: =ProjectData[[#This Row],[Actuals 20/21]]*VLOOKUP("Mid Year Nominal - EOY Real (2026/27)",CPI[],MATCH(AM$4,CPI[#Headers],0),FALSE) -> 0 | AN50: =ProjectData[[#This Row],[Actuals 21/22]]*VLOOKUP("Mid Year Nominal - EOY Real (2026/27)",CPI[],MATCH(AN$4,CPI[#Headers],0),FALSE) -> 0 | AO50: =ProjectData[[#This Row],[Actuals 22/23]]*VLOOKUP("Mid Year Nominal - EOY Real (2026/27)",CPI[],MATCH(AO$4,CPI[#Headers],0),FALSE) -> 0 | AP50: =ProjectData[[#This Row],[Actuals 23/24]]*VLOOKUP("Mid Year Nominal - EOY Real (2026/27)",CPI[],MATCH(AP$4,CPI[#Headers],0),FALSE) -> 0 | AQ50: =ProjectData[[#This Row],[Actual 24/25]]*VLOOKUP("Mid Year Nominal - EOY Real (2026/27)",CPI[],MATCH(AQ$4,CPI[#Headers],0),FALSE) -> 0 | AR50: =ProjectData[[#This Row],[Forecast 25/26]]*VLOOKUP("Mid Year Nominal - EOY Real (2026/27)",CPI[],MATCH(AR$4,CPI[#Headers],0),FALSE) -> 0 | AS50: =ProjectData[[#This Row],[Forecast 26/27]]*VLOOKUP("Mid Year Nominal - EOY Real (2026/27)",CPI[],MATCH(AS$4,CPI[#Headers],0),FALSE) -> 0 | AT50: =SUM(ProjectData[[#This Row],[Real 08]:[Real 27]]) -> 0 | AU50: =(ProjectData[[#This Row],[Real Sum]]-VLOOKUP(ProjectData[[#This Row],[Category]],Category_AverageStdDevLimit[],MATCH("Average",Category_AverageStdDevLimit[#Headers],0),FALSE))^2 -> 4.482485466 | AV50: =VLOOKUP(ProjectData[[#This Row],[Category]],Category_AverageStdDevLimit[],MATCH("Limit",Category_AverageStdDevLimit[#Headers],0),FALSE) -> 10.66631335 | AW50: =ProjectData[[#This Row],[Real Sum]]>ProjectData[[#This Row],[Category Limit]] -> FALSE | AY50: =OR(ProjectData[[#This Row],[Significant Project? (Financial Basis)]],ProjectData[[#This Row],[Non repeatable]]) -> FALSE | AZ50: =AND(ProjectData[[#This Row],[SomeExpenditure >= 2016]],ProjectData[[#This Row],[Abnormal?]]) -> FALSE
A51: CP.01042 | B51: Ross - Chalumbin 275kV Line Switching | C51: Other | D51: 0.00070035 | E51: 0 | F51: 0 | G51: 0 | H51: 0 | I51: 0 | J51: 0 | K51: 0 | L51: 0 | M51: 0 | N51: 0 | O51: 0 | P51: 0 | Q51: 0 | R51: 0 | S51: 0 | T51: 0 | U51: 0 | V51: 0 | W51: 0 | X51: =ProjectData[[#This Row],[Real Sum]]>0.0001 -> TRUE | Y51: =OR(ProjectData[[#This Row],[Real 16]]>0,ProjectData[[#This Row],[Real 17]]>0,ProjectData[[#This Row],[Real 18]]>0,ProjectData[[#This Row],[Real 19]]>0,ProjectData[[#This Row],[Real 20]]>0) -> FALSE | Z51: =ProjectData[[#This Row],[Actuals 07/08]]*VLOOKUP("Mid Year Nominal - EOY Real (2026/27)",CPI[],MATCH(Z$4,CPI[#Headers],0),FALSE) -> 0.001164669827 | AA51: =ProjectData[[#This Row],[Actuals 08/09]]*VLOOKUP("Mid Year Nominal - EOY Real (2026/27)",CPI[],MATCH(AA$4,CPI[#Headers],0),FALSE) -> 0 | AB51: =ProjectData[[#This Row],[Actuals 09/10]]*VLOOKUP("Mid Year Nominal - EOY Real (2026/27)",CPI[],MATCH(AB$4,CPI[#Headers],0),FALSE) -> 0 | AC51: =ProjectData[[#This Row],[Actuals 10/11]]*VLOOKUP("Mid Year Nominal - EOY Real (2026/27)",CPI[],MATCH(AC$4,CPI[#Headers],0),FALSE) -> 0 | AD51: =ProjectData[[#This Row],[Actuals 11/12]]*VLOOKUP("Mid Year Nominal - EOY Real (2026/27)",CPI[],MATCH(AD$4,CPI[#Headers],0),FALSE) -> 0 | AE51: =ProjectData[[#This Row],[Actuals 12/13]]*VLOOKUP("Mid Year Nominal - EOY Real (2026/27)",CPI[],MATCH(AE$4,CPI[#Headers],0),FALSE) -> 0 | AF51: =ProjectData[[#This Row],[Actuals 13/14]]*VLOOKUP("Mid Year Nominal - EOY Real (2026/27)",CPI[],MATCH(AF$4,CPI[#Headers],0),FALSE) -> 0 | AG51: =ProjectData[[#This Row],[Actuals 14/15]]*VLOOKUP("Mid Year Nominal - EOY Real (2026/27)",CPI[],MATCH(AG$4,CPI[#Headers],0),FALSE) -> 0 | AH51: =ProjectData[[#This Row],[Actuals 15/16]]*VLOOKUP("Mid Year Nominal - EOY Real (2026/27)",CPI[],MATCH(AH$4,CPI[#Headers],0),FALSE) -> 0 | AI51: =ProjectData[[#This Row],[Actuals 16/17]]*VLOOKUP("Mid Year Nominal - EOY Real (2026/27)",CPI[],MATCH(AI$4,CPI[#Headers],0),FALSE) -> 0 | AJ51: =ProjectData[[#This Row],[Actuals 17/18]]*VLOOKUP("Mid Year Nominal - EOY Real (2026/27)",CPI[],MATCH(AJ$4,CPI[#Headers],0),FALSE) -> 0 | AK51: =ProjectData[[#This Row],[Actuals 18/19]]*VLOOKUP("Mid Year Nominal - EOY Real (2026/27)",CPI[],MATCH(AK$4,CPI[#Headers],0),FALSE) -> 0 | AL51: =ProjectData[[#This Row],[Actuals 19/20]]*VLOOKUP("Mid Year Nominal - EOY Real (2026/27)",CPI[],MATCH(AL$4,CPI[#Headers],0),FALSE) -> 0 | AM51: =ProjectData[[#This Row],[Actuals 20/21]]*VLOOKUP("Mid Year Nominal - EOY Real (2026/27)",CPI[],MATCH(AM$4,CPI[#Headers],0),FALSE) -> 0 | AN51: =ProjectData[[#This Row],[Actuals 21/22]]*VLOOKUP("Mid Year Nominal - EOY Real (2026/27)",CPI[],MATCH(AN$4,CPI[#Headers],0),FALSE) -> 0 | AO51: =ProjectData[[#This Row],[Actuals 22/23]]*VLOOKUP("Mid Year Nominal - EOY Real (2026/27)",CPI[],MATCH(AO$4,CPI[#Headers],0),FALSE) -> 0 | AP51: =ProjectData[[#This Row],[Actuals 23/24]]*VLOOKUP("Mid Year Nominal - EOY Real (2026/27)",CPI[],MATCH(AP$4,CPI[#Headers],0),FALSE) -> 0 | AQ51: =ProjectData[[#This Row],[Actual 24/25]]*VLOOKUP("Mid Year Nominal - EOY Real (2026/27)",CPI[],MATCH(AQ$4,CPI[#Headers],0),FALSE) -> 0 | AR51: =ProjectData[[#This Row],[Forecast 25/26]]*VLOOKUP("Mid Year Nominal - EOY Real (2026/27)",CPI[],MATCH(AR$4,CPI[#Headers],0),FALSE) -> 0 | AS51: =ProjectData[[#This Row],[Forecast 26/27]]*VLOOKUP("Mid Year Nominal - EOY Real (2026/27)",CPI[],MATCH(AS$4,CPI[#Headers],0),FALSE) -> 0 | AT51: =SUM(ProjectData[[#This Row],[Real 08]:[Real 27]]) -> 0.001164669827 | AU51: =(ProjectData[[#This Row],[Real Sum]]-VLOOKUP(ProjectData[[#This Row],[Category]],Category_AverageStdDevLimit[],MATCH("Average",Category_AverageStdDevLimit[#Headers],0),FALSE))^2 -> 4.477555172 | AV51: =VLOOKUP(ProjectData[[#This Row],[Category]],Category_AverageStdDevLimit[],MATCH("Limit",Category_AverageStdDevLimit[#Headers],0),FALSE) -> 10.66631335 | AW51: =ProjectData[[#This Row],[Real Sum]]>ProjectData[[#This Row],[Category Limit]] -> FALSE | AY51: =OR(ProjectData[[#This Row],[Significant Project? (Financial Basis)]],ProjectData[[#This Row],[Non repeatable]]) -> FALSE | AZ51: =AND(ProjectData[[#This Row],[SomeExpenditure >= 2016]],ProjectData[[#This Row],[Abnormal?]]) -> FALSE
A52: CP.01051 | B52: Blackwater 132kV Extension (Rolleston) | C52: Other | D52: 0 | E52: 0 | F52: 0 | G52: 0 | H52: 0 | I52: 0 | J52: 0 | K52: 0 | L52: 0 | M52: 0 | N52: 0 | O52: 0 | P52: 0 | Q52: 0 | R52: 0 | S52: 0 | T52: 0 | U52: 0 | V52: 0 | W52: 0 | X52: =ProjectData[[#This Row],[Real Sum]]>0.0001 -> FALSE | Y52: =OR(ProjectData[[#This Row],[Real 16]]>0,ProjectData[[#This Row],[Real 17]]>0,ProjectData[[#This Row],[Real 18]]>0,ProjectData[[#This Row],[Real 19]]>0,ProjectData[[#This Row],[Real 20]]>0) -> FALSE | Z52: =ProjectData[[#This Row],[Actuals 07/08]]*VLOOKUP("Mid Year Nominal - EOY Real (2026/27)",CPI[],MATCH(Z$4,CPI[#Headers],0),FALSE) -> 0 | AA52: =ProjectData[[#This Row],[Actuals 08/09]]*VLOOKUP("Mid Year Nominal - EOY Real (2026/27)",CPI[],MATCH(AA$4,CPI[#Headers],0),FALSE) -> 0 | AB52: =ProjectData[[#This Row],[Actuals 09/10]]*VLOOKUP("Mid Year Nominal - EOY Real (2026/27)",CPI[],MATCH(AB$4,CPI[#Headers],0),FALSE) -> 0 | AC52: =ProjectData[[#This Row],[Actuals 10/11]]*VLOOKUP("Mid Year Nominal - EOY Real (2026/27)",CPI[],MATCH(AC$4,CPI[#Headers],0),FALSE) -> 0 | AD52: =ProjectData[[#This Row],[Actuals 11/12]]*VLOOKUP("Mid Year Nominal - EOY Real (2026/27)",CPI[],MATCH(AD$4,CPI[#Headers],0),FALSE) -> 0 | AE52: =ProjectData[[#This Row],[Actuals 12/13]]*VLOOKUP("Mid Year Nominal - EOY Real (2026/27)",CPI[],MATCH(AE$4,CPI[#Headers],0),FALSE) -> 0 | AF52: =ProjectData[[#This Row],[Actuals 13/14]]*VLOOKUP("Mid Year Nominal - EOY Real (2026/27)",CPI[],MATCH(AF$4,CPI[#Headers],0),FALSE) -> 0 | AG52: =ProjectData[[#This Row],[Actuals 14/15]]*VLOOKUP("Mid Year Nominal - EOY Real (2026/27)",CPI[],MATCH(AG$4,CPI[#Headers],0),FALSE) -> 0 | AH52: =ProjectData[[#This Row],[Actuals 15/16]]*VLOOKUP("Mid Year Nominal - EOY Real (2026/27)",CPI[],MATCH(AH$4,CPI[#Headers],0),FALSE) -> 0 | AI52: =ProjectData[[#This Row],[Actuals 16/17]]*VLOOKUP("Mid Year Nominal - EOY Real (2026/27)",CPI[],MATCH(AI$4,CPI[#Headers],0),FALSE) -> 0 | AJ52: =ProjectData[[#This Row],[Actuals 17/18]]*VLOOKUP("Mid Year Nominal - EOY Real (2026/27)",CPI[],MATCH(AJ$4,CPI[#Headers],0),FALSE) -> 0 | AK52: =ProjectData[[#This Row],[Actuals 18/19]]*VLOOKUP("Mid Year Nominal - EOY Real (2026/27)",CPI[],MATCH(AK$4,CPI[#Headers],0),FALSE) -> 0 | AL52: =ProjectData[[#This Row],[Actuals 19/20]]*VLOOKUP("Mid Year Nominal - EOY Real (2026/27)",CPI[],MATCH(AL$4,CPI[#Headers],0),FALSE) -> 0 | AM52: =ProjectData[[#This Row],[Actuals 20/21]]*VLOOKUP("Mid Year Nominal - EOY Real (2026/27)",CPI[],MATCH(AM$4,CPI[#Headers],0),FALSE) -> 0 | AN52: =ProjectData[[#This Row],[Actuals 21/22]]*VLOOKUP("Mid Year Nominal - EOY Real (2026/27)",CPI[],MATCH(AN$4,CPI[#Headers],0),FALSE) -> 0 | AO52: =ProjectData[[#This Row],[Actuals 22/23]]*VLOOKUP("Mid Year Nominal - EOY Real (2026/27)",CPI[],MATCH(AO$4,CPI[#Headers],0),FALSE) -> 0 | AP52: =ProjectData[[#This Row],[Actuals 23/24]]*VLOOKUP("Mid Year Nominal - EOY Real (2026/27)",CPI[],MATCH(AP$4,CPI[#Headers],0),FALSE) -> 0 | AQ52: =ProjectData[[#This Row],[Actual 24/25]]*VLOOKUP("Mid Year Nominal - EOY Real (2026/27)",CPI[],MATCH(AQ$4,CPI[#Headers],0),FALSE) -> 0 | AR52: =ProjectData[[#This Row],[Forecast 25/26]]*VLOOKUP("Mid Year Nominal - EOY Real (2026/27)",CPI[],MATCH(AR$4,CPI[#Headers],0),FALSE) -> 0 | AS52: =ProjectData[[#This Row],[Forecast 26/27]]*VLOOKUP("Mid Year Nominal - EOY Real (2026/27)",CPI[],MATCH(AS$4,CPI[#Headers],0),FALSE) -> 0 | AT52: =SUM(ProjectData[[#This Row],[Real 08]:[Real 27]]) -> 0 | AU52: =(ProjectData[[#This Row],[Real Sum]]-VLOOKUP(ProjectData[[#This Row],[Category]],Category_AverageStdDevLimit[],MATCH("Average",Category_AverageStdDevLimit[#Headers],0),FALSE))^2 -> 4.482485466 | AV52: =VLOOKUP(ProjectData[[#This Row],[Category]],Category_AverageStdDevLimit[],MATCH("Limit",Category_AverageStdDevLimit[#Headers],0),FALSE) -> 10.66631335 | AW52: =ProjectData[[#This Row],[Real Sum]]>ProjectData[[#This Row],[Category Limit]] -> FALSE | AY52: =OR(ProjectData[[#This Row],[Significant Project? (Financial Basis)]],ProjectData[[#This Row],[Non repeatable]]) -> FALSE | AZ52: =AND(ProjectData[[#This Row],[SomeExpenditure >= 2016]],ProjectData[[#This Row],[Abnormal?]]) -> FALSE
A53: CP.01061 | B53: Ross - Dan Gleeson 132kV Line Uprate | C53: Other | D53: 0 | E53: 0 | F53: 0 | G53: 0 | H53: 0 | I53: 0 | J53: 0 | K53: 0 | L53: 0 | M53: 0 | N53: 0 | O53: 0 | P53: 0 | Q53: 0 | R53: 0 | S53: 0 | T53: 0 | U53: 0 | V53: 0 | W53: 0 | X53: =ProjectData[[#This Row],[Real Sum]]>0.0001 -> FALSE | Y53: =OR(ProjectData[[#This Row],[Real 16]]>0,ProjectData[[#This Row],[Real 17]]>0,ProjectData[[#This Row],[Real 18]]>0,ProjectData[[#This Row],[Real 19]]>0,ProjectData[[#This Row],[Real 20]]>0) -> FALSE | Z53: =ProjectData[[#This Row],[Actuals 07/08]]*VLOOKUP("Mid Year Nominal - EOY Real (2026/27)",CPI[],MATCH(Z$4,CPI[#Headers],0),FALSE) -> 0 | AA53: =ProjectData[[#This Row],[Actuals 08/09]]*VLOOKUP("Mid Year Nominal - EOY Real (2026/27)",CPI[],MATCH(AA$4,CPI[#Headers],0),FALSE) -> 0 | AB53: =ProjectData[[#This Row],[Actuals 09/10]]*VLOOKUP("Mid Year Nominal - EOY Real (2026/27)",CPI[],MATCH(AB$4,CPI[#Headers],0),FALSE) -> 0 | AC53: =ProjectData[[#This Row],[Actuals 10/11]]*VLOOKUP("Mid Year Nominal - EOY Real (2026/27)",CPI[],MATCH(AC$4,CPI[#Headers],0),FALSE) -> 0 | AD53: =ProjectData[[#This Row],[Actuals 11/12]]*VLOOKUP("Mid Year Nominal - EOY Real (2026/27)",CPI[],MATCH(AD$4,CPI[#Headers],0),FALSE) -> 0 | AE53: =ProjectData[[#This Row],[Actuals 12/13]]*VLOOKUP("Mid Year Nominal - EOY Real (2026/27)",CPI[],MATCH(AE$4,CPI[#Headers],0),FALSE) -> 0 | AF53: =ProjectData[[#This Row],[Actuals 13/14]]*VLOOKUP("Mid Year Nominal - EOY Real (2026/27)",CPI[],MATCH(AF$4,CPI[#Headers],0),FALSE) -> 0 | AG53: =ProjectData[[#This Row],[Actuals 14/15]]*VLOOKUP("Mid Year Nominal - EOY Real (2026/27)",CPI[],MATCH(AG$4,CPI[#Headers],0),FALSE) -> 0 | AH53: =ProjectData[[#This Row],[Actuals 15/16]]*VLOOKUP("Mid Year Nominal - EOY Real (2026/27)",CPI[],MATCH(AH$4,CPI[#Headers],0),FALSE) -> 0 | AI53: =ProjectData[[#This Row],[Actuals 16/17]]*VLOOKUP("Mid Year Nominal - EOY Real (2026/27)",CPI[],MATCH(AI$4,CPI[#Headers],0),FALSE) -> 0 | AJ53: =ProjectData[[#This Row],[Actuals 17/18]]*VLOOKUP("Mid Year Nominal - EOY Real (2026/27)",CPI[],MATCH(AJ$4,CPI[#Headers],0),FALSE) -> 0 | AK53: =ProjectData[[#This Row],[Actuals 18/19]]*VLOOKUP("Mid Year Nominal - EOY Real (2026/27)",CPI[],MATCH(AK$4,CPI[#Headers],0),FALSE) -> 0 | AL53: =ProjectData[[#This Row],[Actuals 19/20]]*VLOOKUP("Mid Year Nominal - EOY Real (2026/27)",CPI[],MATCH(AL$4,CPI[#Headers],0),FALSE) -> 0 | AM53: =ProjectData[[#This Row],[Actuals 20/21]]*VLOOKUP("Mid Year Nominal - EOY Real (2026/27)",CPI[],MATCH(AM$4,CPI[#Headers],0),FALSE) -> 0 | AN53: =ProjectData[[#This Row],[Actuals 21/22]]*VLOOKUP("Mid Year Nominal - EOY Real (2026/27)",CPI[],MATCH(AN$4,CPI[#Headers],0),FALSE) -> 0 | AO53: =ProjectData[[#This Row],[Actuals 22/23]]*VLOOKUP("Mid Year Nominal - EOY Real (2026/27)",CPI[],MATCH(AO$4,CPI[#Headers],0),FALSE) -> 0 | AP53: =ProjectData[[#This Row],[Actuals 23/24]]*VLOOKUP("Mid Year Nominal - EOY Real (2026/27)",CPI[],MATCH(AP$4,CPI[#Headers],0),FALSE) -> 0 | AQ53: =ProjectData[[#This Row],[Actual 24/25]]*VLOOKUP("Mid Year Nominal - EOY Real (2026/27)",CPI[],MATCH(AQ$4,CPI[#Headers],0),FALSE) -> 0 | AR53: =ProjectData[[#This Row],[Forecast 25/26]]*VLOOKUP("Mid Year Nominal - EOY Real (2026/27)",CPI[],MATCH(AR$4,CPI[#Headers],0),FALSE) -> 0 | AS53: =ProjectData[[#This Row],[Forecast 26/27]]*VLOOKUP("Mid Year Nominal - EOY Real (2026/27)",CPI[],MATCH(AS$4,CPI[#Headers],0),FALSE) -> 0 | AT53: =SUM(ProjectData[[#This Row],[Real 08]:[Real 27]]) -> 0 | AU53: =(ProjectData[[#This Row],[Real Sum]]-VLOOKUP(ProjectData[[#This Row],[Category]],Category_AverageStdDevLimit[],MATCH("Average",Category_AverageStdDevLimit[#Headers],0),FALSE))^2 -> 4.482485466 | AV53: =VLOOKUP(ProjectData[[#This Row],[Category]],Category_AverageStdDevLimit[],MATCH("Limit",Category_AverageStdDevLimit[#Headers],0),FALSE) -> 10.66631335 | AW53: =ProjectData[[#This Row],[Real Sum]]>ProjectData[[#This Row],[Category Limit]] -> FALSE | AY53: =OR(ProjectData[[#This Row],[Significant Project? (Financial Basis)]],ProjectData[[#This Row],[Non repeatable]]) -> FALSE | AZ53: =AND(ProjectData[[#This Row],[SomeExpenditure >= 2016]],ProjectData[[#This Row],[Abnormal?]]) -> FALSE
A54: CP.01071 | B54: Allan Sherriff to Bohle River 132kV Line Rebuild | C54: Other | D54: 0 | E54: 0 | F54: 0 | G54: 0 | H54: 0 | I54: 0 | J54: 0 | K54: 0 | L54: 0 | M54: 0 | N54: 0 | O54: 0 | P54: 0 | Q54: 0 | R54: 0 | S54: 0 | T54: 0 | U54: 0 | V54: 0 | W54: 0 | X54: =ProjectData[[#This Row],[Real Sum]]>0.0001 -> FALSE | Y54: =OR(ProjectData[[#This Row],[Real 16]]>0,ProjectData[[#This Row],[Real 17]]>0,ProjectData[[#This Row],[Real 18]]>0,ProjectData[[#This Row],[Real 19]]>0,ProjectData[[#This Row],[Real 20]]>0) -> FALSE | Z54: =ProjectData[[#This Row],[Actuals 07/08]]*VLOOKUP("Mid Year Nominal - EOY Real (2026/27)",CPI[],MATCH(Z$4,CPI[#Headers],0),FALSE) -> 0 | AA54: =ProjectData[[#This Row],[Actuals 08/09]]*VLOOKUP("Mid Year Nominal - EOY Real (2026/27)",CPI[],MATCH(AA$4,CPI[#Headers],0),FALSE) -> 0 | AB54: =ProjectData[[#This Row],[Actuals 09/10]]*VLOOKUP("Mid Year Nominal - EOY Real (2026/27)",CPI[],MATCH(AB$4,CPI[#Headers],0),FALSE) -> 0 | AC54: =ProjectData[[#This Row],[Actuals 10/11]]*VLOOKUP("Mid Year Nominal - EOY Real (2026/27)",CPI[],MATCH(AC$4,CPI[#Headers],0),FALSE) -> 0 | AD54: =ProjectData[[#This Row],[Actuals 11/12]]*VLOOKUP("Mid Year Nominal - EOY Real (2026/27)",CPI[],MATCH(AD$4,CPI[#Headers],0),FALSE) -> 0 | AE54: =ProjectData[[#This Row],[Actuals 12/13]]*VLOOKUP("Mid Year Nominal - EOY Real (2026/27)",CPI[],MATCH(AE$4,CPI[#Headers],0),FALSE) -> 0 | AF54: =ProjectData[[#This Row],[Actuals 13/14]]*VLOOKUP("Mid Year Nominal - EOY Real (2026/27)",CPI[],MATCH(AF$4,CPI[#Headers],0),FALSE) -> 0 | AG54: =ProjectData[[#This Row],[Actuals 14/15]]*VLOOKUP("Mid Year Nominal - EOY Real (2026/27)",CPI[],MATCH(AG$4,CPI[#Headers],0),FALSE) -> 0 | AH54: =ProjectData[[#This Row],[Actuals 15/16]]*VLOOKUP("Mid Year Nominal - EOY Real (2026/27)",CPI[],MATCH(AH$4,CPI[#Headers],0),FALSE) -> 0 | AI54: =ProjectData[[#This Row],[Actuals 16/17]]*VLOOKUP("Mid Year Nominal - EOY Real (2026/27)",CPI[],MATCH(AI$4,CPI[#Headers],0),FALSE) -> 0 | AJ54: =ProjectData[[#This Row],[Actuals 17/18]]*VLOOKUP("Mid Year Nominal - EOY Real (2026/27)",CPI[],MATCH(AJ$4,CPI[#Headers],0),FALSE) -> 0 | AK54: =ProjectData[[#This Row],[Actuals 18/19]]*VLOOKUP("Mid Year Nominal - EOY Real (2026/27)",CPI[],MATCH(AK$4,CPI[#Headers],0),FALSE) -> 0 | AL54: =ProjectData[[#This Row],[Actuals 19/20]]*VLOOKUP("Mid Year Nominal - EOY Real (2026/27)",CPI[],MATCH(AL$4,CPI[#Headers],0),FALSE) -> 0 | AM54: =ProjectData[[#This Row],[Actuals 20/21]]*VLOOKUP("Mid Year Nominal - EOY Real (2026/27)",CPI[],MATCH(AM$4,CPI[#Headers],0),FALSE) -> 0 | AN54: =ProjectData[[#This Row],[Actuals 21/22]]*VLOOKUP("Mid Year Nominal - EOY Real (2026/27)",CPI[],MATCH(AN$4,CPI[#Headers],0),FALSE) -> 0 | AO54: =ProjectData[[#This Row],[Actuals 22/23]]*VLOOKUP("Mid Year Nominal - EOY Real (2026/27)",CPI[],MATCH(AO$4,CPI[#Headers],0),FALSE) -> 0 | AP54: =ProjectData[[#This Row],[Actuals 23/24]]*VLOOKUP("Mid Year Nominal - EOY Real (2026/27)",CPI[],MATCH(AP$4,CPI[#Headers],0),FALSE) -> 0 | AQ54: =ProjectData[[#This Row],[Actual 24/25]]*VLOOKUP("Mid Year Nominal - EOY Real (2026/27)",CPI[],MATCH(AQ$4,CPI[#Headers],0),FALSE) -> 0 | AR54: =ProjectData[[#This Row],[Forecast 25/26]]*VLOOKUP("Mid Year Nominal - EOY Real (2026/27)",CPI[],MATCH(AR$4,CPI[#Headers],0),FALSE) -> 0 | AS54: =ProjectData[[#This Row],[Forecast 26/27]]*VLOOKUP("Mid Year Nominal - EOY Real (2026/27)",CPI[],MATCH(AS$4,CPI[#Headers],0),FALSE) -> 0 | AT54: =SUM(ProjectData[[#This Row],[Real 08]:[Real 27]]) -> 0 | AU54: =(ProjectData[[#This Row],[Real Sum]]-VLOOKUP(ProjectData[[#This Row],[Category]],Category_AverageStdDevLimit[],MATCH("Average",Category_AverageStdDevLimit[#Headers],0),FALSE))^2 -> 4.482485466 | AV54: =VLOOKUP(ProjectData[[#This Row],[Category]],Category_AverageStdDevLimit[],MATCH("Limit",Category_AverageStdDevLimit[#Headers],0),FALSE) -> 10.66631335 | AW54: =ProjectData[[#This Row],[Real Sum]]>ProjectData[[#This Row],[Category Limit]] -> FALSE | AX54: TRUE | AY54: =OR(ProjectData[[#This Row],[Significant Project? (Financial Basis)]],ProjectData[[#This Row],[Non repeatable]]) -> TRUE | AZ54: =AND(ProjectData[[#This Row],[SomeExpenditure >= 2016]],ProjectData[[#This Row],[Abnormal?]]) -> FALSE
A55: CP.01079 | B55: Bundamba 110kV Substation Establishment | C55: Other | D55: 0 | E55: 0 | F55: 0 | G55: 0 | H55: 0 | I55: 0 | J55: 0 | K55: 0 | L55: 0 | M55: 0 | N55: 0 | O55: 0 | P55: 0 | Q55: 0 | R55: 0 | S55: 0 | T55: 0 | U55: 0 | V55: 0 | W55: 0 | X55: =ProjectData[[#This Row],[Real Sum]]>0.0001 -> FALSE | Y55: =OR(ProjectData[[#This Row],[Real 16]]>0,ProjectData[[#This Row],[Real 17]]>0,ProjectData[[#This Row],[Real 18]]>0,ProjectData[[#This Row],[Real 19]]>0,ProjectData[[#This Row],[Real 20]]>0) -> FALSE | Z55: =ProjectData[[#This Row],[Actuals 07/08]]*VLOOKUP("Mid Year Nominal - EOY Real (2026/27)",CPI[],MATCH(Z$4,CPI[#Headers],0),FALSE) -> 0 | AA55: =ProjectData[[#This Row],[Actuals 08/09]]*VLOOKUP("Mid Year Nominal - EOY Real (2026/27)",CPI[],MATCH(AA$4,CPI[#Headers],0),FALSE) -> 0 | AB55: =ProjectData[[#This Row],[Actuals 09/10]]*VLOOKUP("Mid Year Nominal - EOY Real (2026/27)",CPI[],MATCH(AB$4,CPI[#Headers],0),FALSE) -> 0 | AC55: =ProjectData[[#This Row],[Actuals 10/11]]*VLOOKUP("Mid Year Nominal - EOY Real (2026/27)",CPI[],MATCH(AC$4,CPI[#Headers],0),FALSE) -> 0 | AD55: =ProjectData[[#This Row],[Actuals 11/12]]*VLOOKUP("Mid Year Nominal - EOY Real (2026/27)",CPI[],MATCH(AD$4,CPI[#Headers],0),FALSE) -> 0 | AE55: =ProjectData[[#This Row],[Actuals 12/13]]*VLOOKUP("Mid Year Nominal - EOY Real (2026/27)",CPI[],MATCH(AE$4,CPI[#Headers],0),FALSE) -> 0 | AF55: =ProjectData[[#This Row],[Actuals 13/14]]*VLOOKUP("Mid Year Nominal - EOY Real (2026/27)",CPI[],MATCH(AF$4,CPI[#Headers],0),FALSE) -> 0 | AG55: =ProjectData[[#This Row],[Actuals 14/15]]*VLOOKUP("Mid Year Nominal - EOY Real (2026/27)",CPI[],MATCH(AG$4,CPI[#Headers],0),FALSE) -> 0 | AH55: =ProjectData[[#This Row],[Actuals 15/16]]*VLOOKUP("Mid Year Nominal - EOY Real (2026/27)",CPI[],MATCH(AH$4,CPI[#Headers],0),FALSE) -> 0 | AI55: =ProjectData[[#This Row],[Actuals 16/17]]*VLOOKUP("Mid Year Nominal - EOY Real (2026/27)",CPI[],MATCH(AI$4,CPI[#Headers],0),FALSE) -> 0 | AJ55: =ProjectData[[#This Row],[Actuals 17/18]]*VLOOKUP("Mid Year Nominal - EOY Real (2026/27)",CPI[],MATCH(AJ$4,CPI[#Headers],0),FALSE) -> 0 | AK55: =ProjectData[[#This Row],[Actuals 18/19]]*VLOOKUP("Mid Year Nominal - EOY Real (2026/27)",CPI[],MATCH(AK$4,CPI[#Headers],0),FALSE) -> 0 | AL55: =ProjectData[[#This Row],[Actuals 19/20]]*VLOOKUP("Mid Year Nominal - EOY Real (2026/27)",CPI[],MATCH(AL$4,CPI[#Headers],0),FALSE) -> 0 | AM55: =ProjectData[[#This Row],[Actuals 20/21]]*VLOOKUP("Mid Year Nominal - EOY Real (2026/27)",CPI[],MATCH(AM$4,CPI[#Headers],0),FALSE) -> 0 | AN55: =ProjectData[[#This Row],[Actuals 21/22]]*VLOOKUP("Mid Year Nominal - EOY Real (2026/27)",CPI[],MATCH(AN$4,CPI[#Headers],0),FALSE) -> 0 | AO55: =ProjectData[[#This Row],[Actuals 22/23]]*VLOOKUP("Mid Year Nominal - EOY Real (2026/27)",CPI[],MATCH(AO$4,CPI[#Headers],0),FALSE) -> 0 | AP55: =ProjectData[[#This Row],[Actuals 23/24]]*VLOOKUP("Mid Year Nominal - EOY Real (2026/27)",CPI[],MATCH(AP$4,CPI[#Headers],0),FALSE) -> 0 | AQ55: =ProjectData[[#This Row],[Actual 24/25]]*VLOOKUP("Mid Year Nominal - EOY Real (2026/27)",CPI[],MATCH(AQ$4,CPI[#Headers],0),FALSE) -> 0 | AR55: =ProjectData[[#This Row],[Forecast 25/26]]*VLOOKUP("Mid Year Nominal - EOY Real (2026/27)",CPI[],MATCH(AR$4,CPI[#Headers],0),FALSE) -> 0 | AS55: =ProjectData[[#This Row],[Forecast 26/27]]*VLOOKUP("Mid Year Nominal - EOY Real (2026/27)",CPI[],MATCH(AS$4,CPI[#Headers],0),FALSE) -> 0 | AT55: =SUM(ProjectData[[#This Row],[Real 08]:[Real 27]]) -> 0 | AU55: =(ProjectData[[#This Row],[Real Sum]]-VLOOKUP(ProjectData[[#This Row],[Category]],Category_AverageStdDevLimit[],MATCH("Average",Category_AverageStdDevLimit[#Headers],0),FALSE))^2 -> 4.482485466 | AV55: =VLOOKUP(ProjectData[[#This Row],[Category]],Category_AverageStdDevLimit[],MATCH("Limit",Category_AverageStdDevLimit[#Headers],0),FALSE) -> 10.66631335 | AW55: =ProjectData[[#This Row],[Real Sum]]>ProjectData[[#This Row],[Category Limit]] -> FALSE | AX55: TRUE | AY55: =OR(ProjectData[[#This Row],[Significant Project? (Financial Basis)]],ProjectData[[#This Row],[Non repeatable]]) -> TRUE | AZ55: =AND(ProjectData[[#This Row],[SomeExpenditure >= 2016]],ProjectData[[#This Row],[Abnormal?]]) -> FALSE
A56: CP.01080 | B56: Alligator Creek 132kV Capacitor Bank | C56: Other | D56: 0 | E56: 0 | F56: 0 | G56: 0 | H56: 0 | I56: 0 | J56: 0 | K56: 0 | L56: 0 | M56: 0 | N56: 0 | O56: 0 | P56: 0 | Q56: 0 | R56: 0 | S56: 0 | T56: 0 | U56: 0 | V56: 0 | W56: 0 | X56: =ProjectData[[#This Row],[Real Sum]]>0.0001 -> FALSE | Y56: =OR(ProjectData[[#This Row],[Real 16]]>0,ProjectData[[#This Row],[Real 17]]>0,ProjectData[[#This Row],[Real 18]]>0,ProjectData[[#This Row],[Real 19]]>0,ProjectData[[#This Row],[Real 20]]>0) -> FALSE | Z56: =ProjectData[[#This Row],[Actuals 07/08]]*VLOOKUP("Mid Year Nominal - EOY Real (2026/27)",CPI[],MATCH(Z$4,CPI[#Headers],0),FALSE) -> 0 | AA56: =ProjectData[[#This Row],[Actuals 08/09]]*VLOOKUP("Mid Year Nominal - EOY Real (2026/27)",CPI[],MATCH(AA$4,CPI[#Headers],0),FALSE) -> 0 | AB56: =ProjectData[[#This Row],[Actuals 09/10]]*VLOOKUP("Mid Year Nominal - EOY Real (2026/27)",CPI[],MATCH(AB$4,CPI[#Headers],0),FALSE) -> 0 | AC56: =ProjectData[[#This Row],[Actuals 10/11]]*VLOOKUP("Mid Year Nominal - EOY Real (2026/27)",CPI[],MATCH(AC$4,CPI[#Headers],0),FALSE) -> 0 | AD56: =ProjectData[[#This Row],[Actuals 11/12]]*VLOOKUP("Mid Year Nominal - EOY Real (2026/27)",CPI[],MATCH(AD$4,CPI[#Headers],0),FALSE) -> 0 | AE56: =ProjectData[[#This Row],[Actuals 12/13]]*VLOOKUP("Mid Year Nominal - EOY Real (2026/27)",CPI[],MATCH(AE$4,CPI[#Headers],0),FALSE) -> 0 | AF56: =ProjectData[[#This Row],[Actuals 13/14]]*VLOOKUP("Mid Year Nominal - EOY Real (2026/27)",CPI[],MATCH(AF$4,CPI[#Headers],0),FALSE) -> 0 | AG56: =ProjectData[[#This Row],[Actuals 14/15]]*VLOOKUP("Mid Year Nominal - EOY Real (2026/27)",CPI[],MATCH(AG$4,CPI[#Headers],0),FALSE) -> 0 | AH56: =ProjectData[[#This Row],[Actuals 15/16]]*VLOOKUP("Mid Year Nominal - EOY Real (2026/27)",CPI[],MATCH(AH$4,CPI[#Headers],0),FALSE) -> 0 | AI56: =ProjectData[[#This Row],[Actuals 16/17]]*VLOOKUP("Mid Year Nominal - EOY Real (2026/27)",CPI[],MATCH(AI$4,CPI[#Headers],0),FALSE) -> 0 | AJ56: =ProjectData[[#This Row],[Actuals 17/18]]*VLOOKUP("Mid Year Nominal - EOY Real (2026/27)",CPI[],MATCH(AJ$4,CPI[#Headers],0),FALSE) -> 0 | AK56: =ProjectData[[#This Row],[Actuals 18/19]]*VLOOKUP("Mid Year Nominal - EOY Real (2026/27)",CPI[],MATCH(AK$4,CPI[#Headers],0),FALSE) -> 0 | AL56: =ProjectData[[#This Row],[Actuals 19/20]]*VLOOKUP("Mid Year Nominal - EOY Real (2026/27)",CPI[],MATCH(AL$4,CPI[#Headers],0),FALSE) -> 0 | AM56: =ProjectData[[#This Row],[Actuals 20/21]]*VLOOKUP("Mid Year Nominal - EOY Real (2026/27)",CPI[],MATCH(AM$4,CPI[#Headers],0),FALSE) -> 0 | AN56: =ProjectData[[#This Row],[Actuals 21/22]]*VLOOKUP("Mid Year Nominal - EOY Real (2026/27)",CPI[],MATCH(AN$4,CPI[#Headers],0),FALSE) -> 0 | AO56: =ProjectData[[#This Row],[Actuals 22/23]]*VLOOKUP("Mid Year Nominal - EOY Real (2026/27)",CPI[],MATCH(AO$4,CPI[#Headers],0),FALSE) -> 0 | AP56: =ProjectData[[#This Row],[Actuals 23/24]]*VLOOKUP("Mid Year Nominal - EOY Real (2026/27)",CPI[],MATCH(AP$4,CPI[#Headers],0),FALSE) -> 0 | AQ56: =ProjectData[[#This Row],[Actual 24/25]]*VLOOKUP("Mid Year Nominal - EOY Real (2026/27)",CPI[],MATCH(AQ$4,CPI[#Headers],0),FALSE) -> 0 | AR56: =ProjectData[[#This Row],[Forecast 25/26]]*VLOOKUP("Mid Year Nominal - EOY Real (2026/27)",CPI[],MATCH(AR$4,CPI[#Headers],0),FALSE) -> 0 | AS56: =ProjectData[[#This Row],[Forecast 26/27]]*VLOOKUP("Mid Year Nominal - EOY Real (2026/27)",CPI[],MATCH(AS$4,CPI[#Headers],0),FALSE) -> 0 | AT56: =SUM(ProjectData[[#This Row],[Real 08]:[Real 27]]) -> 0 | AU56: =(ProjectData[[#This Row],[Real Sum]]-VLOOKUP(ProjectData[[#This Row],[Category]],Category_AverageStdDevLimit[],MATCH("Average",Category_AverageStdDevLimit[#Headers],0),FALSE))^2 -> 4.482485466 | AV56: =VLOOKUP(ProjectData[[#This Row],[Category]],Category_AverageStdDevLimit[],MATCH("Limit",Category_AverageStdDevLimit[#Headers],0),FALSE) -> 10.66631335 | AW56: =ProjectData[[#This Row],[Real Sum]]>ProjectData[[#This Row],[Category Limit]] -> FALSE | AY56: =OR(ProjectData[[#This Row],[Significant Project? (Financial Basis)]],ProjectData[[#This Row],[Non repeatable]]) -> FALSE | AZ56: =AND(ProjectData[[#This Row],[SomeExpenditure >= 2016]],ProjectData[[#This Row],[Abnormal?]]) -> FALSE
A57: CP.01085 | B57: Transmission Line Emergency Restoration Structures | C57: Other | D57: 0 | E57: 0 | F57: 0 | G57: 0 | H57: 0 | I57: 0 | J57: 0 | K57: 0 | L57: 0 | M57: 0 | N57: 0 | O57: 0 | P57: 0 | Q57: 0 | R57: 0 | S57: 0 | T57: 0 | U57: 0 | V57: 0 | W57: 0 | X57: =ProjectData[[#This Row],[Real Sum]]>0.0001 -> FALSE | Y57: =OR(ProjectData[[#This Row],[Real 16]]>0,ProjectData[[#This Row],[Real 17]]>0,ProjectData[[#This Row],[Real 18]]>0,ProjectData[[#This Row],[Real 19]]>0,ProjectData[[#This Row],[Real 20]]>0) -> FALSE | Z57: =ProjectData[[#This Row],[Actuals 07/08]]*VLOOKUP("Mid Year Nominal - EOY Real (2026/27)",CPI[],MATCH(Z$4,CPI[#Headers],0),FALSE) -> 0 | AA57: =ProjectData[[#This Row],[Actuals 08/09]]*VLOOKUP("Mid Year Nominal - EOY Real (2026/27)",CPI[],MATCH(AA$4,CPI[#Headers],0),FALSE) -> 0 | AB57: =ProjectData[[#This Row],[Actuals 09/10]]*VLOOKUP("Mid Year Nominal - EOY Real (2026/27)",CPI[],MATCH(AB$4,CPI[#Headers],0),FALSE) -> 0 | AC57: =ProjectData[[#This Row],[Actuals 10/11]]*VLOOKUP("Mid Year Nominal - EOY Real (2026/27)",CPI[],MATCH(AC$4,CPI[#Headers],0),FALSE) -> 0 | AD57: =ProjectData[[#This Row],[Actuals 11/12]]*VLOOKUP("Mid Year Nominal - EOY Real (2026/27)",CPI[],MATCH(AD$4,CPI[#Headers],0),FALSE) -> 0 | AE57: =ProjectData[[#This Row],[Actuals 12/13]]*VLOOKUP("Mid Year Nominal - EOY Real (2026/27)",CPI[],MATCH(AE$4,CPI[#Headers],0),FALSE) -> 0 | AF57: =ProjectData[[#This Row],[Actuals 13/14]]*VLOOKUP("Mid Year Nominal - EOY Real (2026/27)",CPI[],MATCH(AF$4,CPI[#Headers],0),FALSE) -> 0 | AG57: =ProjectData[[#This Row],[Actuals 14/15]]*VLOOKUP("Mid Year Nominal - EOY Real (2026/27)",CPI[],MATCH(AG$4,CPI[#Headers],0),FALSE) -> 0 | AH57: =ProjectData[[#This Row],[Actuals 15/16]]*VLOOKUP("Mid Year Nominal - EOY Real (2026/27)",CPI[],MATCH(AH$4,CPI[#Headers],0),FALSE) -> 0 | AI57: =ProjectData[[#This Row],[Actuals 16/17]]*VLOOKUP("Mid Year Nominal - EOY Real (2026/27)",CPI[],MATCH(AI$4,CPI[#Headers],0),FALSE) -> 0 | AJ57: =ProjectData[[#This Row],[Actuals 17/18]]*VLOOKUP("Mid Year Nominal - EOY Real (2026/27)",CPI[],MATCH(AJ$4,CPI[#Headers],0),FALSE) -> 0 | AK57: =ProjectData[[#This Row],[Actuals 18/19]]*VLOOKUP("Mid Year Nominal - EOY Real (2026/27)",CPI[],MATCH(AK$4,CPI[#Headers],0),FALSE) -> 0 | AL57: =ProjectData[[#This Row],[Actuals 19/20]]*VLOOKUP("Mid Year Nominal - EOY Real (2026/27)",CPI[],MATCH(AL$4,CPI[#Headers],0),FALSE) -> 0 | AM57: =ProjectData[[#This Row],[Actuals 20/21]]*VLOOKUP("Mid Year Nominal - EOY Real (2026/27)",CPI[],MATCH(AM$4,CPI[#Headers],0),FALSE) -> 0 | AN57: =ProjectData[[#This Row],[Actuals 21/22]]*VLOOKUP("Mid Year Nominal - EOY Real (2026/27)",CPI[],MATCH(AN$4,CPI[#Headers],0),FALSE) -> 0 | AO57: =ProjectData[[#This Row],[Actuals 22/23]]*VLOOKUP("Mid Year Nominal - EOY Real (2026/27)",CPI[],MATCH(AO$4,CPI[#Headers],0),FALSE) -> 0 | AP57: =ProjectData[[#This Row],[Actuals 23/24]]*VLOOKUP("Mid Year Nominal - EOY Real (2026/27)",CPI[],MATCH(AP$4,CPI[#Headers],0),FALSE) -> 0 | AQ57: =ProjectData[[#This Row],[Actual 24/25]]*VLOOKUP("Mid Year Nominal - EOY Real (2026/27)",CPI[],MATCH(AQ$4,CPI[#Headers],0),FALSE) -> 0 | AR57: =ProjectData[[#This Row],[Forecast 25/26]]*VLOOKUP("Mid Year Nominal - EOY Real (2026/27)",CPI[],MATCH(AR$4,CPI[#Headers],0),FALSE) -> 0 | AS57: =ProjectData[[#This Row],[Forecast 26/27]]*VLOOKUP("Mid Year Nominal - EOY Real (2026/27)",CPI[],MATCH(AS$4,CPI[#Headers],0),FALSE) -> 0 | AT57: =SUM(ProjectData[[#This Row],[Real 08]:[Real 27]]) -> 0 | AU57: =(ProjectData[[#This Row],[Real Sum]]-VLOOKUP(ProjectData[[#This Row],[Category]],Category_AverageStdDevLimit[],MATCH("Average",Category_AverageStdDevLimit[#Headers],0),FALSE))^2 -> 4.482485466 | AV57: =VLOOKUP(ProjectData[[#This Row],[Category]],Category_AverageStdDevLimit[],MATCH("Limit",Category_AverageStdDevLimit[#Headers],0),FALSE) -> 10.66631335 | AW57: =ProjectData[[#This Row],[Real Sum]]>ProjectData[[#This Row],[Category Limit]] -> FALSE | AY57: =OR(ProjectData[[#This Row],[Significant Project? (Financial Basis)]],ProjectData[[#This Row],[Non repeatable]]) -> FALSE | AZ57: =AND(ProjectData[[#This Row],[SomeExpenditure >= 2016]],ProjectData[[#This Row],[Abnormal?]]) -> FALSE
A58: CP.01093 | B58: South Pine 110kV Bus Coupler | C58: Other | D58: 0 | E58: 0 | F58: 0 | G58: 0 | H58: 0 | I58: 0 | J58: 0 | K58: 0 | L58: 0 | M58: 0 | N58: 0 | O58: 0 | P58: 0 | Q58: 0 | R58: 0 | S58: 0 | T58: 0 | U58: 0 | V58: 0 | W58: 0 | X58: =ProjectData[[#This Row],[Real Sum]]>0.0001 -> FALSE | Y58: =OR(ProjectData[[#This Row],[Real 16]]>0,ProjectData[[#This Row],[Real 17]]>0,ProjectData[[#This Row],[Real 18]]>0,ProjectData[[#This Row],[Real 19]]>0,ProjectData[[#This Row],[Real 20]]>0) -> FALSE | Z58: =ProjectData[[#This Row],[Actuals 07/08]]*VLOOKUP("Mid Year Nominal - EOY Real (2026/27)",CPI[],MATCH(Z$4,CPI[#Headers],0),FALSE) -> 0 | AA58: =ProjectData[[#This Row],[Actuals 08/09]]*VLOOKUP("Mid Year Nominal - EOY Real (2026/27)",CPI[],MATCH(AA$4,CPI[#Headers],0),FALSE) -> 0 | AB58: =ProjectData[[#This Row],[Actuals 09/10]]*VLOOKUP("Mid Year Nominal - EOY Real (2026/27)",CPI[],MATCH(AB$4,CPI[#Headers],0),FALSE) -> 0 | AC58: =ProjectData[[#This Row],[Actuals 10/11]]*VLOOKUP("Mid Year Nominal - EOY Real (2026/27)",CPI[],MATCH(AC$4,CPI[#Headers],0),FALSE) -> 0 | AD58: =ProjectData[[#This Row],[Actuals 11/12]]*VLOOKUP("Mid Year Nominal - EOY Real (2026/27)",CPI[],MATCH(AD$4,CPI[#Headers],0),FALSE) -> 0 | AE58: =ProjectData[[#This Row],[Actuals 12/13]]*VLOOKUP("Mid Year Nominal - EOY Real (2026/27)",CPI[],MATCH(AE$4,CPI[#Headers],0),FALSE) -> 0 | AF58: =ProjectData[[#This Row],[Actuals 13/14]]*VLOOKUP("Mid Year Nominal - EOY Real (2026/27)",CPI[],MATCH(AF$4,CPI[#Headers],0),FALSE) -> 0 | AG58: =ProjectData[[#This Row],[Actuals 14/15]]*VLOOKUP("Mid Year Nominal - EOY Real (2026/27)",CPI[],MATCH(AG$4,CPI[#Headers],0),FALSE) -> 0 | AH58: =ProjectData[[#This Row],[Actuals 15/16]]*VLOOKUP("Mid Year Nominal - EOY Real (2026/27)",CPI[],MATCH(AH$4,CPI[#Headers],0),FALSE) -> 0 | AI58: =ProjectData[[#This Row],[Actuals 16/17]]*VLOOKUP("Mid Year Nominal - EOY Real (2026/27)",CPI[],MATCH(AI$4,CPI[#Headers],0),FALSE) -> 0 | AJ58: =ProjectData[[#This Row],[Actuals 17/18]]*VLOOKUP("Mid Year Nominal - EOY Real (2026/27)",CPI[],MATCH(AJ$4,CPI[#Headers],0),FALSE) -> 0 | AK58: =ProjectData[[#This Row],[Actuals 18/19]]*VLOOKUP("Mid Year Nominal - EOY Real (2026/27)",CPI[],MATCH(AK$4,CPI[#Headers],0),FALSE) -> 0 | AL58: =ProjectData[[#This Row],[Actuals 19/20]]*VLOOKUP("Mid Year Nominal - EOY Real (2026/27)",CPI[],MATCH(AL$4,CPI[#Headers],0),FALSE) -> 0 | AM58: =ProjectData[[#This Row],[Actuals 20/21]]*VLOOKUP("Mid Year Nominal - EOY Real (2026/27)",CPI[],MATCH(AM$4,CPI[#Headers],0),FALSE) -> 0 | AN58: =ProjectData[[#This Row],[Actuals 21/22]]*VLOOKUP("Mid Year Nominal - EOY Real (2026/27)",CPI[],MATCH(AN$4,CPI[#Headers],0),FALSE) -> 0 | AO58: =ProjectData[[#This Row],[Actuals 22/23]]*VLOOKUP("Mid Year Nominal - EOY Real (2026/27)",CPI[],MATCH(AO$4,CPI[#Headers],0),FALSE) -> 0 | AP58: =ProjectData[[#This Row],[Actuals 23/24]]*VLOOKUP("Mid Year Nominal - EOY Real (2026/27)",CPI[],MATCH(AP$4,CPI[#Headers],0),FALSE) -> 0 | AQ58: =ProjectData[[#This Row],[Actual 24/25]]*VLOOKUP("Mid Year Nominal - EOY Real (2026/27)",CPI[],MATCH(AQ$4,CPI[#Headers],0),FALSE) -> 0 | AR58: =ProjectData[[#This Row],[Forecast 25/26]]*VLOOKUP("Mid Year Nominal - EOY Real (2026/27)",CPI[],MATCH(AR$4,CPI[#Headers],0),FALSE) -> 0 | AS58: =ProjectData[[#This Row],[Forecast 26/27]]*VLOOKUP("Mid Year Nominal - EOY Real (2026/27)",CPI[],MATCH(AS$4,CPI[#Headers],0),FALSE) -> 0 | AT58: =SUM(ProjectData[[#This Row],[Real 08]:[Real 27]]) -> 0 | AU58: =(ProjectData[[#This Row],[Real Sum]]-VLOOKUP(ProjectData[[#This Row],[Category]],Category_AverageStdDevLimit[],MATCH("Average",Category_AverageStdDevLimit[#Headers],0),FALSE))^2 -> 4.482485466 | AV58: =VLOOKUP(ProjectData[[#This Row],[Category]],Category_AverageStdDevLimit[],MATCH("Limit",Category_AverageStdDevLimit[#Headers],0),FALSE) -> 10.66631335 | AW58: =ProjectData[[#This Row],[Real Sum]]>ProjectData[[#This Row],[Category Limit]] -> FALSE | AY58: =OR(ProjectData[[#This Row],[Significant Project? (Financial Basis)]],ProjectData[[#This Row],[Non repeatable]]) -> FALSE | AZ58: =AND(ProjectData[[#This Row],[SomeExpenditure >= 2016]],ProjectData[[#This Row],[Abnormal?]]) -> FALSE
A59: CP.01099 | B59: Telecommunications Synchronisation | C59: Other | D59: 0 | E59: 0 | F59: 0 | G59: 0 | H59: 0 | I59: 0 | J59: 0 | K59: 0 | L59: 0 | M59: 0 | N59: 0 | O59: 0 | P59: 0 | Q59: 0 | R59: 0 | S59: 0 | T59: 0 | U59: 0 | V59: 0 | W59: 0 | X59: =ProjectData[[#This Row],[Real Sum]]>0.0001 -> FALSE | Y59: =OR(ProjectData[[#This Row],[Real 16]]>0,ProjectData[[#This Row],[Real 17]]>0,ProjectData[[#This Row],[Real 18]]>0,ProjectData[[#This Row],[Real 19]]>0,ProjectData[[#This Row],[Real 20]]>0) -> FALSE | Z59: =ProjectData[[#This Row],[Actuals 07/08]]*VLOOKUP("Mid Year Nominal - EOY Real (2026/27)",CPI[],MATCH(Z$4,CPI[#Headers],0),FALSE) -> 0 | AA59: =ProjectData[[#This Row],[Actuals 08/09]]*VLOOKUP("Mid Year Nominal - EOY Real (2026/27)",CPI[],MATCH(AA$4,CPI[#Headers],0),FALSE) -> 0 | AB59: =ProjectData[[#This Row],[Actuals 09/10]]*VLOOKUP("Mid Year Nominal - EOY Real (2026/27)",CPI[],MATCH(AB$4,CPI[#Headers],0),FALSE) -> 0 | AC59: =ProjectData[[#This Row],[Actuals 10/11]]*VLOOKUP("Mid Year Nominal - EOY Real (2026/27)",CPI[],MATCH(AC$4,CPI[#Headers],0),FALSE) -> 0 | AD59: =ProjectData[[#This Row],[Actuals 11/12]]*VLOOKUP("Mid Year Nominal - EOY Real (2026/27)",CPI[],MATCH(AD$4,CPI[#Headers],0),FALSE) -> 0 | AE59: =ProjectData[[#This Row],[Actuals 12/13]]*VLOOKUP("Mid Year Nominal - EOY Real (2026/27)",CPI[],MATCH(AE$4,CPI[#Headers],0),FALSE) -> 0 | AF59: =ProjectData[[#This Row],[Actuals 13/14]]*VLOOKUP("Mid Year Nominal - EOY Real (2026/27)",CPI[],MATCH(AF$4,CPI[#Headers],0),FALSE) -> 0 | AG59: =ProjectData[[#This Row],[Actuals 14/15]]*VLOOKUP("Mid Year Nominal - EOY Real (2026/27)",CPI[],MATCH(AG$4,CPI[#Headers],0),FALSE) -> 0 | AH59: =ProjectData[[#This Row],[Actuals 15/16]]*VLOOKUP("Mid Year Nominal - EOY Real (2026/27)",CPI[],MATCH(AH$4,CPI[#Headers],0),FALSE) -> 0 | AI59: =ProjectData[[#This Row],[Actuals 16/17]]*VLOOKUP("Mid Year Nominal - EOY Real (2026/27)",CPI[],MATCH(AI$4,CPI[#Headers],0),FALSE) -> 0 | AJ59: =ProjectData[[#This Row],[Actuals 17/18]]*VLOOKUP("Mid Year Nominal - EOY Real (2026/27)",CPI[],MATCH(AJ$4,CPI[#Headers],0),FALSE) -> 0 | AK59: =ProjectData[[#This Row],[Actuals 18/19]]*VLOOKUP("Mid Year Nominal - EOY Real (2026/27)",CPI[],MATCH(AK$4,CPI[#Headers],0),FALSE) -> 0 | AL59: =ProjectData[[#This Row],[Actuals 19/20]]*VLOOKUP("Mid Year Nominal - EOY Real (2026/27)",CPI[],MATCH(AL$4,CPI[#Headers],0),FALSE) -> 0 | AM59: =ProjectData[[#This Row],[Actuals 20/21]]*VLOOKUP("Mid Year Nominal - EOY Real (2026/27)",CPI[],MATCH(AM$4,CPI[#Headers],0),FALSE) -> 0 | AN59: =ProjectData[[#This Row],[Actuals 21/22]]*VLOOKUP("Mid Year Nominal - EOY Real (2026/27)",CPI[],MATCH(AN$4,CPI[#Headers],0),FALSE) -> 0 | AO59: =ProjectData[[#This Row],[Actuals 22/23]]*VLOOKUP("Mid Year Nominal - EOY Real (2026/27)",CPI[],MATCH(AO$4,CPI[#Headers],0),FALSE) -> 0 | AP59: =ProjectData[[#This Row],[Actuals 23/24]]*VLOOKUP("Mid Year Nominal - EOY Real (2026/27)",CPI[],MATCH(AP$4,CPI[#Headers],0),FALSE) -> 0 | AQ59: =ProjectData[[#This Row],[Actual 24/25]]*VLOOKUP("Mid Year Nominal - EOY Real (2026/27)",CPI[],MATCH(AQ$4,CPI[#Headers],0),FALSE) -> 0 | AR59: =ProjectData[[#This Row],[Forecast 25/26]]*VLOOKUP("Mid Year Nominal - EOY Real (2026/27)",CPI[],MATCH(AR$4,CPI[#Headers],0),FALSE) -> 0 | AS59: =ProjectData[[#This Row],[Forecast 26/27]]*VLOOKUP("Mid Year Nominal - EOY Real (2026/27)",CPI[],MATCH(AS$4,CPI[#Headers],0),FALSE) -> 0 | AT59: =SUM(ProjectData[[#This Row],[Real 08]:[Real 27]]) -> 0 | AU59: =(ProjectData[[#This Row],[Real Sum]]-VLOOKUP(ProjectData[[#This Row],[Category]],Category_AverageStdDevLimit[],MATCH("Average",Category_AverageStdDevLimit[#Headers],0),FALSE))^2 -> 4.482485466 | AV59: =VLOOKUP(ProjectData[[#This Row],[Category]],Category_AverageStdDevLimit[],MATCH("Limit",Category_AverageStdDevLimit[#Headers],0),FALSE) -> 10.66631335 | AW59: =ProjectData[[#This Row],[Real Sum]]>ProjectData[[#This Row],[Category Limit]] -> FALSE | AY59: =OR(ProjectData[[#This Row],[Significant Project? (Financial Basis)]],ProjectData[[#This Row],[Non repeatable]]) -> FALSE | AZ59: =AND(ProjectData[[#This Row],[SomeExpenditure >= 2016]],ProjectData[[#This Row],[Abnormal?]]) -> FALSE
A60: CP.01105 | B60: Winch-Up Tower Replacement Mt Hope & Dawson Range | C60: Other | D60: 0 | E60: 0 | F60: 0 | G60: 0 | H60: 0 | I60: 0 | J60: 0 | K60: 0 | L60: 0 | M60: 0 | N60: 0 | O60: 0 | P60: 0 | Q60: 0 | R60: 0 | S60: 0 | T60: 0 | U60: 0 | V60: 0 | W60: 0 | X60: =ProjectData[[#This Row],[Real Sum]]>0.0001 -> FALSE | Y60: =OR(ProjectData[[#This Row],[Real 16]]>0,ProjectData[[#This Row],[Real 17]]>0,ProjectData[[#This Row],[Real 18]]>0,ProjectData[[#This Row],[Real 19]]>0,ProjectData[[#This Row],[Real 20]]>0) -> FALSE | Z60: =ProjectData[[#This Row],[Actuals 07/08]]*VLOOKUP("Mid Year Nominal - EOY Real (2026/27)",CPI[],MATCH(Z$4,CPI[#Headers],0),FALSE) -> 0 | AA60: =ProjectData[[#This Row],[Actuals 08/09]]*VLOOKUP("Mid Year Nominal - EOY Real (2026/27)",CPI[],MATCH(AA$4,CPI[#Headers],0),FALSE) -> 0 | AB60: =ProjectData[[#This Row],[Actuals 09/10]]*VLOOKUP("Mid Year Nominal - EOY Real (2026/27)",CPI[],MATCH(AB$4,CPI[#Headers],0),FALSE) -> 0 | AC60: =ProjectData[[#This Row],[Actuals 10/11]]*VLOOKUP("Mid Year Nominal - EOY Real (2026/27)",CPI[],MATCH(AC$4,CPI[#Headers],0),FALSE) -> 0 | AD60: =ProjectData[[#This Row],[Actuals 11/12]]*VLOOKUP("Mid Year Nominal - EOY Real (2026/27)",CPI[],MATCH(AD$4,CPI[#Headers],0),FALSE) -> 0 | AE60: =ProjectData[[#This Row],[Actuals 12/13]]*VLOOKUP("Mid Year Nominal - EOY Real (2026/27)",CPI[],MATCH(AE$4,CPI[#Headers],0),FALSE) -> 0 | AF60: =ProjectData[[#This Row],[Actuals 13/14]]*VLOOKUP("Mid Year Nominal - EOY Real (2026/27)",CPI[],MATCH(AF$4,CPI[#Headers],0),FALSE) -> 0 | AG60: =ProjectData[[#This Row],[Actuals 14/15]]*VLOOKUP("Mid Year Nominal - EOY Real (2026/27)",CPI[],MATCH(AG$4,CPI[#Headers],0),FALSE) -> 0 | AH60: =ProjectData[[#This Row],[Actuals 15/16]]*VLOOKUP("Mid Year Nominal - EOY Real (2026/27)",CPI[],MATCH(AH$4,CPI[#Headers],0),FALSE) -> 0 | AI60: =ProjectData[[#This Row],[Actuals 16/17]]*VLOOKUP("Mid Year Nominal - EOY Real (2026/27)",CPI[],MATCH(AI$4,CPI[#Headers],0),FALSE) -> 0 | AJ60: =ProjectData[[#This Row],[Actuals 17/18]]*VLOOKUP("Mid Year Nominal - EOY Real (2026/27)",CPI[],MATCH(AJ$4,CPI[#Headers],0),FALSE) -> 0 | AK60: =ProjectData[[#This Row],[Actuals 18/19]]*VLOOKUP("Mid Year Nominal - EOY Real (2026/27)",CPI[],MATCH(AK$4,CPI[#Headers],0),FALSE) -> 0 | AL60: =ProjectData[[#This Row],[Actuals 19/20]]*VLOOKUP("Mid Year Nominal - EOY Real (2026/27)",CPI[],MATCH(AL$4,CPI[#Headers],0),FALSE) -> 0 | AM60: =ProjectData[[#This Row],[Actuals 20/21]]*VLOOKUP("Mid Year Nominal - EOY Real (2026/27)",CPI[],MATCH(AM$4,CPI[#Headers],0),FALSE) -> 0 | AN60: =ProjectData[[#This Row],[Actuals 21/22]]*VLOOKUP("Mid Year Nominal - EOY Real (2026/27)",CPI[],MATCH(AN$4,CPI[#Headers],0),FALSE) -> 0 | AO60: =ProjectData[[#This Row],[Actuals 22/23]]*VLOOKUP("Mid Year Nominal - EOY Real (2026/27)",CPI[],MATCH(AO$4,CPI[#Headers],0),FALSE) -> 0 | AP60: =ProjectData[[#This Row],[Actuals 23/24]]*VLOOKUP("Mid Year Nominal - EOY Real (2026/27)",CPI[],MATCH(AP$4,CPI[#Headers],0),FALSE) -> 0 | AQ60: =ProjectData[[#This Row],[Actual 24/25]]*VLOOKUP("Mid Year Nominal - EOY Real (2026/27)",CPI[],MATCH(AQ$4,CPI[#Headers],0),FALSE) -> 0 | AR60: =ProjectData[[#This Row],[Forecast 25/26]]*VLOOKUP("Mid Year Nominal - EOY Real (2026/27)",CPI[],MATCH(AR$4,CPI[#Headers],0),FALSE) -> 0 | AS60: =ProjectData[[#This Row],[Forecast 26/27]]*VLOOKUP("Mid Year Nominal - EOY Real (2026/27)",CPI[],MATCH(AS$4,CPI[#Headers],0),FALSE) -> 0 | AT60: =SUM(ProjectData[[#This Row],[Real 08]:[Real 27]]) -> 0 | AU60: =(ProjectData[[#This Row],[Real Sum]]-VLOOKUP(ProjectData[[#This Row],[Category]],Category_AverageStdDevLimit[],MATCH("Average",Category_AverageStdDevLimit[#Headers],0),FALSE))^2 -> 4.482485466 | AV60: =VLOOKUP(ProjectData[[#This Row],[Category]],Category_AverageStdDevLimit[],MATCH("Limit",Category_AverageStdDevLimit[#Headers],0),FALSE) -> 10.66631335 | AW60: =ProjectData[[#This Row],[Real Sum]]>ProjectData[[#This Row],[Category Limit]] -> FALSE | AY60: =OR(ProjectData[[#This Row],[Significant Project? (Financial Basis)]],ProjectData[[#This Row],[Non repeatable]]) -> FALSE | AZ60: =AND(ProjectData[[#This Row],[SomeExpenditure >= 2016]],ProjectData[[#This Row],[Abnormal?]]) -> FALSE
A61: CP.01106 | B61: Upgrade 50V DC Supplies at Crictical Comms Sites | C61: Other | D61: 0 | E61: 0 | F61: 0 | G61: 0 | H61: 0 | I61: 0 | J61: 0 | K61: 0 | L61: 0 | M61: 0 | N61: 0 | O61: 0 | P61: 0 | Q61: 0 | R61: 0 | S61: 0 | T61: 0 | U61: 0 | V61: 0 | W61: 0 | X61: =ProjectData[[#This Row],[Real Sum]]>0.0001 -> FALSE | Y61: =OR(ProjectData[[#This Row],[Real 16]]>0,ProjectData[[#This Row],[Real 17]]>0,ProjectData[[#This Row],[Real 18]]>0,ProjectData[[#This Row],[Real 19]]>0,ProjectData[[#This Row],[Real 20]]>0) -> FALSE | Z61: =ProjectData[[#This Row],[Actuals 07/08]]*VLOOKUP("Mid Year Nominal - EOY Real (2026/27)",CPI[],MATCH(Z$4,CPI[#Headers],0),FALSE) -> 0 | AA61: =ProjectData[[#This Row],[Actuals 08/09]]*VLOOKUP("Mid Year Nominal - EOY Real (2026/27)",CPI[],MATCH(AA$4,CPI[#Headers],0),FALSE) -> 0 | AB61: =ProjectData[[#This Row],[Actuals 09/10]]*VLOOKUP("Mid Year Nominal - EOY Real (2026/27)",CPI[],MATCH(AB$4,CPI[#Headers],0),FALSE) -> 0 | AC61: =ProjectData[[#This Row],[Actuals 10/11]]*VLOOKUP("Mid Year Nominal - EOY Real (2026/27)",CPI[],MATCH(AC$4,CPI[#Headers],0),FALSE) -> 0 | AD61: =ProjectData[[#This Row],[Actuals 11/12]]*VLOOKUP("Mid Year Nominal - EOY Real (2026/27)",CPI[],MATCH(AD$4,CPI[#Headers],0),FALSE) -> 0 | AE61: =ProjectData[[#This Row],[Actuals 12/13]]*VLOOKUP("Mid Year Nominal - EOY Real (2026/27)",CPI[],MATCH(AE$4,CPI[#Headers],0),FALSE) -> 0 | AF61: =ProjectData[[#This Row],[Actuals 13/14]]*VLOOKUP("Mid Year Nominal - EOY Real (2026/27)",CPI[],MATCH(AF$4,CPI[#Headers],0),FALSE) -> 0 | AG61: =ProjectData[[#This Row],[Actuals 14/15]]*VLOOKUP("Mid Year Nominal - EOY Real (2026/27)",CPI[],MATCH(AG$4,CPI[#Headers],0),FALSE) -> 0 | AH61: =ProjectData[[#This Row],[Actuals 15/16]]*VLOOKUP("Mid Year Nominal - EOY Real (2026/27)",CPI[],MATCH(AH$4,CPI[#Headers],0),FALSE) -> 0 | AI61: =ProjectData[[#This Row],[Actuals 16/17]]*VLOOKUP("Mid Year Nominal - EOY Real (2026/27)",CPI[],MATCH(AI$4,CPI[#Headers],0),FALSE) -> 0 | AJ61: =ProjectData[[#This Row],[Actuals 17/18]]*VLOOKUP("Mid Year Nominal - EOY Real (2026/27)",CPI[],MATCH(AJ$4,CPI[#Headers],0),FALSE) -> 0 | AK61: =ProjectData[[#This Row],[Actuals 18/19]]*VLOOKUP("Mid Year Nominal - EOY Real (2026/27)",CPI[],MATCH(AK$4,CPI[#Headers],0),FALSE) -> 0 | AL61: =ProjectData[[#This Row],[Actuals 19/20]]*VLOOKUP("Mid Year Nominal - EOY Real (2026/27)",CPI[],MATCH(AL$4,CPI[#Headers],0),FALSE) -> 0 | AM61: =ProjectData[[#This Row],[Actuals 20/21]]*VLOOKUP("Mid Year Nominal - EOY Real (2026/27)",CPI[],MATCH(AM$4,CPI[#Headers],0),FALSE) -> 0 | AN61: =ProjectData[[#This Row],[Actuals 21/22]]*VLOOKUP("Mid Year Nominal - EOY Real (2026/27)",CPI[],MATCH(AN$4,CPI[#Headers],0),FALSE) -> 0 | AO61: =ProjectData[[#This Row],[Actuals 22/23]]*VLOOKUP("Mid Year Nominal - EOY Real (2026/27)",CPI[],MATCH(AO$4,CPI[#Headers],0),FALSE) -> 0 | AP61: =ProjectData[[#This Row],[Actuals 23/24]]*VLOOKUP("Mid Year Nominal - EOY Real (2026/27)",CPI[],MATCH(AP$4,CPI[#Headers],0),FALSE) -> 0 | AQ61: =ProjectData[[#This Row],[Actual 24/25]]*VLOOKUP("Mid Year Nominal - EOY Real (2026/27)",CPI[],MATCH(AQ$4,CPI[#Headers],0),FALSE) -> 0 | AR61: =ProjectData[[#This Row],[Forecast 25/26]]*VLOOKUP("Mid Year Nominal - EOY Real (2026/27)",CPI[],MATCH(AR$4,CPI[#Headers],0),FALSE) -> 0 | AS61: =ProjectData[[#This Row],[Forecast 26/27]]*VLOOKUP("Mid Year Nominal - EOY Real (2026/27)",CPI[],MATCH(AS$4,CPI[#Headers],0),FALSE) -> 0 | AT61: =SUM(ProjectData[[#This Row],[Real 08]:[Real 27]]) -> 0 | AU61: =(ProjectData[[#This Row],[Real Sum]]-VLOOKUP(ProjectData[[#This Row],[Category]],Category_AverageStdDevLimit[],MATCH("Average",Category_AverageStdDevLimit[#Headers],0),FALSE))^2 -> 4.482485466 | AV61: =VLOOKUP(ProjectData[[#This Row],[Category]],Category_AverageStdDevLimit[],MATCH("Limit",Category_AverageStdDevLimit[#Headers],0),FALSE) -> 10.66631335 | AW61: =ProjectData[[#This Row],[Real Sum]]>ProjectData[[#This Row],[Category Limit]] -> FALSE | AY61: =OR(ProjectData[[#This Row],[Significant Project? (Financial Basis)]],ProjectData[[#This Row],[Non repeatable]]) -> FALSE | AZ61: =AND(ProjectData[[#This Row],[SomeExpenditure >= 2016]],ProjectData[[#This Row],[Abnormal?]]) -> FALSE
A62: CP.01115 | B62: INSTALL. OF SDH MICRO RADIO VIRGINIA - MT GLORIOUS | C62: Other | D62: 0 | E62: 0.0031192 | F62: -0.0031192 | G62: 0 | H62: 0 | I62: 0 | J62: 0 | K62: 0 | L62: 0 | M62: 0 | N62: 0 | O62: 0 | P62: 0 | Q62: 0 | R62: 0 | S62: 0 | T62: 0 | U62: 0 | V62: 0 | W62: 0 | X62: =ProjectData[[#This Row],[Real Sum]]>0.0001 -> TRUE | Y62: =OR(ProjectData[[#This Row],[Real 16]]>0,ProjectData[[#This Row],[Real 17]]>0,ProjectData[[#This Row],[Real 18]]>0,ProjectData[[#This Row],[Real 19]]>0,ProjectData[[#This Row],[Real 20]]>0) -> FALSE | Z62: =ProjectData[[#This Row],[Actuals 07/08]]*VLOOKUP("Mid Year Nominal - EOY Real (2026/27)",CPI[],MATCH(Z$4,CPI[#Headers],0),FALSE) -> 0 | AA62: =ProjectData[[#This Row],[Actuals 08/09]]*VLOOKUP("Mid Year Nominal - EOY Real (2026/27)",CPI[],MATCH(AA$4,CPI[#Headers],0),FALSE) -> 0.005001918907 | AB62: =ProjectData[[#This Row],[Actuals 09/10]]*VLOOKUP("Mid Year Nominal - EOY Real (2026/27)",CPI[],MATCH(AB$4,CPI[#Headers],0),FALSE) -> -0.004901137932 | AC62: =ProjectData[[#This Row],[Actuals 10/11]]*VLOOKUP("Mid Year Nominal - EOY Real (2026/27)",CPI[],MATCH(AC$4,CPI[#Headers],0),FALSE) -> 0 | AD62: =ProjectData[[#This Row],[Actuals 11/12]]*VLOOKUP("Mid Year Nominal - EOY Real (2026/27)",CPI[],MATCH(AD$4,CPI[#Headers],0),FALSE) -> 0 | AE62: =ProjectData[[#This Row],[Actuals 12/13]]*VLOOKUP("Mid Year Nominal - EOY Real (2026/27)",CPI[],MATCH(AE$4,CPI[#Headers],0),FALSE) -> 0 | AF62: =ProjectData[[#This Row],[Actuals 13/14]]*VLOOKUP("Mid Year Nominal - EOY Real (2026/27)",CPI[],MATCH(AF$4,CPI[#Headers],0),FALSE) -> 0 | AG62: =ProjectData[[#This Row],[Actuals 14/15]]*VLOOKUP("Mid Year Nominal - EOY Real (2026/27)",CPI[],MATCH(AG$4,CPI[#Headers],0),FALSE) -> 0 | AH62: =ProjectData[[#This Row],[Actuals 15/16]]*VLOOKUP("Mid Year Nominal - EOY Real (2026/27)",CPI[],MATCH(AH$4,CPI[#Headers],0),FALSE) -> 0 | AI62: =ProjectData[[#This Row],[Actuals 16/17]]*VLOOKUP("Mid Year Nominal - EOY Real (2026/27)",CPI[],MATCH(AI$4,CPI[#Headers],0),FALSE) -> 0 | AJ62: =ProjectData[[#This Row],[Actuals 17/18]]*VLOOKUP("Mid Year Nominal - EOY Real (2026/27)",CPI[],MATCH(AJ$4,CPI[#Headers],0),FALSE) -> 0 | AK62: =ProjectData[[#This Row],[Actuals 18/19]]*VLOOKUP("Mid Year Nominal - EOY Real (2026/27)",CPI[],MATCH(AK$4,CPI[#Headers],0),FALSE) -> 0 | AL62: =ProjectData[[#This Row],[Actuals 19/20]]*VLOOKUP("Mid Year Nominal - EOY Real (2026/27)",CPI[],MATCH(AL$4,CPI[#Headers],0),FALSE) -> 0 | AM62: =ProjectData[[#This Row],[Actuals 20/21]]*VLOOKUP("Mid Year Nominal - EOY Real (2026/27)",CPI[],MATCH(AM$4,CPI[#Headers],0),FALSE) -> 0 | AN62: =ProjectData[[#This Row],[Actuals 21/22]]*VLOOKUP("Mid Year Nominal - EOY Real (2026/27)",CPI[],MATCH(AN$4,CPI[#Headers],0),FALSE) -> 0 | AO62: =ProjectData[[#This Row],[Actuals 22/23]]*VLOOKUP("Mid Year Nominal - EOY Real (2026/27)",CPI[],MATCH(AO$4,CPI[#Headers],0),FALSE) -> 0 | AP62: =ProjectData[[#This Row],[Actuals 23/24]]*VLOOKUP("Mid Year Nominal - EOY Real (2026/27)",CPI[],MATCH(AP$4,CPI[#Headers],0),FALSE) -> 0 | AQ62: =ProjectData[[#This Row],[Actual 24/25]]*VLOOKUP("Mid Year Nominal - EOY Real (2026/27)",CPI[],MATCH(AQ$4,CPI[#Headers],0),FALSE) -> 0 | AR62: =ProjectData[[#This Row],[Forecast 25/26]]*VLOOKUP("Mid Year Nominal - EOY Real (2026/27)",CPI[],MATCH(AR$4,CPI[#Headers],0),FALSE) -> 0 | AS62: =ProjectData[[#This Row],[Forecast 26/27]]*VLOOKUP("Mid Year Nominal - EOY Real (2026/27)",CPI[],MATCH(AS$4,CPI[#Headers],0),FALSE) -> 0 | AT62: =SUM(ProjectData[[#This Row],[Real 08]:[Real 27]]) -> 0.0001007809748 | AU62: =(ProjectData[[#This Row],[Real Sum]]-VLOOKUP(ProjectData[[#This Row],[Category]],Category_AverageStdDevLimit[],MATCH("Average",Category_AverageStdDevLimit[#Headers],0),FALSE))^2 -> 4.482058731 | AV62: =VLOOKUP(ProjectData[[#This Row],[Category]],Category_AverageStdDevLimit[],MATCH("Limit",Category_AverageStdDevLimit[#Headers],0),FALSE) -> 10.66631335 | AW62: =ProjectData[[#This Row],[Real Sum]]>ProjectData[[#This Row],[Category Limit]] -> FALSE | AY62: =OR(ProjectData[[#This Row],[Significant Project? (Financial Basis)]],ProjectData[[#This Row],[Non repeatable]]) -> FALSE | AZ62: =AND(ProjectData[[#This Row],[SomeExpenditure >= 2016]],ProjectData[[#This Row],[Abnormal?]]) -> FALSE
A63: CP.01205 | B63: Type 1 Telecommunications Tower Upgrades | C63: Other | D63: 0 | E63: 0 | F63: 0 | G63: 0 | H63: 0 | I63: 0 | J63: 0 | K63: 0 | L63: 0 | M63: 0 | N63: 0 | O63: 0 | P63: 0 | Q63: 0 | R63: 0 | S63: 0 | T63: 0 | U63: 0 | V63: 0 | W63: 0 | X63: =ProjectData[[#This Row],[Real Sum]]>0.0001 -> FALSE | Y63: =OR(ProjectData[[#This Row],[Real 16]]>0,ProjectData[[#This Row],[Real 17]]>0,ProjectData[[#This Row],[Real 18]]>0,ProjectData[[#This Row],[Real 19]]>0,ProjectData[[#This Row],[Real 20]]>0) -> FALSE | Z63: =ProjectData[[#This Row],[Actuals 07/08]]*VLOOKUP("Mid Year Nominal - EOY Real (2026/27)",CPI[],MATCH(Z$4,CPI[#Headers],0),FALSE) -> 0 | AA63: =ProjectData[[#This Row],[Actuals 08/09]]*VLOOKUP("Mid Year Nominal - EOY Real (2026/27)",CPI[],MATCH(AA$4,CPI[#Headers],0),FALSE) -> 0 | AB63: =ProjectData[[#This Row],[Actuals 09/10]]*VLOOKUP("Mid Year Nominal - EOY Real (2026/27)",CPI[],MATCH(AB$4,CPI[#Headers],0),FALSE) -> 0 | AC63: =ProjectData[[#This Row],[Actuals 10/11]]*VLOOKUP("Mid Year Nominal - EOY Real (2026/27)",CPI[],MATCH(AC$4,CPI[#Headers],0),FALSE) -> 0 | AD63: =ProjectData[[#This Row],[Actuals 11/12]]*VLOOKUP("Mid Year Nominal - EOY Real (2026/27)",CPI[],MATCH(AD$4,CPI[#Headers],0),FALSE) -> 0 | AE63: =ProjectData[[#This Row],[Actuals 12/13]]*VLOOKUP("Mid Year Nominal - EOY Real (2026/27)",CPI[],MATCH(AE$4,CPI[#Headers],0),FALSE) -> 0 | AF63: =ProjectData[[#This Row],[Actuals 13/14]]*VLOOKUP("Mid Year Nominal - EOY Real (2026/27)",CPI[],MATCH(AF$4,CPI[#Headers],0),FALSE) -> 0 | AG63: =ProjectData[[#This Row],[Actuals 14/15]]*VLOOKUP("Mid Year Nominal - EOY Real (2026/27)",CPI[],MATCH(AG$4,CPI[#Headers],0),FALSE) -> 0 | AH63: =ProjectData[[#This Row],[Actuals 15/16]]*VLOOKUP("Mid Year Nominal - EOY Real (2026/27)",CPI[],MATCH(AH$4,CPI[#Headers],0),FALSE) -> 0 | AI63: =ProjectData[[#This Row],[Actuals 16/17]]*VLOOKUP("Mid Year Nominal - EOY Real (2026/27)",CPI[],MATCH(AI$4,CPI[#Headers],0),FALSE) -> 0 | AJ63: =ProjectData[[#This Row],[Actuals 17/18]]*VLOOKUP("Mid Year Nominal - EOY Real (2026/27)",CPI[],MATCH(AJ$4,CPI[#Headers],0),FALSE) -> 0 | AK63: =ProjectData[[#This Row],[Actuals 18/19]]*VLOOKUP("Mid Year Nominal - EOY Real (2026/27)",CPI[],MATCH(AK$4,CPI[#Headers],0),FALSE) -> 0 | AL63: =ProjectData[[#This Row],[Actuals 19/20]]*VLOOKUP("Mid Year Nominal - EOY Real (2026/27)",CPI[],MATCH(AL$4,CPI[#Headers],0),FALSE) -> 0 | AM63: =ProjectData[[#This Row],[Actuals 20/21]]*VLOOKUP("Mid Year Nominal - EOY Real (2026/27)",CPI[],MATCH(AM$4,CPI[#Headers],0),FALSE) -> 0 | AN63: =ProjectData[[#This Row],[Actuals 21/22]]*VLOOKUP("Mid Year Nominal - EOY Real (2026/27)",CPI[],MATCH(AN$4,CPI[#Headers],0),FALSE) -> 0 | AO63: =ProjectData[[#This Row],[Actuals 22/23]]*VLOOKUP("Mid Year Nominal - EOY Real (2026/27)",CPI[],MATCH(AO$4,CPI[#Headers],0),FALSE) -> 0 | AP63: =ProjectData[[#This Row],[Actuals 23/24]]*VLOOKUP("Mid Year Nominal - EOY Real (2026/27)",CPI[],MATCH(AP$4,CPI[#Headers],0),FALSE) -> 0 | AQ63: =ProjectData[[#This Row],[Actual 24/25]]*VLOOKUP("Mid Year Nominal - EOY Real (2026/27)",CPI[],MATCH(AQ$4,CPI[#Headers],0),FALSE) -> 0 | AR63: =ProjectData[[#This Row],[Forecast 25/26]]*VLOOKUP("Mid Year Nominal - EOY Real (2026/27)",CPI[],MATCH(AR$4,CPI[#Headers],0),FALSE) -> 0 | AS63: =ProjectData[[#This Row],[Forecast 26/27]]*VLOOKUP("Mid Year Nominal - EOY Real (2026/27)",CPI[],MATCH(AS$4,CPI[#Headers],0),FALSE) -> 0 | AT63: =SUM(ProjectData[[#This Row],[Real 08]:[Real 27]]) -> 0 | AU63: =(ProjectData[[#This Row],[Real Sum]]-VLOOKUP(ProjectData[[#This Row],[Category]],Category_AverageStdDevLimit[],MATCH("Average",Category_AverageStdDevLimit[#Headers],0),FALSE))^2 -> 4.482485466 | AV63: =VLOOKUP(ProjectData[[#This Row],[Category]],Category_AverageStdDevLimit[],MATCH("Limit",Category_AverageStdDevLimit[#Headers],0),FALSE) -> 10.66631335 | AW63: =ProjectData[[#This Row],[Real Sum]]>ProjectData[[#This Row],[Category Limit]] -> FALSE | AY63: =OR(ProjectData[[#This Row],[Significant Project? (Financial Basis)]],ProjectData[[#This Row],[Non repeatable]]) -> FALSE | AZ63: =AND(ProjectData[[#This Row],[SomeExpenditure >= 2016]],ProjectData[[#This Row],[Abnormal?]]) -> FALSE
A64: CP.01207 | B64: AARNet Interim Stage 2 | C64: Other | D64: 0 | E64: 0 | F64: 0 | G64: 0 | H64: 0 | I64: 0 | J64: 0 | K64: 0 | L64: 0 | M64: 0 | N64: 0 | O64: 0 | P64: 0 | Q64: 0 | R64: 0 | S64: 0 | T64: 0 | U64: 0 | V64: 0 | W64: 0 | X64: =ProjectData[[#This Row],[Real Sum]]>0.0001 -> FALSE | Y64: =OR(ProjectData[[#This Row],[Real 16]]>0,ProjectData[[#This Row],[Real 17]]>0,ProjectData[[#This Row],[Real 18]]>0,ProjectData[[#This Row],[Real 19]]>0,ProjectData[[#This Row],[Real 20]]>0) -> FALSE | Z64: =ProjectData[[#This Row],[Actuals 07/08]]*VLOOKUP("Mid Year Nominal - EOY Real (2026/27)",CPI[],MATCH(Z$4,CPI[#Headers],0),FALSE) -> 0 | AA64: =ProjectData[[#This Row],[Actuals 08/09]]*VLOOKUP("Mid Year Nominal - EOY Real (2026/27)",CPI[],MATCH(AA$4,CPI[#Headers],0),FALSE) -> 0 | AB64: =ProjectData[[#This Row],[Actuals 09/10]]*VLOOKUP("Mid Year Nominal - EOY Real (2026/27)",CPI[],MATCH(AB$4,CPI[#Headers],0),FALSE) -> 0 | AC64: =ProjectData[[#This Row],[Actuals 10/11]]*VLOOKUP("Mid Year Nominal - EOY Real (2026/27)",CPI[],MATCH(AC$4,CPI[#Headers],0),FALSE) -> 0 | AD64: =ProjectData[[#This Row],[Actuals 11/12]]*VLOOKUP("Mid Year Nominal - EOY Real (2026/27)",CPI[],MATCH(AD$4,CPI[#Headers],0),FALSE) -> 0 | AE64: =ProjectData[[#This Row],[Actuals 12/13]]*VLOOKUP("Mid Year Nominal - EOY Real (2026/27)",CPI[],MATCH(AE$4,CPI[#Headers],0),FALSE) -> 0 | AF64: =ProjectData[[#This Row],[Actuals 13/14]]*VLOOKUP("Mid Year Nominal - EOY Real (2026/27)",CPI[],MATCH(AF$4,CPI[#Headers],0),FALSE) -> 0 | AG64: =ProjectData[[#This Row],[Actuals 14/15]]*VLOOKUP("Mid Year Nominal - EOY Real (2026/27)",CPI[],MATCH(AG$4,CPI[#Headers],0),FALSE) -> 0 | AH64: =ProjectData[[#This Row],[Actuals 15/16]]*VLOOKUP("Mid Year Nominal - EOY Real (2026/27)",CPI[],MATCH(AH$4,CPI[#Headers],0),FALSE) -> 0 | AI64: =ProjectData[[#This Row],[Actuals 16/17]]*VLOOKUP("Mid Year Nominal - EOY Real (2026/27)",CPI[],MATCH(AI$4,CPI[#Headers],0),FALSE) -> 0 | AJ64: =ProjectData[[#This Row],[Actuals 17/18]]*VLOOKUP("Mid Year Nominal - EOY Real (2026/27)",CPI[],MATCH(AJ$4,CPI[#Headers],0),FALSE) -> 0 | AK64: =ProjectData[[#This Row],[Actuals 18/19]]*VLOOKUP("Mid Year Nominal - EOY Real (2026/27)",CPI[],MATCH(AK$4,CPI[#Headers],0),FALSE) -> 0 | AL64: =ProjectData[[#This Row],[Actuals 19/20]]*VLOOKUP("Mid Year Nominal - EOY Real (2026/27)",CPI[],MATCH(AL$4,CPI[#Headers],0),FALSE) -> 0 | AM64: =ProjectData[[#This Row],[Actuals 20/21]]*VLOOKUP("Mid Year Nominal - EOY Real (2026/27)",CPI[],MATCH(AM$4,CPI[#Headers],0),FALSE) -> 0 | AN64: =ProjectData[[#This Row],[Actuals 21/22]]*VLOOKUP("Mid Year Nominal - EOY Real (2026/27)",CPI[],MATCH(AN$4,CPI[#Headers],0),FALSE) -> 0 | AO64: =ProjectData[[#This Row],[Actuals 22/23]]*VLOOKUP("Mid Year Nominal - EOY Real (2026/27)",CPI[],MATCH(AO$4,CPI[#Headers],0),FALSE) -> 0 | AP64: =ProjectData[[#This Row],[Actuals 23/24]]*VLOOKUP("Mid Year Nominal - EOY Real (2026/27)",CPI[],MATCH(AP$4,CPI[#Headers],0),FALSE) -> 0 | AQ64: =ProjectData[[#This Row],[Actual 24/25]]*VLOOKUP("Mid Year Nominal - EOY Real (2026/27)",CPI[],MATCH(AQ$4,CPI[#Headers],0),FALSE) -> 0 | AR64: =ProjectData[[#This Row],[Forecast 25/26]]*VLOOKUP("Mid Year Nominal - EOY Real (2026/27)",CPI[],MATCH(AR$4,CPI[#Headers],0),FALSE) -> 0 | AS64: =ProjectData[[#This Row],[Forecast 26/27]]*VLOOKUP("Mid Year Nominal - EOY Real (2026/27)",CPI[],MATCH(AS$4,CPI[#Headers],0),FALSE) -> 0 | AT64: =SUM(ProjectData[[#This Row],[Real 08]:[Real 27]]) -> 0 | AU64: =(ProjectData[[#This Row],[Real Sum]]-VLOOKUP(ProjectData[[#This Row],[Category]],Category_AverageStdDevLimit[],MATCH("Average",Category_AverageStdDevLimit[#Headers],0),FALSE))^2 -> 4.482485466 | AV64: =VLOOKUP(ProjectData[[#This Row],[Category]],Category_AverageStdDevLimit[],MATCH("Limit",Category_AverageStdDevLimit[#Headers],0),FALSE) -> 10.66631335 | AW64: =ProjectData[[#This Row],[Real Sum]]>ProjectData[[#This Row],[Category Limit]] -> FALSE | AY64: =OR(ProjectData[[#This Row],[Significant Project? (Financial Basis)]],ProjectData[[#This Row],[Non repeatable]]) -> FALSE | AZ64: =AND(ProjectData[[#This Row],[SomeExpenditure >= 2016]],ProjectData[[#This Row],[Abnormal?]]) -> FALSE
A65: CP.01216 | B65: Blackwater 132kV Capacitor Bank No.1 | C65: Other | D65: 0 | E65: 0 | F65: 0 | G65: 0 | H65: 0 | I65: 0 | J65: 0 | K65: 0 | L65: 0 | M65: 0 | N65: 0 | O65: 0 | P65: 0 | Q65: 0 | R65: 0 | S65: 0 | T65: 0 | U65: 0 | V65: 0 | W65: 0 | X65: =ProjectData[[#This Row],[Real Sum]]>0.0001 -> FALSE | Y65: =OR(ProjectData[[#This Row],[Real 16]]>0,ProjectData[[#This Row],[Real 17]]>0,ProjectData[[#This Row],[Real 18]]>0,ProjectData[[#This Row],[Real 19]]>0,ProjectData[[#This Row],[Real 20]]>0) -> FALSE | Z65: =ProjectData[[#This Row],[Actuals 07/08]]*VLOOKUP("Mid Year Nominal - EOY Real (2026/27)",CPI[],MATCH(Z$4,CPI[#Headers],0),FALSE) -> 0 | AA65: =ProjectData[[#This Row],[Actuals 08/09]]*VLOOKUP("Mid Year Nominal - EOY Real (2026/27)",CPI[],MATCH(AA$4,CPI[#Headers],0),FALSE) -> 0 | AB65: =ProjectData[[#This Row],[Actuals 09/10]]*VLOOKUP("Mid Year Nominal - EOY Real (2026/27)",CPI[],MATCH(AB$4,CPI[#Headers],0),FALSE) -> 0 | AC65: =ProjectData[[#This Row],[Actuals 10/11]]*VLOOKUP("Mid Year Nominal - EOY Real (2026/27)",CPI[],MATCH(AC$4,CPI[#Headers],0),FALSE) -> 0 | AD65: =ProjectData[[#This Row],[Actuals 11/12]]*VLOOKUP("Mid Year Nominal - EOY Real (2026/27)",CPI[],MATCH(AD$4,CPI[#Headers],0),FALSE) -> 0 | AE65: =ProjectData[[#This Row],[Actuals 12/13]]*VLOOKUP("Mid Year Nominal - EOY Real (2026/27)",CPI[],MATCH(AE$4,CPI[#Headers],0),FALSE) -> 0 | AF65: =ProjectData[[#This Row],[Actuals 13/14]]*VLOOKUP("Mid Year Nominal - EOY Real (2026/27)",CPI[],MATCH(AF$4,CPI[#Headers],0),FALSE) -> 0 | AG65: =ProjectData[[#This Row],[Actuals 14/15]]*VLOOKUP("Mid Year Nominal - EOY Real (2026/27)",CPI[],MATCH(AG$4,CPI[#Headers],0),FALSE) -> 0 | AH65: =ProjectData[[#This Row],[Actuals 15/16]]*VLOOKUP("Mid Year Nominal - EOY Real (2026/27)",CPI[],MATCH(AH$4,CPI[#Headers],0),FALSE) -> 0 | AI65: =ProjectData[[#This Row],[Actuals 16/17]]*VLOOKUP("Mid Year Nominal - EOY Real (2026/27)",CPI[],MATCH(AI$4,CPI[#Headers],0),FALSE) -> 0 | AJ65: =ProjectData[[#This Row],[Actuals 17/18]]*VLOOKUP("Mid Year Nominal - EOY Real (2026/27)",CPI[],MATCH(AJ$4,CPI[#Headers],0),FALSE) -> 0 | AK65: =ProjectData[[#This Row],[Actuals 18/19]]*VLOOKUP("Mid Year Nominal - EOY Real (2026/27)",CPI[],MATCH(AK$4,CPI[#Headers],0),FALSE) -> 0 | AL65: =ProjectData[[#This Row],[Actuals 19/20]]*VLOOKUP("Mid Year Nominal - EOY Real (2026/27)",CPI[],MATCH(AL$4,CPI[#Headers],0),FALSE) -> 0 | AM65: =ProjectData[[#This Row],[Actuals 20/21]]*VLOOKUP("Mid Year Nominal - EOY Real (2026/27)",CPI[],MATCH(AM$4,CPI[#Headers],0),FALSE) -> 0 | AN65: =ProjectData[[#This Row],[Actuals 21/22]]*VLOOKUP("Mid Year Nominal - EOY Real (2026/27)",CPI[],MATCH(AN$4,CPI[#Headers],0),FALSE) -> 0 | AO65: =ProjectData[[#This Row],[Actuals 22/23]]*VLOOKUP("Mid Year Nominal - EOY Real (2026/27)",CPI[],MATCH(AO$4,CPI[#Headers],0),FALSE) -> 0 | AP65: =ProjectData[[#This Row],[Actuals 23/24]]*VLOOKUP("Mid Year Nominal - EOY Real (2026/27)",CPI[],MATCH(AP$4,CPI[#Headers],0),FALSE) -> 0 | AQ65: =ProjectData[[#This Row],[Actual 24/25]]*VLOOKUP("Mid Year Nominal - EOY Real (2026/27)",CPI[],MATCH(AQ$4,CPI[#Headers],0),FALSE) -> 0 | AR65: =ProjectData[[#This Row],[Forecast 25/26]]*VLOOKUP("Mid Year Nominal - EOY Real (2026/27)",CPI[],MATCH(AR$4,CPI[#Headers],0),FALSE) -> 0 | AS65: =ProjectData[[#This Row],[Forecast 26/27]]*VLOOKUP("Mid Year Nominal - EOY Real (2026/27)",CPI[],MATCH(AS$4,CPI[#Headers],0),FALSE) -> 0 | AT65: =SUM(ProjectData[[#This Row],[Real 08]:[Real 27]]) -> 0 | AU65: =(ProjectData[[#This Row],[Real Sum]]-VLOOKUP(ProjectData[[#This Row],[Category]],Category_AverageStdDevLimit[],MATCH("Average",Category_AverageStdDevLimit[#Headers],0),FALSE))^2 -> 4.482485466 | AV65: =VLOOKUP(ProjectData[[#This Row],[Category]],Category_AverageStdDevLimit[],MATCH("Limit",Category_AverageStdDevLimit[#Headers],0),FALSE) -> 10.66631335 | AW65: =ProjectData[[#This Row],[Real Sum]]>ProjectData[[#This Row],[Category Limit]] -> FALSE | AY65: =OR(ProjectData[[#This Row],[Significant Project? (Financial Basis)]],ProjectData[[#This Row],[Non repeatable]]) -> FALSE | AZ65: =AND(ProjectData[[#This Row],[SomeExpenditure >= 2016]],ProjectData[[#This Row],[Abnormal?]]) -> FALSE
A66: CP.01222 | B66: Runcorn 110kV Spare Transformer | C66: Other | D66: 0 | E66: 0 | F66: 0 | G66: 0 | H66: 0 | I66: 0 | J66: 0 | K66: 0 | L66: 0 | M66: 0 | N66: 0 | O66: 0 | P66: 0 | Q66: 0 | R66: 0 | S66: 0 | T66: 0 | U66: 0 | V66: 0 | W66: 0 | X66: =ProjectData[[#This Row],[Real Sum]]>0.0001 -> FALSE | Y66: =OR(ProjectData[[#This Row],[Real 16]]>0,ProjectData[[#This Row],[Real 17]]>0,ProjectData[[#This Row],[Real 18]]>0,ProjectData[[#This Row],[Real 19]]>0,ProjectData[[#This Row],[Real 20]]>0) -> FALSE | Z66: =ProjectData[[#This Row],[Actuals 07/08]]*VLOOKUP("Mid Year Nominal - EOY Real (2026/27)",CPI[],MATCH(Z$4,CPI[#Headers],0),FALSE) -> 0 | AA66: =ProjectData[[#This Row],[Actuals 08/09]]*VLOOKUP("Mid Year Nominal - EOY Real (2026/27)",CPI[],MATCH(AA$4,CPI[#Headers],0),FALSE) -> 0 | AB66: =ProjectData[[#This Row],[Actuals 09/10]]*VLOOKUP("Mid Year Nominal - EOY Real (2026/27)",CPI[],MATCH(AB$4,CPI[#Headers],0),FALSE) -> 0 | AC66: =ProjectData[[#This Row],[Actuals 10/11]]*VLOOKUP("Mid Year Nominal - EOY Real (2026/27)",CPI[],MATCH(AC$4,CPI[#Headers],0),FALSE) -> 0 | AD66: =ProjectData[[#This Row],[Actuals 11/12]]*VLOOKUP("Mid Year Nominal - EOY Real (2026/27)",CPI[],MATCH(AD$4,CPI[#Headers],0),FALSE) -> 0 | AE66: =ProjectData[[#This Row],[Actuals 12/13]]*VLOOKUP("Mid Year Nominal - EOY Real (2026/27)",CPI[],MATCH(AE$4,CPI[#Headers],0),FALSE) -> 0 | AF66: =ProjectData[[#This Row],[Actuals 13/14]]*VLOOKUP("Mid Year Nominal - EOY Real (2026/27)",CPI[],MATCH(AF$4,CPI[#Headers],0),FALSE) -> 0 | AG66: =ProjectData[[#This Row],[Actuals 14/15]]*VLOOKUP("Mid Year Nominal - EOY Real (2026/27)",CPI[],MATCH(AG$4,CPI[#Headers],0),FALSE) -> 0 | AH66: =ProjectData[[#This Row],[Actuals 15/16]]*VLOOKUP("Mid Year Nominal - EOY Real (2026/27)",CPI[],MATCH(AH$4,CPI[#Headers],0),FALSE) -> 0 | AI66: =ProjectData[[#This Row],[Actuals 16/17]]*VLOOKUP("Mid Year Nominal - EOY Real (2026/27)",CPI[],MATCH(AI$4,CPI[#Headers],0),FALSE) -> 0 | AJ66: =ProjectData[[#This Row],[Actuals 17/18]]*VLOOKUP("Mid Year Nominal - EOY Real (2026/27)",CPI[],MATCH(AJ$4,CPI[#Headers],0),FALSE) -> 0 | AK66: =ProjectData[[#This Row],[Actuals 18/19]]*VLOOKUP("Mid Year Nominal - EOY Real (2026/27)",CPI[],MATCH(AK$4,CPI[#Headers],0),FALSE) -> 0 | AL66: =ProjectData[[#This Row],[Actuals 19/20]]*VLOOKUP("Mid Year Nominal - EOY Real (2026/27)",CPI[],MATCH(AL$4,CPI[#Headers],0),FALSE) -> 0 | AM66: =ProjectData[[#This Row],[Actuals 20/21]]*VLOOKUP("Mid Year Nominal - EOY Real (2026/27)",CPI[],MATCH(AM$4,CPI[#Headers],0),FALSE) -> 0 | AN66: =ProjectData[[#This Row],[Actuals 21/22]]*VLOOKUP("Mid Year Nominal - EOY Real (2026/27)",CPI[],MATCH(AN$4,CPI[#Headers],0),FALSE) -> 0 | AO66: =ProjectData[[#This Row],[Actuals 22/23]]*VLOOKUP("Mid Year Nominal - EOY Real (2026/27)",CPI[],MATCH(AO$4,CPI[#Headers],0),FALSE) -> 0 | AP66: =ProjectData[[#This Row],[Actuals 23/24]]*VLOOKUP("Mid Year Nominal - EOY Real (2026/27)",CPI[],MATCH(AP$4,CPI[#Headers],0),FALSE) -> 0 | AQ66: =ProjectData[[#This Row],[Actual 24/25]]*VLOOKUP("Mid Year Nominal - EOY Real (2026/27)",CPI[],MATCH(AQ$4,CPI[#Headers],0),FALSE) -> 0 | AR66: =ProjectData[[#This Row],[Forecast 25/26]]*VLOOKUP("Mid Year Nominal - EOY Real (2026/27)",CPI[],MATCH(AR$4,CPI[#Headers],0),FALSE) -> 0 | AS66: =ProjectData[[#This Row],[Forecast 26/27]]*VLOOKUP("Mid Year Nominal - EOY Real (2026/27)",CPI[],MATCH(AS$4,CPI[#Headers],0),FALSE) -> 0 | AT66: =SUM(ProjectData[[#This Row],[Real 08]:[Real 27]]) -> 0 | AU66: =(ProjectData[[#This Row],[Real Sum]]-VLOOKUP(ProjectData[[#This Row],[Category]],Category_AverageStdDevLimit[],MATCH("Average",Category_AverageStdDevLimit[#Headers],0),FALSE))^2 -> 4.482485466 | AV66: =VLOOKUP(ProjectData[[#This Row],[Category]],Category_AverageStdDevLimit[],MATCH("Limit",Category_AverageStdDevLimit[#Headers],0),FALSE) -> 10.66631335 | AW66: =ProjectData[[#This Row],[Real Sum]]>ProjectData[[#This Row],[Category Limit]] -> FALSE | AY66: =OR(ProjectData[[#This Row],[Significant Project? (Financial Basis)]],ProjectData[[#This Row],[Non repeatable]]) -> FALSE | AZ66: =AND(ProjectData[[#This Row],[SomeExpenditure >= 2016]],ProjectData[[#This Row],[Abnormal?]]) -> FALSE
A67: CP.01227 | B67: Ergon SCADA ICCP Link Stage 1 & 2 | C67: Other | D67: 0.05152801 | E67: 0.00094025 | F67: 0 | G67: 0 | H67: 0 | I67: 0 | J67: 0 | K67: 0 | L67: 0 | M67: 0 | N67: 0 | O67: 0 | P67: 0 | Q67: 0 | R67: 0 | S67: 0 | T67: 0 | U67: 0 | V67: 0 | W67: 0 | X67: =ProjectData[[#This Row],[Real Sum]]>0.0001 -> TRUE | Y67: =OR(ProjectData[[#This Row],[Real 16]]>0,ProjectData[[#This Row],[Real 17]]>0,ProjectData[[#This Row],[Real 18]]>0,ProjectData[[#This Row],[Real 19]]>0,ProjectData[[#This Row],[Real 20]]>0) -> FALSE | Z67: =ProjectData[[#This Row],[Actuals 07/08]]*VLOOKUP("Mid Year Nominal - EOY Real (2026/27)",CPI[],MATCH(Z$4,CPI[#Headers],0),FALSE) -> 0.08569018135 | AA67: =ProjectData[[#This Row],[Actuals 08/09]]*VLOOKUP("Mid Year Nominal - EOY Real (2026/27)",CPI[],MATCH(AA$4,CPI[#Headers],0),FALSE) -> 0.001507775793 | AB67: =ProjectData[[#This Row],[Actuals 09/10]]*VLOOKUP("Mid Year Nominal - EOY Real (2026/27)",CPI[],MATCH(AB$4,CPI[#Headers],0),FALSE) -> 0 | AC67: =ProjectData[[#This Row],[Actuals 10/11]]*VLOOKUP("Mid Year Nominal - EOY Real (2026/27)",CPI[],MATCH(AC$4,CPI[#Headers],0),FALSE) -> 0 | AD67: =ProjectData[[#This Row],[Actuals 11/12]]*VLOOKUP("Mid Year Nominal - EOY Real (2026/27)",CPI[],MATCH(AD$4,CPI[#Headers],0),FALSE) -> 0 | AE67: =ProjectData[[#This Row],[Actuals 12/13]]*VLOOKUP("Mid Year Nominal - EOY Real (2026/27)",CPI[],MATCH(AE$4,CPI[#Headers],0),FALSE) -> 0 | AF67: =ProjectData[[#This Row],[Actuals 13/14]]*VLOOKUP("Mid Year Nominal - EOY Real (2026/27)",CPI[],MATCH(AF$4,CPI[#Headers],0),FALSE) -> 0 | AG67: =ProjectData[[#This Row],[Actuals 14/15]]*VLOOKUP("Mid Year Nominal - EOY Real (2026/27)",CPI[],MATCH(AG$4,CPI[#Headers],0),FALSE) -> 0 | AH67: =ProjectData[[#This Row],[Actuals 15/16]]*VLOOKUP("Mid Year Nominal - EOY Real (2026/27)",CPI[],MATCH(AH$4,CPI[#Headers],0),FALSE) -> 0 | AI67: =ProjectData[[#This Row],[Actuals 16/17]]*VLOOKUP("Mid Year Nominal - EOY Real (2026/27)",CPI[],MATCH(AI$4,CPI[#Headers],0),FALSE) -> 0 | AJ67: =ProjectData[[#This Row],[Actuals 17/18]]*VLOOKUP("Mid Year Nominal - EOY Real (2026/27)",CPI[],MATCH(AJ$4,CPI[#Headers],0),FALSE) -> 0 | AK67: =ProjectData[[#This Row],[Actuals 18/19]]*VLOOKUP("Mid Year Nominal - EOY Real (2026/27)",CPI[],MATCH(AK$4,CPI[#Headers],0),FALSE) -> 0 | AL67: =ProjectData[[#This Row],[Actuals 19/20]]*VLOOKUP("Mid Year Nominal - EOY Real (2026/27)",CPI[],MATCH(AL$4,CPI[#Headers],0),FALSE) -> 0 | AM67: =ProjectData[[#This Row],[Actuals 20/21]]*VLOOKUP("Mid Year Nominal - EOY Real (2026/27)",CPI[],MATCH(AM$4,CPI[#Headers],0),FALSE) -> 0 | AN67: =ProjectData[[#This Row],[Actuals 21/22]]*VLOOKUP("Mid Year Nominal - EOY Real (2026/27)",CPI[],MATCH(AN$4,CPI[#Headers],0),FALSE) -> 0 | AO67: =ProjectData[[#This Row],[Actuals 22/23]]*VLOOKUP("Mid Year Nominal - EOY Real (2026/27)",CPI[],MATCH(AO$4,CPI[#Headers],0),FALSE) -> 0 | AP67: =ProjectData[[#This Row],[Actuals 23/24]]*VLOOKUP("Mid Year Nominal - EOY Real (2026/27)",CPI[],MATCH(AP$4,CPI[#Headers],0),FALSE) -> 0 | AQ67: =ProjectData[[#This Row],[Actual 24/25]]*VLOOKUP("Mid Year Nominal - EOY Real (2026/27)",CPI[],MATCH(AQ$4,CPI[#Headers],0),FALSE) -> 0 | AR67: =ProjectData[[#This Row],[Forecast 25/26]]*VLOOKUP("Mid Year Nominal - EOY Real (2026/27)",CPI[],MATCH(AR$4,CPI[#Headers],0),FALSE) -> 0 | AS67: =ProjectData[[#This Row],[Forecast 26/27]]*VLOOKUP("Mid Year Nominal - EOY Real (2026/27)",CPI[],MATCH(AS$4,CPI[#Headers],0),FALSE) -> 0 | AT67: =SUM(ProjectData[[#This Row],[Real 08]:[Real 27]]) -> 0.08719795714 | AU67: =(ProjectData[[#This Row],[Real Sum]]-VLOOKUP(ProjectData[[#This Row],[Category]],Category_AverageStdDevLimit[],MATCH("Average",Category_AverageStdDevLimit[#Headers],0),FALSE))^2 -> 4.120859995 | AV67: =VLOOKUP(ProjectData[[#This Row],[Category]],Category_AverageStdDevLimit[],MATCH("Limit",Category_AverageStdDevLimit[#Headers],0),FALSE) -> 10.66631335 | AW67: =ProjectData[[#This Row],[Real Sum]]>ProjectData[[#This Row],[Category Limit]] -> FALSE | AY67: =OR(ProjectData[[#This Row],[Significant Project? (Financial Basis)]],ProjectData[[#This Row],[Non repeatable]]) -> FALSE | AZ67: =AND(ProjectData[[#This Row],[SomeExpenditure >= 2016]],ProjectData[[#This Row],[Abnormal?]]) -> FALSE
A68: CP.01230 | B68: NSC Power System Forecasting Tool - cancelled | C68: Other | D68: -0.0040195 | E68: 0 | F68: 0 | G68: 0 | H68: 0 | I68: 0 | J68: 0 | K68: 0 | L68: 0 | M68: 0 | N68: 0 | O68: 0 | P68: 0 | Q68: 0 | R68: 0 | S68: 0 | T68: 0 | U68: 0 | V68: 0 | W68: 0 | X68: =ProjectData[[#This Row],[Real Sum]]>0.0001 -> FALSE | Y68: =OR(ProjectData[[#This Row],[Real 16]]>0,ProjectData[[#This Row],[Real 17]]>0,ProjectData[[#This Row],[Real 18]]>0,ProjectData[[#This Row],[Real 19]]>0,ProjectData[[#This Row],[Real 20]]>0) -> FALSE | Z68: =ProjectData[[#This Row],[Actuals 07/08]]*VLOOKUP("Mid Year Nominal - EOY Real (2026/27)",CPI[],MATCH(Z$4,CPI[#Headers],0),FALSE) -> -0.00668435835 | AA68: =ProjectData[[#This Row],[Actuals 08/09]]*VLOOKUP("Mid Year Nominal - EOY Real (2026/27)",CPI[],MATCH(AA$4,CPI[#Headers],0),FALSE) -> 0 | AB68: =ProjectData[[#This Row],[Actuals 09/10]]*VLOOKUP("Mid Year Nominal - EOY Real (2026/27)",CPI[],MATCH(AB$4,CPI[#Headers],0),FALSE) -> 0 | AC68: =ProjectData[[#This Row],[Actuals 10/11]]*VLOOKUP("Mid Year Nominal - EOY Real (2026/27)",CPI[],MATCH(AC$4,CPI[#Headers],0),FALSE) -> 0 | AD68: =ProjectData[[#This Row],[Actuals 11/12]]*VLOOKUP("Mid Year Nominal - EOY Real (2026/27)",CPI[],MATCH(AD$4,CPI[#Headers],0),FALSE) -> 0 | AE68: =ProjectData[[#This Row],[Actuals 12/13]]*VLOOKUP("Mid Year Nominal - EOY Real (2026/27)",CPI[],MATCH(AE$4,CPI[#Headers],0),FALSE) -> 0 | AF68: =ProjectData[[#This Row],[Actuals 13/14]]*VLOOKUP("Mid Year Nominal - EOY Real (2026/27)",CPI[],MATCH(AF$4,CPI[#Headers],0),FALSE) -> 0 | AG68: =ProjectData[[#This Row],[Actuals 14/15]]*VLOOKUP("Mid Year Nominal - EOY Real (2026/27)",CPI[],MATCH(AG$4,CPI[#Headers],0),FALSE) -> 0 | AH68: =ProjectData[[#This Row],[Actuals 15/16]]*VLOOKUP("Mid Year Nominal - EOY Real (2026/27)",CPI[],MATCH(AH$4,CPI[#Headers],0),FALSE) -> 0 | AI68: =ProjectData[[#This Row],[Actuals 16/17]]*VLOOKUP("Mid Year Nominal - EOY Real (2026/27)",CPI[],MATCH(AI$4,CPI[#Headers],0),FALSE) -> 0 | AJ68: =ProjectData[[#This Row],[Actuals 17/18]]*VLOOKUP("Mid Year Nominal - EOY Real (2026/27)",CPI[],MATCH(AJ$4,CPI[#Headers],0),FALSE) -> 0 | AK68: =ProjectData[[#This Row],[Actuals 18/19]]*VLOOKUP("Mid Year Nominal - EOY Real (2026/27)",CPI[],MATCH(AK$4,CPI[#Headers],0),FALSE) -> 0 | AL68: =ProjectData[[#This Row],[Actuals 19/20]]*VLOOKUP("Mid Year Nominal - EOY Real (2026/27)",CPI[],MATCH(AL$4,CPI[#Headers],0),FALSE) -> 0 | AM68: =ProjectData[[#This Row],[Actuals 20/21]]*VLOOKUP("Mid Year Nominal - EOY Real (2026/27)",CPI[],MATCH(AM$4,CPI[#Headers],0),FALSE) -> 0 | AN68: =ProjectData[[#This Row],[Actuals 21/22]]*VLOOKUP("Mid Year Nominal - EOY Real (2026/27)",CPI[],MATCH(AN$4,CPI[#Headers],0),FALSE) -> 0 | AO68: =ProjectData[[#This Row],[Actuals 22/23]]*VLOOKUP("Mid Year Nominal - EOY Real (2026/27)",CPI[],MATCH(AO$4,CPI[#Headers],0),FALSE) -> 0 | AP68: =ProjectData[[#This Row],[Actuals 23/24]]*VLOOKUP("Mid Year Nominal - EOY Real (2026/27)",CPI[],MATCH(AP$4,CPI[#Headers],0),FALSE) -> 0 | AQ68: =ProjectData[[#This Row],[Actual 24/25]]*VLOOKUP("Mid Year Nominal - EOY Real (2026/27)",CPI[],MATCH(AQ$4,CPI[#Headers],0),FALSE) -> 0 | AR68: =ProjectData[[#This Row],[Forecast 25/26]]*VLOOKUP("Mid Year Nominal - EOY Real (2026/27)",CPI[],MATCH(AR$4,CPI[#Headers],0),FALSE) -> 0 | AS68: =ProjectData[[#This Row],[Forecast 26/27]]*VLOOKUP("Mid Year Nominal - EOY Real (2026/27)",CPI[],MATCH(AS$4,CPI[#Headers],0),FALSE) -> 0 | AT68: =SUM(ProjectData[[#This Row],[Real 08]:[Real 27]]) -> -0.00668435835 | AU68: =(ProjectData[[#This Row],[Real Sum]]-VLOOKUP(ProjectData[[#This Row],[Category]],Category_AverageStdDevLimit[],MATCH("Average",Category_AverageStdDevLimit[#Headers],0),FALSE))^2 -> 4.510834234 | AV68: =VLOOKUP(ProjectData[[#This Row],[Category]],Category_AverageStdDevLimit[],MATCH("Limit",Category_AverageStdDevLimit[#Headers],0),FALSE) -> 10.66631335 | AW68: =ProjectData[[#This Row],[Real Sum]]>ProjectData[[#This Row],[Category Limit]] -> FALSE | AY68: =OR(ProjectData[[#This Row],[Significant Project? (Financial Basis)]],ProjectData[[#This Row],[Non repeatable]]) -> FALSE | AZ68: =AND(ProjectData[[#This Row],[SomeExpenditure >= 2016]],ProjectData[[#This Row],[Abnormal?]]) -> FALSE
A69: CP.01231 | B69: Belmont 110kV Capacitor Bank No.3 | C69: Other | D69: 0 | E69: 0 | F69: 0 | G69: 0 | H69: 0 | I69: 0 | J69: 0 | K69: 0 | L69: 0 | M69: 0 | N69: 0 | O69: 0 | P69: 0 | Q69: 0 | R69: 0 | S69: 0 | T69: 0 | U69: 0 | V69: 0 | W69: 0 | X69: =ProjectData[[#This Row],[Real Sum]]>0.0001 -> FALSE | Y69: =OR(ProjectData[[#This Row],[Real 16]]>0,ProjectData[[#This Row],[Real 17]]>0,ProjectData[[#This Row],[Real 18]]>0,ProjectData[[#This Row],[Real 19]]>0,ProjectData[[#This Row],[Real 20]]>0) -> FALSE | Z69: =ProjectData[[#This Row],[Actuals 07/08]]*VLOOKUP("Mid Year Nominal - EOY Real (2026/27)",CPI[],MATCH(Z$4,CPI[#Headers],0),FALSE) -> 0 | AA69: =ProjectData[[#This Row],[Actuals 08/09]]*VLOOKUP("Mid Year Nominal - EOY Real (2026/27)",CPI[],MATCH(AA$4,CPI[#Headers],0),FALSE) -> 0 | AB69: =ProjectData[[#This Row],[Actuals 09/10]]*VLOOKUP("Mid Year Nominal - EOY Real (2026/27)",CPI[],MATCH(AB$4,CPI[#Headers],0),FALSE) -> 0 | AC69: =ProjectData[[#This Row],[Actuals 10/11]]*VLOOKUP("Mid Year Nominal - EOY Real (2026/27)",CPI[],MATCH(AC$4,CPI[#Headers],0),FALSE) -> 0 | AD69: =ProjectData[[#This Row],[Actuals 11/12]]*VLOOKUP("Mid Year Nominal - EOY Real (2026/27)",CPI[],MATCH(AD$4,CPI[#Headers],0),FALSE) -> 0 | AE69: =ProjectData[[#This Row],[Actuals 12/13]]*VLOOKUP("Mid Year Nominal - EOY Real (2026/27)",CPI[],MATCH(AE$4,CPI[#Headers],0),FALSE) -> 0 | AF69: =ProjectData[[#This Row],[Actuals 13/14]]*VLOOKUP("Mid Year Nominal - EOY Real (2026/27)",CPI[],MATCH(AF$4,CPI[#Headers],0),FALSE) -> 0 | AG69: =ProjectData[[#This Row],[Actuals 14/15]]*VLOOKUP("Mid Year Nominal - EOY Real (2026/27)",CPI[],MATCH(AG$4,CPI[#Headers],0),FALSE) -> 0 | AH69: =ProjectData[[#This Row],[Actuals 15/16]]*VLOOKUP("Mid Year Nominal - EOY Real (2026/27)",CPI[],MATCH(AH$4,CPI[#Headers],0),FALSE) -> 0 | AI69: =ProjectData[[#This Row],[Actuals 16/17]]*VLOOKUP("Mid Year Nominal - EOY Real (2026/27)",CPI[],MATCH(AI$4,CPI[#Headers],0),FALSE) -> 0 | AJ69: =ProjectData[[#This Row],[Actuals 17/18]]*VLOOKUP("Mid Year Nominal - EOY Real (2026/27)",CPI[],MATCH(AJ$4,CPI[#Headers],0),FALSE) -> 0 | AK69: =ProjectData[[#This Row],[Actuals 18/19]]*VLOOKUP("Mid Year Nominal - EOY Real (2026/27)",CPI[],MATCH(AK$4,CPI[#Headers],0),FALSE) -> 0 | AL69: =ProjectData[[#This Row],[Actuals 19/20]]*VLOOKUP("Mid Year Nominal - EOY Real (2026/27)",CPI[],MATCH(AL$4,CPI[#Headers],0),FALSE) -> 0 | AM69: =ProjectData[[#This Row],[Actuals 20/21]]*VLOOKUP("Mid Year Nominal - EOY Real (2026/27)",CPI[],MATCH(AM$4,CPI[#Headers],0),FALSE) -> 0 | AN69: =ProjectData[[#This Row],[Actuals 21/22]]*VLOOKUP("Mid Year Nominal - EOY Real (2026/27)",CPI[],MATCH(AN$4,CPI[#Headers],0),FALSE) -> 0 | AO69: =ProjectData[[#This Row],[Actuals 22/23]]*VLOOKUP("Mid Year Nominal - EOY Real (2026/27)",CPI[],MATCH(AO$4,CPI[#Headers],0),FALSE) -> 0 | AP69: =ProjectData[[#This Row],[Actuals 23/24]]*VLOOKUP("Mid Year Nominal - EOY Real (2026/27)",CPI[],MATCH(AP$4,CPI[#Headers],0),FALSE) -> 0 | AQ69: =ProjectData[[#This Row],[Actual 24/25]]*VLOOKUP("Mid Year Nominal - EOY Real (2026/27)",CPI[],MATCH(AQ$4,CPI[#Headers],0),FALSE) -> 0 | AR69: =ProjectData[[#This Row],[Forecast 25/26]]*VLOOKUP("Mid Year Nominal - EOY Real (2026/27)",CPI[],MATCH(AR$4,CPI[#Headers],0),FALSE) -> 0 | AS69: =ProjectData[[#This Row],[Forecast 26/27]]*VLOOKUP("Mid Year Nominal - EOY Real (2026/27)",CPI[],MATCH(AS$4,CPI[#Headers],0),FALSE) -> 0 | AT69: =SUM(ProjectData[[#This Row],[Real 08]:[Real 27]]) -> 0 | AU69: =(ProjectData[[#This Row],[Real Sum]]-VLOOKUP(ProjectData[[#This Row],[Category]],Category_AverageStdDevLimit[],MATCH("Average",Category_AverageStdDevLimit[#Headers],0),FALSE))^2 -> 4.482485466 | AV69: =VLOOKUP(ProjectData[[#This Row],[Category]],Category_AverageStdDevLimit[],MATCH("Limit",Category_AverageStdDevLimit[#Headers],0),FALSE) -> 10.66631335 | AW69: =ProjectData[[#This Row],[Real Sum]]>ProjectData[[#This Row],[Category Limit]] -> FALSE | AY69: =OR(ProjectData[[#This Row],[Significant Project? (Financial Basis)]],ProjectData[[#This Row],[Non repeatable]]) -> FALSE | AZ69: =AND(ProjectData[[#This Row],[SomeExpenditure >= 2016]],ProjectData[[#This Row],[Abnormal?]]) -> FALSE
A70: CP.01232 | B70: South Pine 110kV Capacitor Bank No.3 | C70: Other | D70: 0 | E70: 0 | F70: 0 | G70: 0 | H70: 0 | I70: 0 | J70: 0 | K70: 0 | L70: 0 | M70: 0 | N70: 0 | O70: 0 | P70: 0 | Q70: 0 | R70: 0 | S70: 0 | T70: 0 | U70: 0 | V70: 0 | W70: 0 | X70: =ProjectData[[#This Row],[Real Sum]]>0.0001 -> FALSE | Y70: =OR(ProjectData[[#This Row],[Real 16]]>0,ProjectData[[#This Row],[Real 17]]>0,ProjectData[[#This Row],[Real 18]]>0,ProjectData[[#This Row],[Real 19]]>0,ProjectData[[#This Row],[Real 20]]>0) -> FALSE | Z70: =ProjectData[[#This Row],[Actuals 07/08]]*VLOOKUP("Mid Year Nominal - EOY Real (2026/27)",CPI[],MATCH(Z$4,CPI[#Headers],0),FALSE) -> 0 | AA70: =ProjectData[[#This Row],[Actuals 08/09]]*VLOOKUP("Mid Year Nominal - EOY Real (2026/27)",CPI[],MATCH(AA$4,CPI[#Headers],0),FALSE) -> 0 | AB70: =ProjectData[[#This Row],[Actuals 09/10]]*VLOOKUP("Mid Year Nominal - EOY Real (2026/27)",CPI[],MATCH(AB$4,CPI[#Headers],0),FALSE) -> 0 | AC70: =ProjectData[[#This Row],[Actuals 10/11]]*VLOOKUP("Mid Year Nominal - EOY Real (2026/27)",CPI[],MATCH(AC$4,CPI[#Headers],0),FALSE) -> 0 | AD70: =ProjectData[[#This Row],[Actuals 11/12]]*VLOOKUP("Mid Year Nominal - EOY Real (2026/27)",CPI[],MATCH(AD$4,CPI[#Headers],0),FALSE) -> 0 | AE70: =ProjectData[[#This Row],[Actuals 12/13]]*VLOOKUP("Mid Year Nominal - EOY Real (2026/27)",CPI[],MATCH(AE$4,CPI[#Headers],0),FALSE) -> 0 | AF70: =ProjectData[[#This Row],[Actuals 13/14]]*VLOOKUP("Mid Year Nominal - EOY Real (2026/27)",CPI[],MATCH(AF$4,CPI[#Headers],0),FALSE) -> 0 | AG70: =ProjectData[[#This Row],[Actuals 14/15]]*VLOOKUP("Mid Year Nominal - EOY Real (2026/27)",CPI[],MATCH(AG$4,CPI[#Headers],0),FALSE) -> 0 | AH70: =ProjectData[[#This Row],[Actuals 15/16]]*VLOOKUP("Mid Year Nominal - EOY Real (2026/27)",CPI[],MATCH(AH$4,CPI[#Headers],0),FALSE) -> 0 | AI70: =ProjectData[[#This Row],[Actuals 16/17]]*VLOOKUP("Mid Year Nominal - EOY Real (2026/27)",CPI[],MATCH(AI$4,CPI[#Headers],0),FALSE) -> 0 | AJ70: =ProjectData[[#This Row],[Actuals 17/18]]*VLOOKUP("Mid Year Nominal - EOY Real (2026/27)",CPI[],MATCH(AJ$4,CPI[#Headers],0),FALSE) -> 0 | AK70: =ProjectData[[#This Row],[Actuals 18/19]]*VLOOKUP("Mid Year Nominal - EOY Real (2026/27)",CPI[],MATCH(AK$4,CPI[#Headers],0),FALSE) -> 0 | AL70: =ProjectData[[#This Row],[Actuals 19/20]]*VLOOKUP("Mid Year Nominal - EOY Real (2026/27)",CPI[],MATCH(AL$4,CPI[#Headers],0),FALSE) -> 0 | AM70: =ProjectData[[#This Row],[Actuals 20/21]]*VLOOKUP("Mid Year Nominal - EOY Real (2026/27)",CPI[],MATCH(AM$4,CPI[#Headers],0),FALSE) -> 0 | AN70: =ProjectData[[#This Row],[Actuals 21/22]]*VLOOKUP("Mid Year Nominal - EOY Real (2026/27)",CPI[],MATCH(AN$4,CPI[#Headers],0),FALSE) -> 0 | AO70: =ProjectData[[#This Row],[Actuals 22/23]]*VLOOKUP("Mid Year Nominal - EOY Real (2026/27)",CPI[],MATCH(AO$4,CPI[#Headers],0),FALSE) -> 0 | AP70: =ProjectData[[#This Row],[Actuals 23/24]]*VLOOKUP("Mid Year Nominal - EOY Real (2026/27)",CPI[],MATCH(AP$4,CPI[#Headers],0),FALSE) -> 0 | AQ70: =ProjectData[[#This Row],[Actual 24/25]]*VLOOKUP("Mid Year Nominal - EOY Real (2026/27)",CPI[],MATCH(AQ$4,CPI[#Headers],0),FALSE) -> 0 | AR70: =ProjectData[[#This Row],[Forecast 25/26]]*VLOOKUP("Mid Year Nominal - EOY Real (2026/27)",CPI[],MATCH(AR$4,CPI[#Headers],0),FALSE) -> 0 | AS70: =ProjectData[[#This Row],[Forecast 26/27]]*VLOOKUP("Mid Year Nominal - EOY Real (2026/27)",CPI[],MATCH(AS$4,CPI[#Headers],0),FALSE) -> 0 | AT70: =SUM(ProjectData[[#This Row],[Real 08]:[Real 27]]) -> 0 | AU70: =(ProjectData[[#This Row],[Real Sum]]-VLOOKUP(ProjectData[[#This Row],[Category]],Category_AverageStdDevLimit[],MATCH("Average",Category_AverageStdDevLimit[#Headers],0),FALSE))^2 -> 4.482485466 | AV70: =VLOOKUP(ProjectData[[#This Row],[Category]],Category_AverageStdDevLimit[],MATCH("Limit",Category_AverageStdDevLimit[#Headers],0),FALSE) -> 10.66631335 | AW70: =ProjectData[[#This Row],[Real Sum]]>ProjectData[[#This Row],[Category Limit]] -> FALSE | AY70: =OR(ProjectData[[#This Row],[Significant Project? (Financial Basis)]],ProjectData[[#This Row],[Non repeatable]]) -> FALSE | AZ70: =AND(ProjectData[[#This Row],[SomeExpenditure >= 2016]],ProjectData[[#This Row],[Abnormal?]]) -> FALSE
A71: CP.01237 | B71: Barron Gorge Secondary Systems Replacement | C71: Other | D71: 0 | E71: 0 | F71: 0 | G71: 0 | H71: 0 | I71: 0 | J71: 0 | K71: 0 | L71: 0 | M71: 0 | N71: 0 | O71: 0 | P71: 0 | Q71: 0 | R71: 0 | S71: 0 | T71: 0 | U71: 0 | V71: 0 | W71: 0 | X71: =ProjectData[[#This Row],[Real Sum]]>0.0001 -> FALSE | Y71: =OR(ProjectData[[#This Row],[Real 16]]>0,ProjectData[[#This Row],[Real 17]]>0,ProjectData[[#This Row],[Real 18]]>0,ProjectData[[#This Row],[Real 19]]>0,ProjectData[[#This Row],[Real 20]]>0) -> FALSE | Z71: =ProjectData[[#This Row],[Actuals 07/08]]*VLOOKUP("Mid Year Nominal - EOY Real (2026/27)",CPI[],MATCH(Z$4,CPI[#Headers],0),FALSE) -> 0 | AA71: =ProjectData[[#This Row],[Actuals 08/09]]*VLOOKUP("Mid Year Nominal - EOY Real (2026/27)",CPI[],MATCH(AA$4,CPI[#Headers],0),FALSE) -> 0 | AB71: =ProjectData[[#This Row],[Actuals 09/10]]*VLOOKUP("Mid Year Nominal - EOY Real (2026/27)",CPI[],MATCH(AB$4,CPI[#Headers],0),FALSE) -> 0 | AC71: =ProjectData[[#This Row],[Actuals 10/11]]*VLOOKUP("Mid Year Nominal - EOY Real (2026/27)",CPI[],MATCH(AC$4,CPI[#Headers],0),FALSE) -> 0 | AD71: =ProjectData[[#This Row],[Actuals 11/12]]*VLOOKUP("Mid Year Nominal - EOY Real (2026/27)",CPI[],MATCH(AD$4,CPI[#Headers],0),FALSE) -> 0 | AE71: =ProjectData[[#This Row],[Actuals 12/13]]*VLOOKUP("Mid Year Nominal - EOY Real (2026/27)",CPI[],MATCH(AE$4,CPI[#Headers],0),FALSE) -> 0 | AF71: =ProjectData[[#This Row],[Actuals 13/14]]*VLOOKUP("Mid Year Nominal - EOY Real (2026/27)",CPI[],MATCH(AF$4,CPI[#Headers],0),FALSE) -> 0 | AG71: =ProjectData[[#This Row],[Actuals 14/15]]*VLOOKUP("Mid Year Nominal - EOY Real (2026/27)",CPI[],MATCH(AG$4,CPI[#Headers],0),FALSE) -> 0 | AH71: =ProjectData[[#This Row],[Actuals 15/16]]*VLOOKUP("Mid Year Nominal - EOY Real (2026/27)",CPI[],MATCH(AH$4,CPI[#Headers],0),FALSE) -> 0 | AI71: =ProjectData[[#This Row],[Actuals 16/17]]*VLOOKUP("Mid Year Nominal - EOY Real (2026/27)",CPI[],MATCH(AI$4,CPI[#Headers],0),FALSE) -> 0 | AJ71: =ProjectData[[#This Row],[Actuals 17/18]]*VLOOKUP("Mid Year Nominal - EOY Real (2026/27)",CPI[],MATCH(AJ$4,CPI[#Headers],0),FALSE) -> 0 | AK71: =ProjectData[[#This Row],[Actuals 18/19]]*VLOOKUP("Mid Year Nominal - EOY Real (2026/27)",CPI[],MATCH(AK$4,CPI[#Headers],0),FALSE) -> 0 | AL71: =ProjectData[[#This Row],[Actuals 19/20]]*VLOOKUP("Mid Year Nominal - EOY Real (2026/27)",CPI[],MATCH(AL$4,CPI[#Headers],0),FALSE) -> 0 | AM71: =ProjectData[[#This Row],[Actuals 20/21]]*VLOOKUP("Mid Year Nominal - EOY Real (2026/27)",CPI[],MATCH(AM$4,CPI[#Headers],0),FALSE) -> 0 | AN71: =ProjectData[[#This Row],[Actuals 21/22]]*VLOOKUP("Mid Year Nominal - EOY Real (2026/27)",CPI[],MATCH(AN$4,CPI[#Headers],0),FALSE) -> 0 | AO71: =ProjectData[[#This Row],[Actuals 22/23]]*VLOOKUP("Mid Year Nominal - EOY Real (2026/27)",CPI[],MATCH(AO$4,CPI[#Headers],0),FALSE) -> 0 | AP71: =ProjectData[[#This Row],[Actuals 23/24]]*VLOOKUP("Mid Year Nominal - EOY Real (2026/27)",CPI[],MATCH(AP$4,CPI[#Headers],0),FALSE) -> 0 | AQ71: =ProjectData[[#This Row],[Actual 24/25]]*VLOOKUP("Mid Year Nominal - EOY Real (2026/27)",CPI[],MATCH(AQ$4,CPI[#Headers],0),FALSE) -> 0 | AR71: =ProjectData[[#This Row],[Forecast 25/26]]*VLOOKUP("Mid Year Nominal - EOY Real (2026/27)",CPI[],MATCH(AR$4,CPI[#Headers],0),FALSE) -> 0 | AS71: =ProjectData[[#This Row],[Forecast 26/27]]*VLOOKUP("Mid Year Nominal - EOY Real (2026/27)",CPI[],MATCH(AS$4,CPI[#Headers],0),FALSE) -> 0 | AT71: =SUM(ProjectData[[#This Row],[Real 08]:[Real 27]]) -> 0 | AU71: =(ProjectData[[#This Row],[Real Sum]]-VLOOKUP(ProjectData[[#This Row],[Category]],Category_AverageStdDevLimit[],MATCH("Average",Category_AverageStdDevLimit[#Headers],0),FALSE))^2 -> 4.482485466 | AV71: =VLOOKUP(ProjectData[[#This Row],[Category]],Category_AverageStdDevLimit[],MATCH("Limit",Category_AverageStdDevLimit[#Headers],0),FALSE) -> 10.66631335 | AW71: =ProjectData[[#This Row],[Real Sum]]>ProjectData[[#This Row],[Category Limit]] -> FALSE | AY71: =OR(ProjectData[[#This Row],[Significant Project? (Financial Basis)]],ProjectData[[#This Row],[Non repeatable]]) -> FALSE | AZ71: =AND(ProjectData[[#This Row],[SomeExpenditure >= 2016]],ProjectData[[#This Row],[Abnormal?]]) -> FALSE
A72: CP.01239 | B72: Moranbah Transformer Replacement | C72: Other | D72: 0 | E72: 0 | F72: 0 | G72: 0 | H72: 0 | I72: 0 | J72: 0 | K72: 0 | L72: 0 | M72: 0 | N72: 0 | O72: 0 | P72: 0 | Q72: 0 | R72: 0 | S72: 0 | T72: 0 | U72: 0 | V72: 0 | W72: 0 | X72: =ProjectData[[#This Row],[Real Sum]]>0.0001 -> FALSE | Y72: =OR(ProjectData[[#This Row],[Real 16]]>0,ProjectData[[#This Row],[Real 17]]>0,ProjectData[[#This Row],[Real 18]]>0,ProjectData[[#This Row],[Real 19]]>0,ProjectData[[#This Row],[Real 20]]>0) -> FALSE | Z72: =ProjectData[[#This Row],[Actuals 07/08]]*VLOOKUP("Mid Year Nominal - EOY Real (2026/27)",CPI[],MATCH(Z$4,CPI[#Headers],0),FALSE) -> 0 | AA72: =ProjectData[[#This Row],[Actuals 08/09]]*VLOOKUP("Mid Year Nominal - EOY Real (2026/27)",CPI[],MATCH(AA$4,CPI[#Headers],0),FALSE) -> 0 | AB72: =ProjectData[[#This Row],[Actuals 09/10]]*VLOOKUP("Mid Year Nominal - EOY Real (2026/27)",CPI[],MATCH(AB$4,CPI[#Headers],0),FALSE) -> 0 | AC72: =ProjectData[[#This Row],[Actuals 10/11]]*VLOOKUP("Mid Year Nominal - EOY Real (2026/27)",CPI[],MATCH(AC$4,CPI[#Headers],0),FALSE) -> 0 | AD72: =ProjectData[[#This Row],[Actuals 11/12]]*VLOOKUP("Mid Year Nominal - EOY Real (2026/27)",CPI[],MATCH(AD$4,CPI[#Headers],0),FALSE) -> 0 | AE72: =ProjectData[[#This Row],[Actuals 12/13]]*VLOOKUP("Mid Year Nominal - EOY Real (2026/27)",CPI[],MATCH(AE$4,CPI[#Headers],0),FALSE) -> 0 | AF72: =ProjectData[[#This Row],[Actuals 13/14]]*VLOOKUP("Mid Year Nominal - EOY Real (2026/27)",CPI[],MATCH(AF$4,CPI[#Headers],0),FALSE) -> 0 | AG72: =ProjectData[[#This Row],[Actuals 14/15]]*VLOOKUP("Mid Year Nominal - EOY Real (2026/27)",CPI[],MATCH(AG$4,CPI[#Headers],0),FALSE) -> 0 | AH72: =ProjectData[[#This Row],[Actuals 15/16]]*VLOOKUP("Mid Year Nominal - EOY Real (2026/27)",CPI[],MATCH(AH$4,CPI[#Headers],0),FALSE) -> 0 | AI72: =ProjectData[[#This Row],[Actuals 16/17]]*VLOOKUP("Mid Year Nominal - EOY Real (2026/27)",CPI[],MATCH(AI$4,CPI[#Headers],0),FALSE) -> 0 | AJ72: =ProjectData[[#This Row],[Actuals 17/18]]*VLOOKUP("Mid Year Nominal - EOY Real (2026/27)",CPI[],MATCH(AJ$4,CPI[#Headers],0),FALSE) -> 0 | AK72: =ProjectData[[#This Row],[Actuals 18/19]]*VLOOKUP("Mid Year Nominal - EOY Real (2026/27)",CPI[],MATCH(AK$4,CPI[#Headers],0),FALSE) -> 0 | AL72: =ProjectData[[#This Row],[Actuals 19/20]]*VLOOKUP("Mid Year Nominal - EOY Real (2026/27)",CPI[],MATCH(AL$4,CPI[#Headers],0),FALSE) -> 0 | AM72: =ProjectData[[#This Row],[Actuals 20/21]]*VLOOKUP("Mid Year Nominal - EOY Real (2026/27)",CPI[],MATCH(AM$4,CPI[#Headers],0),FALSE) -> 0 | AN72: =ProjectData[[#This Row],[Actuals 21/22]]*VLOOKUP("Mid Year Nominal - EOY Real (2026/27)",CPI[],MATCH(AN$4,CPI[#Headers],0),FALSE) -> 0 | AO72: =ProjectData[[#This Row],[Actuals 22/23]]*VLOOKUP("Mid Year Nominal - EOY Real (2026/27)",CPI[],MATCH(AO$4,CPI[#Headers],0),FALSE) -> 0 | AP72: =ProjectData[[#This Row],[Actuals 23/24]]*VLOOKUP("Mid Year Nominal - EOY Real (2026/27)",CPI[],MATCH(AP$4,CPI[#Headers],0),FALSE) -> 0 | AQ72: =ProjectData[[#This Row],[Actual 24/25]]*VLOOKUP("Mid Year Nominal - EOY Real (2026/27)",CPI[],MATCH(AQ$4,CPI[#Headers],0),FALSE) -> 0 | AR72: =ProjectData[[#This Row],[Forecast 25/26]]*VLOOKUP("Mid Year Nominal - EOY Real (2026/27)",CPI[],MATCH(AR$4,CPI[#Headers],0),FALSE) -> 0 | AS72: =ProjectData[[#This Row],[Forecast 26/27]]*VLOOKUP("Mid Year Nominal - EOY Real (2026/27)",CPI[],MATCH(AS$4,CPI[#Headers],0),FALSE) -> 0 | AT72: =SUM(ProjectData[[#This Row],[Real 08]:[Real 27]]) -> 0 | AU72: =(ProjectData[[#This Row],[Real Sum]]-VLOOKUP(ProjectData[[#This Row],[Category]],Category_AverageStdDevLimit[],MATCH("Average",Category_AverageStdDevLimit[#Headers],0),FALSE))^2 -> 4.482485466 | AV72: =VLOOKUP(ProjectData[[#This Row],[Category]],Category_AverageStdDevLimit[],MATCH("Limit",Category_AverageStdDevLimit[#Headers],0),FALSE) -> 10.66631335 | AW72: =ProjectData[[#This Row],[Real Sum]]>ProjectData[[#This Row],[Category Limit]] -> FALSE | AY72: =OR(ProjectData[[#This Row],[Significant Project? (Financial Basis)]],ProjectData[[#This Row],[Non repeatable]]) -> FALSE | AZ72: =AND(ProjectData[[#This Row],[SomeExpenditure >= 2016]],ProjectData[[#This Row],[Abnormal?]]) -> FALSE
A73: CP.01244 | B73: MACKAY AREA TELECOMMUNICATIONS REINFORCEMENT | C73: Other | D73: 0.37350774 | E73: 0.1794021 | F73: 0.49341257 | G73: 0.00810912 | H73: 0 | I73: 0 | J73: 0 | K73: 0 | L73: 0 | M73: 0 | N73: 0 | O73: 0 | P73: 0 | Q73: 0 | R73: 0 | S73: 0 | T73: 0 | U73: 0 | V73: 0 | W73: 0 | X73: =ProjectData[[#This Row],[Real Sum]]>0.0001 -> TRUE | Y73: =OR(ProjectData[[#This Row],[Real 16]]>0,ProjectData[[#This Row],[Real 17]]>0,ProjectData[[#This Row],[Real 18]]>0,ProjectData[[#This Row],[Real 19]]>0,ProjectData[[#This Row],[Real 20]]>0) -> FALSE | Z73: =ProjectData[[#This Row],[Actuals 07/08]]*VLOOKUP("Mid Year Nominal - EOY Real (2026/27)",CPI[],MATCH(Z$4,CPI[#Headers],0),FALSE) -> 0.6211368531 | AA73: =ProjectData[[#This Row],[Actuals 08/09]]*VLOOKUP("Mid Year Nominal - EOY Real (2026/27)",CPI[],MATCH(AA$4,CPI[#Headers],0),FALSE) -> 0.2876874698 | AB73: =ProjectData[[#This Row],[Actuals 09/10]]*VLOOKUP("Mid Year Nominal - EOY Real (2026/27)",CPI[],MATCH(AB$4,CPI[#Headers],0),FALSE) -> 0.7752895175 | AC73: =ProjectData[[#This Row],[Actuals 10/11]]*VLOOKUP("Mid Year Nominal - EOY Real (2026/27)",CPI[],MATCH(AC$4,CPI[#Headers],0),FALSE) -> 0.012399819 | AD73: =ProjectData[[#This Row],[Actuals 11/12]]*VLOOKUP("Mid Year Nominal - EOY Real (2026/27)",CPI[],MATCH(AD$4,CPI[#Headers],0),FALSE) -> 0 | AE73: =ProjectData[[#This Row],[Actuals 12/13]]*VLOOKUP("Mid Year Nominal - EOY Real (2026/27)",CPI[],MATCH(AE$4,CPI[#Headers],0),FALSE) -> 0 | AF73: =ProjectData[[#This Row],[Actuals 13/14]]*VLOOKUP("Mid Year Nominal - EOY Real (2026/27)",CPI[],MATCH(AF$4,CPI[#Headers],0),FALSE) -> 0 | AG73: =ProjectData[[#This Row],[Actuals 14/15]]*VLOOKUP("Mid Year Nominal - EOY Real (2026/27)",CPI[],MATCH(AG$4,CPI[#Headers],0),FALSE) -> 0 | AH73: =ProjectData[[#This Row],[Actuals 15/16]]*VLOOKUP("Mid Year Nominal - EOY Real (2026/27)",CPI[],MATCH(AH$4,CPI[#Headers],0),FALSE) -> 0 | AI73: =ProjectData[[#This Row],[Actuals 16/17]]*VLOOKUP("Mid Year Nominal - EOY Real (2026/27)",CPI[],MATCH(AI$4,CPI[#Headers],0),FALSE) -> 0 | AJ73: =ProjectData[[#This Row],[Actuals 17/18]]*VLOOKUP("Mid Year Nominal - EOY Real (2026/27)",CPI[],MATCH(AJ$4,CPI[#Headers],0),FALSE) -> 0 | AK73: =ProjectData[[#This Row],[Actuals 18/19]]*VLOOKUP("Mid Year Nominal - EOY Real (2026/27)",CPI[],MATCH(AK$4,CPI[#Headers],0),FALSE) -> 0 | AL73: =ProjectData[[#This Row],[Actuals 19/20]]*VLOOKUP("Mid Year Nominal - EOY Real (2026/27)",CPI[],MATCH(AL$4,CPI[#Headers],0),FALSE) -> 0 | AM73: =ProjectData[[#This Row],[Actuals 20/21]]*VLOOKUP("Mid Year Nominal - EOY Real (2026/27)",CPI[],MATCH(AM$4,CPI[#Headers],0),FALSE) -> 0 | AN73: =ProjectData[[#This Row],[Actuals 21/22]]*VLOOKUP("Mid Year Nominal - EOY Real (2026/27)",CPI[],MATCH(AN$4,CPI[#Headers],0),FALSE) -> 0 | AO73: =ProjectData[[#This Row],[Actuals 22/23]]*VLOOKUP("Mid Year Nominal - EOY Real (2026/27)",CPI[],MATCH(AO$4,CPI[#Headers],0),FALSE) -> 0 | AP73: =ProjectData[[#This Row],[Actuals 23/24]]*VLOOKUP("Mid Year Nominal - EOY Real (2026/27)",CPI[],MATCH(AP$4,CPI[#Headers],0),FALSE) -> 0 | AQ73: =ProjectData[[#This Row],[Actual 24/25]]*VLOOKUP("Mid Year Nominal - EOY Real (2026/27)",CPI[],MATCH(AQ$4,CPI[#Headers],0),FALSE) -> 0 | AR73: =ProjectData[[#This Row],[Forecast 25/26]]*VLOOKUP("Mid Year Nominal - EOY Real (2026/27)",CPI[],MATCH(AR$4,CPI[#Headers],0),FALSE) -> 0 | AS73: =ProjectData[[#This Row],[Forecast 26/27]]*VLOOKUP("Mid Year Nominal - EOY Real (2026/27)",CPI[],MATCH(AS$4,CPI[#Headers],0),FALSE) -> 0 | AT73: =SUM(ProjectData[[#This Row],[Real 08]:[Real 27]]) -> 1.696513659 | AU73: =(ProjectData[[#This Row],[Real Sum]]-VLOOKUP(ProjectData[[#This Row],[Category]],Category_AverageStdDevLimit[],MATCH("Average",Category_AverageStdDevLimit[#Headers],0),FALSE))^2 -> 0.176966988 | AV73: =VLOOKUP(ProjectData[[#This Row],[Category]],Category_AverageStdDevLimit[],MATCH("Limit",Category_AverageStdDevLimit[#Headers],0),FALSE) -> 10.66631335 | AW73: =ProjectData[[#This Row],[Real Sum]]>ProjectData[[#This Row],[Category Limit]] -> FALSE | AY73: =OR(ProjectData[[#This Row],[Significant Project? (Financial Basis)]],ProjectData[[#This Row],[Non repeatable]]) -> FALSE | AZ73: =AND(ProjectData[[#This Row],[SomeExpenditure >= 2016]],ProjectData[[#This Row],[Abnormal?]]) -> FALSE
A74: CP.01248 | B74: Swanbank Paper Plant Connection | C74: Other | D74: 0 | E74: 0 | F74: 0 | G74: 0 | H74: 0 | I74: 0 | J74: 0 | K74: 0 | L74: 0 | M74: 0 | N74: 0 | O74: 0 | P74: 0 | Q74: 0 | R74: 0 | S74: 0 | T74: 0 | U74: 0 | V74: 0 | W74: 0 | X74: =ProjectData[[#This Row],[Real Sum]]>0.0001 -> FALSE | Y74: =OR(ProjectData[[#This Row],[Real 16]]>0,ProjectData[[#This Row],[Real 17]]>0,ProjectData[[#This Row],[Real 18]]>0,ProjectData[[#This Row],[Real 19]]>0,ProjectData[[#This Row],[Real 20]]>0) -> FALSE | Z74: =ProjectData[[#This Row],[Actuals 07/08]]*VLOOKUP("Mid Year Nominal - EOY Real (2026/27)",CPI[],MATCH(Z$4,CPI[#Headers],0),FALSE) -> 0 | AA74: =ProjectData[[#This Row],[Actuals 08/09]]*VLOOKUP("Mid Year Nominal - EOY Real (2026/27)",CPI[],MATCH(AA$4,CPI[#Headers],0),FALSE) -> 0 | AB74: =ProjectData[[#This Row],[Actuals 09/10]]*VLOOKUP("Mid Year Nominal - EOY Real (2026/27)",CPI[],MATCH(AB$4,CPI[#Headers],0),FALSE) -> 0 | AC74: =ProjectData[[#This Row],[Actuals 10/11]]*VLOOKUP("Mid Year Nominal - EOY Real (2026/27)",CPI[],MATCH(AC$4,CPI[#Headers],0),FALSE) -> 0 | AD74: =ProjectData[[#This Row],[Actuals 11/12]]*VLOOKUP("Mid Year Nominal - EOY Real (2026/27)",CPI[],MATCH(AD$4,CPI[#Headers],0),FALSE) -> 0 | AE74: =ProjectData[[#This Row],[Actuals 12/13]]*VLOOKUP("Mid Year Nominal - EOY Real (2026/27)",CPI[],MATCH(AE$4,CPI[#Headers],0),FALSE) -> 0 | AF74: =ProjectData[[#This Row],[Actuals 13/14]]*VLOOKUP("Mid Year Nominal - EOY Real (2026/27)",CPI[],MATCH(AF$4,CPI[#Headers],0),FALSE) -> 0 | AG74: =ProjectData[[#This Row],[Actuals 14/15]]*VLOOKUP("Mid Year Nominal - EOY Real (2026/27)",CPI[],MATCH(AG$4,CPI[#Headers],0),FALSE) -> 0 | AH74: =ProjectData[[#This Row],[Actuals 15/16]]*VLOOKUP("Mid Year Nominal - EOY Real (2026/27)",CPI[],MATCH(AH$4,CPI[#Headers],0),FALSE) -> 0 | AI74: =ProjectData[[#This Row],[Actuals 16/17]]*VLOOKUP("Mid Year Nominal - EOY Real (2026/27)",CPI[],MATCH(AI$4,CPI[#Headers],0),FALSE) -> 0 | AJ74: =ProjectData[[#This Row],[Actuals 17/18]]*VLOOKUP("Mid Year Nominal - EOY Real (2026/27)",CPI[],MATCH(AJ$4,CPI[#Headers],0),FALSE) -> 0 | AK74: =ProjectData[[#This Row],[Actuals 18/19]]*VLOOKUP("Mid Year Nominal - EOY Real (2026/27)",CPI[],MATCH(AK$4,CPI[#Headers],0),FALSE) -> 0 | AL74: =ProjectData[[#This Row],[Actuals 19/20]]*VLOOKUP("Mid Year Nominal - EOY Real (2026/27)",CPI[],MATCH(AL$4,CPI[#Headers],0),FALSE) -> 0 | AM74: =ProjectData[[#This Row],[Actuals 20/21]]*VLOOKUP("Mid Year Nominal - EOY Real (2026/27)",CPI[],MATCH(AM$4,CPI[#Headers],0),FALSE) -> 0 | AN74: =ProjectData[[#This Row],[Actuals 21/22]]*VLOOKUP("Mid Year Nominal - EOY Real (2026/27)",CPI[],MATCH(AN$4,CPI[#Headers],0),FALSE) -> 0 | AO74: =ProjectData[[#This Row],[Actuals 22/23]]*VLOOKUP("Mid Year Nominal - EOY Real (2026/27)",CPI[],MATCH(AO$4,CPI[#Headers],0),FALSE) -> 0 | AP74: =ProjectData[[#This Row],[Actuals 23/24]]*VLOOKUP("Mid Year Nominal - EOY Real (2026/27)",CPI[],MATCH(AP$4,CPI[#Headers],0),FALSE) -> 0 | AQ74: =ProjectData[[#This Row],[Actual 24/25]]*VLOOKUP("Mid Year Nominal - EOY Real (2026/27)",CPI[],MATCH(AQ$4,CPI[#Headers],0),FALSE) -> 0 | AR74: =ProjectData[[#This Row],[Forecast 25/26]]*VLOOKUP("Mid Year Nominal - EOY Real (2026/27)",CPI[],MATCH(AR$4,CPI[#Headers],0),FALSE) -> 0 | AS74: =ProjectData[[#This Row],[Forecast 26/27]]*VLOOKUP("Mid Year Nominal - EOY Real (2026/27)",CPI[],MATCH(AS$4,CPI[#Headers],0),FALSE) -> 0 | AT74: =SUM(ProjectData[[#This Row],[Real 08]:[Real 27]]) -> 0 | AU74: =(ProjectData[[#This Row],[Real Sum]]-VLOOKUP(ProjectData[[#This Row],[Category]],Category_AverageStdDevLimit[],MATCH("Average",Category_AverageStdDevLimit[#Headers],0),FALSE))^2 -> 4.482485466 | AV74: =VLOOKUP(ProjectData[[#This Row],[Category]],Category_AverageStdDevLimit[],MATCH("Limit",Category_AverageStdDevLimit[#Headers],0),FALSE) -> 10.66631335 | AW74: =ProjectData[[#This Row],[Real Sum]]>ProjectData[[#This Row],[Category Limit]] -> FALSE | AY74: =OR(ProjectData[[#This Row],[Significant Project? (Financial Basis)]],ProjectData[[#This Row],[Non repeatable]]) -> FALSE | AZ74: =AND(ProjectData[[#This Row],[SomeExpenditure >= 2016]],ProjectData[[#This Row],[Abnormal?]]) -> FALSE
A75: CP.01254 | B75: Ingham Microwave Radio Establishment | C75: Other | D75: 0.36778831 | E75: 0.13487625 | F75: 0.29687187 | G75: 0 | H75: 0 | I75: 0 | J75: 0 | K75: 0 | L75: 0 | M75: 0 | N75: 0 | O75: 0 | P75: 0 | Q75: 0 | R75: 0 | S75: 0 | T75: 0 | U75: 0 | V75: 0 | W75: 0 | X75: =ProjectData[[#This Row],[Real Sum]]>0.0001 -> TRUE | Y75: =OR(ProjectData[[#This Row],[Real 16]]>0,ProjectData[[#This Row],[Real 17]]>0,ProjectData[[#This Row],[Real 18]]>0,ProjectData[[#This Row],[Real 19]]>0,ProjectData[[#This Row],[Real 20]]>0) -> FALSE | Z75: =ProjectData[[#This Row],[Actuals 07/08]]*VLOOKUP("Mid Year Nominal - EOY Real (2026/27)",CPI[],MATCH(Z$4,CPI[#Headers],0),FALSE) -> 0.6116255408 | AA75: =ProjectData[[#This Row],[Actuals 08/09]]*VLOOKUP("Mid Year Nominal - EOY Real (2026/27)",CPI[],MATCH(AA$4,CPI[#Headers],0),FALSE) -> 0.2162862481 | AB75: =ProjectData[[#This Row],[Actuals 09/10]]*VLOOKUP("Mid Year Nominal - EOY Real (2026/27)",CPI[],MATCH(AB$4,CPI[#Headers],0),FALSE) -> 0.466468961 | AC75: =ProjectData[[#This Row],[Actuals 10/11]]*VLOOKUP("Mid Year Nominal - EOY Real (2026/27)",CPI[],MATCH(AC$4,CPI[#Headers],0),FALSE) -> 0 | AD75: =ProjectData[[#This Row],[Actuals 11/12]]*VLOOKUP("Mid Year Nominal - EOY Real (2026/27)",CPI[],MATCH(AD$4,CPI[#Headers],0),FALSE) -> 0 | AE75: =ProjectData[[#This Row],[Actuals 12/13]]*VLOOKUP("Mid Year Nominal - EOY Real (2026/27)",CPI[],MATCH(AE$4,CPI[#Headers],0),FALSE) -> 0 | AF75: =ProjectData[[#This Row],[Actuals 13/14]]*VLOOKUP("Mid Year Nominal - EOY Real (2026/27)",CPI[],MATCH(AF$4,CPI[#Headers],0),FALSE) -> 0 | AG75: =ProjectData[[#This Row],[Actuals 14/15]]*VLOOKUP("Mid Year Nominal - EOY Real (2026/27)",CPI[],MATCH(AG$4,CPI[#Headers],0),FALSE) -> 0 | AH75: =ProjectData[[#This Row],[Actuals 15/16]]*VLOOKUP("Mid Year Nominal - EOY Real (2026/27)",CPI[],MATCH(AH$4,CPI[#Headers],0),FALSE) -> 0 | AI75: =ProjectData[[#This Row],[Actuals 16/17]]*VLOOKUP("Mid Year Nominal - EOY Real (2026/27)",CPI[],MATCH(AI$4,CPI[#Headers],0),FALSE) -> 0 | AJ75: =ProjectData[[#This Row],[Actuals 17/18]]*VLOOKUP("Mid Year Nominal - EOY Real (2026/27)",CPI[],MATCH(AJ$4,CPI[#Headers],0),FALSE) -> 0 | AK75: =ProjectData[[#This Row],[Actuals 18/19]]*VLOOKUP("Mid Year Nominal - EOY Real (2026/27)",CPI[],MATCH(AK$4,CPI[#Headers],0),FALSE) -> 0 | AL75: =ProjectData[[#This Row],[Actuals 19/20]]*VLOOKUP("Mid Year Nominal - EOY Real (2026/27)",CPI[],MATCH(AL$4,CPI[#Headers],0),FALSE) -> 0 | AM75: =ProjectData[[#This Row],[Actuals 20/21]]*VLOOKUP("Mid Year Nominal - EOY Real (2026/27)",CPI[],MATCH(AM$4,CPI[#Headers],0),FALSE) -> 0 | AN75: =ProjectData[[#This Row],[Actuals 21/22]]*VLOOKUP("Mid Year Nominal - EOY Real (2026/27)",CPI[],MATCH(AN$4,CPI[#Headers],0),FALSE) -> 0 | AO75: =ProjectData[[#This Row],[Actuals 22/23]]*VLOOKUP("Mid Year Nominal - EOY Real (2026/27)",CPI[],MATCH(AO$4,CPI[#Headers],0),FALSE) -> 0 | AP75: =ProjectData[[#This Row],[Actuals 23/24]]*VLOOKUP("Mid Year Nominal - EOY Real (2026/27)",CPI[],MATCH(AP$4,CPI[#Headers],0),FALSE) -> 0 | AQ75: =ProjectData[[#This Row],[Actual 24/25]]*VLOOKUP("Mid Year Nominal - EOY Real (2026/27)",CPI[],MATCH(AQ$4,CPI[#Headers],0),FALSE) -> 0 | AR75: =ProjectData[[#This Row],[Forecast 25/26]]*VLOOKUP("Mid Year Nominal - EOY Real (2026/27)",CPI[],MATCH(AR$4,CPI[#Headers],0),FALSE) -> 0 | AS75: =ProjectData[[#This Row],[Forecast 26/27]]*VLOOKUP("Mid Year Nominal - EOY Real (2026/27)",CPI[],MATCH(AS$4,CPI[#Headers],0),FALSE) -> 0 | AT75: =SUM(ProjectData[[#This Row],[Real 08]:[Real 27]]) -> 1.29438075 | AU75: =(ProjectData[[#This Row],[Real Sum]]-VLOOKUP(ProjectData[[#This Row],[Category]],Category_AverageStdDevLimit[],MATCH("Average",Category_AverageStdDevLimit[#Headers],0),FALSE))^2 -> 0.6770119414 | AV75: =VLOOKUP(ProjectData[[#This Row],[Category]],Category_AverageStdDevLimit[],MATCH("Limit",Category_AverageStdDevLimit[#Headers],0),FALSE) -> 10.66631335 | AW75: =ProjectData[[#This Row],[Real Sum]]>ProjectData[[#This Row],[Category Limit]] -> FALSE | AY75: =OR(ProjectData[[#This Row],[Significant Project? (Financial Basis)]],ProjectData[[#This Row],[Non repeatable]]) -> FALSE | AZ75: =AND(ProjectData[[#This Row],[SomeExpenditure >= 2016]],ProjectData[[#This Row],[Abnormal?]]) -> FALSE
A76: CP.01281 | B76: Telecomms Services for Optus (Brisbane-Rockhampton | C76: Other | D76: 0 | E76: 0 | F76: 0 | G76: 0 | H76: 0 | I76: 0 | J76: 0 | K76: 0 | L76: 0 | M76: 0 | N76: 0 | O76: 0 | P76: 0 | Q76: 0 | R76: 0 | S76: 0 | T76: 0 | U76: 0 | V76: 0 | W76: 0 | X76: =ProjectData[[#This Row],[Real Sum]]>0.0001 -> FALSE | Y76: =OR(ProjectData[[#This Row],[Real 16]]>0,ProjectData[[#This Row],[Real 17]]>0,ProjectData[[#This Row],[Real 18]]>0,ProjectData[[#This Row],[Real 19]]>0,ProjectData[[#This Row],[Real 20]]>0) -> FALSE | Z76: =ProjectData[[#This Row],[Actuals 07/08]]*VLOOKUP("Mid Year Nominal - EOY Real (2026/27)",CPI[],MATCH(Z$4,CPI[#Headers],0),FALSE) -> 0 | AA76: =ProjectData[[#This Row],[Actuals 08/09]]*VLOOKUP("Mid Year Nominal - EOY Real (2026/27)",CPI[],MATCH(AA$4,CPI[#Headers],0),FALSE) -> 0 | AB76: =ProjectData[[#This Row],[Actuals 09/10]]*VLOOKUP("Mid Year Nominal - EOY Real (2026/27)",CPI[],MATCH(AB$4,CPI[#Headers],0),FALSE) -> 0 | AC76: =ProjectData[[#This Row],[Actuals 10/11]]*VLOOKUP("Mid Year Nominal - EOY Real (2026/27)",CPI[],MATCH(AC$4,CPI[#Headers],0),FALSE) -> 0 | AD76: =ProjectData[[#This Row],[Actuals 11/12]]*VLOOKUP("Mid Year Nominal - EOY Real (2026/27)",CPI[],MATCH(AD$4,CPI[#Headers],0),FALSE) -> 0 | AE76: =ProjectData[[#This Row],[Actuals 12/13]]*VLOOKUP("Mid Year Nominal - EOY Real (2026/27)",CPI[],MATCH(AE$4,CPI[#Headers],0),FALSE) -> 0 | AF76: =ProjectData[[#This Row],[Actuals 13/14]]*VLOOKUP("Mid Year Nominal - EOY Real (2026/27)",CPI[],MATCH(AF$4,CPI[#Headers],0),FALSE) -> 0 | AG76: =ProjectData[[#This Row],[Actuals 14/15]]*VLOOKUP("Mid Year Nominal - EOY Real (2026/27)",CPI[],MATCH(AG$4,CPI[#Headers],0),FALSE) -> 0 | AH76: =ProjectData[[#This Row],[Actuals 15/16]]*VLOOKUP("Mid Year Nominal - EOY Real (2026/27)",CPI[],MATCH(AH$4,CPI[#Headers],0),FALSE) -> 0 | AI76: =ProjectData[[#This Row],[Actuals 16/17]]*VLOOKUP("Mid Year Nominal - EOY Real (2026/27)",CPI[],MATCH(AI$4,CPI[#Headers],0),FALSE) -> 0 | AJ76: =ProjectData[[#This Row],[Actuals 17/18]]*VLOOKUP("Mid Year Nominal - EOY Real (2026/27)",CPI[],MATCH(AJ$4,CPI[#Headers],0),FALSE) -> 0 | AK76: =ProjectData[[#This Row],[Actuals 18/19]]*VLOOKUP("Mid Year Nominal - EOY Real (2026/27)",CPI[],MATCH(AK$4,CPI[#Headers],0),FALSE) -> 0 | AL76: =ProjectData[[#This Row],[Actuals 19/20]]*VLOOKUP("Mid Year Nominal - EOY Real (2026/27)",CPI[],MATCH(AL$4,CPI[#Headers],0),FALSE) -> 0 | AM76: =ProjectData[[#This Row],[Actuals 20/21]]*VLOOKUP("Mid Year Nominal - EOY Real (2026/27)",CPI[],MATCH(AM$4,CPI[#Headers],0),FALSE) -> 0 | AN76: =ProjectData[[#This Row],[Actuals 21/22]]*VLOOKUP("Mid Year Nominal - EOY Real (2026/27)",CPI[],MATCH(AN$4,CPI[#Headers],0),FALSE) -> 0 | AO76: =ProjectData[[#This Row],[Actuals 22/23]]*VLOOKUP("Mid Year Nominal - EOY Real (2026/27)",CPI[],MATCH(AO$4,CPI[#Headers],0),FALSE) -> 0 | AP76: =ProjectData[[#This Row],[Actuals 23/24]]*VLOOKUP("Mid Year Nominal - EOY Real (2026/27)",CPI[],MATCH(AP$4,CPI[#Headers],0),FALSE) -> 0 | AQ76: =ProjectData[[#This Row],[Actual 24/25]]*VLOOKUP("Mid Year Nominal - EOY Real (2026/27)",CPI[],MATCH(AQ$4,CPI[#Headers],0),FALSE) -> 0 | AR76: =ProjectData[[#This Row],[Forecast 25/26]]*VLOOKUP("Mid Year Nominal - EOY Real (2026/27)",CPI[],MATCH(AR$4,CPI[#Headers],0),FALSE) -> 0 | AS76: =ProjectData[[#This Row],[Forecast 26/27]]*VLOOKUP("Mid Year Nominal - EOY Real (2026/27)",CPI[],MATCH(AS$4,CPI[#Headers],0),FALSE) -> 0 | AT76: =SUM(ProjectData[[#This Row],[Real 08]:[Real 27]]) -> 0 | AU76: =(ProjectData[[#This Row],[Real Sum]]-VLOOKUP(ProjectData[[#This Row],[Category]],Category_AverageStdDevLimit[],MATCH("Average",Category_AverageStdDevLimit[#Headers],0),FALSE))^2 -> 4.482485466 | AV76: =VLOOKUP(ProjectData[[#This Row],[Category]],Category_AverageStdDevLimit[],MATCH("Limit",Category_AverageStdDevLimit[#Headers],0),FALSE) -> 10.66631335 | AW76: =ProjectData[[#This Row],[Real Sum]]>ProjectData[[#This Row],[Category Limit]] -> FALSE | AY76: =OR(ProjectData[[#This Row],[Significant Project? (Financial Basis)]],ProjectData[[#This Row],[Non repeatable]]) -> FALSE | AZ76: =AND(ProjectData[[#This Row],[SomeExpenditure >= 2016]],ProjectData[[#This Row],[Abnormal?]]) -> FALSE
